Workbook

Sheet Modifications
A1: Date | B1: With Effect From | C1: Modified By | D1: Old Version | E1: New Version | F1: Changes | G1: File Name
A2: 2017-10-28 | C2: Sriganesh Kumar Sridhar | D2: NA | E2: Nov 17_Ver 1.0 | F2: New BI | G2: Kotak Lifetime Income Plan_107N103V01_Nov 17_Ver 1.0
A3: 2017-11-08 | C3: Sriganesh Kumar Sridhar | D3: Nov 17_Ver 1.0 | E3: Nov 17_Ver 1.0 | F3: Added validations for QROPS | G3: Kotak Lifetime Income Plan_107N103V01_Nov 17_Ver 1.1
D4: Nov 17_Ver 1.1 | E4: Nov 17_Ver 1.1 | F4: Kotak life name and logo changed | G4: Kotak Lifetime Income Plan_107N103V01_Nov 17_Ver 1.1
D5: Dec 17_V1.0 | E5: Dec 17_V1.0 | F5: Verison number changed | G5: Kotak Lifetime Income Plan_107N103V01_Dec 17_Ver 1.0
A6: 2018-10-05 | C6: Ritika Khirwadkar | D6: Dec 17_V1.0 | E6: Nov 2018 Ver 1.0 | F6: Updateing of annuity rates | G6: Kotak Lifetime Income Plan_107N103V02_Oct 2018_Ver 1.0.xlsm
A7: 2019-09-27 | C7: Ritika Khirwadkar | D7: Nov 2018 Ver 1.0 | E7: Nov 2018 Ver 1.1 | F7: 1. Agents oaction added
F8: 2. Proposers loaction adedd
F9: 3. Service tax change for kerala
F10: 4. QROPS (Existing and new) category added
F11: 5. Discount to Existing QROPS customer
F12: 6. If proposers location is "Foreign country" then tax is zeo
F13: 7. Kerala cess considered 1.9%
A15: 2019-11-15 | C15: K Sandhya | D15: Nov 2018 Ver 1.1 | E15: Nov 2019 Ver 1.1 | F15: GST for NPS set to 0% in T12
F16: Added NPS in T34
F17: Changed Conditional formating in I12:L12 - This is to ensure existing customer display is not there if NPS is chosen
A18: 2019-12-02 | C18: Ritika Khirwadkar | D18: Nov 2018 Ver 1.1 | E18: Dec 2019 Ver 1.2 | F18: Updated revised annuity rates in sheets ending with Dec 2019. Updated the UIN to V03 Updated annuity increase %s for high SP bands in column AM of Input sheet

Sheet Input
J1: For Office Use Only (w.e.f. Dec 19 / Ver 1.2) | P1: Product Details | W1: Annuity Amount | AL1: Lifetime Income Option Calculation | AW1: State List
J2: Proposal No: | P2: Policy Term Drop down List | Q2: Options Available | R2: Eligibility Conditions | W2: Option | Z2: Final Rates | AB2: Indicator | AC2: Monthly annuity | AL2: Single Premium Bands | AM2: Frequency of Payment | AW2: Andaman and Nicobar Islands
J3: Policy No: | P3: 5 | Q3: Lifetime Income | R3: Min. Age of Annuitant | T3: 45/18 | W3: Lifetime IncomeN/A | Z3: =IF($R$22="ann",AM9,IF($R$22="hlf",AN9,IF($R$22="qrt",AO9,AP9))) -> 0.01503968861 | AB3: =IF($Y$18=W3,1,0) -> 0 | AC3: =AP9 -> 0.004961008395 | AM3: ann | AN3: hlf | AO3: qrt | AP3: mth | AW3: Andhra Pradesh
P4: 10 | Q4: Lifetime Income with Cash-Back | R4: Max. Age of Annuitant | T4: 99/99 | W4: Lifetime Income with Cash-BackN/A | Z4: =IF($R$22="ann",AM20,IF($R$22="hlf",AN20,IF($R$22="qrt",AO20,AP20))) -> 0.0143976001 | AB4: =IF($Y$18=W4,1,0) -> 0 | AC4: =AP20 -> 0.004749208365 | AL4: 250000 | AM4: =VLOOKUP(Age,'SL_Revised Dec 2019'!$A$3:$G$103,2,0) -> 0.0609 | AN4: =AM4*97%/2 -> 0.0295365 | AO4: =AM4*96%/4 -> 0.014616 | AP4: =AM4*95%/12 -> 0.00482125 | AR4: Less than Rs.250,000 | AW4: Arunachal Pradesh
B5: Kotak Lifetime Income Plan - Benefit Ilustration An Immediate Annuity Plan UIN 107N103V03 This shall form part of the Policy Document | P5: 15 | Q5: Lifetime Income with Term Guarantee of 5/10/15/20 Years | R5: Min. Age of Spouse | T5: 35/18 | W5: Lifetime Income with Term Guarantee of 5/10/15/20 Years5 | Z5: =IF($R$22="ann",AM30,IF($R$22="hlf",AN30,IF($R$22="qrt",AO30,AP30))) -> 0.01503968861 | AB5: =IF($Y$18=W5,1,0) -> 0 | AC5: =AP30 -> 0.004961008395 | AL5: 500000 | AM5: =AM4*1.0063 -> 0.06128367 | AN5: =AM5*97%/2 -> 0.02972257995 | AO5: =AM5*96%/4 -> 0.0147080808 | AP5: =AM5*95%/12 -> 0.004851623875 | AR5: 250,000 to less than 500,000 | AW5: Assam
B6: Dear Customer, The illustration is approved by the Board of Directors of the Company and takes into account the guidelines for illustrations set by the Life Insurance Council and the IRDAI. Some benefits are guaranteed and some benefits are variable with returns based on the future performance of your life insurance company. If your policy offers guaranteed returns then these will be clearly marked “guaranteed” in the illustration table on this page. If your policy offers variable returns then the illustrations on this page will show two different rates of assumed investment returns. These assumed rates return are not guaranteed and they are not upper or lower limits of what you might get back as the value of your policy is dependent on a number of factors including future investment performance. | P6: 20 | Q6: Last survivor Lifetime Income with 100% annuity to Surviving Spouse | R6: Max. Age of Spouse | T6: 99/99 | W6: Lifetime Income with Term Guarantee of 5/10/15/20 Years10 | Z6: =IF($R$22="ann",AM41,IF($R$22="hlf",AN41,IF($R$22="qrt",AO41,AP41))) -> 0.0150149929 | AB6: =IF($Y$18=W6,1,0) -> 0 | AC6: =AP41 -> 0.00495286224 | AL6: 1000000 | AM6: =AM4*1.0188 -> 0.06204492 | AN6: =AM6*97%/2 -> 0.0300917862 | AO6: =AM6*96%/4 -> 0.0148907808 | AP6: =AM6*95%/12 -> 0.0049118895 | AR6: 500,000 to less than 10,00,000 | AW6: Bihar
B7: Name of Annuitant | D7: Kush Shah | G7: =IF(D7="","Please enter Name of the Annuitant",IF(D9="","Please enter the Date of Birth",IF(D8="","Please enter the Gender",""))) ->  | I7: Name of Proposer , if different from Annuitant | K7: Snehal Shah | P7: N/A | Q7: Last survivor Lifetime Income with 50% annuity to Surviving Spouse | R7: Min. Single Premium | T7: Minimum Single premium shall be such that the minimum annuity payable in this plan is at least equal to Rs.1000 per month | W7: Lifetime Income with Term Guarantee of 5/10/15/20 Years15 | Z7: =IF($R$22="ann",AM52,IF($R$22="hlf",AN52,IF($R$22="qrt",AO52,AP52))) -> 0.0150149929 | AB7: 1 | AC7: =AP52 -> 0.00495286224 | AL7: 5000000 | AM7: =AM4*1.025 -> 0.0624225 | AN7: =AM7*97%/2 -> 0.0302749125 | AO7: =AM7*96%/4 -> 0.0149814 | AP7: =AM7*95%/12 -> 0.00494178125 | AR7: 10,00,000 to less than 50,00,000 | AW7: Chandigarh
B8: Gender of Annuitant | D8: Male | I8: Gender of Proposer | K8: Male | Q8: Last survivor Lifetime Income with 100% annuity to the Surviving Spouse and Cash-back on death of Surviving Spouse | W8: Lifetime Income with Term Guarantee of 5/10/15/20 Years20 | Z8: =IF($R$22="ann",AM63,IF($R$22="hlf",AN63,IF($R$22="qrt",AO63,AP63))) -> 0.01499029718 | AB8: 0 | AC8: =AP63 -> 0.004944716085 | AL8: 5000000+ | AM8: =AM4*1.03 -> 0.062727 | AN8: =AM8*97%/2 -> 0.030422595 | AO8: =AM8*96%/4 -> 0.01505448 | AP8: =AM8*95%/12 -> 0.0049658875 | AR8: 50,00,000 & above | AW8: Chattisgarh
B9: Date of Birth of Annuitant | D9: 2001-01-04 | G9: =IF(K11="","Please select the Client Category",IF(Tax_Region="","Please select Agent’s Branch Location",IF(I21="","Please select the Frequency of Annuity Payment",IF(B21="","Please select the Annuity Option",IF(Proposer_Location="","Please select Proposer's Current Location",""))))) ->  | I9: Date of Birth of Proposer | K9: 1920-01-04 | W9: Last survivor Lifetime Income with 100% annuity to Surviving SpouseN/A | Z9: =IF($R$22="ann",AM74,IF($R$22="hlf",AN74,IF($R$22="qrt",AO74,AP74))) -> 0.01474334006 | AB9: 0 | AC9: =AP74 -> 0.004863254535 | AL9: Annuity | AM9: =IF(SP<$AL4,AM4,IF(SP<$AL5,AM5,IF(SP<$AL6,AM6,IF(SP<$AL7,AM7,AM8))))*IF(OR($K$11="Existing Pension Plan policyholders of KLI",$K$11="Nominees of deceased KLI pension policyholder",$K$11="Members of Superannuation scheme",$K$11="QROPS – Existing Pension Policyholders of KLI"),101%,1) -> 0.0626653692 | AN9: =IF(SP<$AL4,AN4,IF(SP<$AL5,AN5,IF(SP<$AL6,AN6,IF(SP<$AL7,AN7,AN8))))*IF(OR($K$11="Existing Pension Plan policyholders of KLI",$K$11="Nominees of deceased KLI pension policyholder",$K$11="Members of Superannuation scheme",$K$11="QROPS – Existing Pension Policyholders of KLI"),101%,1) -> 0.03039270406 | AO9: =IF(SP<$AL4,AO4,IF(SP<$AL5,AO5,IF(SP<$AL6,AO6,IF(SP<$AL7,AO7,AO8))))*IF(OR($K$11="Existing Pension Plan policyholders of KLI",$K$11="Nominees of deceased KLI pension policyholder",$K$11="Members of Superannuation scheme",$K$11="QROPS – Existing Pension Policyholders of KLI"),101%,1) -> 0.01503968861 | AP9: =IF(SP<$AL4,AP4,IF(SP<$AL5,AP5,IF(SP<$AL6,AP6,IF(SP<$AL7,AP7,AP8))))*IF(OR($K$11="Existing Pension Plan policyholders of KLI",$K$11="Nominees of deceased KLI pension policyholder",$K$11="Members of Superannuation scheme",$K$11="QROPS – Existing Pension Policyholders of KLI"),101%,1) -> 0.004961008395 | AW9: Dadra and Nagar Haveli
B10: Age as on last birthday | D10: =IF(D9="","",DATEDIF(D9,T19,"y")) -> 20 | I10: Age as on last birthday | K10: =IF(K9="","",DATEDIF(K9,T19,"y")) -> 101 | W10: Last survivor Lifetime Income with 50% annuity to Surviving SpouseN/A | Z10: =IF($R$22="ann",AM85,IF($R$22="hlf",AN85,IF($R$22="qrt",AO85,AP85))) -> 0.01489151434 | AB10: 0 | AC10: =AP85 -> 0.004912131465 | AW10: Daman and Diu
B11: =IF(SUM(AB9:AB11)=1,"Name of Spouse", "") ->  | D11: Ms Customer | G11: =IF(Age<100,IF(AND(LEFT(K11,2)="NE",Age<45),"Minimum age at entry is 45 years for New Customers",IF(AND(OR(LEFT(K11)="M",LEFT(K11)="E"),Age<18),"Minimum age at entry is 18 years for "&K11,IF(AND(LEFT(K11,1)="Q",Age < 55),"Minimum age at entry is 55 years if purchased through QROPS",IF(AND(LEFT(K11,3)="Nom",Age < 0),"Minimum age at entry is 0 years for Nominees of deceased KLI pension plan policyholders","")))),"Max age at entry cannot be more than 99 years") ->  | I11: Client Category | K11: Nominees of deceased KLI pension policyholder | P11: Gender | W11: Last survivor Lifetime Income with 100% annuity to the Surviving Spouse and Cash-back on death of Surviving SpouseN/A | Z11: =IF($R$22="ann",AM96,IF($R$22="hlf",AN96,IF($R$22="qrt",AO96,AP96))) -> 0.01432351296 | AB11: 0 | AC11: =AP96 -> 0.0047247699 | AW11: Delhi
B12: =IF(B11="","","Gender of Spouse") ->  | D12: Female | G12: =IF(B21="Last Survivor Lifetime Income",IF(D11="","Please enter Name of the Spouse",IF(D13="","Please enter the Date of Birth of Spouse",IF(D12="","Please enter the Gender of Spouse",""))),"") ->  | I12: =IF(OR(LEFT(K11,2)="Ne",LEFT(K11,2)="NP",LEFT(K11,2)="QR"),"",IF(K11="Members of Superannuation scheme","Master Policy Numnber","Existing Policy Number")) -> Existing Policy Number | K12: 127890 | P12: Male | R12: Service Tax | T12: =IF(K11="NPS Customers",0%,IF(Tax_Region="Rest of India",Q29*(1+Q28),R29*(1+R28))) -> 0.018 | AL12: Lifetime Income with Cashback Option Calculation | AW12: Goa
B13: =IF(B11="","","Date of Birth of Spouse") ->  | D13: 1989-11-02 | G13: =IF(T20="No","",IF(_Age1<100,IF(T20="Yes",IF(AND(LEFT(K11,2)="NE",_Age1<35),"Spouse Age Cannot be less than 35 years for New Customers",IF(_Age1<18,"Spouse Age Cannot be less than 18 years",IF(Age<18,"Age Cannot be less than 18 years for selected Annuity Option",""))),""),"Spouse Age Cannot be greater than 99 years")) ->  | I13: Agent's Branch Location | K13: Gujarat | P13: Female | AL13: Single Premium Bands | AM13: Frequency of Payment | AW13: Gujarat
B14: =IF(B11="","","Age as on last birthday") ->  | D14: =IF(D13="","",DATEDIF(D13,T19,"y")) -> 31 | I14: Proposer's Current Location | K14: Gujarat | AM14: ann | AN14: hlf | AO14: qrt | AP14: mth | AW14: Haryana
B15: Is Proposer same as annuitant | D15: No | G15: =IFERROR(IF(Y22<1000,"Minimum Single premium shall be such that the minimum annuity payable in this plan is at least equal to Rs.1000 per month. Single Premium must be more than or equal to "& Y26,""),"Please check the inputs") ->  | J15: =IF(AND(B21="Lifetime Income with Term Guarantee of 5/10/15/20 Years",OR(H21="",H21="N/A")),"Please select Guarantee Term",IF(AND(B21<>"Lifetime Income with Term Guarantee of 5/10/15/20 Years",H21<>"N/A"),"Please de-select Guarantee Term","")) ->  | R15: Condition for showing premium | AL15: 250000 | AM15: =VLOOKUP(Age,'SL_Revised Dec 2019'!$A$3:$G$103,3,0) -> 0.0583 | AN15: =AM15*97%/2 -> 0.0282755 | AO15: =AM15*96%/4 -> 0.013992 | AP15: =AM15*95%/12 -> 0.004615416667 | AW15: Himachal Pradesh
B16: =IF(AND(K11="QROPS",D15="No"),"If annuity is availed through QROPs then Annuitant and Proposer should be same",IF(D15="No",IF(AND(K7=D7,K8=D8,K9=D9),"Proposer details should be different from annuitant",""),IF(AND(K7=D7,D8=K8,D9=K9),"","Please ensure Annuitant details are same as Proposer"))) ->  | P16: Annuity Mode | R16: =OR(G7<>"",G9<>"",G15<>"",J15<>"",G11<>"",G12<>"",G13<>"",I17<>"",I22<>"",B16<>"") -> TRUE | AL16: 500000 | AM16: =AM15*1.0063 -> 0.05866729 | AN16: =AM16*97%/2 -> 0.02845363565 | AO16: =AM16*96%/4 -> 0.0140801496 | AP16: =AM16*95%/12 -> 0.004644493792 | AW16: Jammu and Kashmir
I17: =IF(AND(OR(K11<>"New Customers",K11<>"QROPS"),K12=""), "Please Enter Your "&I12, "") ->  | P17: Yearly | Q17: 0 | AL17: 1000000 | AM17: =AM15*1.0188 -> 0.05939604 | AN17: =AM17*97%/2 -> 0.0288070794 | AO17: =AM17*96%/4 -> 0.0142550496 | AP17: =AM17*95%/12 -> 0.0047021865 | AW17: Jharkhand
B18: Plan Details | P18: Half Yearly | Q18: 1 | W18: Premium Calculation Code | Y18: =(B21&H21) -> Lifetime Income with Term Guarantee of 5/10/15/20 Years15 | AL18: 5000000 | AM18: =AM15*1.025 -> 0.0597575 | AN18: =AM18*97%/2 -> 0.0289823875 | AO18: =AM18*96%/4 -> 0.0143418 | AP18: =AM18*95%/12 -> 0.004730802083 | AW18: Karnataka
B19: Annuity Option | H19: Guarantee Term | I19: Frequency of Annuity Payment | J19: Annuity Installment (Rs.) | L19: Amount of Single Premium | P19: Quarterly | Q19: 2 | R19: Date of Illustration | T19: =TODAY() -> 2021-01-06 | W19: Annuity Amount | Y19: =ROUND(SUMPRODUCT(Z3:Z12,AB3:AB12)*SP,0) -> 7507 | AL19: 5000,000+ | AM19: =AM15*1.03 -> 0.060049 | AN19: =AM19*97%/2 -> 0.029123765 | AO19: =AM19*96%/4 -> 0.01441176 | AP19: =AM19*95%/12 -> 0.004753879167 | AW19: Kerala
P20: Monthly | Q20: 3 | R20: Spouse Details Required | T20: =IF(SUM(AB9:AB11)=1,"Yes","No") -> No | AL20: Annuity | AM20: =IF(SP<$AL15,AM15,IF(SP<$AL16,AM16,IF(SP<$AL17,AM17,IF(SP<$AL18,AM18,AM19))))*IF(OR($K$11="Existing Pension Plan policyholders of KLI",$K$11="Nominees of deceased KLI pension policyholder",$K$11="Members of Superannuation scheme",$K$11="QROPS – Existing Pension Policyholders of KLI"),101%,1) -> 0.0599900004 | AN20: =IF(SP<$AL15,AN15,IF(SP<$AL16,AN16,IF(SP<$AL17,AN17,IF(SP<$AL18,AN18,AN19))))*IF(OR($K$11="Existing Pension Plan policyholders of KLI",$K$11="Nominees of deceased KLI pension policyholder",$K$11="Members of Superannuation scheme",$K$11="QROPS – Existing Pension Policyholders of KLI"),101%,1) -> 0.02909515019 | AO20: =IF(SP<$AL15,AO15,IF(SP<$AL16,AO16,IF(SP<$AL17,AO17,IF(SP<$AL18,AO18,AO19))))*IF(OR($K$11="Existing Pension Plan policyholders of KLI",$K$11="Nominees of deceased KLI pension policyholder",$K$11="Members of Superannuation scheme",$K$11="QROPS – Existing Pension Policyholders of KLI"),101%,1) -> 0.0143976001 | AP20: =IF(SP<$AL15,AP15,IF(SP<$AL16,AP16,IF(SP<$AL17,AP17,IF(SP<$AL18,AP18,AP19))))*IF(OR($K$11="Existing Pension Plan policyholders of KLI",$K$11="Nominees of deceased KLI pension policyholder",$K$11="Members of Superannuation scheme",$K$11="QROPS – Existing Pension Policyholders of KLI"),101%,1) -> 0.004749208365 | AW20: Lakshadweep Islands
B21: Lifetime Income with Term Guarantee of 5/10/15/20 Years | H21: 15 | I21: Quarterly | J21: =IF(R16=TRUE,"Check any Validations",Y19) -> Check any Validations | L21: 500000 | R21: Chosen Annuity Mode | AW21: Madhya Pradesh
B22: =IF(B21="Last survivor Lifetime Income with 50% annuity to Surviving Spouse","Under this annuity option - "&D7&" will be treated as Primary Annuitant and "&D11&" will be treated as Secondary Annuitant.","") ->  | I22: =IF(K9="","",IF(K10<18,"Minimum Entry Age for Proposer is 18",IF(K10>99,"Maximum Entry Age for Proposer is 99",""))) -> Maximum Entry Age for Proposer is 99 | R22: =IF(I21="Yearly","ann",IF(I21="Half Yearly","hlf",IF(I21="Quarterly","qrt","mth"))) -> qrt | W22: Monthly Annuity Amount | Y22: =ROUND(SUMPRODUCT(AB3:AB12,AC3:AC12)*SP,4) -> 2476.4311 | AL22: Lifetime Income with Term Guarantee of 5 Years Option Calculation | AW22: Maharashtra
B23: Goods and Services tax and Cess payable on the Single Premium | L23: =IF(R16=TRUE,"",ROUND(IF(ISNUMBER(L21*$T$12),L21*$T$12,0),0)) ->  | S23: =VLOOKUP($I$21,$P$17:$Q$20,2,0) -> 2 | AL23: Single Premium Bands | AM23: Frequency of Payment | AW23: Manipur
B24: Total Amount of single premium to be paid, inclusive of Goods and Services Tax and cess | L24: =IF(R16=TRUE,"Check any Validations",SP+L23) -> Check any Validations | AM24: ann | AN24: hlf | AO24: qrt | AP24: mth | AW24: Meghalaya
AL25: 250000 | AM25: =VLOOKUP(Age,'SL_Revised Dec 2019'!$A$3:$G$103,4,0) -> 0.0609 | AN25: =AM25*97%/2 -> 0.0295365 | AO25: =AM25*96%/4 -> 0.014616 | AP25: =AM25*95%/12 -> 0.00482125 | AW25: Mizoram
B26: Terms and Conditions | Q26: Rest of India | R26: Jammu and Kashmir | W26: SP for monthly premium of 1000 | Y26: =ROUNDUP(1000/SUMPRODUCT($AB$3:$AB$12,$AC$3:$AC$12),0) -> 201904 | AL26: 500000 | AM26: =AM25*1.0063 -> 0.06128367 | AN26: =AM26*97%/2 -> 0.02972257995 | AO26: =AM26*96%/4 -> 0.0147080808 | AP26: =AM26*95%/12 -> 0.004851623875 | AW26: Nagaland
B27: 1. This is a non unit-linked non-participating annuity plan. | AL27: 1000000 | AM27: =AM25*1.0188 -> 0.06204492 | AN27: =AM27*97%/2 -> 0.0300917862 | AO27: =AM27*96%/4 -> 0.0148907808 | AP27: =AM27*95%/12 -> 0.0049118895 | AW27: Odisha
B28: 2. This illustration is subject to future change in tax rates or any other laws, regulations or guidelines affecting the annuity plans. | P28: Cess | Q28: 0 | R28: 0 | T28: New Customers | U28: 45 | AL28: 5000000 | AM28: =AM25*1.025 -> 0.0624225 | AN28: =AM28*97%/2 -> 0.0302749125 | AO28: =AM28*96%/4 -> 0.0149814 | AP28: =AM28*95%/12 -> 0.00494178125 | AW28: Pondicherry
B29: 3. For more details on terms and conditions, please read the sales brochure carefully before concluding a sale. | P29: Base Service Tax | Q29: =IF(Proposer_Location="Foreign Country",0%,IF(AND(Tax_Region="Kerala",Proposer_Location="Kerala"),1.9%,1.8%)) -> 0.018 | R29: =IF(Proposer_Location="Foreign Country",0%,IF(AND(Tax_Region="Kerala",Proposer_Location="Kerala"),1.9%,1.8%)) -> 0.018 | T29: Existing Pension Plan policyholders of KLI | U29: 18 | AL29: 5000,000+ | AM29: =AM25*1.03 -> 0.062727 | AN29: =AM29*97%/2 -> 0.030422595 | AO29: =AM29*96%/4 -> 0.01505448 | AP29: =AM29*95%/12 -> 0.0049658875 | AW29: Punjab
B30: 4. Annuity rates shown are indicative and as per the rates available currently. Please check for the applicable rates before concluding the sale. | T30: Nominees of deceased KLI pension policyholder | U30: 0 | AL30: Annuity | AM30: =IF(SP<$AL25,AM25,IF(SP<$AL26,AM26,IF(SP<$AL27,AM27,IF(SP<$AL28,AM28,AM29))))*IF(OR($K$11="Existing Pension Plan policyholders of KLI",$K$11="Nominees of deceased KLI pension policyholder",$K$11="Members of Superannuation scheme",$K$11="QROPS – Existing Pension Policyholders of KLI"),101%,1) -> 0.0626653692 | AN30: =IF(SP<$AL25,AN25,IF(SP<$AL26,AN26,IF(SP<$AL27,AN27,IF(SP<$AL28,AN28,AN29))))*IF(OR($K$11="Existing Pension Plan policyholders of KLI",$K$11="Nominees of deceased KLI pension policyholder",$K$11="Members of Superannuation scheme",$K$11="QROPS – Existing Pension Policyholders of KLI"),101%,1) -> 0.03039270406 | AO30: =IF(SP<$AL25,AO25,IF(SP<$AL26,AO26,IF(SP<$AL27,AO27,IF(SP<$AL28,AO28,AO29))))*IF(OR($K$11="Existing Pension Plan policyholders of KLI",$K$11="Nominees of deceased KLI pension policyholder",$K$11="Members of Superannuation scheme",$K$11="QROPS – Existing Pension Policyholders of KLI"),101%,1) -> 0.01503968861 | AP30: =IF(SP<$AL25,AP25,IF(SP<$AL26,AP26,IF(SP<$AL27,AP27,IF(SP<$AL28,AP28,AP29))))*IF(OR($K$11="Existing Pension Plan policyholders of KLI",$K$11="Nominees of deceased KLI pension policyholder",$K$11="Members of Superannuation scheme",$K$11="QROPS – Existing Pension Policyholders of KLI"),101%,1) -> 0.004961008395 | AW30: Rajasthan
B31: 5. After the policy contract is issued, the annuity option chosen and annuity payable is guaranteed for life and cannot be changed | T31: Members of Superannuation scheme | AW31: Sikkim
B32: 6. TDS at prevailing rate will be deducted from any amount paid under a life insurance policy subject to the provisions of prevailing tax laws. In case of non-availability of valid PAN, TDS will be deducted at higher rate. Tax laws are subject to changes from time to time. Kindly consult your tax advisor for tax implication of your policy. | T32: QROPS – Existing Pension Policyholders of KLI | AW32: Tamil Nadu
T33: QROPS New Customers | AL33: Lifetime Income with Term Guarantee of 10 Years Option Calculation | AW33: Telangana
B34: 7.Goods and Services Tax and cess as applicable are levied at applicable Tax rates in accordance with the prevailing Tax Laws. Prevailing tax laws are applicable on this policy which may vary from time to time. | T34: NPS Customers | AL34: Single Premium Bands | AM34: Frequency of Payment | AW34: Tripura
AM35: ann | AN35: hlf | AO35: qrt | AP35: mth | AW35: Uttar Pradesh
B36: Statement of Consent by the Proposer I..............................................................................(Full Name), having received this benefit illustration and all other information with respect to the above, have read and understood the structure of benefits, terms and conditions and risk factors of the proposed plan and duly acknowledge the benefit illustration before entering into the contract. | AL36: 250000 | AM36: =VLOOKUP(Age,'SL_Revised Dec 2019'!$A$3:$G$103,5,0) -> 0.0608 | AN36: =AM36*97%/2 -> 0.029488 | AO36: =AM36*96%/4 -> 0.014592 | AP36: =AM36*95%/12 -> 0.004813333333 | AW36: Uttarakhand
AL37: 500000 | AM37: =AM36*1.0063 -> 0.06118304 | AN37: =AM37*97%/2 -> 0.0296737744 | AO37: =AM37*96%/4 -> 0.0146839296 | AP37: =AM37*95%/12 -> 0.004843657333 | AW37: West Bengal
AL38: 1000000 | AM38: =AM36*1.0188 -> 0.06194304 | AN38: =AM38*97%/2 -> 0.0300423744 | AO38: =AM38*96%/4 -> 0.0148663296 | AP38: =AM38*95%/12 -> 0.004903824 | AW38: Foreign Country
AL39: 5000000 | AM39: =AM36*1.025 -> 0.06232 | AN39: =AM39*97%/2 -> 0.0302252 | AO39: =AM39*96%/4 -> 0.0149568 | AP39: =AM39*95%/12 -> 0.004933666667
B40: Place | I40: Date | AL40: 5000,000+ | AM40: =AM36*1.03 -> 0.062624 | AN40: =AM40*97%/2 -> 0.03037264 | AO40: =AM40*96%/4 -> 0.01502976 | AP40: =AM40*95%/12 -> 0.004957733333
AL41: Annuity | AM41: =IF(SP<$AL36,AM36,IF(SP<$AL37,AM37,IF(SP<$AL38,AM38,IF(SP<$AL39,AM39,AM40))))*IF(OR($K$11="Existing Pension Plan policyholders of KLI",$K$11="Nominees of deceased KLI pension policyholder",$K$11="Members of Superannuation scheme",$K$11="QROPS – Existing Pension Policyholders of KLI"),101%,1) -> 0.0625624704 | AN41: =IF(SP<$AL36,AN36,IF(SP<$AL37,AN37,IF(SP<$AL38,AN38,IF(SP<$AL39,AN39,AN40))))*IF(OR($K$11="Existing Pension Plan policyholders of KLI",$K$11="Nominees of deceased KLI pension policyholder",$K$11="Members of Superannuation scheme",$K$11="QROPS – Existing Pension Policyholders of KLI"),101%,1) -> 0.03034279814 | AO41: =IF(SP<$AL36,AO36,IF(SP<$AL37,AO37,IF(SP<$AL38,AO38,IF(SP<$AL39,AO39,AO40))))*IF(OR($K$11="Existing Pension Plan policyholders of KLI",$K$11="Nominees of deceased KLI pension policyholder",$K$11="Members of Superannuation scheme",$K$11="QROPS – Existing Pension Policyholders of KLI"),101%,1) -> 0.0150149929 | AP41: =IF(SP<$AL36,AP36,IF(SP<$AL37,AP37,IF(SP<$AL38,AP38,IF(SP<$AL39,AP39,AP40))))*IF(OR($K$11="Existing Pension Plan policyholders of KLI",$K$11="Nominees of deceased KLI pension policyholder",$K$11="Members of Superannuation scheme",$K$11="QROPS – Existing Pension Policyholders of KLI"),101%,1) -> 0.00495286224
J44: Signature/Right thumb impression of the Proposer | AL44: Lifetime Income with Term Guarantee of 15 Years Option Calculation
AL45: Single Premium Bands | AM45: Frequency of Payment
B46: Kotak Mahindra Life Insurance Company Limited | AM46: ann | AN46: hlf | AO46: qrt | AP46: mth
B47: CIN: U66030MH2000PLC128503 | AL47: 250000 | AM47: =VLOOKUP(Age,'SL_Revised Dec 2019'!$A$3:$G$103,6,0) -> 0.0608 | AN47: =AM47*97%/2 -> 0.029488 | AO47: =AM47*96%/4 -> 0.014592 | AP47: =AM47*95%/12 -> 0.004813333333
B48: Regd. Off : 2nd Floor, Plot # C- 12, G- Block, BKC, Bandra (E) , Mumbai – 400051 | AL48: 500000 | AM48: =AM47*1.0063 -> 0.06118304 | AN48: =AM48*97%/2 -> 0.0296737744 | AO48: =AM48*96%/4 -> 0.0146839296 | AP48: =AM48*95%/12 -> 0.004843657333
B49: Regn. No: 107. Toll Free No.: 1800 209 8800. Website: http://insurance.kotak.com | AL49: 1000000 | AM49: =AM47*1.0188 -> 0.06194304 | AN49: =AM49*97%/2 -> 0.0300423744 | AO49: =AM49*96%/4 -> 0.0148663296 | AP49: =AM49*95%/12 -> 0.004903824
AL50: 5000000 | AM50: =AM47*1.025 -> 0.06232 | AN50: =AM50*97%/2 -> 0.0302252 | AO50: =AM50*96%/4 -> 0.0149568 | AP50: =AM50*95%/12 -> 0.004933666667
AL51: 5000,000+ | AM51: =AM47*1.03 -> 0.062624 | AN51: =AM51*97%/2 -> 0.03037264 | AO51: =AM51*96%/4 -> 0.01502976 | AP51: =AM51*95%/12 -> 0.004957733333
AL52: Annuity | AM52: =IF(SP<$AL47,AM47,IF(SP<$AL48,AM48,IF(SP<$AL49,AM49,IF(SP<$AL50,AM50,AM51))))*IF(OR($K$11="Existing Pension Plan policyholders of KLI",$K$11="Nominees of deceased KLI pension policyholder",$K$11="Members of Superannuation scheme",$K$11="QROPS – Existing Pension Policyholders of KLI"),101%,1) -> 0.0625624704 | AN52: =IF(SP<$AL47,AN47,IF(SP<$AL48,AN48,IF(SP<$AL49,AN49,IF(SP<$AL50,AN50,AN51))))*IF(OR($K$11="Existing Pension Plan policyholders of KLI",$K$11="Nominees of deceased KLI pension policyholder",$K$11="Members of Superannuation scheme",$K$11="QROPS – Existing Pension Policyholders of KLI"),101%,1) -> 0.03034279814 | AO52: =IF(SP<$AL47,AO47,IF(SP<$AL48,AO48,IF(SP<$AL49,AO49,IF(SP<$AL50,AO50,AO51))))*IF(OR($K$11="Existing Pension Plan policyholders of KLI",$K$11="Nominees of deceased KLI pension policyholder",$K$11="Members of Superannuation scheme",$K$11="QROPS – Existing Pension Policyholders of KLI"),101%,1) -> 0.0150149929 | AP52: =IF(SP<$AL47,AP47,IF(SP<$AL48,AP48,IF(SP<$AL49,AP49,IF(SP<$AL50,AP50,AP51))))*IF(OR($K$11="Existing Pension Plan policyholders of KLI",$K$11="Nominees of deceased KLI pension policyholder",$K$11="Members of Superannuation scheme",$K$11="QROPS – Existing Pension Policyholders of KLI"),101%,1) -> 0.00495286224
AL55: Lifetime Income with Term Guarantee of 20 Years Option Calculation
AL56: Single Premium Bands | AM56: Frequency of Payment
AM57: ann | AN57: hlf | AO57: qrt | AP57: mth
AL58: 250000 | AM58: =VLOOKUP(Age,'SL_Revised Dec 2019'!$A$3:$G$103,7,0) -> 0.0607 | AN58: =AM58*97%/2 -> 0.0294395 | AO58: =AM58*96%/4 -> 0.014568 | AP58: =AM58*95%/12 -> 0.004805416667
AL59: 500000 | AM59: =AM58*1.0063 -> 0.06108241 | AN59: =AM59*97%/2 -> 0.02962496885 | AO59: =AM59*96%/4 -> 0.0146597784 | AP59: =AM59*95%/12 -> 0.004835690792
AL60: 1000000 | AM60: =AM58*1.0188 -> 0.06184116 | AN60: =AM60*97%/2 -> 0.0299929626 | AO60: =AM60*96%/4 -> 0.0148418784 | AP60: =AM60*95%/12 -> 0.0048957585
AL61: 5000000 | AM61: =AM58*1.025 -> 0.0622175 | AN61: =AM61*97%/2 -> 0.0301754875 | AO61: =AM61*96%/4 -> 0.0149322 | AP61: =AM61*95%/12 -> 0.004925552083
AL62: 50,00,000+ | AM62: =AM58*1.03 -> 0.062521 | AN62: =AM62*97%/2 -> 0.030322685 | AO62: =AM62*96%/4 -> 0.01500504 | AP62: =AM62*95%/12 -> 0.004949579167
AL63: Annuity | AM63: =IF(SP<$AL58,AM58,IF(SP<$AL59,AM59,IF(SP<$AL60,AM60,IF(SP<$AL61,AM61,AM62))))*IF(OR($K$11="Existing Pension Plan policyholders of KLI",$K$11="Nominees of deceased KLI pension policyholder",$K$11="Members of Superannuation scheme",$K$11="QROPS – Existing Pension Policyholders of KLI"),101%,1) -> 0.0624595716 | AN63: =IF(SP<$AL58,AN58,IF(SP<$AL59,AN59,IF(SP<$AL60,AN60,IF(SP<$AL61,AN61,AN62))))*IF(OR($K$11="Existing Pension Plan policyholders of KLI",$K$11="Nominees of deceased KLI pension policyholder",$K$11="Members of Superannuation scheme",$K$11="QROPS – Existing Pension Policyholders of KLI"),101%,1) -> 0.03029289223 | AO63: =IF(SP<$AL58,AO58,IF(SP<$AL59,AO59,IF(SP<$AL60,AO60,IF(SP<$AL61,AO61,AO62))))*IF(OR($K$11="Existing Pension Plan policyholders of KLI",$K$11="Nominees of deceased KLI pension policyholder",$K$11="Members of Superannuation scheme",$K$11="QROPS – Existing Pension Policyholders of KLI"),101%,1) -> 0.01499029718 | AP63: =IF(SP<$AL58,AP58,IF(SP<$AL59,AP59,IF(SP<$AL60,AP60,IF(SP<$AL61,AP61,AP62))))*IF(OR($K$11="Existing Pension Plan policyholders of KLI",$K$11="Nominees of deceased KLI pension policyholder",$K$11="Members of Superannuation scheme",$K$11="QROPS – Existing Pension Policyholders of KLI"),101%,1) -> 0.004944716085
AL66: Last survivor Lifetime Income with 100% annuity to Surviving SpouseN/A
AL67: Single Premium Bands | AM67: Frequency of Payment
AM68: ann | AN68: hlf | AO68: qrt | AP68: mth
AL69: 250000 | AM69: =IFERROR(IF(Age>_Age1,VLOOKUP(Age,'JL_Revised Dec 2019'!$A$4:$CE$85,_Age1-16,0),VLOOKUP(_Age1,'JL_Revised Dec 2019'!$A$4:$CE$85,Age-16,0)),0) -> 0.0597 | AN69: =AM69*97%/2 -> 0.0289545 | AO69: =AM69*96%/4 -> 0.014328 | AP69: =AM69*95%/12 -> 0.00472625
AL70: 500000 | AM70: =AM69*1.0063 -> 0.06007611 | AN70: =AM70*97%/2 -> 0.02913691335 | AO70: =AM70*96%/4 -> 0.0144182664 | AP70: =AM70*95%/12 -> 0.004756025375
AL71: 1000000 | AM71: =AM69*1.0188 -> 0.06082236 | AN71: =AM71*97%/2 -> 0.0294988446 | AO71: =AM71*96%/4 -> 0.0145973664 | AP71: =AM71*95%/12 -> 0.0048151035
AL72: 5000000 | AM72: =AM69*1.025 -> 0.0611925 | AN72: =AM72*97%/2 -> 0.0296783625 | AO72: =AM72*96%/4 -> 0.0146862 | AP72: =AM72*95%/12 -> 0.00484440625
AL73: 5000,000+ | AM73: =AM69*1.03 -> 0.061491 | AN73: =AM73*97%/2 -> 0.029823135 | AO73: =AM73*96%/4 -> 0.01475784 | AP73: =AM73*95%/12 -> 0.0048680375
AL74: Annuity | AM74: =IF(SP<$AL69,AM69,IF(SP<$AL70,AM70,IF(SP<$AL71,AM71,IF(SP<$AL72,AM72,AM73))))*IF(OR($K$11="Existing Pension Plan policyholders of KLI",$K$11="Nominees of deceased KLI pension policyholder",$K$11="Members of Superannuation scheme",$K$11="QROPS – Existing Pension Policyholders of KLI"),101%,1) -> 0.0614305836 | AN74: =IF(SP<$AL69,AN69,IF(SP<$AL70,AN70,IF(SP<$AL71,AN71,IF(SP<$AL72,AN72,AN73))))*IF(OR($K$11="Existing Pension Plan policyholders of KLI",$K$11="Nominees of deceased KLI pension policyholder",$K$11="Members of Superannuation scheme",$K$11="QROPS – Existing Pension Policyholders of KLI"),101%,1) -> 0.02979383305 | AO74: =IF(SP<$AL69,AO69,IF(SP<$AL70,AO70,IF(SP<$AL71,AO71,IF(SP<$AL72,AO72,AO73))))*IF(OR($K$11="Existing Pension Plan policyholders of KLI",$K$11="Nominees of deceased KLI pension policyholder",$K$11="Members of Superannuation scheme",$K$11="QROPS – Existing Pension Policyholders of KLI"),101%,1) -> 0.01474334006 | AP74: =IF(SP<$AL69,AP69,IF(SP<$AL70,AP70,IF(SP<$AL71,AP71,IF(SP<$AL72,AP72,AP73))))*IF(OR($K$11="Existing Pension Plan policyholders of KLI",$K$11="Nominees of deceased KLI pension policyholder",$K$11="Members of Superannuation scheme",$K$11="QROPS – Existing Pension Policyholders of KLI"),101%,1) -> 0.004863254535
AL77: Last survivor Lifetime Income with 50% annuity to Surviving SpouseN/A
AL78: Single Premium Bands | AM78: Frequency of Payment
AM79: ann | AN79: hlf | AO79: qrt | AP79: mth
AL80: 250000 | AM80: =IFERROR(VLOOKUP(Age,'JL_50%_ Revised Dec 2019'!$C$4:$CG$85,_Age1-16,0),0) -> 0.0603 | AN80: =AM80*97%/2 -> 0.0292455 | AO80: =AM80*96%/4 -> 0.014472 | AP80: =AM80*95%/12 -> 0.00477375
AL81: 500000 | AM81: =AM80*1.0063 -> 0.06067989 | AN81: =AM81*97%/2 -> 0.02942974665 | AO81: =AM81*96%/4 -> 0.0145631736 | AP81: =AM81*95%/12 -> 0.004803824625
AL82: 1000000 | AM82: =AM80*1.0188 -> 0.06143364 | AN82: =AM82*97%/2 -> 0.0297953154 | AO82: =AM82*96%/4 -> 0.0147440736 | AP82: =AM82*95%/12 -> 0.0048634965
AL83: 5000000 | AM83: =AM80*1.025 -> 0.0618075 | AN83: =AM83*97%/2 -> 0.0299766375 | AO83: =AM83*96%/4 -> 0.0148338 | AP83: =AM83*95%/12 -> 0.00489309375
AL84: 5000,000+ | AM84: =AM80*1.03 -> 0.062109 | AN84: =AM84*97%/2 -> 0.030122865 | AO84: =AM84*96%/4 -> 0.01490616 | AP84: =AM84*95%/12 -> 0.0049169625
AL85: Annuity | AM85: =IF(SP<$AL80,AM80,IF(SP<$AL81,AM81,IF(SP<$AL82,AM82,IF(SP<$AL83,AM83,AM84))))*IF(OR($K$11="Existing Pension Plan policyholders of KLI",$K$11="Nominees of deceased KLI pension policyholder",$K$11="Members of Superannuation scheme",$K$11="QROPS – Existing Pension Policyholders of KLI"),101%,1) -> 0.0620479764 | AN85: =IF(SP<$AL80,AN80,IF(SP<$AL81,AN81,IF(SP<$AL82,AN82,IF(SP<$AL83,AN83,AN84))))*IF(OR($K$11="Existing Pension Plan policyholders of KLI",$K$11="Nominees of deceased KLI pension policyholder",$K$11="Members of Superannuation scheme",$K$11="QROPS – Existing Pension Policyholders of KLI"),101%,1) -> 0.03009326855 | AO85: =IF(SP<$AL80,AO80,IF(SP<$AL81,AO81,IF(SP<$AL82,AO82,IF(SP<$AL83,AO83,AO84))))*IF(OR($K$11="Existing Pension Plan policyholders of KLI",$K$11="Nominees of deceased KLI pension policyholder",$K$11="Members of Superannuation scheme",$K$11="QROPS – Existing Pension Policyholders of KLI"),101%,1) -> 0.01489151434 | AP85: =IF(SP<$AL80,AP80,IF(SP<$AL81,AP81,IF(SP<$AL82,AP82,IF(SP<$AL83,AP83,AP84))))*IF(OR($K$11="Existing Pension Plan policyholders of KLI",$K$11="Nominees of deceased KLI pension policyholder",$K$11="Members of Superannuation scheme",$K$11="QROPS – Existing Pension Policyholders of KLI"),101%,1) -> 0.004912131465
AL88: Last survivor Lifetime Income with 100% annuity to the Surviving Spouse and Cash-back on death of Surviving SpouseN/A
AL89: Single Premium Bands | AM89: Frequency of Payment
AM90: ann | AN90: hlf | AO90: qrt | AP90: mth
AL91: 250000 | AM91: =IFERROR(IF(Age>_Age1,VLOOKUP($D$10,'JLRP_Revised Dec 2019'!$A$4:$CE$85,_Age1-16,0),VLOOKUP(_Age1,'JLRP_Revised Dec 2019'!$A$4:$CE$85,Age-16,0)),0) -> 0.058 | AN91: =AM91*97%/2 -> 0.02813 | AO91: =AM91*96%/4 -> 0.01392 | AP91: =AM91*95%/12 -> 0.004591666667
AL92: 500000 | AM92: =AM91*1.0063 -> 0.0583654 | AN92: =AM92*97%/2 -> 0.028307219 | AO92: =AM92*96%/4 -> 0.014007696 | AP92: =AM92*95%/12 -> 0.004620594167
AL93: 1000000 | AM93: =AM91*1.0188 -> 0.0590904 | AN93: =AM93*97%/2 -> 0.028658844 | AO93: =AM93*96%/4 -> 0.014181696 | AP93: =AM93*95%/12 -> 0.00467799
AL94: 5000000 | AM94: =AM91*1.025 -> 0.05945 | AN94: =AM94*97%/2 -> 0.02883325 | AO94: =AM94*96%/4 -> 0.014268 | AP94: =AM94*95%/12 -> 0.004706458333
AL95: 5000,000+ | AM95: =AM91*1.03 -> 0.05974 | AN95: =AM95*97%/2 -> 0.0289739 | AO95: =AM95*96%/4 -> 0.0143376 | AP95: =AM95*95%/12 -> 0.004729416667
AL96: Annuity | AM96: =IF(SP<$AL91,AM91,IF(SP<$AL92,AM92,IF(SP<$AL93,AM93,IF(SP<$AL94,AM94,AM95))))*IF(OR($K$11="Existing Pension Plan policyholders of KLI",$K$11="Nominees of deceased KLI pension policyholder",$K$11="Members of Superannuation scheme",$K$11="QROPS – Existing Pension Policyholders of KLI"),101%,1) -> 0.059681304 | AN96: =IF(SP<$AL91,AN91,IF(SP<$AL92,AN92,IF(SP<$AL93,AN93,IF(SP<$AL94,AN94,AN95))))*IF(OR($K$11="Existing Pension Plan policyholders of KLI",$K$11="Nominees of deceased KLI pension policyholder",$K$11="Members of Superannuation scheme",$K$11="QROPS – Existing Pension Policyholders of KLI"),101%,1) -> 0.02894543244 | AO96: =IF(SP<$AL91,AO91,IF(SP<$AL92,AO92,IF(SP<$AL93,AO93,IF(SP<$AL94,AO94,AO95))))*IF(OR($K$11="Existing Pension Plan policyholders of KLI",$K$11="Nominees of deceased KLI pension policyholder",$K$11="Members of Superannuation scheme",$K$11="QROPS – Existing Pension Policyholders of KLI"),101%,1) -> 0.01432351296 | AP96: =IF(SP<$AL91,AP91,IF(SP<$AL92,AP92,IF(SP<$AL93,AP93,IF(SP<$AL94,AP94,AP95))))*IF(OR($K$11="Existing Pension Plan policyholders of KLI",$K$11="Nominees of deceased KLI pension policyholder",$K$11="Members of Superannuation scheme",$K$11="QROPS – Existing Pension Policyholders of KLI"),101%,1) -> 0.0047247699
AL102: From File & use
AL104: Premium Band | AM104: %
AL105: Less than Rs.250,000 | AM105: 0
AL106: 250,000 to less than 500,000 | AM106: 0.0063
AL107: 500,000 to less than 10,00,000 | AM107: 0.0188
AL108: 10,00,000 to less than 50,00,000 | AM108: 0.025
AL109: 50,00,000 & above | AM109: 0.03
AL111: Mode | AM111: Annuity Installment (per frequency)
AL112: Half-yearly | AM112: 97% of Yearly Annuity x ½
AL113: Quarterly | AM113: 96% of Yearly Annuity x ¼
AL114: Monthly | AM114: 95% of Yearly Annuity x 1/12

Sheet SL_filing (hidden)
A1: Kotak Lifetime Income - Annuity Rates Applicaple for Purchase Price Less than Rs.2,50,000 and for Annual Mode
A3: Age | B3: Option 1 | C3: Option 2 | D3: Option 3 ( GT 5) | E3: Option 3 ( GT 10) | F3: Option 3 ( GT 15) | G3: Option 3 ( GT 20)
A4: 0 | B4: 0.0543 | C4: 0.0542 | D4: 0.0542 | E4: 0.0542 | F4: 0.0541 | G4: 0.0541
A5: 1 | B5: 0.0543 | C5: 0.0542 | D5: 0.0543 | E5: 0.0542 | F5: 0.0542 | G5: 0.0541
A6: 2 | B6: 0.0544 | C6: 0.0542 | D6: 0.0543 | E6: 0.0543 | F6: 0.0542 | G6: 0.0542
A7: 3 | B7: 0.0544 | C7: 0.0542 | D7: 0.0544 | E7: 0.0543 | F7: 0.0543 | G7: 0.0542
A8: 4 | B8: 0.0545 | C8: 0.0542 | D8: 0.0545 | E8: 0.0544 | F8: 0.0544 | G8: 0.0543
A9: 5 | B9: 0.0545 | C9: 0.0542 | D9: 0.0545 | E9: 0.0545 | F9: 0.0544 | G9: 0.0544
A10: 6 | B10: 0.0546 | C10: 0.0542 | D10: 0.0546 | E10: 0.0545 | F10: 0.0545 | G10: 0.0544
A11: 7 | B11: 0.0547 | C11: 0.0542 | D11: 0.0547 | E11: 0.0546 | F11: 0.0546 | G11: 0.0545
A12: 8 | B12: 0.0548 | C12: 0.0541 | D12: 0.0547 | E12: 0.0547 | F12: 0.0546 | G12: 0.0546
A13: 9 | B13: 0.0549 | C13: 0.0541 | D13: 0.0548 | E13: 0.0548 | F13: 0.0547 | G13: 0.0547
A14: 10 | B14: 0.0549 | C14: 0.0541 | D14: 0.0549 | E14: 0.0549 | F14: 0.0548 | G14: 0.0548
A15: 11 | B15: 0.055 | C15: 0.0541 | D15: 0.055 | E15: 0.055 | F15: 0.0549 | G15: 0.0549
A16: 12 | B16: 0.0552 | C16: 0.0542 | D16: 0.0551 | E16: 0.0551 | F16: 0.055 | G16: 0.055
A17: 13 | B17: 0.0553 | C17: 0.0542 | D17: 0.0553 | E17: 0.0552 | F17: 0.0552 | G17: 0.0551
A18: 14 | B18: 0.0554 | C18: 0.0542 | D18: 0.0554 | E18: 0.0553 | F18: 0.0553 | G18: 0.0552
A19: 15 | B19: 0.0555 | C19: 0.0542 | D19: 0.0555 | E19: 0.0555 | F19: 0.0554 | G19: 0.0554
A20: 16 | B20: 0.0557 | C20: 0.0542 | D20: 0.0557 | E20: 0.0556 | F20: 0.0556 | G20: 0.0555
A21: 17 | B21: 0.0558 | C21: 0.0543 | D21: 0.0558 | E21: 0.0558 | F21: 0.0557 | G21: 0.0556
A22: 18 | B22: 0.056 | C22: 0.0543 | D22: 0.056 | E22: 0.0559 | F22: 0.0559 | G22: 0.0558
A23: 19 | B23: 0.0562 | C23: 0.0543 | D23: 0.0561 | E23: 0.0561 | F23: 0.056 | G23: 0.056
A24: 20 | B24: 0.0563 | C24: 0.0544 | D24: 0.0563 | E24: 0.0563 | F24: 0.0562 | G24: 0.0561
A25: 21 | B25: 0.0565 | C25: 0.0544 | D25: 0.0565 | E25: 0.0565 | F25: 0.0564 | G25: 0.0563
A26: 22 | B26: 0.0567 | C26: 0.0545 | D26: 0.0567 | E26: 0.0567 | F26: 0.0566 | G26: 0.0565
A27: 23 | B27: 0.0569 | C27: 0.0546 | D27: 0.0569 | E27: 0.0569 | F27: 0.0568 | G27: 0.0567
A28: 24 | B28: 0.0571 | C28: 0.0546 | D28: 0.0571 | E28: 0.0571 | F28: 0.057 | G28: 0.0569
A29: 25 | B29: 0.0574 | C29: 0.0547 | D29: 0.0574 | E29: 0.0573 | F29: 0.0572 | G29: 0.0571
A30: 26 | B30: 0.0576 | C30: 0.0548 | D30: 0.0576 | E30: 0.0575 | F30: 0.0575 | G30: 0.0574
A31: 27 | B31: 0.0579 | C31: 0.0549 | D31: 0.0578 | E31: 0.0578 | F31: 0.0577 | G31: 0.0576
A32: 28 | B32: 0.0581 | C32: 0.055 | D32: 0.0581 | E32: 0.058 | F32: 0.058 | G32: 0.0579
A33: 29 | B33: 0.0584 | C33: 0.0551 | D33: 0.0584 | E33: 0.0583 | F33: 0.0582 | G33: 0.0581
A34: 30 | B34: 0.0587 | C34: 0.0552 | D34: 0.0586 | E34: 0.0586 | F34: 0.0585 | G34: 0.0584
A35: 31 | B35: 0.059 | C35: 0.0553 | D35: 0.0589 | E35: 0.0589 | F35: 0.0588 | G35: 0.0587
A36: 32 | B36: 0.0593 | C36: 0.0554 | D36: 0.0593 | E36: 0.0592 | F36: 0.0591 | G36: 0.059
A37: 33 | B37: 0.0596 | C37: 0.0555 | D37: 0.0596 | E37: 0.0595 | F37: 0.0594 | G37: 0.0593
A38: 34 | B38: 0.06 | C38: 0.0556 | D38: 0.0599 | E38: 0.0599 | F38: 0.0597 | G38: 0.0596
A39: 35 | B39: 0.0603 | C39: 0.0557 | D39: 0.0603 | E39: 0.0602 | F39: 0.0601 | G39: 0.0599
A40: 36 | B40: 0.0607 | C40: 0.0559 | D40: 0.0607 | E40: 0.0606 | F40: 0.0605 | G40: 0.0603
A41: 37 | B41: 0.0611 | C41: 0.056 | D41: 0.0611 | E41: 0.061 | F41: 0.0608 | G41: 0.0606
A42: 38 | B42: 0.0615 | C42: 0.0561 | D42: 0.0615 | E42: 0.0614 | F42: 0.0612 | G42: 0.061
A43: 39 | B43: 0.062 | C43: 0.0563 | D43: 0.0619 | E43: 0.0618 | F43: 0.0616 | G43: 0.0614
A44: 40 | B44: 0.0624 | C44: 0.0564 | D44: 0.0624 | E44: 0.0623 | F44: 0.0621 | G44: 0.0618
A45: 41 | B45: 0.0629 | C45: 0.0566 | D45: 0.0629 | E45: 0.0627 | F45: 0.0625 | G45: 0.0622
A46: 42 | B46: 0.0634 | C46: 0.0567 | D46: 0.0634 | E46: 0.0632 | F46: 0.063 | G46: 0.0626
A47: 43 | B47: 0.064 | C47: 0.0569 | D47: 0.0639 | E47: 0.0637 | F47: 0.0634 | G47: 0.0631
A48: 44 | B48: 0.0645 | C48: 0.057 | D48: 0.0645 | E48: 0.0643 | F48: 0.0639 | G48: 0.0635
A49: 45 | B49: 0.0651 | C49: 0.0572 | D49: 0.065 | E49: 0.0648 | F49: 0.0644 | G49: 0.064
A50: 46 | B50: 0.0657 | C50: 0.0574 | D50: 0.0656 | E50: 0.0654 | F50: 0.065 | G50: 0.0645
A51: 47 | B51: 0.0664 | C51: 0.0575 | D51: 0.0663 | E51: 0.066 | F51: 0.0655 | G51: 0.065
A52: 48 | B52: 0.067 | C52: 0.0577 | D52: 0.0669 | E52: 0.0666 | F52: 0.0661 | G52: 0.0655
A53: 49 | B53: 0.0678 | C53: 0.0579 | D53: 0.0676 | E53: 0.0673 | F53: 0.0667 | G53: 0.066
A54: 50 | B54: 0.0685 | C54: 0.0581 | D54: 0.0684 | E54: 0.068 | F54: 0.0673 | G54: 0.0666
A55: 51 | B55: 0.0693 | C55: 0.0583 | D55: 0.0691 | E55: 0.0687 | F55: 0.068 | G55: 0.0672
A56: 52 | B56: 0.0701 | C56: 0.0585 | D56: 0.0699 | E56: 0.0694 | F56: 0.0687 | G56: 0.0678
A57: 53 | B57: 0.071 | C57: 0.0586 | D57: 0.0708 | E57: 0.0702 | F57: 0.0694 | G57: 0.0684
A58: 54 | B58: 0.0718 | C58: 0.0588 | D58: 0.0716 | E58: 0.071 | F58: 0.0701 | G58: 0.069
A59: 55 | B59: 0.0728 | C59: 0.059 | D59: 0.0725 | E59: 0.0718 | F59: 0.0708 | G59: 0.0697
A60: 56 | B60: 0.0737 | C60: 0.0592 | D60: 0.0735 | E60: 0.0727 | F60: 0.0716 | G60: 0.0703
A61: 57 | B61: 0.0747 | C61: 0.0594 | D61: 0.0744 | E61: 0.0736 | F61: 0.0724 | G61: 0.071
A62: 58 | B62: 0.0758 | C62: 0.0596 | D62: 0.0755 | E62: 0.0746 | F62: 0.0733 | G62: 0.0717
A63: 59 | B63: 0.0769 | C63: 0.0597 | D63: 0.0766 | E63: 0.0756 | F63: 0.0742 | G63: 0.0723
A64: 60 | B64: 0.0781 | C64: 0.0599 | D64: 0.0777 | E64: 0.0767 | F64: 0.0751 | G64: 0.073
A65: 61 | B65: 0.0794 | C65: 0.06 | D65: 0.079 | E65: 0.0778 | F65: 0.076 | G65: 0.0737
A66: 62 | B66: 0.0807 | C66: 0.0602 | D66: 0.0803 | E66: 0.079 | F66: 0.077 | G66: 0.0744
A67: 63 | B67: 0.0822 | C67: 0.0603 | D67: 0.0818 | E67: 0.0802 | F67: 0.078 | G67: 0.0752
A68: 64 | B68: 0.0839 | C68: 0.0604 | D68: 0.0833 | E68: 0.0816 | F68: 0.079 | G68: 0.0759
A69: 65 | B69: 0.0856 | C69: 0.0605 | D69: 0.085 | E69: 0.083 | F69: 0.0801 | G69: 0.0766
A70: 66 | B70: 0.0875 | C70: 0.0606 | D70: 0.0868 | E70: 0.0845 | F70: 0.0812 | G70: 0.0773
A71: 67 | B71: 0.0896 | C71: 0.0607 | D71: 0.0887 | E71: 0.0861 | F71: 0.0822 | G71: 0.078
A72: 68 | B72: 0.0917 | C72: 0.0607 | D72: 0.0908 | E72: 0.0877 | F72: 0.0833 | G72: 0.0786
A73: 69 | B73: 0.0941 | C73: 0.0608 | D73: 0.0929 | E73: 0.0893 | F73: 0.0845 | G73: 0.0793
A74: 70 | B74: 0.0966 | C74: 0.0608 | D74: 0.0952 | E74: 0.091 | F74: 0.0855 | G74: 0.0799
A75: 71 | B75: 0.0992 | C75: 0.0608 | D75: 0.0976 | E75: 0.0928 | F75: 0.0866 | G75: 0.0805
A76: 72 | B76: 0.102 | C76: 0.0608 | D76: 0.1001 | E76: 0.0946 | F76: 0.0877 | G76: 0.081
A77: 73 | B77: 0.1049 | C77: 0.0608 | D77: 0.1027 | E77: 0.0964 | F77: 0.0888 | G77: 0.0816
A78: 74 | B78: 0.108 | C78: 0.0607 | D78: 0.1054 | E78: 0.0982 | F78: 0.0898 | G78: 0.0821
A79: 75 | B79: 0.1113 | C79: 0.0607 | D79: 0.1083 | E79: 0.1001 | F79: 0.0908 | G79: 0.0825
A80: 76 | B80: 0.1148 | C80: 0.0606 | D80: 0.1112 | E80: 0.1019 | F80: 0.0917 | G80: 0.0829
A81: 77 | B81: 0.1184 | C81: 0.0605 | D81: 0.1143 | E81: 0.1037 | F81: 0.0926 | G81: 0.0833
A82: 78 | B82: 0.1222 | C82: 0.0604 | D82: 0.1174 | E82: 0.1056 | F82: 0.0935 | G82: 0.0837
A83: 79 | B83: 0.1262 | C83: 0.0603 | D83: 0.1207 | E83: 0.1074 | F83: 0.0944 | G83: 0.084
A84: 80 | B84: 0.1303 | C84: 0.0602 | D84: 0.124 | E84: 0.1092 | F84: 0.0951 | G84: 0.0843
A85: 81 | B85: 0.1347 | C85: 0.0601 | D85: 0.1274 | E85: 0.111 | F85: 0.0959 | G85: 0.0846
A86: 82 | B86: 0.1393 | C86: 0.0599 | D86: 0.131 | E86: 0.1127 | F86: 0.0966 | G86: 0.0849
A87: 83 | B87: 0.1441 | C87: 0.0598 | D87: 0.1345 | E87: 0.1144 | F87: 0.0973 | G87: 0.0851
A88: 84 | B88: 0.149 | C88: 0.0596 | D88: 0.1382 | E88: 0.116 | F88: 0.0979 | G88: 0.0853
A89: 85 | B89: 0.1542 | C89: 0.0594 | D89: 0.1419 | E89: 0.1176 | F89: 0.0984 | G89: 0.0855
A90: 86 | B90: 0.1597 | C90: 0.0593 | D90: 0.1457 | E90: 0.1192 | F90: 0.099 | G90: 0.0856
A91: 87 | B91: 0.1653 | C91: 0.0591 | D91: 0.1496 | E91: 0.1207 | F91: 0.0994 | G91: 0.0858
A92: 88 | B92: 0.1712 | C92: 0.0589 | D92: 0.1535 | E92: 0.1221 | F92: 0.0999 | G92: 0.0859
A93: 89 | B93: 0.1773 | C93: 0.0587 | D93: 0.1574 | E93: 0.1235 | F93: 0.1003 | G93: 0.086
A94: 90 | B94: 0.1837 | C94: 0.0585 | D94: 0.1613 | E94: 0.1248 | F94: 0.1007 | G94: 0.0861
A95: 91 | B95: 0.1904 | C95: 0.0583 | D95: 0.1653 | E95: 0.126 | F95: 0.101 | G95: 0.0862
A96: 92 | B96: 0.1973 | C96: 0.0581 | D96: 0.1693 | E96: 0.1272 | F96: 0.1013 | G96: 0.0863
A97: 93 | B97: 0.2045 | C97: 0.0578 | D97: 0.1733 | E97: 0.1283 | F97: 0.1016 | G97: 0.0863
A98: 94 | B98: 0.212 | C98: 0.0576 | D98: 0.1773 | E98: 0.1294 | F98: 0.1018 | G98: 0.0864
A99: 95 | B99: 0.2198 | C99: 0.0573 | D99: 0.1813 | E99: 0.1304 | F99: 0.1021 | G99: 0.0865
A100: 96 | B100: 0.2279 | C100: 0.0571 | D100: 0.1853 | E100: 0.1313 | F100: 0.1023 | G100: 0.0865
A101: 97 | B101: 0.2364 | C101: 0.0568 | D101: 0.1893 | E101: 0.1322 | F101: 0.1025 | G101: 0.0865
A102: 98 | B102: 0.2453 | C102: 0.0566 | D102: 0.1933 | E102: 0.1331 | F102: 0.1027 | G102: 0.0865
A103: 99 | B103: 0.2547 | C103: 0.0563 | D103: 0.1973 | E103: 0.1339 | F103: 0.1029 | G103: 0.0865
A105: Sum of Differences | B105: =SUM(A106:G205) -> 0
A106: =A4-[3]SL!A4 -> 0 | B106: =B4-[3]SL!B4 -> 0 | C106: =C4-[3]SL!C4 -> 0 | D106: =D4-[3]SL!D4 -> 0 | E106: =E4-[3]SL!E4 -> 0 | F106: =F4-[3]SL!F4 -> 0 | G106: =G4-[3]SL!G4 -> 0
A107: =A5-[3]SL!A5 -> 0 | B107: =B5-[3]SL!B5 -> 0 | C107: =C5-[3]SL!C5 -> 0 | D107: =D5-[3]SL!D5 -> 0 | E107: =E5-[3]SL!E5 -> 0 | F107: =F5-[3]SL!F5 -> 0 | G107: =G5-[3]SL!G5 -> 0
A108: =A6-[3]SL!A6 -> 0 | B108: =B6-[3]SL!B6 -> 0 | C108: =C6-[3]SL!C6 -> 0 | D108: =D6-[3]SL!D6 -> 0 | E108: =E6-[3]SL!E6 -> 0 | F108: =F6-[3]SL!F6 -> 0 | G108: =G6-[3]SL!G6 -> 0
A109: =A7-[3]SL!A7 -> 0 | B109: =B7-[3]SL!B7 -> 0 | C109: =C7-[3]SL!C7 -> 0 | D109: =D7-[3]SL!D7 -> 0 | E109: =E7-[3]SL!E7 -> 0 | F109: =F7-[3]SL!F7 -> 0 | G109: =G7-[3]SL!G7 -> 0
A110: =A8-[3]SL!A8 -> 0 | B110: =B8-[3]SL!B8 -> 0 | C110: =C8-[3]SL!C8 -> 0 | D110: =D8-[3]SL!D8 -> 0 | E110: =E8-[3]SL!E8 -> 0 | F110: =F8-[3]SL!F8 -> 0 | G110: =G8-[3]SL!G8 -> 0
A111: =A9-[3]SL!A9 -> 0 | B111: =B9-[3]SL!B9 -> 0 | C111: =C9-[3]SL!C9 -> 0 | D111: =D9-[3]SL!D9 -> 0 | E111: =E9-[3]SL!E9 -> 0 | F111: =F9-[3]SL!F9 -> 0 | G111: =G9-[3]SL!G9 -> 0
A112: =A10-[3]SL!A10 -> 0 | B112: =B10-[3]SL!B10 -> 0 | C112: =C10-[3]SL!C10 -> 0 | D112: =D10-[3]SL!D10 -> 0 | E112: =E10-[3]SL!E10 -> 0 | F112: =F10-[3]SL!F10 -> 0 | G112: =G10-[3]SL!G10 -> 0
A113: =A11-[3]SL!A11 -> 0 | B113: =B11-[3]SL!B11 -> 0 | C113: =C11-[3]SL!C11 -> 0 | D113: =D11-[3]SL!D11 -> 0 | E113: =E11-[3]SL!E11 -> 0 | F113: =F11-[3]SL!F11 -> 0 | G113: =G11-[3]SL!G11 -> 0
A114: =A12-[3]SL!A12 -> 0 | B114: =B12-[3]SL!B12 -> 0 | C114: =C12-[3]SL!C12 -> 0 | D114: =D12-[3]SL!D12 -> 0 | E114: =E12-[3]SL!E12 -> 0 | F114: =F12-[3]SL!F12 -> 0 | G114: =G12-[3]SL!G12 -> 0
A115: =A13-[3]SL!A13 -> 0 | B115: =B13-[3]SL!B13 -> 0 | C115: =C13-[3]SL!C13 -> 0 | D115: =D13-[3]SL!D13 -> 0 | E115: =E13-[3]SL!E13 -> 0 | F115: =F13-[3]SL!F13 -> 0 | G115: =G13-[3]SL!G13 -> 0
A116: =A14-[3]SL!A14 -> 0 | B116: =B14-[3]SL!B14 -> 0 | C116: =C14-[3]SL!C14 -> 0 | D116: =D14-[3]SL!D14 -> 0 | E116: =E14-[3]SL!E14 -> 0 | F116: =F14-[3]SL!F14 -> 0 | G116: =G14-[3]SL!G14 -> 0
A117: =A15-[3]SL!A15 -> 0 | B117: =B15-[3]SL!B15 -> 0 | C117: =C15-[3]SL!C15 -> 0 | D117: =D15-[3]SL!D15 -> 0 | E117: =E15-[3]SL!E15 -> 0 | F117: =F15-[3]SL!F15 -> 0 | G117: =G15-[3]SL!G15 -> 0
A118: =A16-[3]SL!A16 -> 0 | B118: =B16-[3]SL!B16 -> 0 | C118: =C16-[3]SL!C16 -> 0 | D118: =D16-[3]SL!D16 -> 0 | E118: =E16-[3]SL!E16 -> 0 | F118: =F16-[3]SL!F16 -> 0 | G118: =G16-[3]SL!G16 -> 0
A119: =A17-[3]SL!A17 -> 0 | B119: =B17-[3]SL!B17 -> 0 | C119: =C17-[3]SL!C17 -> 0 | D119: =D17-[3]SL!D17 -> 0 | E119: =E17-[3]SL!E17 -> 0 | F119: =F17-[3]SL!F17 -> 0 | G119: =G17-[3]SL!G17 -> 0
A120: =A18-[3]SL!A18 -> 0 | B120: =B18-[3]SL!B18 -> 0 | C120: =C18-[3]SL!C18 -> 0 | D120: =D18-[3]SL!D18 -> 0 | E120: =E18-[3]SL!E18 -> 0 | F120: =F18-[3]SL!F18 -> 0 | G120: =G18-[3]SL!G18 -> 0
A121: =A19-[3]SL!A19 -> 0 | B121: =B19-[3]SL!B19 -> 0 | C121: =C19-[3]SL!C19 -> 0 | D121: =D19-[3]SL!D19 -> 0 | E121: =E19-[3]SL!E19 -> 0 | F121: =F19-[3]SL!F19 -> 0 | G121: =G19-[3]SL!G19 -> 0
A122: =A20-[3]SL!A20 -> 0 | B122: =B20-[3]SL!B20 -> 0 | C122: =C20-[3]SL!C20 -> 0 | D122: =D20-[3]SL!D20 -> 0 | E122: =E20-[3]SL!E20 -> 0 | F122: =F20-[3]SL!F20 -> 0 | G122: =G20-[3]SL!G20 -> 0
A123: =A21-[3]SL!A21 -> 0 | B123: =B21-[3]SL!B21 -> 0 | C123: =C21-[3]SL!C21 -> 0 | D123: =D21-[3]SL!D21 -> 0 | E123: =E21-[3]SL!E21 -> 0 | F123: =F21-[3]SL!F21 -> 0 | G123: =G21-[3]SL!G21 -> 0
A124: =A22-[3]SL!A22 -> 0 | B124: =B22-[3]SL!B22 -> 0 | C124: =C22-[3]SL!C22 -> 0 | D124: =D22-[3]SL!D22 -> 0 | E124: =E22-[3]SL!E22 -> 0 | F124: =F22-[3]SL!F22 -> 0 | G124: =G22-[3]SL!G22 -> 0
A125: =A23-[3]SL!A23 -> 0 | B125: =B23-[3]SL!B23 -> 0 | C125: =C23-[3]SL!C23 -> 0 | D125: =D23-[3]SL!D23 -> 0 | E125: =E23-[3]SL!E23 -> 0 | F125: =F23-[3]SL!F23 -> 0 | G125: =G23-[3]SL!G23 -> 0
A126: =A24-[3]SL!A24 -> 0 | B126: =B24-[3]SL!B24 -> 0 | C126: =C24-[3]SL!C24 -> 0 | D126: =D24-[3]SL!D24 -> 0 | E126: =E24-[3]SL!E24 -> 0 | F126: =F24-[3]SL!F24 -> 0 | G126: =G24-[3]SL!G24 -> 0
A127: =A25-[3]SL!A25 -> 0 | B127: =B25-[3]SL!B25 -> 0 | C127: =C25-[3]SL!C25 -> 0 | D127: =D25-[3]SL!D25 -> 0 | E127: =E25-[3]SL!E25 -> 0 | F127: =F25-[3]SL!F25 -> 0 | G127: =G25-[3]SL!G25 -> 0
A128: =A26-[3]SL!A26 -> 0 | B128: =B26-[3]SL!B26 -> 0 | C128: =C26-[3]SL!C26 -> 0 | D128: =D26-[3]SL!D26 -> 0 | E128: =E26-[3]SL!E26 -> 0 | F128: =F26-[3]SL!F26 -> 0 | G128: =G26-[3]SL!G26 -> 0
A129: =A27-[3]SL!A27 -> 0 | B129: =B27-[3]SL!B27 -> 0 | C129: =C27-[3]SL!C27 -> 0 | D129: =D27-[3]SL!D27 -> 0 | E129: =E27-[3]SL!E27 -> 0 | F129: =F27-[3]SL!F27 -> 0 | G129: =G27-[3]SL!G27 -> 0
A130: =A28-[3]SL!A28 -> 0 | B130: =B28-[3]SL!B28 -> 0 | C130: =C28-[3]SL!C28 -> 0 | D130: =D28-[3]SL!D28 -> 0 | E130: =E28-[3]SL!E28 -> 0 | F130: =F28-[3]SL!F28 -> 0 | G130: =G28-[3]SL!G28 -> 0
A131: =A29-[3]SL!A29 -> 0 | B131: =B29-[3]SL!B29 -> 0 | C131: =C29-[3]SL!C29 -> 0 | D131: =D29-[3]SL!D29 -> 0 | E131: =E29-[3]SL!E29 -> 0 | F131: =F29-[3]SL!F29 -> 0 | G131: =G29-[3]SL!G29 -> 0
A132: =A30-[3]SL!A30 -> 0 | B132: =B30-[3]SL!B30 -> 0 | C132: =C30-[3]SL!C30 -> 0 | D132: =D30-[3]SL!D30 -> 0 | E132: =E30-[3]SL!E30 -> 0 | F132: =F30-[3]SL!F30 -> 0 | G132: =G30-[3]SL!G30 -> 0
A133: =A31-[3]SL!A31 -> 0 | B133: =B31-[3]SL!B31 -> 0 | C133: =C31-[3]SL!C31 -> 0 | D133: =D31-[3]SL!D31 -> 0 | E133: =E31-[3]SL!E31 -> 0 | F133: =F31-[3]SL!F31 -> 0 | G133: =G31-[3]SL!G31 -> 0
A134: =A32-[3]SL!A32 -> 0 | B134: =B32-[3]SL!B32 -> 0 | C134: =C32-[3]SL!C32 -> 0 | D134: =D32-[3]SL!D32 -> 0 | E134: =E32-[3]SL!E32 -> 0 | F134: =F32-[3]SL!F32 -> 0 | G134: =G32-[3]SL!G32 -> 0
A135: =A33-[3]SL!A33 -> 0 | B135: =B33-[3]SL!B33 -> 0 | C135: =C33-[3]SL!C33 -> 0 | D135: =D33-[3]SL!D33 -> 0 | E135: =E33-[3]SL!E33 -> 0 | F135: =F33-[3]SL!F33 -> 0 | G135: =G33-[3]SL!G33 -> 0
A136: =A34-[3]SL!A34 -> 0 | B136: =B34-[3]SL!B34 -> 0 | C136: =C34-[3]SL!C34 -> 0 | D136: =D34-[3]SL!D34 -> 0 | E136: =E34-[3]SL!E34 -> 0 | F136: =F34-[3]SL!F34 -> 0 | G136: =G34-[3]SL!G34 -> 0
A137: =A35-[3]SL!A35 -> 0 | B137: =B35-[3]SL!B35 -> 0 | C137: =C35-[3]SL!C35 -> 0 | D137: =D35-[3]SL!D35 -> 0 | E137: =E35-[3]SL!E35 -> 0 | F137: =F35-[3]SL!F35 -> 0 | G137: =G35-[3]SL!G35 -> 0
A138: =A36-[3]SL!A36 -> 0 | B138: =B36-[3]SL!B36 -> 0 | C138: =C36-[3]SL!C36 -> 0 | D138: =D36-[3]SL!D36 -> 0 | E138: =E36-[3]SL!E36 -> 0 | F138: =F36-[3]SL!F36 -> 0 | G138: =G36-[3]SL!G36 -> 0
A139: =A37-[3]SL!A37 -> 0 | B139: =B37-[3]SL!B37 -> 0 | C139: =C37-[3]SL!C37 -> 0 | D139: =D37-[3]SL!D37 -> 0 | E139: =E37-[3]SL!E37 -> 0 | F139: =F37-[3]SL!F37 -> 0 | G139: =G37-[3]SL!G37 -> 0
A140: =A38-[3]SL!A38 -> 0 | B140: =B38-[3]SL!B38 -> 0 | C140: =C38-[3]SL!C38 -> 0 | D140: =D38-[3]SL!D38 -> 0 | E140: =E38-[3]SL!E38 -> 0 | F140: =F38-[3]SL!F38 -> 0 | G140: =G38-[3]SL!G38 -> 0
A141: =A39-[3]SL!A39 -> 0 | B141: =B39-[3]SL!B39 -> 0 | C141: =C39-[3]SL!C39 -> 0 | D141: =D39-[3]SL!D39 -> 0 | E141: =E39-[3]SL!E39 -> 0 | F141: =F39-[3]SL!F39 -> 0 | G141: =G39-[3]SL!G39 -> 0
A142: =A40-[3]SL!A40 -> 0 | B142: =B40-[3]SL!B40 -> 0 | C142: =C40-[3]SL!C40 -> 0 | D142: =D40-[3]SL!D40 -> 0 | E142: =E40-[3]SL!E40 -> 0 | F142: =F40-[3]SL!F40 -> 0 | G142: =G40-[3]SL!G40 -> 0
A143: =A41-[3]SL!A41 -> 0 | B143: =B41-[3]SL!B41 -> 0 | C143: =C41-[3]SL!C41 -> 0 | D143: =D41-[3]SL!D41 -> 0 | E143: =E41-[3]SL!E41 -> 0 | F143: =F41-[3]SL!F41 -> 0 | G143: =G41-[3]SL!G41 -> 0
A144: =A42-[3]SL!A42 -> 0 | B144: =B42-[3]SL!B42 -> 0 | C144: =C42-[3]SL!C42 -> 0 | D144: =D42-[3]SL!D42 -> 0 | E144: =E42-[3]SL!E42 -> 0 | F144: =F42-[3]SL!F42 -> 0 | G144: =G42-[3]SL!G42 -> 0
A145: =A43-[3]SL!A43 -> 0 | B145: =B43-[3]SL!B43 -> 0 | C145: =C43-[3]SL!C43 -> 0 | D145: =D43-[3]SL!D43 -> 0 | E145: =E43-[3]SL!E43 -> 0 | F145: =F43-[3]SL!F43 -> 0 | G145: =G43-[3]SL!G43 -> 0
A146: =A44-[3]SL!A44 -> 0 | B146: =B44-[3]SL!B44 -> 0 | C146: =C44-[3]SL!C44 -> 0 | D146: =D44-[3]SL!D44 -> 0 | E146: =E44-[3]SL!E44 -> 0 | F146: =F44-[3]SL!F44 -> 0 | G146: =G44-[3]SL!G44 -> 0
A147: =A45-[3]SL!A45 -> 0 | B147: =B45-[3]SL!B45 -> 0 | C147: =C45-[3]SL!C45 -> 0 | D147: =D45-[3]SL!D45 -> 0 | E147: =E45-[3]SL!E45 -> 0 | F147: =F45-[3]SL!F45 -> 0 | G147: =G45-[3]SL!G45 -> 0
A148: =A46-[3]SL!A46 -> 0 | B148: =B46-[3]SL!B46 -> 0 | C148: =C46-[3]SL!C46 -> 0 | D148: =D46-[3]SL!D46 -> 0 | E148: =E46-[3]SL!E46 -> 0 | F148: =F46-[3]SL!F46 -> 0 | G148: =G46-[3]SL!G46 -> 0
A149: =A47-[3]SL!A47 -> 0 | B149: =B47-[3]SL!B47 -> 0 | C149: =C47-[3]SL!C47 -> 0 | D149: =D47-[3]SL!D47 -> 0 | E149: =E47-[3]SL!E47 -> 0 | F149: =F47-[3]SL!F47 -> 0 | G149: =G47-[3]SL!G47 -> 0
A150: =A48-[3]SL!A48 -> 0 | B150: =B48-[3]SL!B48 -> 0 | C150: =C48-[3]SL!C48 -> 0 | D150: =D48-[3]SL!D48 -> 0 | E150: =E48-[3]SL!E48 -> 0 | F150: =F48-[3]SL!F48 -> 0 | G150: =G48-[3]SL!G48 -> 0
A151: =A49-[3]SL!A49 -> 0 | B151: =B49-[3]SL!B49 -> 0 | C151: =C49-[3]SL!C49 -> 0 | D151: =D49-[3]SL!D49 -> 0 | E151: =E49-[3]SL!E49 -> 0 | F151: =F49-[3]SL!F49 -> 0 | G151: =G49-[3]SL!G49 -> 0
A152: =A50-[3]SL!A50 -> 0 | B152: =B50-[3]SL!B50 -> 0 | C152: =C50-[3]SL!C50 -> 0 | D152: =D50-[3]SL!D50 -> 0 | E152: =E50-[3]SL!E50 -> 0 | F152: =F50-[3]SL!F50 -> 0 | G152: =G50-[3]SL!G50 -> 0
A153: =A51-[3]SL!A51 -> 0 | B153: =B51-[3]SL!B51 -> 0 | C153: =C51-[3]SL!C51 -> 0 | D153: =D51-[3]SL!D51 -> 0 | E153: =E51-[3]SL!E51 -> 0 | F153: =F51-[3]SL!F51 -> 0 | G153: =G51-[3]SL!G51 -> 0
A154: =A52-[3]SL!A52 -> 0 | B154: =B52-[3]SL!B52 -> 0 | C154: =C52-[3]SL!C52 -> 0 | D154: =D52-[3]SL!D52 -> 0 | E154: =E52-[3]SL!E52 -> 0 | F154: =F52-[3]SL!F52 -> 0 | G154: =G52-[3]SL!G52 -> 0
A155: =A53-[3]SL!A53 -> 0 | B155: =B53-[3]SL!B53 -> 0 | C155: =C53-[3]SL!C53 -> 0 | D155: =D53-[3]SL!D53 -> 0 | E155: =E53-[3]SL!E53 -> 0 | F155: =F53-[3]SL!F53 -> 0 | G155: =G53-[3]SL!G53 -> 0
A156: =A54-[3]SL!A54 -> 0 | B156: =B54-[3]SL!B54 -> 0 | C156: =C54-[3]SL!C54 -> 0 | D156: =D54-[3]SL!D54 -> 0 | E156: =E54-[3]SL!E54 -> 0 | F156: =F54-[3]SL!F54 -> 0 | G156: =G54-[3]SL!G54 -> 0
A157: =A55-[3]SL!A55 -> 0 | B157: =B55-[3]SL!B55 -> 0 | C157: =C55-[3]SL!C55 -> 0 | D157: =D55-[3]SL!D55 -> 0 | E157: =E55-[3]SL!E55 -> 0 | F157: =F55-[3]SL!F55 -> 0 | G157: =G55-[3]SL!G55 -> 0
A158: =A56-[3]SL!A56 -> 0 | B158: =B56-[3]SL!B56 -> 0 | C158: =C56-[3]SL!C56 -> 0 | D158: =D56-[3]SL!D56 -> 0 | E158: =E56-[3]SL!E56 -> 0 | F158: =F56-[3]SL!F56 -> 0 | G158: =G56-[3]SL!G56 -> 0
A159: =A57-[3]SL!A57 -> 0 | B159: =B57-[3]SL!B57 -> 0 | C159: =C57-[3]SL!C57 -> 0 | D159: =D57-[3]SL!D57 -> 0 | E159: =E57-[3]SL!E57 -> 0 | F159: =F57-[3]SL!F57 -> 0 | G159: =G57-[3]SL!G57 -> 0
A160: =A58-[3]SL!A58 -> 0 | B160: =B58-[3]SL!B58 -> 0 | C160: =C58-[3]SL!C58 -> 0 | D160: =D58-[3]SL!D58 -> 0 | E160: =E58-[3]SL!E58 -> 0 | F160: =F58-[3]SL!F58 -> 0 | G160: =G58-[3]SL!G58 -> 0
A161: =A59-[3]SL!A59 -> 0 | B161: =B59-[3]SL!B59 -> 0 | C161: =C59-[3]SL!C59 -> 0 | D161: =D59-[3]SL!D59 -> 0 | E161: =E59-[3]SL!E59 -> 0 | F161: =F59-[3]SL!F59 -> 0 | G161: =G59-[3]SL!G59 -> 0
A162: =A60-[3]SL!A60 -> 0 | B162: =B60-[3]SL!B60 -> 0 | C162: =C60-[3]SL!C60 -> 0 | D162: =D60-[3]SL!D60 -> 0 | E162: =E60-[3]SL!E60 -> 0 | F162: =F60-[3]SL!F60 -> 0 | G162: =G60-[3]SL!G60 -> 0
A163: =A61-[3]SL!A61 -> 0 | B163: =B61-[3]SL!B61 -> 0 | C163: =C61-[3]SL!C61 -> 0 | D163: =D61-[3]SL!D61 -> 0 | E163: =E61-[3]SL!E61 -> 0 | F163: =F61-[3]SL!F61 -> 0 | G163: =G61-[3]SL!G61 -> 0
A164: =A62-[3]SL!A62 -> 0 | B164: =B62-[3]SL!B62 -> 0 | C164: =C62-[3]SL!C62 -> 0 | D164: =D62-[3]SL!D62 -> 0 | E164: =E62-[3]SL!E62 -> 0 | F164: =F62-[3]SL!F62 -> 0 | G164: =G62-[3]SL!G62 -> 0
A165: =A63-[3]SL!A63 -> 0 | B165: =B63-[3]SL!B63 -> 0 | C165: =C63-[3]SL!C63 -> 0 | D165: =D63-[3]SL!D63 -> 0 | E165: =E63-[3]SL!E63 -> 0 | F165: =F63-[3]SL!F63 -> 0 | G165: =G63-[3]SL!G63 -> 0
A166: =A64-[3]SL!A64 -> 0 | B166: =B64-[3]SL!B64 -> 0 | C166: =C64-[3]SL!C64 -> 0 | D166: =D64-[3]SL!D64 -> 0 | E166: =E64-[3]SL!E64 -> 0 | F166: =F64-[3]SL!F64 -> 0 | G166: =G64-[3]SL!G64 -> 0
A167: =A65-[3]SL!A65 -> 0 | B167: =B65-[3]SL!B65 -> 0 | C167: =C65-[3]SL!C65 -> 0 | D167: =D65-[3]SL!D65 -> 0 | E167: =E65-[3]SL!E65 -> 0 | F167: =F65-[3]SL!F65 -> 0 | G167: =G65-[3]SL!G65 -> 0
A168: =A66-[3]SL!A66 -> 0 | B168: =B66-[3]SL!B66 -> 0 | C168: =C66-[3]SL!C66 -> 0 | D168: =D66-[3]SL!D66 -> 0 | E168: =E66-[3]SL!E66 -> 0 | F168: =F66-[3]SL!F66 -> 0 | G168: =G66-[3]SL!G66 -> 0
A169: =A67-[3]SL!A67 -> 0 | B169: =B67-[3]SL!B67 -> 0 | C169: =C67-[3]SL!C67 -> 0 | D169: =D67-[3]SL!D67 -> 0 | E169: =E67-[3]SL!E67 -> 0 | F169: =F67-[3]SL!F67 -> 0 | G169: =G67-[3]SL!G67 -> 0
A170: =A68-[3]SL!A68 -> 0 | B170: =B68-[3]SL!B68 -> 0 | C170: =C68-[3]SL!C68 -> 0 | D170: =D68-[3]SL!D68 -> 0 | E170: =E68-[3]SL!E68 -> 0 | F170: =F68-[3]SL!F68 -> 0 | G170: =G68-[3]SL!G68 -> 0
A171: =A69-[3]SL!A69 -> 0 | B171: =B69-[3]SL!B69 -> 0 | C171: =C69-[3]SL!C69 -> 0 | D171: =D69-[3]SL!D69 -> 0 | E171: =E69-[3]SL!E69 -> 0 | F171: =F69-[3]SL!F69 -> 0 | G171: =G69-[3]SL!G69 -> 0
A172: =A70-[3]SL!A70 -> 0 | B172: =B70-[3]SL!B70 -> 0 | C172: =C70-[3]SL!C70 -> 0 | D172: =D70-[3]SL!D70 -> 0 | E172: =E70-[3]SL!E70 -> 0 | F172: =F70-[3]SL!F70 -> 0 | G172: =G70-[3]SL!G70 -> 0
A173: =A71-[3]SL!A71 -> 0 | B173: =B71-[3]SL!B71 -> 0 | C173: =C71-[3]SL!C71 -> 0 | D173: =D71-[3]SL!D71 -> 0 | E173: =E71-[3]SL!E71 -> 0 | F173: =F71-[3]SL!F71 -> 0 | G173: =G71-[3]SL!G71 -> 0
A174: =A72-[3]SL!A72 -> 0 | B174: =B72-[3]SL!B72 -> 0 | C174: =C72-[3]SL!C72 -> 0 | D174: =D72-[3]SL!D72 -> 0 | E174: =E72-[3]SL!E72 -> 0 | F174: =F72-[3]SL!F72 -> 0 | G174: =G72-[3]SL!G72 -> 0
A175: =A73-[3]SL!A73 -> 0 | B175: =B73-[3]SL!B73 -> 0 | C175: =C73-[3]SL!C73 -> 0 | D175: =D73-[3]SL!D73 -> 0 | E175: =E73-[3]SL!E73 -> 0 | F175: =F73-[3]SL!F73 -> 0 | G175: =G73-[3]SL!G73 -> 0
A176: =A74-[3]SL!A74 -> 0 | B176: =B74-[3]SL!B74 -> 0 | C176: =C74-[3]SL!C74 -> 0 | D176: =D74-[3]SL!D74 -> 0 | E176: =E74-[3]SL!E74 -> 0 | F176: =F74-[3]SL!F74 -> 0 | G176: =G74-[3]SL!G74 -> 0
A177: =A75-[3]SL!A75 -> 0 | B177: =B75-[3]SL!B75 -> 0 | C177: =C75-[3]SL!C75 -> 0 | D177: =D75-[3]SL!D75 -> 0 | E177: =E75-[3]SL!E75 -> 0 | F177: =F75-[3]SL!F75 -> 0 | G177: =G75-[3]SL!G75 -> 0
A178: =A76-[3]SL!A76 -> 0 | B178: =B76-[3]SL!B76 -> 0 | C178: =C76-[3]SL!C76 -> 0 | D178: =D76-[3]SL!D76 -> 0 | E178: =E76-[3]SL!E76 -> 0 | F178: =F76-[3]SL!F76 -> 0 | G178: =G76-[3]SL!G76 -> 0
A179: =A77-[3]SL!A77 -> 0 | B179: =B77-[3]SL!B77 -> 0 | C179: =C77-[3]SL!C77 -> 0 | D179: =D77-[3]SL!D77 -> 0 | E179: =E77-[3]SL!E77 -> 0 | F179: =F77-[3]SL!F77 -> 0 | G179: =G77-[3]SL!G77 -> 0
A180: =A78-[3]SL!A78 -> 0 | B180: =B78-[3]SL!B78 -> 0 | C180: =C78-[3]SL!C78 -> 0 | D180: =D78-[3]SL!D78 -> 0 | E180: =E78-[3]SL!E78 -> 0 | F180: =F78-[3]SL!F78 -> 0 | G180: =G78-[3]SL!G78 -> 0
A181: =A79-[3]SL!A79 -> 0 | B181: =B79-[3]SL!B79 -> 0 | C181: =C79-[3]SL!C79 -> 0 | D181: =D79-[3]SL!D79 -> 0 | E181: =E79-[3]SL!E79 -> 0 | F181: =F79-[3]SL!F79 -> 0 | G181: =G79-[3]SL!G79 -> 0
A182: =A80-[3]SL!A80 -> 0 | B182: =B80-[3]SL!B80 -> 0 | C182: =C80-[3]SL!C80 -> 0 | D182: =D80-[3]SL!D80 -> 0 | E182: =E80-[3]SL!E80 -> 0 | F182: =F80-[3]SL!F80 -> 0 | G182: =G80-[3]SL!G80 -> 0
A183: =A81-[3]SL!A81 -> 0 | B183: =B81-[3]SL!B81 -> 0 | C183: =C81-[3]SL!C81 -> 0 | D183: =D81-[3]SL!D81 -> 0 | E183: =E81-[3]SL!E81 -> 0 | F183: =F81-[3]SL!F81 -> 0 | G183: =G81-[3]SL!G81 -> 0
A184: =A82-[3]SL!A82 -> 0 | B184: =B82-[3]SL!B82 -> 0 | C184: =C82-[3]SL!C82 -> 0 | D184: =D82-[3]SL!D82 -> 0 | E184: =E82-[3]SL!E82 -> 0 | F184: =F82-[3]SL!F82 -> 0 | G184: =G82-[3]SL!G82 -> 0
A185: =A83-[3]SL!A83 -> 0 | B185: =B83-[3]SL!B83 -> 0 | C185: =C83-[3]SL!C83 -> 0 | D185: =D83-[3]SL!D83 -> 0 | E185: =E83-[3]SL!E83 -> 0 | F185: =F83-[3]SL!F83 -> 0 | G185: =G83-[3]SL!G83 -> 0
A186: =A84-[3]SL!A84 -> 0 | B186: =B84-[3]SL!B84 -> 0 | C186: =C84-[3]SL!C84 -> 0 | D186: =D84-[3]SL!D84 -> 0 | E186: =E84-[3]SL!E84 -> 0 | F186: =F84-[3]SL!F84 -> 0 | G186: =G84-[3]SL!G84 -> 0
A187: =A85-[3]SL!A85 -> 0 | B187: =B85-[3]SL!B85 -> 0 | C187: =C85-[3]SL!C85 -> 0 | D187: =D85-[3]SL!D85 -> 0 | E187: =E85-[3]SL!E85 -> 0 | F187: =F85-[3]SL!F85 -> 0 | G187: =G85-[3]SL!G85 -> 0
A188: =A86-[3]SL!A86 -> 0 | B188: =B86-[3]SL!B86 -> 0 | C188: =C86-[3]SL!C86 -> 0 | D188: =D86-[3]SL!D86 -> 0 | E188: =E86-[3]SL!E86 -> 0 | F188: =F86-[3]SL!F86 -> 0 | G188: =G86-[3]SL!G86 -> 0
A189: =A87-[3]SL!A87 -> 0 | B189: =B87-[3]SL!B87 -> 0 | C189: =C87-[3]SL!C87 -> 0 | D189: =D87-[3]SL!D87 -> 0 | E189: =E87-[3]SL!E87 -> 0 | F189: =F87-[3]SL!F87 -> 0 | G189: =G87-[3]SL!G87 -> 0
A190: =A88-[3]SL!A88 -> 0 | B190: =B88-[3]SL!B88 -> 0 | C190: =C88-[3]SL!C88 -> 0 | D190: =D88-[3]SL!D88 -> 0 | E190: =E88-[3]SL!E88 -> 0 | F190: =F88-[3]SL!F88 -> 0 | G190: =G88-[3]SL!G88 -> 0
A191: =A89-[3]SL!A89 -> 0 | B191: =B89-[3]SL!B89 -> 0 | C191: =C89-[3]SL!C89 -> 0 | D191: =D89-[3]SL!D89 -> 0 | E191: =E89-[3]SL!E89 -> 0 | F191: =F89-[3]SL!F89 -> 0 | G191: =G89-[3]SL!G89 -> 0
A192: =A90-[3]SL!A90 -> 0 | B192: =B90-[3]SL!B90 -> 0 | C192: =C90-[3]SL!C90 -> 0 | D192: =D90-[3]SL!D90 -> 0 | E192: =E90-[3]SL!E90 -> 0 | F192: =F90-[3]SL!F90 -> 0 | G192: =G90-[3]SL!G90 -> 0
A193: =A91-[3]SL!A91 -> 0 | B193: =B91-[3]SL!B91 -> 0 | C193: =C91-[3]SL!C91 -> 0 | D193: =D91-[3]SL!D91 -> 0 | E193: =E91-[3]SL!E91 -> 0 | F193: =F91-[3]SL!F91 -> 0 | G193: =G91-[3]SL!G91 -> 0
A194: =A92-[3]SL!A92 -> 0 | B194: =B92-[3]SL!B92 -> 0 | C194: =C92-[3]SL!C92 -> 0 | D194: =D92-[3]SL!D92 -> 0 | E194: =E92-[3]SL!E92 -> 0 | F194: =F92-[3]SL!F92 -> 0 | G194: =G92-[3]SL!G92 -> 0
A195: =A93-[3]SL!A93 -> 0 | B195: =B93-[3]SL!B93 -> 0 | C195: =C93-[3]SL!C93 -> 0 | D195: =D93-[3]SL!D93 -> 0 | E195: =E93-[3]SL!E93 -> 0 | F195: =F93-[3]SL!F93 -> 0 | G195: =G93-[3]SL!G93 -> 0
A196: =A94-[3]SL!A94 -> 0 | B196: =B94-[3]SL!B94 -> 0 | C196: =C94-[3]SL!C94 -> 0 | D196: =D94-[3]SL!D94 -> 0 | E196: =E94-[3]SL!E94 -> 0 | F196: =F94-[3]SL!F94 -> 0 | G196: =G94-[3]SL!G94 -> 0
A197: =A95-[3]SL!A95 -> 0 | B197: =B95-[3]SL!B95 -> 0 | C197: =C95-[3]SL!C95 -> 0 | D197: =D95-[3]SL!D95 -> 0 | E197: =E95-[3]SL!E95 -> 0 | F197: =F95-[3]SL!F95 -> 0 | G197: =G95-[3]SL!G95 -> 0
A198: =A96-[3]SL!A96 -> 0 | B198: =B96-[3]SL!B96 -> 0 | C198: =C96-[3]SL!C96 -> 0 | D198: =D96-[3]SL!D96 -> 0 | E198: =E96-[3]SL!E96 -> 0 | F198: =F96-[3]SL!F96 -> 0 | G198: =G96-[3]SL!G96 -> 0
A199: =A97-[3]SL!A97 -> 0 | B199: =B97-[3]SL!B97 -> 0 | C199: =C97-[3]SL!C97 -> 0 | D199: =D97-[3]SL!D97 -> 0 | E199: =E97-[3]SL!E97 -> 0 | F199: =F97-[3]SL!F97 -> 0 | G199: =G97-[3]SL!G97 -> 0
A200: =A98-[3]SL!A98 -> 0 | B200: =B98-[3]SL!B98 -> 0 | C200: =C98-[3]SL!C98 -> 0 | D200: =D98-[3]SL!D98 -> 0 | E200: =E98-[3]SL!E98 -> 0 | F200: =F98-[3]SL!F98 -> 0 | G200: =G98-[3]SL!G98 -> 0
A201: =A99-[3]SL!A99 -> 0 | B201: =B99-[3]SL!B99 -> 0 | C201: =C99-[3]SL!C99 -> 0 | D201: =D99-[3]SL!D99 -> 0 | E201: =E99-[3]SL!E99 -> 0 | F201: =F99-[3]SL!F99 -> 0 | G201: =G99-[3]SL!G99 -> 0
A202: =A100-[3]SL!A100 -> 0 | B202: =B100-[3]SL!B100 -> 0 | C202: =C100-[3]SL!C100 -> 0 | D202: =D100-[3]SL!D100 -> 0 | E202: =E100-[3]SL!E100 -> 0 | F202: =F100-[3]SL!F100 -> 0 | G202: =G100-[3]SL!G100 -> 0
... 3 more rows

Sheet JL_Filing (hidden)
A1: Kotak Lifetime Income (Option 4) - Annuity Rates Applicaple for Purchase Price Less than Rs.2,50,000 and for Annual Mode
A3: Age | B3: 18 | C3: 19 | D3: 20 | E3: 21 | F3: 22 | G3: 23 | H3: 24 | I3: 25 | J3: 26 | K3: 27 | L3: 28 | M3: 29 | N3: 30 | O3: 31 | P3: 32 | Q3: 33 | R3: 34 | S3: 35 | T3: 36 | U3: 37 | V3: 38 | W3: 39 | X3: 40 | Y3: 41 | Z3: 42 | AA3: 43 | AB3: 44 | AC3: 45 | AD3: 46 | AE3: 47 | AF3: 48 | AG3: 49 | AH3: 50 | AI3: 51 | AJ3: 52 | AK3: 53 | AL3: 54 | AM3: 55 | AN3: 56 | AO3: 57 | AP3: 58 | AQ3: 59 | AR3: 60 | AS3: 61 | AT3: 62 | AU3: 63 | AV3: 64 | AW3: 65 | AX3: 66 | AY3: 67 | AZ3: 68 | BA3: 69 | BB3: 70 | BC3: 71 | BD3: 72 | BE3: 73 | BF3: 74 | BG3: 75 | BH3: 76 | BI3: 77 | BJ3: 78 | BK3: 79 | BL3: 80 | BM3: 81 | BN3: 82 | BO3: 83 | BP3: 84 | BQ3: 85 | BR3: 86 | BS3: 87 | BT3: 88 | BU3: 89 | BV3: 90 | BW3: 91 | BX3: 92 | BY3: 93 | BZ3: 94 | CA3: 95 | CB3: 96 | CC3: 97 | CD3: 98 | CE3: 99 | CF3: Age
A4: 18 | B4: 0.0542 | CF4: 18
A5: 19 | B5: 0.0542 | C5: 0.0543 | CF5: 19
A6: 20 | B6: 0.0543 | C6: 0.0543 | D6: 0.0544 | CF6: 20
A7: 21 | B7: 0.0543 | C7: 0.0544 | D7: 0.0545 | E7: 0.0545 | CF7: 21
A8: 22 | B8: 0.0544 | C8: 0.0545 | D8: 0.0545 | E8: 0.0546 | F8: 0.0546 | CF8: 22
A9: 23 | B9: 0.0544 | C9: 0.0545 | D9: 0.0546 | E9: 0.0546 | F9: 0.0547 | G9: 0.0548 | CF9: 23
A10: 24 | B10: 0.0545 | C10: 0.0546 | D10: 0.0546 | E10: 0.0547 | F10: 0.0548 | G10: 0.0548 | H10: 0.0549 | CF10: 24
A11: 25 | B11: 0.0545 | C11: 0.0546 | D11: 0.0547 | E11: 0.0548 | F11: 0.0548 | G11: 0.0549 | H11: 0.055 | I11: 0.0551 | CF11: 25
A12: 26 | B12: 0.0546 | C12: 0.0547 | D12: 0.0547 | E12: 0.0548 | F12: 0.0549 | G12: 0.055 | H12: 0.0551 | I12: 0.0551 | J12: 0.0552 | CF12: 26
A13: 27 | B13: 0.0546 | C13: 0.0547 | D13: 0.0548 | E13: 0.0549 | F13: 0.055 | G13: 0.0551 | H13: 0.0551 | I13: 0.0552 | J13: 0.0553 | K13: 0.0554 | CF13: 27
A14: 28 | B14: 0.0547 | C14: 0.0548 | D14: 0.0549 | E14: 0.0549 | F14: 0.055 | G14: 0.0551 | H14: 0.0552 | I14: 0.0553 | J14: 0.0554 | K14: 0.0555 | L14: 0.0556 | CF14: 28
A15: 29 | B15: 0.0547 | C15: 0.0548 | D15: 0.0549 | E15: 0.055 | F15: 0.0551 | G15: 0.0552 | H15: 0.0553 | I15: 0.0554 | J15: 0.0555 | K15: 0.0556 | L15: 0.0557 | M15: 0.0558 | CF15: 29
A16: 30 | B16: 0.0548 | C16: 0.0549 | D16: 0.055 | E16: 0.0551 | F16: 0.0552 | G16: 0.0553 | H16: 0.0554 | I16: 0.0555 | J16: 0.0556 | K16: 0.0557 | L16: 0.0558 | M16: 0.0558 | N16: 0.0559 | CF16: 30
A17: 31 | B17: 0.0548 | C17: 0.0549 | D17: 0.055 | E17: 0.0551 | F17: 0.0552 | G17: 0.0553 | H17: 0.0554 | I17: 0.0555 | J17: 0.0556 | K17: 0.0557 | L17: 0.0558 | M17: 0.0559 | N17: 0.056 | O17: 0.0562 | CF17: 31
A18: 32 | B18: 0.0549 | C18: 0.055 | D18: 0.0551 | E18: 0.0552 | F18: 0.0553 | G18: 0.0554 | H18: 0.0555 | I18: 0.0556 | J18: 0.0557 | K18: 0.0558 | L18: 0.0559 | M18: 0.056 | N18: 0.0561 | O18: 0.0563 | P18: 0.0564 | CF18: 32
A19: 33 | B19: 0.0549 | C19: 0.055 | D19: 0.0551 | E19: 0.0552 | F19: 0.0553 | G19: 0.0554 | H19: 0.0556 | I19: 0.0557 | J19: 0.0558 | K19: 0.0559 | L19: 0.056 | M19: 0.0561 | N19: 0.0562 | O19: 0.0564 | P19: 0.0565 | Q19: 0.0566 | CF19: 33
A20: 34 | B20: 0.055 | C20: 0.0551 | D20: 0.0552 | E20: 0.0553 | F20: 0.0554 | G20: 0.0555 | H20: 0.0556 | I20: 0.0557 | J20: 0.0559 | K20: 0.056 | L20: 0.0561 | M20: 0.0562 | N20: 0.0563 | O20: 0.0565 | P20: 0.0566 | Q20: 0.0567 | R20: 0.0568 | CF20: 34
A21: 35 | B21: 0.055 | C21: 0.0551 | D21: 0.0552 | E21: 0.0553 | F21: 0.0555 | G21: 0.0556 | H21: 0.0557 | I21: 0.0558 | J21: 0.0559 | K21: 0.0561 | L21: 0.0562 | M21: 0.0563 | N21: 0.0564 | O21: 0.0566 | P21: 0.0567 | Q21: 0.0568 | R21: 0.0569 | S21: 0.0571 | CF21: 35
A22: 36 | B22: 0.0551 | C22: 0.0552 | D22: 0.0553 | E22: 0.0554 | F22: 0.0555 | G22: 0.0556 | H22: 0.0557 | I22: 0.0559 | J22: 0.056 | K22: 0.0561 | L22: 0.0563 | M22: 0.0564 | N22: 0.0565 | O22: 0.0567 | P22: 0.0568 | Q22: 0.0569 | R22: 0.0571 | S22: 0.0572 | T22: 0.0573 | CF22: 36
A23: 37 | B23: 0.0551 | C23: 0.0552 | D23: 0.0553 | E23: 0.0554 | F23: 0.0556 | G23: 0.0557 | H23: 0.0558 | I23: 0.0559 | J23: 0.0561 | K23: 0.0562 | L23: 0.0563 | M23: 0.0565 | N23: 0.0566 | O23: 0.0568 | P23: 0.0569 | Q23: 0.057 | R23: 0.0572 | S23: 0.0573 | T23: 0.0574 | U23: 0.0576 | CF23: 37
A24: 38 | B24: 0.0551 | C24: 0.0552 | D24: 0.0554 | E24: 0.0555 | F24: 0.0556 | G24: 0.0557 | H24: 0.0559 | I24: 0.056 | J24: 0.0561 | K24: 0.0563 | L24: 0.0564 | M24: 0.0566 | N24: 0.0567 | O24: 0.0568 | P24: 0.057 | Q24: 0.0571 | R24: 0.0573 | S24: 0.0574 | T24: 0.0576 | U24: 0.0577 | V24: 0.0579 | CF24: 38
A25: 39 | B25: 0.0552 | C25: 0.0553 | D25: 0.0554 | E25: 0.0555 | F25: 0.0557 | G25: 0.0558 | H25: 0.0559 | I25: 0.0561 | J25: 0.0562 | K25: 0.0563 | L25: 0.0565 | M25: 0.0566 | N25: 0.0568 | O25: 0.0569 | P25: 0.0571 | Q25: 0.0572 | R25: 0.0574 | S25: 0.0575 | T25: 0.0577 | U25: 0.0578 | V25: 0.058 | W25: 0.0581 | CF25: 39
A26: 40 | B26: 0.0552 | C26: 0.0553 | D26: 0.0554 | E26: 0.0556 | F26: 0.0557 | G26: 0.0558 | H26: 0.056 | I26: 0.0561 | J26: 0.0563 | K26: 0.0564 | L26: 0.0566 | M26: 0.0567 | N26: 0.0569 | O26: 0.057 | P26: 0.0572 | Q26: 0.0573 | R26: 0.0575 | S26: 0.0577 | T26: 0.0578 | U26: 0.058 | V26: 0.0581 | W26: 0.0583 | X26: 0.0584 | CF26: 40
A27: 41 | B27: 0.0552 | C27: 0.0554 | D27: 0.0555 | E27: 0.0556 | F27: 0.0558 | G27: 0.0559 | H27: 0.056 | I27: 0.0562 | J27: 0.0563 | K27: 0.0565 | L27: 0.0566 | M27: 0.0568 | N27: 0.057 | O27: 0.0571 | P27: 0.0573 | Q27: 0.0574 | R27: 0.0576 | S27: 0.0578 | T27: 0.0579 | U27: 0.0581 | V27: 0.0583 | W27: 0.0584 | X27: 0.0586 | Y27: 0.0588 | CF27: 41
A28: 42 | B28: 0.0553 | C28: 0.0554 | D28: 0.0555 | E28: 0.0557 | F28: 0.0558 | G28: 0.0559 | H28: 0.0561 | I28: 0.0562 | J28: 0.0564 | K28: 0.0565 | L28: 0.0567 | M28: 0.0569 | N28: 0.057 | O28: 0.0572 | P28: 0.0574 | Q28: 0.0575 | R28: 0.0577 | S28: 0.0579 | T28: 0.0581 | U28: 0.0582 | V28: 0.0584 | W28: 0.0586 | X28: 0.0587 | Y28: 0.0589 | Z28: 0.0591 | CF28: 42
A29: 43 | B29: 0.0553 | C29: 0.0554 | D29: 0.0556 | E29: 0.0557 | F29: 0.0558 | G29: 0.056 | H29: 0.0561 | I29: 0.0563 | J29: 0.0564 | K29: 0.0566 | L29: 0.0568 | M29: 0.0569 | N29: 0.0571 | O29: 0.0573 | P29: 0.0575 | Q29: 0.0576 | R29: 0.0578 | S29: 0.058 | T29: 0.0582 | U29: 0.0584 | V29: 0.0585 | W29: 0.0587 | X29: 0.0589 | Y29: 0.0591 | Z29: 0.0593 | AA29: 0.0594 | CF29: 43
A30: 44 | B30: 0.0553 | C30: 0.0555 | D30: 0.0556 | E30: 0.0557 | F30: 0.0559 | G30: 0.056 | H30: 0.0562 | I30: 0.0563 | J30: 0.0565 | K30: 0.0567 | L30: 0.0568 | M30: 0.057 | N30: 0.0572 | O30: 0.0574 | P30: 0.0575 | Q30: 0.0577 | R30: 0.0579 | S30: 0.0581 | T30: 0.0583 | U30: 0.0585 | V30: 0.0587 | W30: 0.0589 | X30: 0.059 | Y30: 0.0592 | Z30: 0.0594 | AA30: 0.0596 | AB30: 0.0598 | CF30: 44
A31: 45 | B31: 0.0554 | C31: 0.0555 | D31: 0.0556 | E31: 0.0558 | F31: 0.0559 | G31: 0.0561 | H31: 0.0562 | I31: 0.0564 | J31: 0.0566 | K31: 0.0567 | L31: 0.0569 | M31: 0.0571 | N31: 0.0573 | O31: 0.0574 | P31: 0.0576 | Q31: 0.0578 | R31: 0.058 | S31: 0.0582 | T31: 0.0584 | U31: 0.0586 | V31: 0.0588 | W31: 0.059 | X31: 0.0592 | Y31: 0.0594 | Z31: 0.0596 | AA31: 0.0598 | AB31: 0.06 | AC31: 0.0602 | CF31: 45
A32: 46 | B32: 0.0554 | C32: 0.0555 | D32: 0.0557 | E32: 0.0558 | F32: 0.056 | G32: 0.0561 | H32: 0.0563 | I32: 0.0564 | J32: 0.0566 | K32: 0.0568 | L32: 0.057 | M32: 0.0571 | N32: 0.0573 | O32: 0.0575 | P32: 0.0577 | Q32: 0.0579 | R32: 0.0581 | S32: 0.0583 | T32: 0.0585 | U32: 0.0587 | V32: 0.0589 | W32: 0.0591 | X32: 0.0593 | Y32: 0.0595 | Z32: 0.0597 | AA32: 0.0599 | AB32: 0.0601 | AC32: 0.0603 | AD32: 0.0605 | CF32: 46
A33: 47 | B33: 0.0554 | C33: 0.0555 | D33: 0.0557 | E33: 0.0558 | F33: 0.056 | G33: 0.0561 | H33: 0.0563 | I33: 0.0565 | J33: 0.0567 | K33: 0.0568 | L33: 0.057 | M33: 0.0572 | N33: 0.0574 | O33: 0.0576 | P33: 0.0578 | Q33: 0.058 | R33: 0.0582 | S33: 0.0584 | T33: 0.0586 | U33: 0.0588 | V33: 0.059 | W33: 0.0592 | X33: 0.0595 | Y33: 0.0597 | Z33: 0.0599 | AA33: 0.0601 | AB33: 0.0603 | AC33: 0.0605 | AD33: 0.0607 | AE33: 0.061 | CF33: 47
A34: 48 | B34: 0.0554 | C34: 0.0556 | D34: 0.0557 | E34: 0.0559 | F34: 0.056 | G34: 0.0562 | H34: 0.0564 | I34: 0.0565 | J34: 0.0567 | K34: 0.0569 | L34: 0.0571 | M34: 0.0573 | N34: 0.0575 | O34: 0.0577 | P34: 0.0579 | Q34: 0.0581 | R34: 0.0583 | S34: 0.0585 | T34: 0.0587 | U34: 0.0589 | V34: 0.0591 | W34: 0.0594 | X34: 0.0596 | Y34: 0.0598 | Z34: 0.06 | AA34: 0.0603 | AB34: 0.0605 | AC34: 0.0607 | AD34: 0.0609 | AE34: 0.0612 | AF34: 0.0614 | CF34: 48
A35: 49 | B35: 0.0555 | C35: 0.0556 | D35: 0.0557 | E35: 0.0559 | F35: 0.0561 | G35: 0.0562 | H35: 0.0564 | I35: 0.0566 | J35: 0.0567 | K35: 0.0569 | L35: 0.0571 | M35: 0.0573 | N35: 0.0575 | O35: 0.0577 | P35: 0.0579 | Q35: 0.0581 | R35: 0.0584 | S35: 0.0586 | T35: 0.0588 | U35: 0.059 | V35: 0.0593 | W35: 0.0595 | X35: 0.0597 | Y35: 0.06 | Z35: 0.0602 | AA35: 0.0604 | AB35: 0.0607 | AC35: 0.0609 | AD35: 0.0611 | AE35: 0.0614 | AF35: 0.0616 | AG35: 0.0618 | CF35: 49
A36: 50 | B36: 0.0555 | C36: 0.0556 | D36: 0.0558 | E36: 0.0559 | F36: 0.0561 | G36: 0.0563 | H36: 0.0564 | I36: 0.0566 | J36: 0.0568 | K36: 0.057 | L36: 0.0572 | M36: 0.0574 | N36: 0.0576 | O36: 0.0578 | P36: 0.058 | Q36: 0.0582 | R36: 0.0584 | S36: 0.0587 | T36: 0.0589 | U36: 0.0591 | V36: 0.0594 | W36: 0.0596 | X36: 0.0599 | Y36: 0.0601 | Z36: 0.0603 | AA36: 0.0606 | AB36: 0.0608 | AC36: 0.0611 | AD36: 0.0613 | AE36: 0.0616 | AF36: 0.0618 | AG36: 0.0621 | AH36: 0.0623 | CF36: 50
A37: 51 | B37: 0.0555 | C37: 0.0556 | D37: 0.0558 | E37: 0.056 | F37: 0.0561 | G37: 0.0563 | H37: 0.0565 | I37: 0.0566 | J37: 0.0568 | K37: 0.057 | L37: 0.0572 | M37: 0.0574 | N37: 0.0576 | O37: 0.0578 | P37: 0.0581 | Q37: 0.0583 | R37: 0.0585 | S37: 0.0588 | T37: 0.059 | U37: 0.0592 | V37: 0.0595 | W37: 0.0597 | X37: 0.06 | Y37: 0.0602 | Z37: 0.0605 | AA37: 0.0607 | AB37: 0.061 | AC37: 0.0613 | AD37: 0.0615 | AE37: 0.0618 | AF37: 0.062 | AG37: 0.0623 | AH37: 0.0625 | AI37: 0.0628 | CF37: 51
A38: 52 | B38: 0.0555 | C38: 0.0557 | D38: 0.0558 | E38: 0.056 | F38: 0.0561 | G38: 0.0563 | H38: 0.0565 | I38: 0.0567 | J38: 0.0569 | K38: 0.0571 | L38: 0.0573 | M38: 0.0575 | N38: 0.0577 | O38: 0.0579 | P38: 0.0581 | Q38: 0.0584 | R38: 0.0586 | S38: 0.0588 | T38: 0.0591 | U38: 0.0593 | V38: 0.0596 | W38: 0.0598 | X38: 0.0601 | Y38: 0.0604 | Z38: 0.0606 | AA38: 0.0609 | AB38: 0.0612 | AC38: 0.0614 | AD38: 0.0617 | AE38: 0.062 | AF38: 0.0622 | AG38: 0.0625 | AH38: 0.0628 | AI38: 0.063 | AJ38: 0.0633 | CF38: 52
A39: 53 | B39: 0.0555 | C39: 0.0557 | D39: 0.0558 | E39: 0.056 | F39: 0.0562 | G39: 0.0563 | H39: 0.0565 | I39: 0.0567 | J39: 0.0569 | K39: 0.0571 | L39: 0.0573 | M39: 0.0575 | N39: 0.0577 | O39: 0.058 | P39: 0.0582 | Q39: 0.0584 | R39: 0.0587 | S39: 0.0589 | T39: 0.0592 | U39: 0.0594 | V39: 0.0597 | W39: 0.0599 | X39: 0.0602 | Y39: 0.0605 | Z39: 0.0608 | AA39: 0.061 | AB39: 0.0613 | AC39: 0.0616 | AD39: 0.0619 | AE39: 0.0622 | AF39: 0.0624 | AG39: 0.0627 | AH39: 0.063 | AI39: 0.0633 | AJ39: 0.0636 | AK39: 0.0639 | CF39: 53
A40: 54 | B40: 0.0556 | C40: 0.0557 | D40: 0.0559 | E40: 0.056 | F40: 0.0562 | G40: 0.0564 | H40: 0.0566 | I40: 0.0567 | J40: 0.0569 | K40: 0.0571 | L40: 0.0574 | M40: 0.0576 | N40: 0.0578 | O40: 0.058 | P40: 0.0583 | Q40: 0.0585 | R40: 0.0587 | S40: 0.059 | T40: 0.0592 | U40: 0.0595 | V40: 0.0598 | W40: 0.06 | X40: 0.0603 | Y40: 0.0606 | Z40: 0.0609 | AA40: 0.0612 | AB40: 0.0615 | AC40: 0.0618 | AD40: 0.0621 | AE40: 0.0623 | AF40: 0.0626 | AG40: 0.0629 | AH40: 0.0632 | AI40: 0.0635 | AJ40: 0.0638 | AK40: 0.0641 | AL40: 0.0644 | CF40: 54
A41: 55 | B41: 0.0556 | C41: 0.0557 | D41: 0.0559 | E41: 0.0561 | F41: 0.0562 | G41: 0.0564 | H41: 0.0566 | I41: 0.0568 | J41: 0.057 | K41: 0.0572 | L41: 0.0574 | M41: 0.0576 | N41: 0.0578 | O41: 0.0581 | P41: 0.0583 | Q41: 0.0586 | R41: 0.0588 | S41: 0.0591 | T41: 0.0593 | U41: 0.0596 | V41: 0.0599 | W41: 0.0601 | X41: 0.0604 | Y41: 0.0607 | Z41: 0.061 | AA41: 0.0613 | AB41: 0.0616 | AC41: 0.0619 | AD41: 0.0622 | AE41: 0.0625 | AF41: 0.0628 | AG41: 0.0632 | AH41: 0.0635 | AI41: 0.0638 | AJ41: 0.0641 | AK41: 0.0644 | AL41: 0.0647 | AM41: 0.065 | CF41: 55
A42: 56 | B42: 0.0556 | C42: 0.0558 | D42: 0.0559 | E42: 0.0561 | F42: 0.0562 | G42: 0.0564 | H42: 0.0566 | I42: 0.0568 | J42: 0.057 | K42: 0.0572 | L42: 0.0574 | M42: 0.0577 | N42: 0.0579 | O42: 0.0581 | P42: 0.0584 | Q42: 0.0586 | R42: 0.0589 | S42: 0.0591 | T42: 0.0594 | U42: 0.0597 | V42: 0.06 | W42: 0.0602 | X42: 0.0605 | Y42: 0.0608 | Z42: 0.0611 | AA42: 0.0614 | AB42: 0.0618 | AC42: 0.0621 | AD42: 0.0624 | AE42: 0.0627 | AF42: 0.063 | AG42: 0.0634 | AH42: 0.0637 | AI42: 0.064 | AJ42: 0.0643 | AK42: 0.0647 | AL42: 0.065 | AM42: 0.0653 | AN42: 0.0656 | CF42: 56
A43: 57 | B43: 0.0556 | C43: 0.0558 | D43: 0.0559 | E43: 0.0561 | F43: 0.0563 | G43: 0.0565 | H43: 0.0566 | I43: 0.0568 | J43: 0.057 | K43: 0.0573 | L43: 0.0575 | M43: 0.0577 | N43: 0.0579 | O43: 0.0582 | P43: 0.0584 | Q43: 0.0587 | R43: 0.0589 | S43: 0.0592 | T43: 0.0595 | U43: 0.0598 | V43: 0.06 | W43: 0.0603 | X43: 0.0606 | Y43: 0.0609 | Z43: 0.0613 | AA43: 0.0616 | AB43: 0.0619 | AC43: 0.0622 | AD43: 0.0626 | AE43: 0.0629 | AF43: 0.0632 | AG43: 0.0636 | AH43: 0.0639 | AI43: 0.0642 | AJ43: 0.0646 | AK43: 0.0649 | AL43: 0.0653 | AM43: 0.0656 | AN43: 0.066 | AO43: 0.0663 | CF43: 57
A44: 58 | B44: 0.0556 | C44: 0.0558 | D44: 0.0559 | E44: 0.0561 | F44: 0.0563 | G44: 0.0565 | H44: 0.0567 | I44: 0.0569 | J44: 0.0571 | K44: 0.0573 | L44: 0.0575 | M44: 0.0577 | N44: 0.058 | O44: 0.0582 | P44: 0.0585 | Q44: 0.0587 | R44: 0.059 | S44: 0.0593 | T44: 0.0595 | U44: 0.0598 | V44: 0.0601 | W44: 0.0604 | X44: 0.0607 | Y44: 0.0611 | Z44: 0.0614 | AA44: 0.0617 | AB44: 0.062 | AC44: 0.0624 | AD44: 0.0627 | AE44: 0.0631 | AF44: 0.0634 | AG44: 0.0638 | AH44: 0.0641 | AI44: 0.0645 | AJ44: 0.0648 | AK44: 0.0652 | AL44: 0.0656 | AM44: 0.0659 | AN44: 0.0663 | AO44: 0.0666 | AP44: 0.067 | CF44: 58
A45: 59 | B45: 0.0557 | C45: 0.0558 | D45: 0.056 | E45: 0.0561 | F45: 0.0563 | G45: 0.0565 | H45: 0.0567 | I45: 0.0569 | J45: 0.0571 | K45: 0.0573 | L45: 0.0575 | M45: 0.0578 | N45: 0.058 | O45: 0.0583 | P45: 0.0585 | Q45: 0.0588 | R45: 0.059 | S45: 0.0593 | T45: 0.0596 | U45: 0.0599 | V45: 0.0602 | W45: 0.0605 | X45: 0.0608 | Y45: 0.0612 | Z45: 0.0615 | AA45: 0.0618 | AB45: 0.0622 | AC45: 0.0625 | AD45: 0.0629 | AE45: 0.0632 | AF45: 0.0636 | AG45: 0.064 | AH45: 0.0643 | AI45: 0.0647 | AJ45: 0.0651 | AK45: 0.0655 | AL45: 0.0658 | AM45: 0.0662 | AN45: 0.0666 | AO45: 0.067 | AP45: 0.0674 | AQ45: 0.0677 | CF45: 59
A46: 60 | B46: 0.0557 | C46: 0.0558 | D46: 0.056 | E46: 0.0562 | F46: 0.0563 | G46: 0.0565 | H46: 0.0567 | I46: 0.0569 | J46: 0.0571 | K46: 0.0573 | L46: 0.0576 | M46: 0.0578 | N46: 0.058 | O46: 0.0583 | P46: 0.0586 | Q46: 0.0588 | R46: 0.0591 | S46: 0.0594 | T46: 0.0597 | U46: 0.06 | V46: 0.0603 | W46: 0.0606 | X46: 0.0609 | Y46: 0.0613 | Z46: 0.0616 | AA46: 0.0619 | AB46: 0.0623 | AC46: 0.0626 | AD46: 0.063 | AE46: 0.0634 | AF46: 0.0638 | AG46: 0.0641 | AH46: 0.0645 | AI46: 0.0649 | AJ46: 0.0653 | AK46: 0.0657 | AL46: 0.0661 | AM46: 0.0665 | AN46: 0.0669 | AO46: 0.0673 | AP46: 0.0677 | AQ46: 0.0681 | AR46: 0.0685 | CF46: 60
A47: 61 | B47: 0.0557 | C47: 0.0558 | D47: 0.056 | E47: 0.0562 | F47: 0.0564 | G47: 0.0565 | H47: 0.0567 | I47: 0.0569 | J47: 0.0572 | K47: 0.0574 | L47: 0.0576 | M47: 0.0578 | N47: 0.0581 | O47: 0.0583 | P47: 0.0586 | Q47: 0.0589 | R47: 0.0591 | S47: 0.0594 | T47: 0.0597 | U47: 0.06 | V47: 0.0604 | W47: 0.0607 | X47: 0.061 | Y47: 0.0613 | Z47: 0.0617 | AA47: 0.062 | AB47: 0.0624 | AC47: 0.0628 | AD47: 0.0632 | AE47: 0.0635 | AF47: 0.0639 | AG47: 0.0643 | AH47: 0.0647 | AI47: 0.0651 | AJ47: 0.0655 | AK47: 0.066 | AL47: 0.0664 | AM47: 0.0668 | AN47: 0.0672 | AO47: 0.0676 | AP47: 0.0681 | AQ47: 0.0685 | AR47: 0.0689 | AS47: 0.0693 | CF47: 61
A48: 62 | B48: 0.0557 | C48: 0.0559 | D48: 0.056 | E48: 0.0562 | F48: 0.0564 | G48: 0.0566 | H48: 0.0568 | I48: 0.057 | J48: 0.0572 | K48: 0.0574 | L48: 0.0576 | M48: 0.0579 | N48: 0.0581 | O48: 0.0584 | P48: 0.0586 | Q48: 0.0589 | R48: 0.0592 | S48: 0.0595 | T48: 0.0598 | U48: 0.0601 | V48: 0.0604 | W48: 0.0608 | X48: 0.0611 | Y48: 0.0614 | Z48: 0.0618 | AA48: 0.0622 | AB48: 0.0625 | AC48: 0.0629 | AD48: 0.0633 | AE48: 0.0637 | AF48: 0.0641 | AG48: 0.0645 | AH48: 0.0649 | AI48: 0.0653 | AJ48: 0.0658 | AK48: 0.0662 | AL48: 0.0666 | AM48: 0.0671 | AN48: 0.0675 | AO48: 0.068 | AP48: 0.0684 | AQ48: 0.0689 | AR48: 0.0693 | AS48: 0.0697 | AT48: 0.0702 | CF48: 62
A49: 63 | B49: 0.0557 | C49: 0.0559 | D49: 0.056 | E49: 0.0562 | F49: 0.0564 | G49: 0.0566 | H49: 0.0568 | I49: 0.057 | J49: 0.0572 | K49: 0.0574 | L49: 0.0577 | M49: 0.0579 | N49: 0.0581 | O49: 0.0584 | P49: 0.0587 | Q49: 0.059 | R49: 0.0592 | S49: 0.0595 | T49: 0.0598 | U49: 0.0602 | V49: 0.0605 | W49: 0.0608 | X49: 0.0612 | Y49: 0.0615 | Z49: 0.0619 | AA49: 0.0623 | AB49: 0.0626 | AC49: 0.063 | AD49: 0.0634 | AE49: 0.0638 | AF49: 0.0643 | AG49: 0.0647 | AH49: 0.0651 | AI49: 0.0655 | AJ49: 0.066 | AK49: 0.0664 | AL49: 0.0669 | AM49: 0.0674 | AN49: 0.0678 | AO49: 0.0683 | AP49: 0.0687 | AQ49: 0.0692 | AR49: 0.0697 | AS49: 0.0702 | AT49: 0.0706 | AU49: 0.0711 | CF49: 63
A50: 64 | B50: 0.0557 | C50: 0.0559 | D50: 0.056 | E50: 0.0562 | F50: 0.0564 | G50: 0.0566 | H50: 0.0568 | I50: 0.057 | J50: 0.0572 | K50: 0.0574 | L50: 0.0577 | M50: 0.0579 | N50: 0.0582 | O50: 0.0584 | P50: 0.0587 | Q50: 0.059 | R50: 0.0593 | S50: 0.0596 | T50: 0.0599 | U50: 0.0602 | V50: 0.0606 | W50: 0.0609 | X50: 0.0612 | Y50: 0.0616 | Z50: 0.062 | AA50: 0.0624 | AB50: 0.0628 | AC50: 0.0632 | AD50: 0.0636 | AE50: 0.064 | AF50: 0.0644 | AG50: 0.0649 | AH50: 0.0653 | AI50: 0.0658 | AJ50: 0.0662 | AK50: 0.0667 | AL50: 0.0672 | AM50: 0.0676 | AN50: 0.0681 | AO50: 0.0686 | AP50: 0.0691 | AQ50: 0.0696 | AR50: 0.0701 | AS50: 0.0706 | AT50: 0.0711 | AU50: 0.0716 | AV50: 0.0721 | CF50: 64
A51: 65 | B51: 0.0557 | C51: 0.0559 | D51: 0.0561 | E51: 0.0562 | F51: 0.0564 | G51: 0.0566 | H51: 0.0568 | I51: 0.057 | J51: 0.0572 | K51: 0.0575 | L51: 0.0577 | M51: 0.058 | N51: 0.0582 | O51: 0.0585 | P51: 0.0587 | Q51: 0.059 | R51: 0.0593 | S51: 0.0596 | T51: 0.0599 | U51: 0.0603 | V51: 0.0606 | W51: 0.061 | X51: 0.0613 | Y51: 0.0617 | Z51: 0.0621 | AA51: 0.0625 | AB51: 0.0629 | AC51: 0.0633 | AD51: 0.0637 | AE51: 0.0641 | AF51: 0.0646 | AG51: 0.065 | AH51: 0.0655 | AI51: 0.0659 | AJ51: 0.0664 | AK51: 0.0669 | AL51: 0.0674 | AM51: 0.0679 | AN51: 0.0684 | AO51: 0.0689 | AP51: 0.0694 | AQ51: 0.07 | AR51: 0.0705 | AS51: 0.071 | AT51: 0.0716 | AU51: 0.0721 | AV51: 0.0726 | AW51: 0.0732 | CF51: 65
A52: 66 | B52: 0.0557 | C52: 0.0559 | D52: 0.0561 | E52: 0.0563 | F52: 0.0564 | G52: 0.0566 | H52: 0.0568 | I52: 0.057 | J52: 0.0573 | K52: 0.0575 | L52: 0.0577 | M52: 0.058 | N52: 0.0582 | O52: 0.0585 | P52: 0.0588 | Q52: 0.0591 | R52: 0.0594 | S52: 0.0597 | T52: 0.06 | U52: 0.0603 | V52: 0.0607 | W52: 0.061 | X52: 0.0614 | Y52: 0.0618 | Z52: 0.0622 | AA52: 0.0626 | AB52: 0.063 | AC52: 0.0634 | AD52: 0.0638 | AE52: 0.0643 | AF52: 0.0647 | AG52: 0.0652 | AH52: 0.0657 | AI52: 0.0661 | AJ52: 0.0666 | AK52: 0.0671 | AL52: 0.0676 | AM52: 0.0682 | AN52: 0.0687 | AO52: 0.0692 | AP52: 0.0698 | AQ52: 0.0703 | AR52: 0.0709 | AS52: 0.0714 | AT52: 0.072 | AU52: 0.0726 | AV52: 0.0732 | AW52: 0.0737 | AX52: 0.0743 | CF52: 66
A53: 67 | B53: 0.0558 | C53: 0.0559 | D53: 0.0561 | E53: 0.0563 | F53: 0.0565 | G53: 0.0566 | H53: 0.0569 | I53: 0.0571 | J53: 0.0573 | K53: 0.0575 | L53: 0.0578 | M53: 0.058 | N53: 0.0583 | O53: 0.0585 | P53: 0.0588 | Q53: 0.0591 | R53: 0.0594 | S53: 0.0597 | T53: 0.06 | U53: 0.0604 | V53: 0.0607 | W53: 0.0611 | X53: 0.0615 | Y53: 0.0618 | Z53: 0.0622 | AA53: 0.0626 | AB53: 0.0631 | AC53: 0.0635 | AD53: 0.0639 | AE53: 0.0644 | AF53: 0.0649 | AG53: 0.0653 | AH53: 0.0658 | AI53: 0.0663 | AJ53: 0.0668 | AK53: 0.0674 | AL53: 0.0679 | AM53: 0.0684 | AN53: 0.069 | AO53: 0.0695 | AP53: 0.0701 | AQ53: 0.0707 | AR53: 0.0712 | AS53: 0.0718 | AT53: 0.0724 | AU53: 0.073 | AV53: 0.0737 | AW53: 0.0743 | AX53: 0.0749 | AY53: 0.0756 | CF53: 67
A54: 68 | B54: 0.0558 | C54: 0.0559 | D54: 0.0561 | E54: 0.0563 | F54: 0.0565 | G54: 0.0567 | H54: 0.0569 | I54: 0.0571 | J54: 0.0573 | K54: 0.0575 | L54: 0.0578 | M54: 0.058 | N54: 0.0583 | O54: 0.0586 | P54: 0.0588 | Q54: 0.0591 | R54: 0.0594 | S54: 0.0598 | T54: 0.0601 | U54: 0.0604 | V54: 0.0608 | W54: 0.0611 | X54: 0.0615 | Y54: 0.0619 | Z54: 0.0623 | AA54: 0.0627 | AB54: 0.0632 | AC54: 0.0636 | AD54: 0.064 | AE54: 0.0645 | AF54: 0.065 | AG54: 0.0655 | AH54: 0.066 | AI54: 0.0665 | AJ54: 0.067 | AK54: 0.0676 | AL54: 0.0681 | AM54: 0.0687 | AN54: 0.0692 | AO54: 0.0698 | AP54: 0.0704 | AQ54: 0.071 | AR54: 0.0716 | AS54: 0.0722 | AT54: 0.0729 | AU54: 0.0735 | AV54: 0.0742 | AW54: 0.0748 | AX54: 0.0755 | AY54: 0.0762 | AZ54: 0.0769 | CF54: 68
A55: 69 | B55: 0.0558 | C55: 0.0559 | D55: 0.0561 | E55: 0.0563 | F55: 0.0565 | G55: 0.0567 | H55: 0.0569 | I55: 0.0571 | J55: 0.0573 | K55: 0.0576 | L55: 0.0578 | M55: 0.0581 | N55: 0.0583 | O55: 0.0586 | P55: 0.0589 | Q55: 0.0592 | R55: 0.0595 | S55: 0.0598 | T55: 0.0601 | U55: 0.0605 | V55: 0.0608 | W55: 0.0612 | X55: 0.0616 | Y55: 0.062 | Z55: 0.0624 | AA55: 0.0628 | AB55: 0.0632 | AC55: 0.0637 | AD55: 0.0642 | AE55: 0.0646 | AF55: 0.0651 | AG55: 0.0656 | AH55: 0.0661 | AI55: 0.0667 | AJ55: 0.0672 | AK55: 0.0678 | AL55: 0.0683 | AM55: 0.0689 | AN55: 0.0695 | AO55: 0.0701 | AP55: 0.0707 | AQ55: 0.0713 | AR55: 0.072 | AS55: 0.0726 | AT55: 0.0733 | AU55: 0.074 | AV55: 0.0747 | AW55: 0.0754 | AX55: 0.0761 | AY55: 0.0768 | AZ55: 0.0775 | BA55: 0.0782 | CF55: 69
A56: 70 | B56: 0.0558 | C56: 0.056 | D56: 0.0561 | E56: 0.0563 | F56: 0.0565 | G56: 0.0567 | H56: 0.0569 | I56: 0.0571 | J56: 0.0573 | K56: 0.0576 | L56: 0.0578 | M56: 0.0581 | N56: 0.0583 | O56: 0.0586 | P56: 0.0589 | Q56: 0.0592 | R56: 0.0595 | S56: 0.0598 | T56: 0.0602 | U56: 0.0605 | V56: 0.0609 | W56: 0.0613 | X56: 0.0616 | Y56: 0.062 | Z56: 0.0625 | AA56: 0.0629 | AB56: 0.0633 | AC56: 0.0638 | AD56: 0.0643 | AE56: 0.0647 | AF56: 0.0652 | AG56: 0.0658 | AH56: 0.0663 | AI56: 0.0668 | AJ56: 0.0674 | AK56: 0.068 | AL56: 0.0685 | AM56: 0.0691 | AN56: 0.0697 | AO56: 0.0704 | AP56: 0.071 | AQ56: 0.0717 | AR56: 0.0723 | AS56: 0.073 | AT56: 0.0737 | AU56: 0.0744 | AV56: 0.0751 | AW56: 0.0759 | AX56: 0.0767 | AY56: 0.0774 | AZ56: 0.0782 | BA56: 0.0789 | BB56: 0.0797 | CF56: 70
A57: 71 | B57: 0.0558 | C57: 0.056 | D57: 0.0561 | E57: 0.0563 | F57: 0.0565 | G57: 0.0567 | H57: 0.0569 | I57: 0.0571 | J57: 0.0574 | K57: 0.0576 | L57: 0.0578 | M57: 0.0581 | N57: 0.0584 | O57: 0.0586 | P57: 0.0589 | Q57: 0.0592 | R57: 0.0595 | S57: 0.0599 | T57: 0.0602 | U57: 0.0606 | V57: 0.0609 | W57: 0.0613 | X57: 0.0617 | Y57: 0.0621 | Z57: 0.0625 | AA57: 0.063 | AB57: 0.0634 | AC57: 0.0639 | AD57: 0.0643 | AE57: 0.0648 | AF57: 0.0654 | AG57: 0.0659 | AH57: 0.0664 | AI57: 0.067 | AJ57: 0.0676 | AK57: 0.0681 | AL57: 0.0687 | AM57: 0.0694 | AN57: 0.07 | AO57: 0.0706 | AP57: 0.0713 | AQ57: 0.072 | AR57: 0.0727 | AS57: 0.0734 | AT57: 0.0741 | AU57: 0.0748 | AV57: 0.0756 | AW57: 0.0764 | AX57: 0.0772 | AY57: 0.078 | AZ57: 0.0788 | BA57: 0.0796 | BB57: 0.0805 | BC57: 0.0813 | CF57: 71
A58: 72 | B58: 0.0558 | C58: 0.056 | D58: 0.0562 | E58: 0.0563 | F58: 0.0565 | G58: 0.0567 | H58: 0.0569 | I58: 0.0571 | J58: 0.0574 | K58: 0.0576 | L58: 0.0579 | M58: 0.0581 | N58: 0.0584 | O58: 0.0587 | P58: 0.0589 | Q58: 0.0593 | R58: 0.0596 | S58: 0.0599 | T58: 0.0602 | U58: 0.0606 | V58: 0.061 | W58: 0.0614 | X58: 0.0617 | Y58: 0.0622 | Z58: 0.0626 | AA58: 0.063 | AB58: 0.0635 | AC58: 0.064 | AD58: 0.0644 | AE58: 0.0649 | AF58: 0.0655 | AG58: 0.066 | AH58: 0.0666 | AI58: 0.0671 | AJ58: 0.0677 | AK58: 0.0683 | AL58: 0.0689 | AM58: 0.0696 | AN58: 0.0702 | AO58: 0.0709 | AP58: 0.0716 | AQ58: 0.0723 | AR58: 0.073 | AS58: 0.0737 | AT58: 0.0745 | AU58: 0.0753 | AV58: 0.0761 | AW58: 0.0769 | AX58: 0.0777 | AY58: 0.0786 | AZ58: 0.0795 | BA58: 0.0803 | BB58: 0.0812 | BC58: 0.0821 | BD58: 0.0829 | CF58: 72
A59: 73 | B59: 0.0558 | C59: 0.056 | D59: 0.0562 | E59: 0.0563 | F59: 0.0565 | G59: 0.0567 | H59: 0.0569 | I59: 0.0572 | J59: 0.0574 | K59: 0.0576 | L59: 0.0579 | M59: 0.0581 | N59: 0.0584 | O59: 0.0587 | P59: 0.059 | Q59: 0.0593 | R59: 0.0596 | S59: 0.0599 | T59: 0.0603 | U59: 0.0606 | V59: 0.061 | W59: 0.0614 | X59: 0.0618 | Y59: 0.0622 | Z59: 0.0626 | AA59: 0.0631 | AB59: 0.0636 | AC59: 0.064 | AD59: 0.0645 | AE59: 0.065 | AF59: 0.0656 | AG59: 0.0661 | AH59: 0.0667 | AI59: 0.0673 | AJ59: 0.0679 | AK59: 0.0685 | AL59: 0.0691 | AM59: 0.0698 | AN59: 0.0704 | AO59: 0.0711 | AP59: 0.0718 | AQ59: 0.0725 | AR59: 0.0733 | AS59: 0.0741 | AT59: 0.0749 | AU59: 0.0757 | AV59: 0.0765 | AW59: 0.0774 | AX59: 0.0783 | AY59: 0.0792 | AZ59: 0.0801 | BA59: 0.081 | BB59: 0.0819 | BC59: 0.0828 | BD59: 0.0838 | BE59: 0.0847 | CF59: 73
A60: 74 | B60: 0.0558 | C60: 0.056 | D60: 0.0562 | E60: 0.0564 | F60: 0.0565 | G60: 0.0567 | H60: 0.057 | I60: 0.0572 | J60: 0.0574 | K60: 0.0576 | L60: 0.0579 | M60: 0.0581 | N60: 0.0584 | O60: 0.0587 | P60: 0.059 | Q60: 0.0593 | R60: 0.0596 | S60: 0.06 | T60: 0.0603 | U60: 0.0607 | V60: 0.061 | W60: 0.0614 | X60: 0.0618 | Y60: 0.0623 | Z60: 0.0627 | AA60: 0.0631 | AB60: 0.0636 | AC60: 0.0641 | AD60: 0.0646 | AE60: 0.0651 | AF60: 0.0657 | AG60: 0.0662 | AH60: 0.0668 | AI60: 0.0674 | AJ60: 0.068 | AK60: 0.0686 | AL60: 0.0693 | AM60: 0.07 | AN60: 0.0706 | AO60: 0.0713 | AP60: 0.0721 | AQ60: 0.0728 | AR60: 0.0736 | AS60: 0.0744 | AT60: 0.0752 | AU60: 0.0761 | AV60: 0.0769 | AW60: 0.0779 | AX60: 0.0788 | AY60: 0.0797 | AZ60: 0.0807 | BA60: 0.0817 | BB60: 0.0826 | BC60: 0.0836 | BD60: 0.0846 | BE60: 0.0855 | BF60: 0.0865 | CF60: 74
A61: 75 | B61: 0.0558 | C61: 0.056 | D61: 0.0562 | E61: 0.0564 | F61: 0.0566 | G61: 0.0568 | H61: 0.057 | I61: 0.0572 | J61: 0.0574 | K61: 0.0577 | L61: 0.0579 | M61: 0.0582 | N61: 0.0584 | O61: 0.0587 | P61: 0.059 | Q61: 0.0593 | R61: 0.0596 | S61: 0.06 | T61: 0.0603 | U61: 0.0607 | V61: 0.0611 | W61: 0.0615 | X61: 0.0619 | Y61: 0.0623 | Z61: 0.0627 | AA61: 0.0632 | AB61: 0.0637 | AC61: 0.0642 | AD61: 0.0647 | AE61: 0.0652 | AF61: 0.0658 | AG61: 0.0663 | AH61: 0.0669 | AI61: 0.0675 | AJ61: 0.0681 | AK61: 0.0688 | AL61: 0.0695 | AM61: 0.0701 | AN61: 0.0708 | AO61: 0.0716 | AP61: 0.0723 | AQ61: 0.0731 | AR61: 0.0739 | AS61: 0.0747 | AT61: 0.0755 | AU61: 0.0764 | AV61: 0.0774 | AW61: 0.0783 | AX61: 0.0793 | AY61: 0.0803 | AZ61: 0.0813 | BA61: 0.0823 | BB61: 0.0833 | BC61: 0.0844 | BD61: 0.0854 | BE61: 0.0864 | BF61: 0.0874 | BG61: 0.0885 | CF61: 75
A62: 76 | B62: 0.0559 | C62: 0.056 | D62: 0.0562 | E62: 0.0564 | F62: 0.0566 | G62: 0.0568 | H62: 0.057 | I62: 0.0572 | J62: 0.0574 | K62: 0.0577 | L62: 0.0579 | M62: 0.0582 | N62: 0.0584 | O62: 0.0587 | P62: 0.059 | Q62: 0.0593 | R62: 0.0597 | S62: 0.06 | T62: 0.0604 | U62: 0.0607 | V62: 0.0611 | W62: 0.0615 | X62: 0.0619 | Y62: 0.0623 | Z62: 0.0628 | AA62: 0.0633 | AB62: 0.0637 | AC62: 0.0642 | AD62: 0.0648 | AE62: 0.0653 | AF62: 0.0658 | AG62: 0.0664 | AH62: 0.067 | AI62: 0.0676 | AJ62: 0.0683 | AK62: 0.0689 | AL62: 0.0696 | AM62: 0.0703 | AN62: 0.071 | AO62: 0.0718 | AP62: 0.0725 | AQ62: 0.0733 | AR62: 0.0741 | AS62: 0.075 | AT62: 0.0759 | AU62: 0.0768 | AV62: 0.0777 | AW62: 0.0787 | AX62: 0.0797 | AY62: 0.0808 | AZ62: 0.0818 | BA62: 0.0829 | BB62: 0.084 | BC62: 0.0851 | BD62: 0.0862 | BE62: 0.0873 | BF62: 0.0884 | BG62: 0.0894 | BH62: 0.0905 | CF62: 76
A63: 77 | B63: 0.0559 | C63: 0.056 | D63: 0.0562 | E63: 0.0564 | F63: 0.0566 | G63: 0.0568 | H63: 0.057 | I63: 0.0572 | J63: 0.0574 | K63: 0.0577 | L63: 0.0579 | M63: 0.0582 | N63: 0.0585 | O63: 0.0588 | P63: 0.059 | Q63: 0.0594 | R63: 0.0597 | S63: 0.06 | T63: 0.0604 | U63: 0.0608 | V63: 0.0611 | W63: 0.0615 | X63: 0.062 | Y63: 0.0624 | Z63: 0.0628 | AA63: 0.0633 | AB63: 0.0638 | AC63: 0.0643 | AD63: 0.0648 | AE63: 0.0654 | AF63: 0.0659 | AG63: 0.0665 | AH63: 0.0671 | AI63: 0.0677 | AJ63: 0.0684 | AK63: 0.0691 | AL63: 0.0698 | AM63: 0.0705 | AN63: 0.0712 | AO63: 0.072 | AP63: 0.0727 | AQ63: 0.0736 | AR63: 0.0744 | AS63: 0.0753 | AT63: 0.0762 | AU63: 0.0771 | AV63: 0.0781 | AW63: 0.0791 | AX63: 0.0802 | AY63: 0.0813 | AZ63: 0.0824 | BA63: 0.0835 | BB63: 0.0847 | BC63: 0.0858 | BD63: 0.087 | BE63: 0.0881 | BF63: 0.0893 | BG63: 0.0904 | BH63: 0.0916 | BI63: 0.0927 | CF63: 77
A64: 78 | B64: 0.0559 | C64: 0.056 | D64: 0.0562 | E64: 0.0564 | F64: 0.0566 | G64: 0.0568 | H64: 0.057 | I64: 0.0572 | J64: 0.0574 | K64: 0.0577 | L64: 0.0579 | M64: 0.0582 | N64: 0.0585 | O64: 0.0588 | P64: 0.0591 | Q64: 0.0594 | R64: 0.0597 | S64: 0.06 | T64: 0.0604 | U64: 0.0608 | V64: 0.0612 | W64: 0.0616 | X64: 0.062 | Y64: 0.0624 | Z64: 0.0629 | AA64: 0.0634 | AB64: 0.0638 | AC64: 0.0644 | AD64: 0.0649 | AE64: 0.0654 | AF64: 0.066 | AG64: 0.0666 | AH64: 0.0672 | AI64: 0.0679 | AJ64: 0.0685 | AK64: 0.0692 | AL64: 0.0699 | AM64: 0.0706 | AN64: 0.0714 | AO64: 0.0721 | AP64: 0.0729 | AQ64: 0.0738 | AR64: 0.0746 | AS64: 0.0755 | AT64: 0.0765 | AU64: 0.0774 | AV64: 0.0785 | AW64: 0.0795 | AX64: 0.0806 | AY64: 0.0818 | AZ64: 0.0829 | BA64: 0.0841 | BB64: 0.0853 | BC64: 0.0865 | BD64: 0.0877 | BE64: 0.0889 | BF64: 0.0902 | BG64: 0.0914 | BH64: 0.0926 | BI64: 0.0938 | BJ64: 0.095 | CF64: 78
A65: 79 | B65: 0.0559 | C65: 0.056 | D65: 0.0562 | E65: 0.0564 | F65: 0.0566 | G65: 0.0568 | H65: 0.057 | I65: 0.0572 | J65: 0.0575 | K65: 0.0577 | L65: 0.058 | M65: 0.0582 | N65: 0.0585 | O65: 0.0588 | P65: 0.0591 | Q65: 0.0594 | R65: 0.0597 | S65: 0.0601 | T65: 0.0604 | U65: 0.0608 | V65: 0.0612 | W65: 0.0616 | X65: 0.062 | Y65: 0.0625 | Z65: 0.0629 | AA65: 0.0634 | AB65: 0.0639 | AC65: 0.0644 | AD65: 0.0649 | AE65: 0.0655 | AF65: 0.0661 | AG65: 0.0667 | AH65: 0.0673 | AI65: 0.0679 | AJ65: 0.0686 | AK65: 0.0693 | AL65: 0.07 | AM65: 0.0708 | AN65: 0.0715 | AO65: 0.0723 | AP65: 0.0731 | AQ65: 0.074 | AR65: 0.0749 | AS65: 0.0758 | AT65: 0.0767 | AU65: 0.0778 | AV65: 0.0788 | AW65: 0.0799 | AX65: 0.0811 | AY65: 0.0822 | AZ65: 0.0834 | BA65: 0.0847 | BB65: 0.0859 | BC65: 0.0872 | BD65: 0.0885 | BE65: 0.0897 | BF65: 0.091 | BG65: 0.0923 | BH65: 0.0936 | BI65: 0.0949 | BJ65: 0.0961 | BK65: 0.0974 | CF65: 79
A66: 80 | B66: 0.0559 | C66: 0.056 | D66: 0.0562 | E66: 0.0564 | F66: 0.0566 | G66: 0.0568 | H66: 0.057 | I66: 0.0572 | J66: 0.0575 | K66: 0.0577 | L66: 0.058 | M66: 0.0582 | N66: 0.0585 | O66: 0.0588 | P66: 0.0591 | Q66: 0.0594 | R66: 0.0597 | S66: 0.0601 | T66: 0.0604 | U66: 0.0608 | V66: 0.0612 | W66: 0.0616 | X66: 0.0621 | Y66: 0.0625 | Z66: 0.063 | AA66: 0.0634 | AB66: 0.0639 | AC66: 0.0645 | AD66: 0.065 | AE66: 0.0656 | AF66: 0.0661 | AG66: 0.0668 | AH66: 0.0674 | AI66: 0.068 | AJ66: 0.0687 | AK66: 0.0694 | AL66: 0.0701 | AM66: 0.0709 | AN66: 0.0717 | AO66: 0.0725 | AP66: 0.0733 | AQ66: 0.0742 | AR66: 0.0751 | AS66: 0.076 | AT66: 0.077 | AU66: 0.078 | AV66: 0.0791 | AW66: 0.0803 | AX66: 0.0815 | AY66: 0.0827 | AZ66: 0.0839 | BA66: 0.0852 | BB66: 0.0865 | BC66: 0.0878 | BD66: 0.0892 | BE66: 0.0905 | BF66: 0.0919 | BG66: 0.0932 | BH66: 0.0946 | BI66: 0.0959 | BJ66: 0.0973 | BK66: 0.0986 | BL66: 0.0999 | CF66: 80
A67: 81 | B67: 0.0559 | C67: 0.0561 | D67: 0.0562 | E67: 0.0564 | F67: 0.0566 | G67: 0.0568 | H67: 0.057 | I67: 0.0572 | J67: 0.0575 | K67: 0.0577 | L67: 0.058 | M67: 0.0582 | N67: 0.0585 | O67: 0.0588 | P67: 0.0591 | Q67: 0.0594 | R67: 0.0598 | S67: 0.0601 | T67: 0.0605 | U67: 0.0608 | V67: 0.0612 | W67: 0.0617 | X67: 0.0621 | Y67: 0.0625 | Z67: 0.063 | AA67: 0.0635 | AB67: 0.064 | AC67: 0.0645 | AD67: 0.065 | AE67: 0.0656 | AF67: 0.0662 | AG67: 0.0668 | AH67: 0.0675 | AI67: 0.0681 | AJ67: 0.0688 | AK67: 0.0695 | AL67: 0.0703 | AM67: 0.071 | AN67: 0.0718 | AO67: 0.0726 | AP67: 0.0735 | AQ67: 0.0744 | AR67: 0.0753 | AS67: 0.0762 | AT67: 0.0773 | AU67: 0.0783 | AV67: 0.0794 | AW67: 0.0806 | AX67: 0.0818 | AY67: 0.0831 | AZ67: 0.0844 | BA67: 0.0857 | BB67: 0.0871 | BC67: 0.0885 | BD67: 0.0899 | BE67: 0.0913 | BF67: 0.0927 | BG67: 0.0941 | BH67: 0.0955 | BI67: 0.097 | BJ67: 0.0984 | BK67: 0.0998 | BL67: 0.1011 | BM67: 0.1025 | CF67: 81
A68: 82 | B68: 0.0559 | C68: 0.0561 | D68: 0.0562 | E68: 0.0564 | F68: 0.0566 | G68: 0.0568 | H68: 0.057 | I68: 0.0573 | J68: 0.0575 | K68: 0.0577 | L68: 0.058 | M68: 0.0582 | N68: 0.0585 | O68: 0.0588 | P68: 0.0591 | Q68: 0.0594 | R68: 0.0598 | S68: 0.0601 | T68: 0.0605 | U68: 0.0609 | V68: 0.0613 | W68: 0.0617 | X68: 0.0621 | Y68: 0.0626 | Z68: 0.063 | AA68: 0.0635 | AB68: 0.064 | AC68: 0.0645 | AD68: 0.0651 | AE68: 0.0657 | AF68: 0.0663 | AG68: 0.0669 | AH68: 0.0675 | AI68: 0.0682 | AJ68: 0.0689 | AK68: 0.0696 | AL68: 0.0704 | AM68: 0.0711 | AN68: 0.0719 | AO68: 0.0728 | AP68: 0.0736 | AQ68: 0.0745 | AR68: 0.0755 | AS68: 0.0765 | AT68: 0.0775 | AU68: 0.0786 | AV68: 0.0797 | AW68: 0.0809 | AX68: 0.0822 | AY68: 0.0835 | AZ68: 0.0848 | BA68: 0.0862 | BB68: 0.0876 | BC68: 0.0891 | BD68: 0.0905 | BE68: 0.092 | BF68: 0.0935 | BG68: 0.095 | BH68: 0.0965 | BI68: 0.098 | BJ68: 0.0995 | BK68: 0.1009 | BL68: 0.1024 | BM68: 0.1039 | BN68: 0.1053 | CF68: 82
A69: 83 | B69: 0.0559 | C69: 0.0561 | D69: 0.0562 | E69: 0.0564 | F69: 0.0566 | G69: 0.0568 | H69: 0.057 | I69: 0.0573 | J69: 0.0575 | K69: 0.0577 | L69: 0.058 | M69: 0.0583 | N69: 0.0585 | O69: 0.0588 | P69: 0.0591 | Q69: 0.0594 | R69: 0.0598 | S69: 0.0601 | T69: 0.0605 | U69: 0.0609 | V69: 0.0613 | W69: 0.0617 | X69: 0.0621 | Y69: 0.0626 | Z69: 0.0631 | AA69: 0.0635 | AB69: 0.0641 | AC69: 0.0646 | AD69: 0.0651 | AE69: 0.0657 | AF69: 0.0663 | AG69: 0.0669 | AH69: 0.0676 | AI69: 0.0683 | AJ69: 0.069 | AK69: 0.0697 | AL69: 0.0705 | AM69: 0.0712 | AN69: 0.072 | AO69: 0.0729 | AP69: 0.0738 | AQ69: 0.0747 | AR69: 0.0757 | AS69: 0.0767 | AT69: 0.0777 | AU69: 0.0788 | AV69: 0.08 | AW69: 0.0812 | AX69: 0.0825 | AY69: 0.0839 | AZ69: 0.0853 | BA69: 0.0867 | BB69: 0.0881 | BC69: 0.0896 | BD69: 0.0911 | BE69: 0.0927 | BF69: 0.0942 | BG69: 0.0958 | BH69: 0.0974 | BI69: 0.0989 | BJ69: 0.1005 | BK69: 0.1021 | BL69: 0.1036 | BM69: 0.1052 | BN69: 0.1067 | BO69: 0.1082 | CF69: 83
A70: 84 | B70: 0.0559 | C70: 0.0561 | D70: 0.0562 | E70: 0.0564 | F70: 0.0566 | G70: 0.0568 | H70: 0.057 | I70: 0.0573 | J70: 0.0575 | K70: 0.0577 | L70: 0.058 | M70: 0.0583 | N70: 0.0585 | O70: 0.0588 | P70: 0.0591 | Q70: 0.0595 | R70: 0.0598 | S70: 0.0601 | T70: 0.0605 | U70: 0.0609 | V70: 0.0613 | W70: 0.0617 | X70: 0.0622 | Y70: 0.0626 | Z70: 0.0631 | AA70: 0.0636 | AB70: 0.0641 | AC70: 0.0646 | AD70: 0.0652 | AE70: 0.0658 | AF70: 0.0664 | AG70: 0.067 | AH70: 0.0677 | AI70: 0.0683 | AJ70: 0.0691 | AK70: 0.0698 | AL70: 0.0706 | AM70: 0.0713 | AN70: 0.0722 | AO70: 0.073 | AP70: 0.0739 | AQ70: 0.0748 | AR70: 0.0758 | AS70: 0.0768 | AT70: 0.0779 | AU70: 0.079 | AV70: 0.0803 | AW70: 0.0815 | AX70: 0.0828 | AY70: 0.0842 | AZ70: 0.0857 | BA70: 0.0871 | BB70: 0.0886 | BC70: 0.0902 | BD70: 0.0918 | BE70: 0.0934 | BF70: 0.095 | BG70: 0.0966 | BH70: 0.0982 | BI70: 0.0999 | BJ70: 0.1015 | BK70: 0.1032 | BL70: 0.1048 | BM70: 0.1065 | BN70: 0.1081 | BO70: 0.1097 | BP70: 0.1112 | CF70: 84
A71: 85 | B71: 0.0559 | C71: 0.0561 | D71: 0.0563 | E71: 0.0564 | F71: 0.0566 | G71: 0.0568 | H71: 0.057 | I71: 0.0573 | J71: 0.0575 | K71: 0.0578 | L71: 0.058 | M71: 0.0583 | N71: 0.0586 | O71: 0.0588 | P71: 0.0592 | Q71: 0.0595 | R71: 0.0598 | S71: 0.0602 | T71: 0.0605 | U71: 0.0609 | V71: 0.0613 | W71: 0.0617 | X71: 0.0622 | Y71: 0.0626 | Z71: 0.0631 | AA71: 0.0636 | AB71: 0.0641 | AC71: 0.0647 | AD71: 0.0652 | AE71: 0.0658 | AF71: 0.0664 | AG71: 0.0671 | AH71: 0.0677 | AI71: 0.0684 | AJ71: 0.0691 | AK71: 0.0699 | AL71: 0.0706 | AM71: 0.0714 | AN71: 0.0723 | AO71: 0.0731 | AP71: 0.074 | AQ71: 0.075 | AR71: 0.076 | AS71: 0.077 | AT71: 0.0781 | AU71: 0.0793 | AV71: 0.0805 | AW71: 0.0818 | AX71: 0.0831 | AY71: 0.0846 | AZ71: 0.086 | BA71: 0.0875 | BB71: 0.0891 | BC71: 0.0907 | BD71: 0.0923 | BE71: 0.094 | BF71: 0.0957 | BG71: 0.0974 | BH71: 0.0991 | BI71: 0.1008 | BJ71: 0.1025 | BK71: 0.1043 | BL71: 0.106 | BM71: 0.1077 | BN71: 0.1094 | BO71: 0.1111 | BP71: 0.1128 | BQ71: 0.1144 | CF71: 85
A72: 86 | B72: 0.0559 | C72: 0.0561 | D72: 0.0563 | E72: 0.0564 | F72: 0.0566 | G72: 0.0568 | H72: 0.0571 | I72: 0.0573 | J72: 0.0575 | K72: 0.0578 | L72: 0.058 | M72: 0.0583 | N72: 0.0586 | O72: 0.0589 | P72: 0.0592 | Q72: 0.0595 | R72: 0.0598 | S72: 0.0602 | T72: 0.0605 | U72: 0.0609 | V72: 0.0613 | W72: 0.0618 | X72: 0.0622 | Y72: 0.0627 | Z72: 0.0631 | AA72: 0.0636 | AB72: 0.0641 | AC72: 0.0647 | AD72: 0.0653 | AE72: 0.0658 | AF72: 0.0665 | AG72: 0.0671 | AH72: 0.0678 | AI72: 0.0685 | AJ72: 0.0692 | AK72: 0.0699 | AL72: 0.0707 | AM72: 0.0715 | AN72: 0.0724 | AO72: 0.0732 | AP72: 0.0742 | AQ72: 0.0751 | AR72: 0.0761 | AS72: 0.0772 | AT72: 0.0783 | AU72: 0.0795 | AV72: 0.0807 | AW72: 0.082 | AX72: 0.0834 | AY72: 0.0849 | AZ72: 0.0864 | BA72: 0.088 | BB72: 0.0896 | BC72: 0.0912 | BD72: 0.0929 | BE72: 0.0946 | BF72: 0.0964 | BG72: 0.0981 | BH72: 0.0999 | BI72: 0.1017 | BJ72: 0.1035 | BK72: 0.1053 | BL72: 0.1071 | BM72: 0.1089 | BN72: 0.1107 | BO72: 0.1125 | BP72: 0.1143 | BQ72: 0.116 | BR72: 0.1177 | CF72: 86
A73: 87 | B73: 0.0559 | C73: 0.0561 | D73: 0.0563 | E73: 0.0564 | F73: 0.0566 | G73: 0.0568 | H73: 0.0571 | I73: 0.0573 | J73: 0.0575 | K73: 0.0578 | L73: 0.058 | M73: 0.0583 | N73: 0.0586 | O73: 0.0589 | P73: 0.0592 | Q73: 0.0595 | R73: 0.0598 | S73: 0.0602 | T73: 0.0606 | U73: 0.0609 | V73: 0.0613 | W73: 0.0618 | X73: 0.0622 | Y73: 0.0627 | Z73: 0.0631 | AA73: 0.0637 | AB73: 0.0642 | AC73: 0.0647 | AD73: 0.0653 | AE73: 0.0659 | AF73: 0.0665 | AG73: 0.0671 | AH73: 0.0678 | AI73: 0.0685 | AJ73: 0.0693 | AK73: 0.07 | AL73: 0.0708 | AM73: 0.0716 | AN73: 0.0725 | AO73: 0.0733 | AP73: 0.0743 | AQ73: 0.0752 | AR73: 0.0763 | AS73: 0.0773 | AT73: 0.0785 | AU73: 0.0797 | AV73: 0.0809 | AW73: 0.0823 | AX73: 0.0837 | AY73: 0.0852 | AZ73: 0.0867 | BA73: 0.0883 | BB73: 0.09 | BC73: 0.0917 | BD73: 0.0934 | BE73: 0.0952 | BF73: 0.097 | BG73: 0.0988 | BH73: 0.1007 | BI73: 0.1026 | BJ73: 0.1045 | BK73: 0.1063 | BL73: 0.1082 | BM73: 0.1101 | BN73: 0.112 | BO73: 0.1139 | BP73: 0.1157 | BQ73: 0.1176 | BR73: 0.1194 | BS73: 0.1212 | CF73: 87
A74: 88 | B74: 0.0559 | C74: 0.0561 | D74: 0.0563 | E74: 0.0565 | F74: 0.0566 | G74: 0.0569 | H74: 0.0571 | I74: 0.0573 | J74: 0.0575 | K74: 0.0578 | L74: 0.058 | M74: 0.0583 | N74: 0.0586 | O74: 0.0589 | P74: 0.0592 | Q74: 0.0595 | R74: 0.0598 | S74: 0.0602 | T74: 0.0606 | U74: 0.061 | V74: 0.0614 | W74: 0.0618 | X74: 0.0622 | Y74: 0.0627 | Z74: 0.0632 | AA74: 0.0637 | AB74: 0.0642 | AC74: 0.0647 | AD74: 0.0653 | AE74: 0.0659 | AF74: 0.0665 | AG74: 0.0672 | AH74: 0.0679 | AI74: 0.0686 | AJ74: 0.0693 | AK74: 0.0701 | AL74: 0.0709 | AM74: 0.0717 | AN74: 0.0725 | AO74: 0.0734 | AP74: 0.0744 | AQ74: 0.0754 | AR74: 0.0764 | AS74: 0.0775 | AT74: 0.0786 | AU74: 0.0798 | AV74: 0.0811 | AW74: 0.0825 | AX74: 0.084 | AY74: 0.0855 | AZ74: 0.0871 | BA74: 0.0887 | BB74: 0.0904 | BC74: 0.0921 | BD74: 0.0939 | BE74: 0.0958 | BF74: 0.0976 | BG74: 0.0995 | BH74: 0.1014 | BI74: 0.1034 | BJ74: 0.1054 | BK74: 0.1073 | BL74: 0.1093 | BM74: 0.1113 | BN74: 0.1133 | BO74: 0.1152 | BP74: 0.1172 | BQ74: 0.1191 | BR74: 0.121 | BS74: 0.1229 | BT74: 0.1248 | CF74: 88
A75: 89 | B75: 0.0559 | C75: 0.0561 | D75: 0.0563 | E75: 0.0565 | F75: 0.0567 | G75: 0.0569 | H75: 0.0571 | I75: 0.0573 | J75: 0.0575 | K75: 0.0578 | L75: 0.058 | M75: 0.0583 | N75: 0.0586 | O75: 0.0589 | P75: 0.0592 | Q75: 0.0595 | R75: 0.0598 | S75: 0.0602 | T75: 0.0606 | U75: 0.061 | V75: 0.0614 | W75: 0.0618 | X75: 0.0622 | Y75: 0.0627 | Z75: 0.0632 | AA75: 0.0637 | AB75: 0.0642 | AC75: 0.0648 | AD75: 0.0653 | AE75: 0.0659 | AF75: 0.0666 | AG75: 0.0672 | AH75: 0.0679 | AI75: 0.0686 | AJ75: 0.0694 | AK75: 0.0701 | AL75: 0.0709 | AM75: 0.0718 | AN75: 0.0726 | AO75: 0.0735 | AP75: 0.0745 | AQ75: 0.0755 | AR75: 0.0765 | AS75: 0.0776 | AT75: 0.0788 | AU75: 0.08 | AV75: 0.0813 | AW75: 0.0827 | AX75: 0.0842 | AY75: 0.0857 | AZ75: 0.0874 | BA75: 0.089 | BB75: 0.0908 | BC75: 0.0926 | BD75: 0.0944 | BE75: 0.0963 | BF75: 0.0982 | BG75: 0.1002 | BH75: 0.1022 | BI75: 0.1042 | BJ75: 0.1062 | BK75: 0.1083 | BL75: 0.1103 | BM75: 0.1124 | BN75: 0.1145 | BO75: 0.1165 | BP75: 0.1186 | BQ75: 0.1206 | BR75: 0.1226 | BS75: 0.1246 | BT75: 0.1266 | BU75: 0.1285 | CF75: 89
A76: 90 | B76: 0.0559 | C76: 0.0561 | D76: 0.0563 | E76: 0.0565 | F76: 0.0567 | G76: 0.0569 | H76: 0.0571 | I76: 0.0573 | J76: 0.0575 | K76: 0.0578 | L76: 0.058 | M76: 0.0583 | N76: 0.0586 | O76: 0.0589 | P76: 0.0592 | Q76: 0.0595 | R76: 0.0599 | S76: 0.0602 | T76: 0.0606 | U76: 0.061 | V76: 0.0614 | W76: 0.0618 | X76: 0.0623 | Y76: 0.0627 | Z76: 0.0632 | AA76: 0.0637 | AB76: 0.0642 | AC76: 0.0648 | AD76: 0.0654 | AE76: 0.066 | AF76: 0.0666 | AG76: 0.0673 | AH76: 0.068 | AI76: 0.0687 | AJ76: 0.0694 | AK76: 0.0702 | AL76: 0.071 | AM76: 0.0718 | AN76: 0.0727 | AO76: 0.0736 | AP76: 0.0746 | AQ76: 0.0756 | AR76: 0.0766 | AS76: 0.0777 | AT76: 0.0789 | AU76: 0.0802 | AV76: 0.0815 | AW76: 0.0829 | AX76: 0.0844 | AY76: 0.086 | AZ76: 0.0876 | BA76: 0.0894 | BB76: 0.0911 | BC76: 0.093 | BD76: 0.0949 | BE76: 0.0968 | BF76: 0.0988 | BG76: 0.1008 | BH76: 0.1029 | BI76: 0.1049 | BJ76: 0.1071 | BK76: 0.1092 | BL76: 0.1113 | BM76: 0.1135 | BN76: 0.1156 | BO76: 0.1178 | BP76: 0.12 | BQ76: 0.1221 | BR76: 0.1242 | BS76: 0.1263 | BT76: 0.1284 | BU76: 0.1304 | BV76: 0.1325 | CF76: 90
A77: 91 | B77: 0.0559 | C77: 0.0561 | D77: 0.0563 | E77: 0.0565 | F77: 0.0567 | G77: 0.0569 | H77: 0.0571 | I77: 0.0573 | J77: 0.0575 | K77: 0.0578 | L77: 0.058 | M77: 0.0583 | N77: 0.0586 | O77: 0.0589 | P77: 0.0592 | Q77: 0.0595 | R77: 0.0599 | S77: 0.0602 | T77: 0.0606 | U77: 0.061 | V77: 0.0614 | W77: 0.0618 | X77: 0.0623 | Y77: 0.0627 | Z77: 0.0632 | AA77: 0.0637 | AB77: 0.0643 | AC77: 0.0648 | AD77: 0.0654 | AE77: 0.066 | AF77: 0.0666 | AG77: 0.0673 | AH77: 0.068 | AI77: 0.0687 | AJ77: 0.0695 | AK77: 0.0702 | AL77: 0.071 | AM77: 0.0719 | AN77: 0.0728 | AO77: 0.0737 | AP77: 0.0746 | AQ77: 0.0757 | AR77: 0.0767 | AS77: 0.0778 | AT77: 0.079 | AU77: 0.0803 | AV77: 0.0817 | AW77: 0.0831 | AX77: 0.0846 | AY77: 0.0862 | AZ77: 0.0879 | BA77: 0.0897 | BB77: 0.0915 | BC77: 0.0934 | BD77: 0.0953 | BE77: 0.0973 | BF77: 0.0993 | BG77: 0.1014 | BH77: 0.1035 | BI77: 0.1057 | BJ77: 0.1079 | BK77: 0.1101 | BL77: 0.1123 | BM77: 0.1145 | BN77: 0.1168 | BO77: 0.119 | BP77: 0.1213 | BQ77: 0.1235 | BR77: 0.1257 | BS77: 0.128 | BT77: 0.1301 | BU77: 0.1323 | BV77: 0.1344 | BW77: 0.1365 | CF77: 91
A78: 92 | B78: 0.0559 | C78: 0.0561 | D78: 0.0563 | E78: 0.0565 | F78: 0.0567 | G78: 0.0569 | H78: 0.0571 | I78: 0.0573 | J78: 0.0575 | K78: 0.0578 | L78: 0.058 | M78: 0.0583 | N78: 0.0586 | O78: 0.0589 | P78: 0.0592 | Q78: 0.0595 | R78: 0.0599 | S78: 0.0602 | T78: 0.0606 | U78: 0.061 | V78: 0.0614 | W78: 0.0618 | X78: 0.0623 | Y78: 0.0627 | Z78: 0.0632 | AA78: 0.0637 | AB78: 0.0643 | AC78: 0.0648 | AD78: 0.0654 | AE78: 0.066 | AF78: 0.0667 | AG78: 0.0673 | AH78: 0.068 | AI78: 0.0688 | AJ78: 0.0695 | AK78: 0.0703 | AL78: 0.0711 | AM78: 0.0719 | AN78: 0.0728 | AO78: 0.0738 | AP78: 0.0747 | AQ78: 0.0757 | AR78: 0.0768 | AS78: 0.078 | AT78: 0.0791 | AU78: 0.0804 | AV78: 0.0818 | AW78: 0.0833 | AX78: 0.0848 | AY78: 0.0865 | AZ78: 0.0882 | BA78: 0.0899 | BB78: 0.0918 | BC78: 0.0937 | BD78: 0.0957 | BE78: 0.0977 | BF78: 0.0998 | BG78: 0.102 | BH78: 0.1042 | BI78: 0.1064 | BJ78: 0.1086 | BK78: 0.1109 | BL78: 0.1132 | BM78: 0.1155 | BN78: 0.1179 | BO78: 0.1202 | BP78: 0.1226 | BQ78: 0.1249 | BR78: 0.1272 | BS78: 0.1296 | BT78: 0.1319 | BU78: 0.1341 | BV78: 0.1364 | BW78: 0.1386 | BX78: 0.1408 | CF78: 92
A79: 93 | B79: 0.0559 | C79: 0.0561 | D79: 0.0563 | E79: 0.0565 | F79: 0.0567 | G79: 0.0569 | H79: 0.0571 | I79: 0.0573 | J79: 0.0575 | K79: 0.0578 | L79: 0.0581 | M79: 0.0583 | N79: 0.0586 | O79: 0.0589 | P79: 0.0592 | Q79: 0.0595 | R79: 0.0599 | S79: 0.0602 | T79: 0.0606 | U79: 0.061 | V79: 0.0614 | W79: 0.0618 | X79: 0.0623 | Y79: 0.0628 | Z79: 0.0633 | AA79: 0.0638 | AB79: 0.0643 | AC79: 0.0649 | AD79: 0.0654 | AE79: 0.0661 | AF79: 0.0667 | AG79: 0.0674 | AH79: 0.0681 | AI79: 0.0688 | AJ79: 0.0695 | AK79: 0.0703 | AL79: 0.0712 | AM79: 0.072 | AN79: 0.0729 | AO79: 0.0738 | AP79: 0.0748 | AQ79: 0.0758 | AR79: 0.0769 | AS79: 0.0781 | AT79: 0.0793 | AU79: 0.0806 | AV79: 0.082 | AW79: 0.0834 | AX79: 0.085 | AY79: 0.0867 | AZ79: 0.0884 | BA79: 0.0902 | BB79: 0.0921 | BC79: 0.0941 | BD79: 0.0961 | BE79: 0.0982 | BF79: 0.1003 | BG79: 0.1025 | BH79: 0.1048 | BI79: 0.107 | BJ79: 0.1094 | BK79: 0.1117 | BL79: 0.1141 | BM79: 0.1165 | BN79: 0.1189 | BO79: 0.1214 | BP79: 0.1238 | BQ79: 0.1263 | BR79: 0.1287 | BS79: 0.1311 | BT79: 0.1335 | BU79: 0.1359 | BV79: 0.1383 | BW79: 0.1406 | BX79: 0.143 | BY79: 0.1452 | CF79: 93
A80: 94 | B80: 0.0559 | C80: 0.0561 | D80: 0.0563 | E80: 0.0565 | F80: 0.0567 | G80: 0.0569 | H80: 0.0571 | I80: 0.0573 | J80: 0.0576 | K80: 0.0578 | L80: 0.0581 | M80: 0.0583 | N80: 0.0586 | O80: 0.0589 | P80: 0.0592 | Q80: 0.0595 | R80: 0.0599 | S80: 0.0602 | T80: 0.0606 | U80: 0.061 | V80: 0.0614 | W80: 0.0619 | X80: 0.0623 | Y80: 0.0628 | Z80: 0.0633 | AA80: 0.0638 | AB80: 0.0643 | AC80: 0.0649 | AD80: 0.0655 | AE80: 0.0661 | AF80: 0.0667 | AG80: 0.0674 | AH80: 0.0681 | AI80: 0.0688 | AJ80: 0.0696 | AK80: 0.0704 | AL80: 0.0712 | AM80: 0.0721 | AN80: 0.0729 | AO80: 0.0739 | AP80: 0.0749 | AQ80: 0.0759 | AR80: 0.077 | AS80: 0.0781 | AT80: 0.0794 | AU80: 0.0807 | AV80: 0.0821 | AW80: 0.0836 | AX80: 0.0852 | AY80: 0.0869 | AZ80: 0.0886 | BA80: 0.0905 | BB80: 0.0924 | BC80: 0.0944 | BD80: 0.0965 | BE80: 0.0986 | BF80: 0.1008 | BG80: 0.103 | BH80: 0.1053 | BI80: 0.1077 | BJ80: 0.1101 | BK80: 0.1125 | BL80: 0.115 | BM80: 0.1175 | BN80: 0.12 | BO80: 0.1225 | BP80: 0.125 | BQ80: 0.1276 | BR80: 0.1301 | BS80: 0.1327 | BT80: 0.1352 | BU80: 0.1377 | BV80: 0.1402 | BW80: 0.1426 | BX80: 0.1451 | BY80: 0.1475 | BZ80: 0.1499 | CF80: 94
A81: 95 | B81: 0.0559 | C81: 0.0561 | D81: 0.0563 | E81: 0.0565 | F81: 0.0567 | G81: 0.0569 | H81: 0.0571 | I81: 0.0573 | J81: 0.0576 | K81: 0.0578 | L81: 0.0581 | M81: 0.0583 | N81: 0.0586 | O81: 0.0589 | P81: 0.0592 | Q81: 0.0595 | R81: 0.0599 | S81: 0.0602 | T81: 0.0606 | U81: 0.061 | V81: 0.0614 | W81: 0.0619 | X81: 0.0623 | Y81: 0.0628 | Z81: 0.0633 | AA81: 0.0638 | AB81: 0.0643 | AC81: 0.0649 | AD81: 0.0655 | AE81: 0.0661 | AF81: 0.0667 | AG81: 0.0674 | AH81: 0.0681 | AI81: 0.0689 | AJ81: 0.0696 | AK81: 0.0704 | AL81: 0.0712 | AM81: 0.0721 | AN81: 0.073 | AO81: 0.0739 | AP81: 0.0749 | AQ81: 0.076 | AR81: 0.0771 | AS81: 0.0782 | AT81: 0.0795 | AU81: 0.0808 | AV81: 0.0822 | AW81: 0.0837 | AX81: 0.0853 | AY81: 0.0871 | AZ81: 0.0888 | BA81: 0.0907 | BB81: 0.0927 | BC81: 0.0947 | BD81: 0.0968 | BE81: 0.099 | BF81: 0.1012 | BG81: 0.1035 | BH81: 0.1059 | BI81: 0.1083 | BJ81: 0.1108 | BK81: 0.1133 | BL81: 0.1158 | BM81: 0.1184 | BN81: 0.121 | BO81: 0.1236 | BP81: 0.1262 | BQ81: 0.1289 | BR81: 0.1315 | BS81: 0.1342 | BT81: 0.1368 | BU81: 0.1394 | BV81: 0.142 | BW81: 0.1446 | BX81: 0.1472 | BY81: 0.1497 | BZ81: 0.1522 | CA81: 0.1547 | CF81: 95
A82: 96 | B82: 0.056 | C82: 0.0561 | D82: 0.0563 | E82: 0.0565 | F82: 0.0567 | G82: 0.0569 | H82: 0.0571 | I82: 0.0573 | J82: 0.0576 | K82: 0.0578 | L82: 0.0581 | M82: 0.0583 | N82: 0.0586 | O82: 0.0589 | P82: 0.0592 | Q82: 0.0595 | R82: 0.0599 | S82: 0.0603 | T82: 0.0606 | U82: 0.061 | V82: 0.0614 | W82: 0.0619 | X82: 0.0623 | Y82: 0.0628 | Z82: 0.0633 | AA82: 0.0638 | AB82: 0.0643 | AC82: 0.0649 | AD82: 0.0655 | AE82: 0.0661 | AF82: 0.0668 | AG82: 0.0674 | AH82: 0.0681 | AI82: 0.0689 | AJ82: 0.0697 | AK82: 0.0705 | AL82: 0.0713 | AM82: 0.0721 | AN82: 0.0731 | AO82: 0.074 | AP82: 0.075 | AQ82: 0.076 | AR82: 0.0772 | AS82: 0.0783 | AT82: 0.0796 | AU82: 0.0809 | AV82: 0.0823 | AW82: 0.0839 | AX82: 0.0855 | AY82: 0.0872 | AZ82: 0.089 | BA82: 0.0909 | BB82: 0.0929 | BC82: 0.095 | BD82: 0.0971 | BE82: 0.0994 | BF82: 0.1016 | BG82: 0.104 | BH82: 0.1064 | BI82: 0.1089 | BJ82: 0.1114 | BK82: 0.114 | BL82: 0.1166 | BM82: 0.1193 | BN82: 0.1219 | BO82: 0.1246 | BP82: 0.1274 | BQ82: 0.1301 | BR82: 0.1329 | BS82: 0.1356 | BT82: 0.1384 | BU82: 0.1411 | BV82: 0.1438 | BW82: 0.1465 | BX82: 0.1492 | BY82: 0.1519 | BZ82: 0.1545 | CA82: 0.1572 | CB82: 0.1598 | CF82: 96
A83: 97 | B83: 0.056 | C83: 0.0561 | D83: 0.0563 | E83: 0.0565 | F83: 0.0567 | G83: 0.0569 | H83: 0.0571 | I83: 0.0573 | J83: 0.0576 | K83: 0.0578 | L83: 0.0581 | M83: 0.0583 | N83: 0.0586 | O83: 0.0589 | P83: 0.0592 | Q83: 0.0596 | R83: 0.0599 | S83: 0.0603 | T83: 0.0606 | U83: 0.061 | V83: 0.0614 | W83: 0.0619 | X83: 0.0623 | Y83: 0.0628 | Z83: 0.0633 | AA83: 0.0638 | AB83: 0.0644 | AC83: 0.0649 | AD83: 0.0655 | AE83: 0.0661 | AF83: 0.0668 | AG83: 0.0675 | AH83: 0.0682 | AI83: 0.0689 | AJ83: 0.0697 | AK83: 0.0705 | AL83: 0.0713 | AM83: 0.0722 | AN83: 0.0731 | AO83: 0.0741 | AP83: 0.0751 | AQ83: 0.0761 | AR83: 0.0772 | AS83: 0.0784 | AT83: 0.0796 | AU83: 0.081 | AV83: 0.0824 | AW83: 0.084 | AX83: 0.0856 | AY83: 0.0874 | AZ83: 0.0892 | BA83: 0.0912 | BB83: 0.0932 | BC83: 0.0953 | BD83: 0.0975 | BE83: 0.0997 | BF83: 0.1021 | BG83: 0.1045 | BH83: 0.1069 | BI83: 0.1095 | BJ83: 0.1121 | BK83: 0.1147 | BL83: 0.1174 | BM83: 0.1201 | BN83: 0.1229 | BO83: 0.1257 | BP83: 0.1285 | BQ83: 0.1313 | BR83: 0.1342 | BS83: 0.137 | BT83: 0.1399 | BU83: 0.1428 | BV83: 0.1456 | BW83: 0.1484 | BX83: 0.1513 | BY83: 0.1541 | BZ83: 0.1568 | CA83: 0.1596 | CB83: 0.1624 | CC83: 0.1651 | CF83: 97
A84: 98 | B84: 0.056 | C84: 0.0561 | D84: 0.0563 | E84: 0.0565 | F84: 0.0567 | G84: 0.0569 | H84: 0.0571 | I84: 0.0573 | J84: 0.0576 | K84: 0.0578 | L84: 0.0581 | M84: 0.0583 | N84: 0.0586 | O84: 0.0589 | P84: 0.0592 | Q84: 0.0596 | R84: 0.0599 | S84: 0.0603 | T84: 0.0606 | U84: 0.061 | V84: 0.0615 | W84: 0.0619 | X84: 0.0623 | Y84: 0.0628 | Z84: 0.0633 | AA84: 0.0638 | AB84: 0.0644 | AC84: 0.0649 | AD84: 0.0655 | AE84: 0.0662 | AF84: 0.0668 | AG84: 0.0675 | AH84: 0.0682 | AI84: 0.0689 | AJ84: 0.0697 | AK84: 0.0705 | AL84: 0.0714 | AM84: 0.0722 | AN84: 0.0731 | AO84: 0.0741 | AP84: 0.0751 | AQ84: 0.0762 | AR84: 0.0773 | AS84: 0.0785 | AT84: 0.0797 | AU84: 0.0811 | AV84: 0.0826 | AW84: 0.0841 | AX84: 0.0858 | AY84: 0.0876 | AZ84: 0.0894 | BA84: 0.0914 | BB84: 0.0934 | BC84: 0.0955 | BD84: 0.0978 | BE84: 0.1001 | BF84: 0.1024 | BG84: 0.1049 | BH84: 0.1074 | BI84: 0.11 | BJ84: 0.1127 | BK84: 0.1154 | BL84: 0.1181 | BM84: 0.1209 | BN84: 0.1238 | BO84: 0.1267 | BP84: 0.1296 | BQ84: 0.1325 | BR84: 0.1355 | BS84: 0.1384 | BT84: 0.1414 | BU84: 0.1444 | BV84: 0.1473 | BW84: 0.1503 | BX84: 0.1533 | BY84: 0.1562 | BZ84: 0.1591 | CA84: 0.162 | CB84: 0.1649 | CC84: 0.1678 | CD84: 0.1706 | CF84: 98
A85: 99 | B85: 0.056 | C85: 0.0561 | D85: 0.0563 | E85: 0.0565 | F85: 0.0567 | G85: 0.0569 | H85: 0.0571 | I85: 0.0573 | J85: 0.0576 | K85: 0.0578 | L85: 0.0581 | M85: 0.0583 | N85: 0.0586 | O85: 0.0589 | P85: 0.0592 | Q85: 0.0596 | R85: 0.0599 | S85: 0.0603 | T85: 0.0606 | U85: 0.061 | V85: 0.0615 | W85: 0.0619 | X85: 0.0623 | Y85: 0.0628 | Z85: 0.0633 | AA85: 0.0638 | AB85: 0.0644 | AC85: 0.0649 | AD85: 0.0655 | AE85: 0.0662 | AF85: 0.0668 | AG85: 0.0675 | AH85: 0.0682 | AI85: 0.069 | AJ85: 0.0697 | AK85: 0.0706 | AL85: 0.0714 | AM85: 0.0723 | AN85: 0.0732 | AO85: 0.0741 | AP85: 0.0752 | AQ85: 0.0762 | AR85: 0.0773 | AS85: 0.0785 | AT85: 0.0798 | AU85: 0.0812 | AV85: 0.0827 | AW85: 0.0842 | AX85: 0.0859 | AY85: 0.0877 | AZ85: 0.0896 | BA85: 0.0916 | BB85: 0.0936 | BC85: 0.0958 | BD85: 0.0981 | BE85: 0.1004 | BF85: 0.1028 | BG85: 0.1053 | BH85: 0.1079 | BI85: 0.1105 | BJ85: 0.1132 | BK85: 0.116 | BL85: 0.1188 | BM85: 0.1217 | BN85: 0.1247 | BO85: 0.1276 | BP85: 0.1306 | BQ85: 0.1337 | BR85: 0.1367 | BS85: 0.1398 | BT85: 0.1429 | BU85: 0.146 | BV85: 0.1491 | BW85: 0.1521 | BX85: 0.1552 | BY85: 0.1583 | BZ85: 0.1614 | CA85: 0.1644 | CB85: 0.1674 | CC85: 0.1705 | CD85: 0.1735 | CE85: 0.1765 | CF85: 99
A87: Sum of Differences | C87: =SUM($A$88:$CF$169) -> 0
A88: =A4-[3]JL!A4 -> 0 | B88: =B4-[3]JL!B4 -> 0 | C88: =C4-[3]JL!C4 -> 0 | D88: =D4-[3]JL!D4 -> 0 | E88: =E4-[3]JL!E4 -> 0 | F88: =F4-[3]JL!F4 -> 0 | G88: =G4-[3]JL!G4 -> 0 | H88: =H4-[3]JL!H4 -> 0 | I88: =I4-[3]JL!I4 -> 0 | J88: =J4-[3]JL!J4 -> 0 | K88: =K4-[3]JL!K4 -> 0 | L88: =L4-[3]JL!L4 -> 0 | M88: =M4-[3]JL!M4 -> 0 | N88: =N4-[3]JL!N4 -> 0 | O88: =O4-[3]JL!O4 -> 0 | P88: =P4-[3]JL!P4 -> 0 | Q88: =Q4-[3]JL!Q4 -> 0 | R88: =R4-[3]JL!R4 -> 0 | S88: =S4-[3]JL!S4 -> 0 | T88: =T4-[3]JL!T4 -> 0 | U88: =U4-[3]JL!U4 -> 0 | V88: =V4-[3]JL!V4 -> 0 | W88: =W4-[3]JL!W4 -> 0 | X88: =X4-[3]JL!X4 -> 0 | Y88: =Y4-[3]JL!Y4 -> 0 | Z88: =Z4-[3]JL!Z4 -> 0 | AA88: =AA4-[3]JL!AA4 -> 0 | AB88: =AB4-[3]JL!AB4 -> 0 | AC88: =AC4-[3]JL!AC4 -> 0 | AD88: =AD4-[3]JL!AD4 -> 0 | AE88: =AE4-[3]JL!AE4 -> 0 | AF88: =AF4-[3]JL!AF4 -> 0 | AG88: =AG4-[3]JL!AG4 -> 0 | AH88: =AH4-[3]JL!AH4 -> 0 | AI88: =AI4-[3]JL!AI4 -> 0 | AJ88: =AJ4-[3]JL!AJ4 -> 0 | AK88: =AK4-[3]JL!AK4 -> 0 | AL88: =AL4-[3]JL!AL4 -> 0 | AM88: =AM4-[3]JL!AM4 -> 0 | AN88: =AN3-[3]JL!AP3 -> 0 | AO88: =AO3-[3]JL!AQ3 -> 0 | AP88: =AP3-[3]JL!AR3 -> 0 | AQ88: =AQ3-[3]JL!AS3 -> 0 | AR88: =AR3-[3]JL!AT3 -> 0 | AS88: =AS3-[3]JL!AU3 -> 0 | AT88: =AT3-[3]JL!AV3 -> 0 | AU88: =AU3-[3]JL!AW3 -> 0 | AV88: =AV3-[3]JL!AX3 -> 0 | AW88: =AW3-[3]JL!AY3 -> 0 | AX88: =AX3-[3]JL!AZ3 -> 0 | AY88: =AY3-[3]JL!BA3 -> 0 | AZ88: =AZ3-[3]JL!BB3 -> 0 | BA88: =BA3-[3]JL!BC3 -> 0 | BB88: =BB3-[3]JL!BD3 -> 0 | BC88: =BC3-[3]JL!BE3 -> 0 | BD88: =BD3-[3]JL!BF3 -> 0 | BE88: =BE3-[3]JL!BG3 -> 0 | BF88: =BF3-[3]JL!BH3 -> 0 | BG88: =BG3-[3]JL!BI3 -> 0 | BH88: =BH3-[3]JL!BJ3 -> 0 | BI88: =BI3-[3]JL!BK3 -> 0 | BJ88: =BJ3-[3]JL!BL3 -> 0 | BK88: =BK3-[3]JL!BM3 -> 0 | BL88: =BL3-[3]JL!BN3 -> 0 | BM88: =BM3-[3]JL!BO3 -> 0 | BN88: =BN3-[3]JL!BP3 -> 0 | BO88: =BO3-[3]JL!BQ3 -> 0 | BP88: =BP3-[3]JL!BR3 -> 0 | BQ88: =BQ3-[3]JL!BS3 -> 0 | BR88: =BR3-[3]JL!BT3 -> 0 | BS88: =BS3-[3]JL!BU3 -> 0 | BT88: =BT3-[3]JL!BV3 -> 0 | BU88: =BU3-[3]JL!BW3 -> 0 | BV88: =BV3-[3]JL!BX3 -> 0 | BW88: =BW3-[3]JL!BY3 -> 0 | BX88: =BX3-[3]JL!BZ3 -> 0 | BY88: =BY3-[3]JL!CA3 -> 0 | BZ88: =BZ3-[3]JL!CB3 -> 0 | CA88: =CA3-[3]JL!CC3 -> 0 | CB88: =CB3-[3]JL!CD3 -> 0 | CC88: =CC3-[3]JL!CE3 -> 0 | CD88: =CD3-[3]JL!CF3 -> 0 | CE88: =CE3-[3]JL!CG3 -> 0
A89: =A5-[3]JL!A5 -> 0 | B89: =B5-[3]JL!B5 -> 0 | C89: =C5-[3]JL!C5 -> 0 | D89: =D5-[3]JL!D5 -> 0 | E89: =E5-[3]JL!E5 -> 0 | F89: =F5-[3]JL!F5 -> 0 | G89: =G5-[3]JL!G5 -> 0 | H89: =H5-[3]JL!H5 -> 0 | I89: =I5-[3]JL!I5 -> 0 | J89: =J5-[3]JL!J5 -> 0 | K89: =K5-[3]JL!K5 -> 0 | L89: =L5-[3]JL!L5 -> 0 | M89: =M5-[3]JL!M5 -> 0 | N89: =N5-[3]JL!N5 -> 0 | O89: =O5-[3]JL!O5 -> 0 | P89: =P5-[3]JL!P5 -> 0 | Q89: =Q5-[3]JL!Q5 -> 0 | R89: =R5-[3]JL!R5 -> 0 | S89: =S5-[3]JL!S5 -> 0 | T89: =T5-[3]JL!T5 -> 0 | U89: =U5-[3]JL!U5 -> 0 | V89: =V5-[3]JL!V5 -> 0 | W89: =W5-[3]JL!W5 -> 0 | X89: =X5-[3]JL!X5 -> 0 | Y89: =Y5-[3]JL!Y5 -> 0 | Z89: =Z5-[3]JL!Z5 -> 0 | AA89: =AA5-[3]JL!AA5 -> 0 | AB89: =AB5-[3]JL!AB5 -> 0 | AC89: =AC5-[3]JL!AC5 -> 0 | AD89: =AD5-[3]JL!AD5 -> 0 | AE89: =AE5-[3]JL!AE5 -> 0 | AF89: =AF5-[3]JL!AF5 -> 0 | AG89: =AG5-[3]JL!AG5 -> 0 | AH89: =AH5-[3]JL!AH5 -> 0 | AI89: =AI5-[3]JL!AI5 -> 0 | AJ89: =AJ5-[3]JL!AJ5 -> 0 | AK89: =AK5-[3]JL!AK5 -> 0 | AL89: =AL5-[3]JL!AL5 -> 0 | AM89: =AM5-[3]JL!AM5 -> 0 | AN89: =AN4-[3]JL!AP4 -> 0 | AO89: =AO4-[3]JL!AQ4 -> 0 | AP89: =AP4-[3]JL!AR4 -> 0 | AQ89: =AQ4-[3]JL!AS4 -> 0 | AR89: =AR4-[3]JL!AT4 -> 0 | AS89: =AS4-[3]JL!AU4 -> 0 | AT89: =AT4-[3]JL!AV4 -> 0 | AU89: =AU4-[3]JL!AW4 -> 0 | AV89: =AV4-[3]JL!AX4 -> 0 | AW89: =AW4-[3]JL!AY4 -> 0 | AX89: =AX4-[3]JL!AZ4 -> 0 | AY89: =AY4-[3]JL!BA4 -> 0 | AZ89: =AZ4-[3]JL!BB4 -> 0 | BA89: =BA4-[3]JL!BC4 -> 0 | BB89: =BB4-[3]JL!BD4 -> 0 | BC89: =BC4-[3]JL!BE4 -> 0 | BD89: =BD4-[3]JL!BF4 -> 0 | BE89: =BE4-[3]JL!BG4 -> 0 | BF89: =BF4-[3]JL!BH4 -> 0 | BG89: =BG4-[3]JL!BI4 -> 0 | BH89: =BH4-[3]JL!BJ4 -> 0 | BI89: =BI4-[3]JL!BK4 -> 0 | BJ89: =BJ4-[3]JL!BL4 -> 0 | BK89: =BK4-[3]JL!BM4 -> 0 | BL89: =BL4-[3]JL!BN4 -> 0 | BM89: =BM4-[3]JL!BO4 -> 0 | BN89: =BN4-[3]JL!BP4 -> 0 | BO89: =BO4-[3]JL!BQ4 -> 0 | BP89: =BP4-[3]JL!BR4 -> 0 | BQ89: =BQ4-[3]JL!BS4 -> 0 | BR89: =BR4-[3]JL!BT4 -> 0 | BS89: =BS4-[3]JL!BU4 -> 0 | BT89: =BT4-[3]JL!BV4 -> 0 | BU89: =BU4-[3]JL!BW4 -> 0 | BV89: =BV4-[3]JL!BX4 -> 0 | BW89: =BW4-[3]JL!BY4 -> 0 | BX89: =BX4-[3]JL!BZ4 -> 0 | BY89: =BY4-[3]JL!CA4 -> 0 | BZ89: =BZ4-[3]JL!CB4 -> 0 | CA89: =CA4-[3]JL!CC4 -> 0 | CB89: =CB4-[3]JL!CD4 -> 0 | CC89: =CC4-[3]JL!CE4 -> 0 | CD89: =CD4-[3]JL!CF4 -> 0 | CE89: =CE4-[3]JL!CG4 -> 0 | CF89: =CF4-[3]JL!CH4 -> 0
A90: =A6-[3]JL!A6 -> 0 | B90: =B6-[3]JL!B6 -> 0 | C90: =C6-[3]JL!C6 -> 0 | D90: =D6-[3]JL!D6 -> 0 | E90: =E6-[3]JL!E6 -> 0 | F90: =F6-[3]JL!F6 -> 0 | G90: =G6-[3]JL!G6 -> 0 | H90: =H6-[3]JL!H6 -> 0 | I90: =I6-[3]JL!I6 -> 0 | J90: =J6-[3]JL!J6 -> 0 | K90: =K6-[3]JL!K6 -> 0 | L90: =L6-[3]JL!L6 -> 0 | M90: =M6-[3]JL!M6 -> 0 | N90: =N6-[3]JL!N6 -> 0 | O90: =O6-[3]JL!O6 -> 0 | P90: =P6-[3]JL!P6 -> 0 | Q90: =Q6-[3]JL!Q6 -> 0 | R90: =R6-[3]JL!R6 -> 0 | S90: =S6-[3]JL!S6 -> 0 | T90: =T6-[3]JL!T6 -> 0 | U90: =U6-[3]JL!U6 -> 0 | V90: =V6-[3]JL!V6 -> 0 | W90: =W6-[3]JL!W6 -> 0 | X90: =X6-[3]JL!X6 -> 0 | Y90: =Y6-[3]JL!Y6 -> 0 | Z90: =Z6-[3]JL!Z6 -> 0 | AA90: =AA6-[3]JL!AA6 -> 0 | AB90: =AB6-[3]JL!AB6 -> 0 | AC90: =AC6-[3]JL!AC6 -> 0 | AD90: =AD6-[3]JL!AD6 -> 0 | AE90: =AE6-[3]JL!AE6 -> 0 | AF90: =AF6-[3]JL!AF6 -> 0 | AG90: =AG6-[3]JL!AG6 -> 0 | AH90: =AH6-[3]JL!AH6 -> 0 | AI90: =AI6-[3]JL!AI6 -> 0 | AJ90: =AJ6-[3]JL!AJ6 -> 0 | AK90: =AK6-[3]JL!AK6 -> 0 | AL90: =AL6-[3]JL!AL6 -> 0 | AM90: =AM6-[3]JL!AM6 -> 0 | AN90: =AN5-[3]JL!AP5 -> 0 | AO90: =AO5-[3]JL!AQ5 -> 0 | AP90: =AP5-[3]JL!AR5 -> 0 | AQ90: =AQ5-[3]JL!AS5 -> 0 | AR90: =AR5-[3]JL!AT5 -> 0 | AS90: =AS5-[3]JL!AU5 -> 0 | AT90: =AT5-[3]JL!AV5 -> 0 | AU90: =AU5-[3]JL!AW5 -> 0 | AV90: =AV5-[3]JL!AX5 -> 0 | AW90: =AW5-[3]JL!AY5 -> 0 | AX90: =AX5-[3]JL!AZ5 -> 0 | AY90: =AY5-[3]JL!BA5 -> 0 | AZ90: =AZ5-[3]JL!BB5 -> 0 | BA90: =BA5-[3]JL!BC5 -> 0 | BB90: =BB5-[3]JL!BD5 -> 0 | BC90: =BC5-[3]JL!BE5 -> 0 | BD90: =BD5-[3]JL!BF5 -> 0 | BE90: =BE5-[3]JL!BG5 -> 0 | BF90: =BF5-[3]JL!BH5 -> 0 | BG90: =BG5-[3]JL!BI5 -> 0 | BH90: =BH5-[3]JL!BJ5 -> 0 | BI90: =BI5-[3]JL!BK5 -> 0 | BJ90: =BJ5-[3]JL!BL5 -> 0 | BK90: =BK5-[3]JL!BM5 -> 0 | BL90: =BL5-[3]JL!BN5 -> 0 | BM90: =BM5-[3]JL!BO5 -> 0 | BN90: =BN5-[3]JL!BP5 -> 0 | BO90: =BO5-[3]JL!BQ5 -> 0 | BP90: =BP5-[3]JL!BR5 -> 0 | BQ90: =BQ5-[3]JL!BS5 -> 0 | BR90: =BR5-[3]JL!BT5 -> 0 | BS90: =BS5-[3]JL!BU5 -> 0 | BT90: =BT5-[3]JL!BV5 -> 0 | BU90: =BU5-[3]JL!BW5 -> 0 | BV90: =BV5-[3]JL!BX5 -> 0 | BW90: =BW5-[3]JL!BY5 -> 0 | BX90: =BX5-[3]JL!BZ5 -> 0 | BY90: =BY5-[3]JL!CA5 -> 0 | BZ90: =BZ5-[3]JL!CB5 -> 0 | CA90: =CA5-[3]JL!CC5 -> 0 | CB90: =CB5-[3]JL!CD5 -> 0 | CC90: =CC5-[3]JL!CE5 -> 0 | CD90: =CD5-[3]JL!CF5 -> 0 | CE90: =CE5-[3]JL!CG5 -> 0 | CF90: =CF5-[3]JL!CH5 -> 0
A91: =A7-[3]JL!A7 -> 0 | B91: =B7-[3]JL!B7 -> 0 | C91: =C7-[3]JL!C7 -> 0 | D91: =D7-[3]JL!D7 -> 0 | E91: =E7-[3]JL!E7 -> 0 | F91: =F7-[3]JL!F7 -> 0 | G91: =G7-[3]JL!G7 -> 0 | H91: =H7-[3]JL!H7 -> 0 | I91: =I7-[3]JL!I7 -> 0 | J91: =J7-[3]JL!J7 -> 0 | K91: =K7-[3]JL!K7 -> 0 | L91: =L7-[3]JL!L7 -> 0 | M91: =M7-[3]JL!M7 -> 0 | N91: =N7-[3]JL!N7 -> 0 | O91: =O7-[3]JL!O7 -> 0 | P91: =P7-[3]JL!P7 -> 0 | Q91: =Q7-[3]JL!Q7 -> 0 | R91: =R7-[3]JL!R7 -> 0 | S91: =S7-[3]JL!S7 -> 0 | T91: =T7-[3]JL!T7 -> 0 | U91: =U7-[3]JL!U7 -> 0 | V91: =V7-[3]JL!V7 -> 0 | W91: =W7-[3]JL!W7 -> 0 | X91: =X7-[3]JL!X7 -> 0 | Y91: =Y7-[3]JL!Y7 -> 0 | Z91: =Z7-[3]JL!Z7 -> 0 | AA91: =AA7-[3]JL!AA7 -> 0 | AB91: =AB7-[3]JL!AB7 -> 0 | AC91: =AC7-[3]JL!AC7 -> 0 | AD91: =AD7-[3]JL!AD7 -> 0 | AE91: =AE7-[3]JL!AE7 -> 0 | AF91: =AF7-[3]JL!AF7 -> 0 | AG91: =AG7-[3]JL!AG7 -> 0 | AH91: =AH7-[3]JL!AH7 -> 0 | AI91: =AI7-[3]JL!AI7 -> 0 | AJ91: =AJ7-[3]JL!AJ7 -> 0 | AK91: =AK7-[3]JL!AK7 -> 0 | AL91: =AL7-[3]JL!AL7 -> 0 | AM91: =AM7-[3]JL!AM7 -> 0 | AN91: =AN6-[3]JL!AP6 -> 0 | AO91: =AO6-[3]JL!AQ6 -> 0 | AP91: =AP6-[3]JL!AR6 -> 0 | AQ91: =AQ6-[3]JL!AS6 -> 0 | AR91: =AR6-[3]JL!AT6 -> 0 | AS91: =AS6-[3]JL!AU6 -> 0 | AT91: =AT6-[3]JL!AV6 -> 0 | AU91: =AU6-[3]JL!AW6 -> 0 | AV91: =AV6-[3]JL!AX6 -> 0 | AW91: =AW6-[3]JL!AY6 -> 0 | AX91: =AX6-[3]JL!AZ6 -> 0 | AY91: =AY6-[3]JL!BA6 -> 0 | AZ91: =AZ6-[3]JL!BB6 -> 0 | BA91: =BA6-[3]JL!BC6 -> 0 | BB91: =BB6-[3]JL!BD6 -> 0 | BC91: =BC6-[3]JL!BE6 -> 0 | BD91: =BD6-[3]JL!BF6 -> 0 | BE91: =BE6-[3]JL!BG6 -> 0 | BF91: =BF6-[3]JL!BH6 -> 0 | BG91: =BG6-[3]JL!BI6 -> 0 | BH91: =BH6-[3]JL!BJ6 -> 0 | BI91: =BI6-[3]JL!BK6 -> 0 | BJ91: =BJ6-[3]JL!BL6 -> 0 | BK91: =BK6-[3]JL!BM6 -> 0 | BL91: =BL6-[3]JL!BN6 -> 0 | BM91: =BM6-[3]JL!BO6 -> 0 | BN91: =BN6-[3]JL!BP6 -> 0 | BO91: =BO6-[3]JL!BQ6 -> 0 | BP91: =BP6-[3]JL!BR6 -> 0 | BQ91: =BQ6-[3]JL!BS6 -> 0 | BR91: =BR6-[3]JL!BT6 -> 0 | BS91: =BS6-[3]JL!BU6 -> 0 | BT91: =BT6-[3]JL!BV6 -> 0 | BU91: =BU6-[3]JL!BW6 -> 0 | BV91: =BV6-[3]JL!BX6 -> 0 | BW91: =BW6-[3]JL!BY6 -> 0 | BX91: =BX6-[3]JL!BZ6 -> 0 | BY91: =BY6-[3]JL!CA6 -> 0 | BZ91: =BZ6-[3]JL!CB6 -> 0 | CA91: =CA6-[3]JL!CC6 -> 0 | CB91: =CB6-[3]JL!CD6 -> 0 | CC91: =CC6-[3]JL!CE6 -> 0 | CD91: =CD6-[3]JL!CF6 -> 0 | CE91: =CE6-[3]JL!CG6 -> 0 | CF91: =CF6-[3]JL!CH6 -> 0
A92: =A8-[3]JL!A8 -> 0 | B92: =B8-[3]JL!B8 -> 0 | C92: =C8-[3]JL!C8 -> 0 | D92: =D8-[3]JL!D8 -> 0 | E92: =E8-[3]JL!E8 -> 0 | F92: =F8-[3]JL!F8 -> 0 | G92: =G8-[3]JL!G8 -> 0 | H92: =H8-[3]JL!H8 -> 0 | I92: =I8-[3]JL!I8 -> 0 | J92: =J8-[3]JL!J8 -> 0 | K92: =K8-[3]JL!K8 -> 0 | L92: =L8-[3]JL!L8 -> 0 | M92: =M8-[3]JL!M8 -> 0 | N92: =N8-[3]JL!N8 -> 0 | O92: =O8-[3]JL!O8 -> 0 | P92: =P8-[3]JL!P8 -> 0 | Q92: =Q8-[3]JL!Q8 -> 0 | R92: =R8-[3]JL!R8 -> 0 | S92: =S8-[3]JL!S8 -> 0 | T92: =T8-[3]JL!T8 -> 0 | U92: =U8-[3]JL!U8 -> 0 | V92: =V8-[3]JL!V8 -> 0 | W92: =W8-[3]JL!W8 -> 0 | X92: =X8-[3]JL!X8 -> 0 | Y92: =Y8-[3]JL!Y8 -> 0 | Z92: =Z8-[3]JL!Z8 -> 0 | AA92: =AA8-[3]JL!AA8 -> 0 | AB92: =AB8-[3]JL!AB8 -> 0 | AC92: =AC8-[3]JL!AC8 -> 0 | AD92: =AD8-[3]JL!AD8 -> 0 | AE92: =AE8-[3]JL!AE8 -> 0 | AF92: =AF8-[3]JL!AF8 -> 0 | AG92: =AG8-[3]JL!AG8 -> 0 | AH92: =AH8-[3]JL!AH8 -> 0 | AI92: =AI8-[3]JL!AI8 -> 0 | AJ92: =AJ8-[3]JL!AJ8 -> 0 | AK92: =AK8-[3]JL!AK8 -> 0 | AL92: =AL8-[3]JL!AL8 -> 0 | AM92: =AM8-[3]JL!AM8 -> 0 | AN92: =AN7-[3]JL!AP7 -> 0 | AO92: =AO7-[3]JL!AQ7 -> 0 | AP92: =AP7-[3]JL!AR7 -> 0 | AQ92: =AQ7-[3]JL!AS7 -> 0 | AR92: =AR7-[3]JL!AT7 -> 0 | AS92: =AS7-[3]JL!AU7 -> 0 | AT92: =AT7-[3]JL!AV7 -> 0 | AU92: =AU7-[3]JL!AW7 -> 0 | AV92: =AV7-[3]JL!AX7 -> 0 | AW92: =AW7-[3]JL!AY7 -> 0 | AX92: =AX7-[3]JL!AZ7 -> 0 | AY92: =AY7-[3]JL!BA7 -> 0 | AZ92: =AZ7-[3]JL!BB7 -> 0 | BA92: =BA7-[3]JL!BC7 -> 0 | BB92: =BB7-[3]JL!BD7 -> 0 | BC92: =BC7-[3]JL!BE7 -> 0 | BD92: =BD7-[3]JL!BF7 -> 0 | BE92: =BE7-[3]JL!BG7 -> 0 | BF92: =BF7-[3]JL!BH7 -> 0 | BG92: =BG7-[3]JL!BI7 -> 0 | BH92: =BH7-[3]JL!BJ7 -> 0 | BI92: =BI7-[3]JL!BK7 -> 0 | BJ92: =BJ7-[3]JL!BL7 -> 0 | BK92: =BK7-[3]JL!BM7 -> 0 | BL92: =BL7-[3]JL!BN7 -> 0 | BM92: =BM7-[3]JL!BO7 -> 0 | BN92: =BN7-[3]JL!BP7 -> 0 | BO92: =BO7-[3]JL!BQ7 -> 0 | BP92: =BP7-[3]JL!BR7 -> 0 | BQ92: =BQ7-[3]JL!BS7 -> 0 | BR92: =BR7-[3]JL!BT7 -> 0 | BS92: =BS7-[3]JL!BU7 -> 0 | BT92: =BT7-[3]JL!BV7 -> 0 | BU92: =BU7-[3]JL!BW7 -> 0 | BV92: =BV7-[3]JL!BX7 -> 0 | BW92: =BW7-[3]JL!BY7 -> 0 | BX92: =BX7-[3]JL!BZ7 -> 0 | BY92: =BY7-[3]JL!CA7 -> 0 | BZ92: =BZ7-[3]JL!CB7 -> 0 | CA92: =CA7-[3]JL!CC7 -> 0 | CB92: =CB7-[3]JL!CD7 -> 0 | CC92: =CC7-[3]JL!CE7 -> 0 | CD92: =CD7-[3]JL!CF7 -> 0 | CE92: =CE7-[3]JL!CG7 -> 0 | CF92: =CF7-[3]JL!CH7 -> 0
A93: =A9-[3]JL!A9 -> 0 | B93: =B9-[3]JL!B9 -> 0 | C93: =C9-[3]JL!C9 -> 0 | D93: =D9-[3]JL!D9 -> 0 | E93: =E9-[3]JL!E9 -> 0 | F93: =F9-[3]JL!F9 -> 0 | G93: =G9-[3]JL!G9 -> 0 | H93: =H9-[3]JL!H9 -> 0 | I93: =I9-[3]JL!I9 -> 0 | J93: =J9-[3]JL!J9 -> 0 | K93: =K9-[3]JL!K9 -> 0 | L93: =L9-[3]JL!L9 -> 0 | M93: =M9-[3]JL!M9 -> 0 | N93: =N9-[3]JL!N9 -> 0 | O93: =O9-[3]JL!O9 -> 0 | P93: =P9-[3]JL!P9 -> 0 | Q93: =Q9-[3]JL!Q9 -> 0 | R93: =R9-[3]JL!R9 -> 0 | S93: =S9-[3]JL!S9 -> 0 | T93: =T9-[3]JL!T9 -> 0 | U93: =U9-[3]JL!U9 -> 0 | V93: =V9-[3]JL!V9 -> 0 | W93: =W9-[3]JL!W9 -> 0 | X93: =X9-[3]JL!X9 -> 0 | Y93: =Y9-[3]JL!Y9 -> 0 | Z93: =Z9-[3]JL!Z9 -> 0 | AA93: =AA9-[3]JL!AA9 -> 0 | AB93: =AB9-[3]JL!AB9 -> 0 | AC93: =AC9-[3]JL!AC9 -> 0 | AD93: =AD9-[3]JL!AD9 -> 0 | AE93: =AE9-[3]JL!AE9 -> 0 | AF93: =AF9-[3]JL!AF9 -> 0 | AG93: =AG9-[3]JL!AG9 -> 0 | AH93: =AH9-[3]JL!AH9 -> 0 | AI93: =AI9-[3]JL!AI9 -> 0 | AJ93: =AJ9-[3]JL!AJ9 -> 0 | AK93: =AK9-[3]JL!AK9 -> 0 | AL93: =AL9-[3]JL!AL9 -> 0 | AM93: =AM9-[3]JL!AM9 -> 0 | AN93: =AN8-[3]JL!AP8 -> 0 | AO93: =AO8-[3]JL!AQ8 -> 0 | AP93: =AP8-[3]JL!AR8 -> 0 | AQ93: =AQ8-[3]JL!AS8 -> 0 | AR93: =AR8-[3]JL!AT8 -> 0 | AS93: =AS8-[3]JL!AU8 -> 0 | AT93: =AT8-[3]JL!AV8 -> 0 | AU93: =AU8-[3]JL!AW8 -> 0 | AV93: =AV8-[3]JL!AX8 -> 0 | AW93: =AW8-[3]JL!AY8 -> 0 | AX93: =AX8-[3]JL!AZ8 -> 0 | AY93: =AY8-[3]JL!BA8 -> 0 | AZ93: =AZ8-[3]JL!BB8 -> 0 | BA93: =BA8-[3]JL!BC8 -> 0 | BB93: =BB8-[3]JL!BD8 -> 0 | BC93: =BC8-[3]JL!BE8 -> 0 | BD93: =BD8-[3]JL!BF8 -> 0 | BE93: =BE8-[3]JL!BG8 -> 0 | BF93: =BF8-[3]JL!BH8 -> 0 | BG93: =BG8-[3]JL!BI8 -> 0 | BH93: =BH8-[3]JL!BJ8 -> 0 | BI93: =BI8-[3]JL!BK8 -> 0 | BJ93: =BJ8-[3]JL!BL8 -> 0 | BK93: =BK8-[3]JL!BM8 -> 0 | BL93: =BL8-[3]JL!BN8 -> 0 | BM93: =BM8-[3]JL!BO8 -> 0 | BN93: =BN8-[3]JL!BP8 -> 0 | BO93: =BO8-[3]JL!BQ8 -> 0 | BP93: =BP8-[3]JL!BR8 -> 0 | BQ93: =BQ8-[3]JL!BS8 -> 0 | BR93: =BR8-[3]JL!BT8 -> 0 | BS93: =BS8-[3]JL!BU8 -> 0 | BT93: =BT8-[3]JL!BV8 -> 0 | BU93: =BU8-[3]JL!BW8 -> 0 | BV93: =BV8-[3]JL!BX8 -> 0 | BW93: =BW8-[3]JL!BY8 -> 0 | BX93: =BX8-[3]JL!BZ8 -> 0 | BY93: =BY8-[3]JL!CA8 -> 0 | BZ93: =BZ8-[3]JL!CB8 -> 0 | CA93: =CA8-[3]JL!CC8 -> 0 | CB93: =CB8-[3]JL!CD8 -> 0 | CC93: =CC8-[3]JL!CE8 -> 0 | CD93: =CD8-[3]JL!CF8 -> 0 | CE93: =CE8-[3]JL!CG8 -> 0 | CF93: =CF8-[3]JL!CH8 -> 0
A94: =A10-[3]JL!A10 -> 0 | B94: =B10-[3]JL!B10 -> 0 | C94: =C10-[3]JL!C10 -> 0 | D94: =D10-[3]JL!D10 -> 0 | E94: =E10-[3]JL!E10 -> 0 | F94: =F10-[3]JL!F10 -> 0 | G94: =G10-[3]JL!G10 -> 0 | H94: =H10-[3]JL!H10 -> 0 | I94: =I10-[3]JL!I10 -> 0 | J94: =J10-[3]JL!J10 -> 0 | K94: =K10-[3]JL!K10 -> 0 | L94: =L10-[3]JL!L10 -> 0 | M94: =M10-[3]JL!M10 -> 0 | N94: =N10-[3]JL!N10 -> 0 | O94: =O10-[3]JL!O10 -> 0 | P94: =P10-[3]JL!P10 -> 0 | Q94: =Q10-[3]JL!Q10 -> 0 | R94: =R10-[3]JL!R10 -> 0 | S94: =S10-[3]JL!S10 -> 0 | T94: =T10-[3]JL!T10 -> 0 | U94: =U10-[3]JL!U10 -> 0 | V94: =V10-[3]JL!V10 -> 0 | W94: =W10-[3]JL!W10 -> 0 | X94: =X10-[3]JL!X10 -> 0 | Y94: =Y10-[3]JL!Y10 -> 0 | Z94: =Z10-[3]JL!Z10 -> 0 | AA94: =AA10-[3]JL!AA10 -> 0 | AB94: =AB10-[3]JL!AB10 -> 0 | AC94: =AC10-[3]JL!AC10 -> 0 | AD94: =AD10-[3]JL!AD10 -> 0 | AE94: =AE10-[3]JL!AE10 -> 0 | AF94: =AF10-[3]JL!AF10 -> 0 | AG94: =AG10-[3]JL!AG10 -> 0 | AH94: =AH10-[3]JL!AH10 -> 0 | AI94: =AI10-[3]JL!AI10 -> 0 | AJ94: =AJ10-[3]JL!AJ10 -> 0 | AK94: =AK10-[3]JL!AK10 -> 0 | AL94: =AL10-[3]JL!AL10 -> 0 | AM94: =AM10-[3]JL!AM10 -> 0 | AN94: =AN9-[3]JL!AP9 -> 0 | AO94: =AO9-[3]JL!AQ9 -> 0 | AP94: =AP9-[3]JL!AR9 -> 0 | AQ94: =AQ9-[3]JL!AS9 -> 0 | AR94: =AR9-[3]JL!AT9 -> 0 | AS94: =AS9-[3]JL!AU9 -> 0 | AT94: =AT9-[3]JL!AV9 -> 0 | AU94: =AU9-[3]JL!AW9 -> 0 | AV94: =AV9-[3]JL!AX9 -> 0 | AW94: =AW9-[3]JL!AY9 -> 0 | AX94: =AX9-[3]JL!AZ9 -> 0 | AY94: =AY9-[3]JL!BA9 -> 0 | AZ94: =AZ9-[3]JL!BB9 -> 0 | BA94: =BA9-[3]JL!BC9 -> 0 | BB94: =BB9-[3]JL!BD9 -> 0 | BC94: =BC9-[3]JL!BE9 -> 0 | BD94: =BD9-[3]JL!BF9 -> 0 | BE94: =BE9-[3]JL!BG9 -> 0 | BF94: =BF9-[3]JL!BH9 -> 0 | BG94: =BG9-[3]JL!BI9 -> 0 | BH94: =BH9-[3]JL!BJ9 -> 0 | BI94: =BI9-[3]JL!BK9 -> 0 | BJ94: =BJ9-[3]JL!BL9 -> 0 | BK94: =BK9-[3]JL!BM9 -> 0 | BL94: =BL9-[3]JL!BN9 -> 0 | BM94: =BM9-[3]JL!BO9 -> 0 | BN94: =BN9-[3]JL!BP9 -> 0 | BO94: =BO9-[3]JL!BQ9 -> 0 | BP94: =BP9-[3]JL!BR9 -> 0 | BQ94: =BQ9-[3]JL!BS9 -> 0 | BR94: =BR9-[3]JL!BT9 -> 0 | BS94: =BS9-[3]JL!BU9 -> 0 | BT94: =BT9-[3]JL!BV9 -> 0 | BU94: =BU9-[3]JL!BW9 -> 0 | BV94: =BV9-[3]JL!BX9 -> 0 | BW94: =BW9-[3]JL!BY9 -> 0 | BX94: =BX9-[3]JL!BZ9 -> 0 | BY94: =BY9-[3]JL!CA9 -> 0 | BZ94: =BZ9-[3]JL!CB9 -> 0 | CA94: =CA9-[3]JL!CC9 -> 0 | CB94: =CB9-[3]JL!CD9 -> 0 | CC94: =CC9-[3]JL!CE9 -> 0 | CD94: =CD9-[3]JL!CF9 -> 0 | CE94: =CE9-[3]JL!CG9 -> 0 | CF94: =CF9-[3]JL!CH9 -> 0
A95: =A11-[3]JL!A11 -> 0 | B95: =B11-[3]JL!B11 -> 0 | C95: =C11-[3]JL!C11 -> 0 | D95: =D11-[3]JL!D11 -> 0 | E95: =E11-[3]JL!E11 -> 0 | F95: =F11-[3]JL!F11 -> 0 | G95: =G11-[3]JL!G11 -> 0 | H95: =H11-[3]JL!H11 -> 0 | I95: =I11-[3]JL!I11 -> 0 | J95: =J11-[3]JL!J11 -> 0 | K95: =K11-[3]JL!K11 -> 0 | L95: =L11-[3]JL!L11 -> 0 | M95: =M11-[3]JL!M11 -> 0 | N95: =N11-[3]JL!N11 -> 0 | O95: =O11-[3]JL!O11 -> 0 | P95: =P11-[3]JL!P11 -> 0 | Q95: =Q11-[3]JL!Q11 -> 0 | R95: =R11-[3]JL!R11 -> 0 | S95: =S11-[3]JL!S11 -> 0 | T95: =T11-[3]JL!T11 -> 0 | U95: =U11-[3]JL!U11 -> 0 | V95: =V11-[3]JL!V11 -> 0 | W95: =W11-[3]JL!W11 -> 0 | X95: =X11-[3]JL!X11 -> 0 | Y95: =Y11-[3]JL!Y11 -> 0 | Z95: =Z11-[3]JL!Z11 -> 0 | AA95: =AA11-[3]JL!AA11 -> 0 | AB95: =AB11-[3]JL!AB11 -> 0 | AC95: =AC11-[3]JL!AC11 -> 0 | AD95: =AD11-[3]JL!AD11 -> 0 | AE95: =AE11-[3]JL!AE11 -> 0 | AF95: =AF11-[3]JL!AF11 -> 0 | AG95: =AG11-[3]JL!AG11 -> 0 | AH95: =AH11-[3]JL!AH11 -> 0 | AI95: =AI11-[3]JL!AI11 -> 0 | AJ95: =AJ11-[3]JL!AJ11 -> 0 | AK95: =AK11-[3]JL!AK11 -> 0 | AL95: =AL11-[3]JL!AL11 -> 0 | AM95: =AM11-[3]JL!AM11 -> 0 | AN95: =AN10-[3]JL!AP10 -> 0 | AO95: =AO10-[3]JL!AQ10 -> 0 | AP95: =AP10-[3]JL!AR10 -> 0 | AQ95: =AQ10-[3]JL!AS10 -> 0 | AR95: =AR10-[3]JL!AT10 -> 0 | AS95: =AS10-[3]JL!AU10 -> 0 | AT95: =AT10-[3]JL!AV10 -> 0 | AU95: =AU10-[3]JL!AW10 -> 0 | AV95: =AV10-[3]JL!AX10 -> 0 | AW95: =AW10-[3]JL!AY10 -> 0 | AX95: =AX10-[3]JL!AZ10 -> 0 | AY95: =AY10-[3]JL!BA10 -> 0 | AZ95: =AZ10-[3]JL!BB10 -> 0 | BA95: =BA10-[3]JL!BC10 -> 0 | BB95: =BB10-[3]JL!BD10 -> 0 | BC95: =BC10-[3]JL!BE10 -> 0 | BD95: =BD10-[3]JL!BF10 -> 0 | BE95: =BE10-[3]JL!BG10 -> 0 | BF95: =BF10-[3]JL!BH10 -> 0 | BG95: =BG10-[3]JL!BI10 -> 0 | BH95: =BH10-[3]JL!BJ10 -> 0 | BI95: =BI10-[3]JL!BK10 -> 0 | BJ95: =BJ10-[3]JL!BL10 -> 0 | BK95: =BK10-[3]JL!BM10 -> 0 | BL95: =BL10-[3]JL!BN10 -> 0 | BM95: =BM10-[3]JL!BO10 -> 0 | BN95: =BN10-[3]JL!BP10 -> 0 | BO95: =BO10-[3]JL!BQ10 -> 0 | BP95: =BP10-[3]JL!BR10 -> 0 | BQ95: =BQ10-[3]JL!BS10 -> 0 | BR95: =BR10-[3]JL!BT10 -> 0 | BS95: =BS10-[3]JL!BU10 -> 0 | BT95: =BT10-[3]JL!BV10 -> 0 | BU95: =BU10-[3]JL!BW10 -> 0 | BV95: =BV10-[3]JL!BX10 -> 0 | BW95: =BW10-[3]JL!BY10 -> 0 | BX95: =BX10-[3]JL!BZ10 -> 0 | BY95: =BY10-[3]JL!CA10 -> 0 | BZ95: =BZ10-[3]JL!CB10 -> 0 | CA95: =CA10-[3]JL!CC10 -> 0 | CB95: =CB10-[3]JL!CD10 -> 0 | CC95: =CC10-[3]JL!CE10 -> 0 | CD95: =CD10-[3]JL!CF10 -> 0 | CE95: =CE10-[3]JL!CG10 -> 0 | CF95: =CF10-[3]JL!CH10 -> 0
A96: =A12-[3]JL!A12 -> 0 | B96: =B12-[3]JL!B12 -> 0 | C96: =C12-[3]JL!C12 -> 0 | D96: =D12-[3]JL!D12 -> 0 | E96: =E12-[3]JL!E12 -> 0 | F96: =F12-[3]JL!F12 -> 0 | G96: =G12-[3]JL!G12 -> 0 | H96: =H12-[3]JL!H12 -> 0 | I96: =I12-[3]JL!I12 -> 0 | J96: =J12-[3]JL!J12 -> 0 | K96: =K12-[3]JL!K12 -> 0 | L96: =L12-[3]JL!L12 -> 0 | M96: =M12-[3]JL!M12 -> 0 | N96: =N12-[3]JL!N12 -> 0 | O96: =O12-[3]JL!O12 -> 0 | P96: =P12-[3]JL!P12 -> 0 | Q96: =Q12-[3]JL!Q12 -> 0 | R96: =R12-[3]JL!R12 -> 0 | S96: =S12-[3]JL!S12 -> 0 | T96: =T12-[3]JL!T12 -> 0 | U96: =U12-[3]JL!U12 -> 0 | V96: =V12-[3]JL!V12 -> 0 | W96: =W12-[3]JL!W12 -> 0 | X96: =X12-[3]JL!X12 -> 0 | Y96: =Y12-[3]JL!Y12 -> 0 | Z96: =Z12-[3]JL!Z12 -> 0 | AA96: =AA12-[3]JL!AA12 -> 0 | AB96: =AB12-[3]JL!AB12 -> 0 | AC96: =AC12-[3]JL!AC12 -> 0 | AD96: =AD12-[3]JL!AD12 -> 0 | AE96: =AE12-[3]JL!AE12 -> 0 | AF96: =AF12-[3]JL!AF12 -> 0 | AG96: =AG12-[3]JL!AG12 -> 0 | AH96: =AH12-[3]JL!AH12 -> 0 | AI96: =AI12-[3]JL!AI12 -> 0 | AJ96: =AJ12-[3]JL!AJ12 -> 0 | AK96: =AK12-[3]JL!AK12 -> 0 | AL96: =AL12-[3]JL!AL12 -> 0 | AM96: =AM12-[3]JL!AM12 -> 0 | AN96: =AN11-[3]JL!AP11 -> 0 | AO96: =AO11-[3]JL!AQ11 -> 0 | AP96: =AP11-[3]JL!AR11 -> 0 | AQ96: =AQ11-[3]JL!AS11 -> 0 | AR96: =AR11-[3]JL!AT11 -> 0 | AS96: =AS11-[3]JL!AU11 -> 0 | AT96: =AT11-[3]JL!AV11 -> 0 | AU96: =AU11-[3]JL!AW11 -> 0 | AV96: =AV11-[3]JL!AX11 -> 0 | AW96: =AW11-[3]JL!AY11 -> 0 | AX96: =AX11-[3]JL!AZ11 -> 0 | AY96: =AY11-[3]JL!BA11 -> 0 | AZ96: =AZ11-[3]JL!BB11 -> 0 | BA96: =BA11-[3]JL!BC11 -> 0 | BB96: =BB11-[3]JL!BD11 -> 0 | BC96: =BC11-[3]JL!BE11 -> 0 | BD96: =BD11-[3]JL!BF11 -> 0 | BE96: =BE11-[3]JL!BG11 -> 0 | BF96: =BF11-[3]JL!BH11 -> 0 | BG96: =BG11-[3]JL!BI11 -> 0 | BH96: =BH11-[3]JL!BJ11 -> 0 | BI96: =BI11-[3]JL!BK11 -> 0 | BJ96: =BJ11-[3]JL!BL11 -> 0 | BK96: =BK11-[3]JL!BM11 -> 0 | BL96: =BL11-[3]JL!BN11 -> 0 | BM96: =BM11-[3]JL!BO11 -> 0 | BN96: =BN11-[3]JL!BP11 -> 0 | BO96: =BO11-[3]JL!BQ11 -> 0 | BP96: =BP11-[3]JL!BR11 -> 0 | BQ96: =BQ11-[3]JL!BS11 -> 0 | BR96: =BR11-[3]JL!BT11 -> 0 | BS96: =BS11-[3]JL!BU11 -> 0 | BT96: =BT11-[3]JL!BV11 -> 0 | BU96: =BU11-[3]JL!BW11 -> 0 | BV96: =BV11-[3]JL!BX11 -> 0 | BW96: =BW11-[3]JL!BY11 -> 0 | BX96: =BX11-[3]JL!BZ11 -> 0 | BY96: =BY11-[3]JL!CA11 -> 0 | BZ96: =BZ11-[3]JL!CB11 -> 0 | CA96: =CA11-[3]JL!CC11 -> 0 | CB96: =CB11-[3]JL!CD11 -> 0 | CC96: =CC11-[3]JL!CE11 -> 0 | CD96: =CD11-[3]JL!CF11 -> 0 | CE96: =CE11-[3]JL!CG11 -> 0 | CF96: =CF11-[3]JL!CH11 -> 0
A97: =A13-[3]JL!A13 -> 0 | B97: =B13-[3]JL!B13 -> 0 | C97: =C13-[3]JL!C13 -> 0 | D97: =D13-[3]JL!D13 -> 0 | E97: =E13-[3]JL!E13 -> 0 | F97: =F13-[3]JL!F13 -> 0 | G97: =G13-[3]JL!G13 -> 0 | H97: =H13-[3]JL!H13 -> 0 | I97: =I13-[3]JL!I13 -> 0 | J97: =J13-[3]JL!J13 -> 0 | K97: =K13-[3]JL!K13 -> 0 | L97: =L13-[3]JL!L13 -> 0 | M97: =M13-[3]JL!M13 -> 0 | N97: =N13-[3]JL!N13 -> 0 | O97: =O13-[3]JL!O13 -> 0 | P97: =P13-[3]JL!P13 -> 0 | Q97: =Q13-[3]JL!Q13 -> 0 | R97: =R13-[3]JL!R13 -> 0 | S97: =S13-[3]JL!S13 -> 0 | T97: =T13-[3]JL!T13 -> 0 | U97: =U13-[3]JL!U13 -> 0 | V97: =V13-[3]JL!V13 -> 0 | W97: =W13-[3]JL!W13 -> 0 | X97: =X13-[3]JL!X13 -> 0 | Y97: =Y13-[3]JL!Y13 -> 0 | Z97: =Z13-[3]JL!Z13 -> 0 | AA97: =AA13-[3]JL!AA13 -> 0 | AB97: =AB13-[3]JL!AB13 -> 0 | AC97: =AC13-[3]JL!AC13 -> 0 | AD97: =AD13-[3]JL!AD13 -> 0 | AE97: =AE13-[3]JL!AE13 -> 0 | AF97: =AF13-[3]JL!AF13 -> 0 | AG97: =AG13-[3]JL!AG13 -> 0 | AH97: =AH13-[3]JL!AH13 -> 0 | AI97: =AI13-[3]JL!AI13 -> 0 | AJ97: =AJ13-[3]JL!AJ13 -> 0 | AK97: =AK13-[3]JL!AK13 -> 0 | AL97: =AL13-[3]JL!AL13 -> 0 | AM97: =AM13-[3]JL!AM13 -> 0 | AN97: =AN12-[3]JL!AP12 -> 0 | AO97: =AO12-[3]JL!AQ12 -> 0 | AP97: =AP12-[3]JL!AR12 -> 0 | AQ97: =AQ12-[3]JL!AS12 -> 0 | AR97: =AR12-[3]JL!AT12 -> 0 | AS97: =AS12-[3]JL!AU12 -> 0 | AT97: =AT12-[3]JL!AV12 -> 0 | AU97: =AU12-[3]JL!AW12 -> 0 | AV97: =AV12-[3]JL!AX12 -> 0 | AW97: =AW12-[3]JL!AY12 -> 0 | AX97: =AX12-[3]JL!AZ12 -> 0 | AY97: =AY12-[3]JL!BA12 -> 0 | AZ97: =AZ12-[3]JL!BB12 -> 0 | BA97: =BA12-[3]JL!BC12 -> 0 | BB97: =BB12-[3]JL!BD12 -> 0 | BC97: =BC12-[3]JL!BE12 -> 0 | BD97: =BD12-[3]JL!BF12 -> 0 | BE97: =BE12-[3]JL!BG12 -> 0 | BF97: =BF12-[3]JL!BH12 -> 0 | BG97: =BG12-[3]JL!BI12 -> 0 | BH97: =BH12-[3]JL!BJ12 -> 0 | BI97: =BI12-[3]JL!BK12 -> 0 | BJ97: =BJ12-[3]JL!BL12 -> 0 | BK97: =BK12-[3]JL!BM12 -> 0 | BL97: =BL12-[3]JL!BN12 -> 0 | BM97: =BM12-[3]JL!BO12 -> 0 | BN97: =BN12-[3]JL!BP12 -> 0 | BO97: =BO12-[3]JL!BQ12 -> 0 | BP97: =BP12-[3]JL!BR12 -> 0 | BQ97: =BQ12-[3]JL!BS12 -> 0 | BR97: =BR12-[3]JL!BT12 -> 0 | BS97: =BS12-[3]JL!BU12 -> 0 | BT97: =BT12-[3]JL!BV12 -> 0 | BU97: =BU12-[3]JL!BW12 -> 0 | BV97: =BV12-[3]JL!BX12 -> 0 | BW97: =BW12-[3]JL!BY12 -> 0 | BX97: =BX12-[3]JL!BZ12 -> 0 | BY97: =BY12-[3]JL!CA12 -> 0 | BZ97: =BZ12-[3]JL!CB12 -> 0 | CA97: =CA12-[3]JL!CC12 -> 0 | CB97: =CB12-[3]JL!CD12 -> 0 | CC97: =CC12-[3]JL!CE12 -> 0 | CD97: =CD12-[3]JL!CF12 -> 0 | CE97: =CE12-[3]JL!CG12 -> 0 | CF97: =CF12-[3]JL!CH12 -> 0
A98: =A14-[3]JL!A14 -> 0 | B98: =B14-[3]JL!B14 -> 0 | C98: =C14-[3]JL!C14 -> 0 | D98: =D14-[3]JL!D14 -> 0 | E98: =E14-[3]JL!E14 -> 0 | F98: =F14-[3]JL!F14 -> 0 | G98: =G14-[3]JL!G14 -> 0 | H98: =H14-[3]JL!H14 -> 0 | I98: =I14-[3]JL!I14 -> 0 | J98: =J14-[3]JL!J14 -> 0 | K98: =K14-[3]JL!K14 -> 0 | L98: =L14-[3]JL!L14 -> 0 | M98: =M14-[3]JL!M14 -> 0 | N98: =N14-[3]JL!N14 -> 0 | O98: =O14-[3]JL!O14 -> 0 | P98: =P14-[3]JL!P14 -> 0 | Q98: =Q14-[3]JL!Q14 -> 0 | R98: =R14-[3]JL!R14 -> 0 | S98: =S14-[3]JL!S14 -> 0 | T98: =T14-[3]JL!T14 -> 0 | U98: =U14-[3]JL!U14 -> 0 | V98: =V14-[3]JL!V14 -> 0 | W98: =W14-[3]JL!W14 -> 0 | X98: =X14-[3]JL!X14 -> 0 | Y98: =Y14-[3]JL!Y14 -> 0 | Z98: =Z14-[3]JL!Z14 -> 0 | AA98: =AA14-[3]JL!AA14 -> 0 | AB98: =AB14-[3]JL!AB14 -> 0 | AC98: =AC14-[3]JL!AC14 -> 0 | AD98: =AD14-[3]JL!AD14 -> 0 | AE98: =AE14-[3]JL!AE14 -> 0 | AF98: =AF14-[3]JL!AF14 -> 0 | AG98: =AG14-[3]JL!AG14 -> 0 | AH98: =AH14-[3]JL!AH14 -> 0 | AI98: =AI14-[3]JL!AI14 -> 0 | AJ98: =AJ14-[3]JL!AJ14 -> 0 | AK98: =AK14-[3]JL!AK14 -> 0 | AL98: =AL14-[3]JL!AL14 -> 0 | AM98: =AM14-[3]JL!AM14 -> 0 | AN98: =AN13-[3]JL!AP13 -> 0 | AO98: =AO13-[3]JL!AQ13 -> 0 | AP98: =AP13-[3]JL!AR13 -> 0 | AQ98: =AQ13-[3]JL!AS13 -> 0 | AR98: =AR13-[3]JL!AT13 -> 0 | AS98: =AS13-[3]JL!AU13 -> 0 | AT98: =AT13-[3]JL!AV13 -> 0 | AU98: =AU13-[3]JL!AW13 -> 0 | AV98: =AV13-[3]JL!AX13 -> 0 | AW98: =AW13-[3]JL!AY13 -> 0 | AX98: =AX13-[3]JL!AZ13 -> 0 | AY98: =AY13-[3]JL!BA13 -> 0 | AZ98: =AZ13-[3]JL!BB13 -> 0 | BA98: =BA13-[3]JL!BC13 -> 0 | BB98: =BB13-[3]JL!BD13 -> 0 | BC98: =BC13-[3]JL!BE13 -> 0 | BD98: =BD13-[3]JL!BF13 -> 0 | BE98: =BE13-[3]JL!BG13 -> 0 | BF98: =BF13-[3]JL!BH13 -> 0 | BG98: =BG13-[3]JL!BI13 -> 0 | BH98: =BH13-[3]JL!BJ13 -> 0 | BI98: =BI13-[3]JL!BK13 -> 0 | BJ98: =BJ13-[3]JL!BL13 -> 0 | BK98: =BK13-[3]JL!BM13 -> 0 | BL98: =BL13-[3]JL!BN13 -> 0 | BM98: =BM13-[3]JL!BO13 -> 0 | BN98: =BN13-[3]JL!BP13 -> 0 | BO98: =BO13-[3]JL!BQ13 -> 0 | BP98: =BP13-[3]JL!BR13 -> 0 | BQ98: =BQ13-[3]JL!BS13 -> 0 | BR98: =BR13-[3]JL!BT13 -> 0 | BS98: =BS13-[3]JL!BU13 -> 0 | BT98: =BT13-[3]JL!BV13 -> 0 | BU98: =BU13-[3]JL!BW13 -> 0 | BV98: =BV13-[3]JL!BX13 -> 0 | BW98: =BW13-[3]JL!BY13 -> 0 | BX98: =BX13-[3]JL!BZ13 -> 0 | BY98: =BY13-[3]JL!CA13 -> 0 | BZ98: =BZ13-[3]JL!CB13 -> 0 | CA98: =CA13-[3]JL!CC13 -> 0 | CB98: =CB13-[3]JL!CD13 -> 0 | CC98: =CC13-[3]JL!CE13 -> 0 | CD98: =CD13-[3]JL!CF13 -> 0 | CE98: =CE13-[3]JL!CG13 -> 0 | CF98: =CF13-[3]JL!CH13 -> 0
A99: =A15-[3]JL!A15 -> 0 | B99: =B15-[3]JL!B15 -> 0 | C99: =C15-[3]JL!C15 -> 0 | D99: =D15-[3]JL!D15 -> 0 | E99: =E15-[3]JL!E15 -> 0 | F99: =F15-[3]JL!F15 -> 0 | G99: =G15-[3]JL!G15 -> 0 | H99: =H15-[3]JL!H15 -> 0 | I99: =I15-[3]JL!I15 -> 0 | J99: =J15-[3]JL!J15 -> 0 | K99: =K15-[3]JL!K15 -> 0 | L99: =L15-[3]JL!L15 -> 0 | M99: =M15-[3]JL!M15 -> 0 | N99: =N15-[3]JL!N15 -> 0 | O99: =O15-[3]JL!O15 -> 0 | P99: =P15-[3]JL!P15 -> 0 | Q99: =Q15-[3]JL!Q15 -> 0 | R99: =R15-[3]JL!R15 -> 0 | S99: =S15-[3]JL!S15 -> 0 | T99: =T15-[3]JL!T15 -> 0 | U99: =U15-[3]JL!U15 -> 0 | V99: =V15-[3]JL!V15 -> 0 | W99: =W15-[3]JL!W15 -> 0 | X99: =X15-[3]JL!X15 -> 0 | Y99: =Y15-[3]JL!Y15 -> 0 | Z99: =Z15-[3]JL!Z15 -> 0 | AA99: =AA15-[3]JL!AA15 -> 0 | AB99: =AB15-[3]JL!AB15 -> 0 | AC99: =AC15-[3]JL!AC15 -> 0 | AD99: =AD15-[3]JL!AD15 -> 0 | AE99: =AE15-[3]JL!AE15 -> 0 | AF99: =AF15-[3]JL!AF15 -> 0 | AG99: =AG15-[3]JL!AG15 -> 0 | AH99: =AH15-[3]JL!AH15 -> 0 | AI99: =AI15-[3]JL!AI15 -> 0 | AJ99: =AJ15-[3]JL!AJ15 -> 0 | AK99: =AK15-[3]JL!AK15 -> 0 | AL99: =AL15-[3]JL!AL15 -> 0 | AM99: =AM15-[3]JL!AM15 -> 0 | AN99: =AN14-[3]JL!AP14 -> 0 | AO99: =AO14-[3]JL!AQ14 -> 0 | AP99: =AP14-[3]JL!AR14 -> 0 | AQ99: =AQ14-[3]JL!AS14 -> 0 | AR99: =AR14-[3]JL!AT14 -> 0 | AS99: =AS14-[3]JL!AU14 -> 0 | AT99: =AT14-[3]JL!AV14 -> 0 | AU99: =AU14-[3]JL!AW14 -> 0 | AV99: =AV14-[3]JL!AX14 -> 0 | AW99: =AW14-[3]JL!AY14 -> 0 | AX99: =AX14-[3]JL!AZ14 -> 0 | AY99: =AY14-[3]JL!BA14 -> 0 | AZ99: =AZ14-[3]JL!BB14 -> 0 | BA99: =BA14-[3]JL!BC14 -> 0 | BB99: =BB14-[3]JL!BD14 -> 0 | BC99: =BC14-[3]JL!BE14 -> 0 | BD99: =BD14-[3]JL!BF14 -> 0 | BE99: =BE14-[3]JL!BG14 -> 0 | BF99: =BF14-[3]JL!BH14 -> 0 | BG99: =BG14-[3]JL!BI14 -> 0 | BH99: =BH14-[3]JL!BJ14 -> 0 | BI99: =BI14-[3]JL!BK14 -> 0 | BJ99: =BJ14-[3]JL!BL14 -> 0 | BK99: =BK14-[3]JL!BM14 -> 0 | BL99: =BL14-[3]JL!BN14 -> 0 | BM99: =BM14-[3]JL!BO14 -> 0 | BN99: =BN14-[3]JL!BP14 -> 0 | BO99: =BO14-[3]JL!BQ14 -> 0 | BP99: =BP14-[3]JL!BR14 -> 0 | BQ99: =BQ14-[3]JL!BS14 -> 0 | BR99: =BR14-[3]JL!BT14 -> 0 | BS99: =BS14-[3]JL!BU14 -> 0 | BT99: =BT14-[3]JL!BV14 -> 0 | BU99: =BU14-[3]JL!BW14 -> 0 | BV99: =BV14-[3]JL!BX14 -> 0 | BW99: =BW14-[3]JL!BY14 -> 0 | BX99: =BX14-[3]JL!BZ14 -> 0 | BY99: =BY14-[3]JL!CA14 -> 0 | BZ99: =BZ14-[3]JL!CB14 -> 0 | CA99: =CA14-[3]JL!CC14 -> 0 | CB99: =CB14-[3]JL!CD14 -> 0 | CC99: =CC14-[3]JL!CE14 -> 0 | CD99: =CD14-[3]JL!CF14 -> 0 | CE99: =CE14-[3]JL!CG14 -> 0 | CF99: =CF14-[3]JL!CH14 -> 0
A100: =A16-[3]JL!A16 -> 0 | B100: =B16-[3]JL!B16 -> 0 | C100: =C16-[3]JL!C16 -> 0 | D100: =D16-[3]JL!D16 -> 0 | E100: =E16-[3]JL!E16 -> 0 | F100: =F16-[3]JL!F16 -> 0 | G100: =G16-[3]JL!G16 -> 0 | H100: =H16-[3]JL!H16 -> 0 | I100: =I16-[3]JL!I16 -> 0 | J100: =J16-[3]JL!J16 -> 0 | K100: =K16-[3]JL!K16 -> 0 | L100: =L16-[3]JL!L16 -> 0 | M100: =M16-[3]JL!M16 -> 0 | N100: =N16-[3]JL!N16 -> 0 | O100: =O16-[3]JL!O16 -> 0 | P100: =P16-[3]JL!P16 -> 0 | Q100: =Q16-[3]JL!Q16 -> 0 | R100: =R16-[3]JL!R16 -> 0 | S100: =S16-[3]JL!S16 -> 0 | T100: =T16-[3]JL!T16 -> 0 | U100: =U16-[3]JL!U16 -> 0 | V100: =V16-[3]JL!V16 -> 0 | W100: =W16-[3]JL!W16 -> 0 | X100: =X16-[3]JL!X16 -> 0 | Y100: =Y16-[3]JL!Y16 -> 0 | Z100: =Z16-[3]JL!Z16 -> 0 | AA100: =AA16-[3]JL!AA16 -> 0 | AB100: =AB16-[3]JL!AB16 -> 0 | AC100: =AC16-[3]JL!AC16 -> 0 | AD100: =AD16-[3]JL!AD16 -> 0 | AE100: =AE16-[3]JL!AE16 -> 0 | AF100: =AF16-[3]JL!AF16 -> 0 | AG100: =AG16-[3]JL!AG16 -> 0 | AH100: =AH16-[3]JL!AH16 -> 0 | AI100: =AI16-[3]JL!AI16 -> 0 | AJ100: =AJ16-[3]JL!AJ16 -> 0 | AK100: =AK16-[3]JL!AK16 -> 0 | AL100: =AL16-[3]JL!AL16 -> 0 | AM100: =AM16-[3]JL!AM16 -> 0 | AN100: =AN15-[3]JL!AP15 -> 0 | AO100: =AO15-[3]JL!AQ15 -> 0 | AP100: =AP15-[3]JL!AR15 -> 0 | AQ100: =AQ15-[3]JL!AS15 -> 0 | AR100: =AR15-[3]JL!AT15 -> 0 | AS100: =AS15-[3]JL!AU15 -> 0 | AT100: =AT15-[3]JL!AV15 -> 0 | AU100: =AU15-[3]JL!AW15 -> 0 | AV100: =AV15-[3]JL!AX15 -> 0 | AW100: =AW15-[3]JL!AY15 -> 0 | AX100: =AX15-[3]JL!AZ15 -> 0 | AY100: =AY15-[3]JL!BA15 -> 0 | AZ100: =AZ15-[3]JL!BB15 -> 0 | BA100: =BA15-[3]JL!BC15 -> 0 | BB100: =BB15-[3]JL!BD15 -> 0 | BC100: =BC15-[3]JL!BE15 -> 0 | BD100: =BD15-[3]JL!BF15 -> 0 | BE100: =BE15-[3]JL!BG15 -> 0 | BF100: =BF15-[3]JL!BH15 -> 0 | BG100: =BG15-[3]JL!BI15 -> 0 | BH100: =BH15-[3]JL!BJ15 -> 0 | BI100: =BI15-[3]JL!BK15 -> 0 | BJ100: =BJ15-[3]JL!BL15 -> 0 | BK100: =BK15-[3]JL!BM15 -> 0 | BL100: =BL15-[3]JL!BN15 -> 0 | BM100: =BM15-[3]JL!BO15 -> 0 | BN100: =BN15-[3]JL!BP15 -> 0 | BO100: =BO15-[3]JL!BQ15 -> 0 | BP100: =BP15-[3]JL!BR15 -> 0 | BQ100: =BQ15-[3]JL!BS15 -> 0 | BR100: =BR15-[3]JL!BT15 -> 0 | BS100: =BS15-[3]JL!BU15 -> 0 | BT100: =BT15-[3]JL!BV15 -> 0 | BU100: =BU15-[3]JL!BW15 -> 0 | BV100: =BV15-[3]JL!BX15 -> 0 | BW100: =BW15-[3]JL!BY15 -> 0 | BX100: =BX15-[3]JL!BZ15 -> 0 | BY100: =BY15-[3]JL!CA15 -> 0 | BZ100: =BZ15-[3]JL!CB15 -> 0 | CA100: =CA15-[3]JL!CC15 -> 0 | CB100: =CB15-[3]JL!CD15 -> 0 | CC100: =CC15-[3]JL!CE15 -> 0 | CD100: =CD15-[3]JL!CF15 -> 0 | CE100: =CE15-[3]JL!CG15 -> 0 | CF100: =CF15-[3]JL!CH15 -> 0
A101: =A17-[3]JL!A17 -> 0 | B101: =B17-[3]JL!B17 -> 0 | C101: =C17-[3]JL!C17 -> 0 | D101: =D17-[3]JL!D17 -> 0 | E101: =E17-[3]JL!E17 -> 0 | F101: =F17-[3]JL!F17 -> 0 | G101: =G17-[3]JL!G17 -> 0 | H101: =H17-[3]JL!H17 -> 0 | I101: =I17-[3]JL!I17 -> 0 | J101: =J17-[3]JL!J17 -> 0 | K101: =K17-[3]JL!K17 -> 0 | L101: =L17-[3]JL!L17 -> 0 | M101: =M17-[3]JL!M17 -> 0 | N101: =N17-[3]JL!N17 -> 0 | O101: =O17-[3]JL!O17 -> 0 | P101: =P17-[3]JL!P17 -> 0 | Q101: =Q17-[3]JL!Q17 -> 0 | R101: =R17-[3]JL!R17 -> 0 | S101: =S17-[3]JL!S17 -> 0 | T101: =T17-[3]JL!T17 -> 0 | U101: =U17-[3]JL!U17 -> 0 | V101: =V17-[3]JL!V17 -> 0 | W101: =W17-[3]JL!W17 -> 0 | X101: =X17-[3]JL!X17 -> 0 | Y101: =Y17-[3]JL!Y17 -> 0 | Z101: =Z17-[3]JL!Z17 -> 0 | AA101: =AA17-[3]JL!AA17 -> 0 | AB101: =AB17-[3]JL!AB17 -> 0 | AC101: =AC17-[3]JL!AC17 -> 0 | AD101: =AD17-[3]JL!AD17 -> 0 | AE101: =AE17-[3]JL!AE17 -> 0 | AF101: =AF17-[3]JL!AF17 -> 0 | AG101: =AG17-[3]JL!AG17 -> 0 | AH101: =AH17-[3]JL!AH17 -> 0 | AI101: =AI17-[3]JL!AI17 -> 0 | AJ101: =AJ17-[3]JL!AJ17 -> 0 | AK101: =AK17-[3]JL!AK17 -> 0 | AL101: =AL17-[3]JL!AL17 -> 0 | AM101: =AM17-[3]JL!AM17 -> 0 | AN101: =AN16-[3]JL!AP16 -> 0 | AO101: =AO16-[3]JL!AQ16 -> 0 | AP101: =AP16-[3]JL!AR16 -> 0 | AQ101: =AQ16-[3]JL!AS16 -> 0 | AR101: =AR16-[3]JL!AT16 -> 0 | AS101: =AS16-[3]JL!AU16 -> 0 | AT101: =AT16-[3]JL!AV16 -> 0 | AU101: =AU16-[3]JL!AW16 -> 0 | AV101: =AV16-[3]JL!AX16 -> 0 | AW101: =AW16-[3]JL!AY16 -> 0 | AX101: =AX16-[3]JL!AZ16 -> 0 | AY101: =AY16-[3]JL!BA16 -> 0 | AZ101: =AZ16-[3]JL!BB16 -> 0 | BA101: =BA16-[3]JL!BC16 -> 0 | BB101: =BB16-[3]JL!BD16 -> 0 | BC101: =BC16-[3]JL!BE16 -> 0 | BD101: =BD16-[3]JL!BF16 -> 0 | BE101: =BE16-[3]JL!BG16 -> 0 | BF101: =BF16-[3]JL!BH16 -> 0 | BG101: =BG16-[3]JL!BI16 -> 0 | BH101: =BH16-[3]JL!BJ16 -> 0 | BI101: =BI16-[3]JL!BK16 -> 0 | BJ101: =BJ16-[3]JL!BL16 -> 0 | BK101: =BK16-[3]JL!BM16 -> 0 | BL101: =BL16-[3]JL!BN16 -> 0 | BM101: =BM16-[3]JL!BO16 -> 0 | BN101: =BN16-[3]JL!BP16 -> 0 | BO101: =BO16-[3]JL!BQ16 -> 0 | BP101: =BP16-[3]JL!BR16 -> 0 | BQ101: =BQ16-[3]JL!BS16 -> 0 | BR101: =BR16-[3]JL!BT16 -> 0 | BS101: =BS16-[3]JL!BU16 -> 0 | BT101: =BT16-[3]JL!BV16 -> 0 | BU101: =BU16-[3]JL!BW16 -> 0 | BV101: =BV16-[3]JL!BX16 -> 0 | BW101: =BW16-[3]JL!BY16 -> 0 | BX101: =BX16-[3]JL!BZ16 -> 0 | BY101: =BY16-[3]JL!CA16 -> 0 | BZ101: =BZ16-[3]JL!CB16 -> 0 | CA101: =CA16-[3]JL!CC16 -> 0 | CB101: =CB16-[3]JL!CD16 -> 0 | CC101: =CC16-[3]JL!CE16 -> 0 | CD101: =CD16-[3]JL!CF16 -> 0 | CE101: =CE16-[3]JL!CG16 -> 0 | CF101: =CF16-[3]JL!CH16 -> 0
A102: =A18-[3]JL!A18 -> 0 | B102: =B18-[3]JL!B18 -> 0 | C102: =C18-[3]JL!C18 -> 0 | D102: =D18-[3]JL!D18 -> 0 | E102: =E18-[3]JL!E18 -> 0 | F102: =F18-[3]JL!F18 -> 0 | G102: =G18-[3]JL!G18 -> 0 | H102: =H18-[3]JL!H18 -> 0 | I102: =I18-[3]JL!I18 -> 0 | J102: =J18-[3]JL!J18 -> 0 | K102: =K18-[3]JL!K18 -> 0 | L102: =L18-[3]JL!L18 -> 0 | M102: =M18-[3]JL!M18 -> 0 | N102: =N18-[3]JL!N18 -> 0 | O102: =O18-[3]JL!O18 -> 0 | P102: =P18-[3]JL!P18 -> 0 | Q102: =Q18-[3]JL!Q18 -> 0 | R102: =R18-[3]JL!R18 -> 0 | S102: =S18-[3]JL!S18 -> 0 | T102: =T18-[3]JL!T18 -> 0 | U102: =U18-[3]JL!U18 -> 0 | V102: =V18-[3]JL!V18 -> 0 | W102: =W18-[3]JL!W18 -> 0 | X102: =X18-[3]JL!X18 -> 0 | Y102: =Y18-[3]JL!Y18 -> 0 | Z102: =Z18-[3]JL!Z18 -> 0 | AA102: =AA18-[3]JL!AA18 -> 0 | AB102: =AB18-[3]JL!AB18 -> 0 | AC102: =AC18-[3]JL!AC18 -> 0 | AD102: =AD18-[3]JL!AD18 -> 0 | AE102: =AE18-[3]JL!AE18 -> 0 | AF102: =AF18-[3]JL!AF18 -> 0 | AG102: =AG18-[3]JL!AG18 -> 0 | AH102: =AH18-[3]JL!AH18 -> 0 | AI102: =AI18-[3]JL!AI18 -> 0 | AJ102: =AJ18-[3]JL!AJ18 -> 0 | AK102: =AK18-[3]JL!AK18 -> 0 | AL102: =AL18-[3]JL!AL18 -> 0 | AM102: =AM18-[3]JL!AM18 -> 0 | AN102: =AN17-[3]JL!AP17 -> 0 | AO102: =AO17-[3]JL!AQ17 -> 0 | AP102: =AP17-[3]JL!AR17 -> 0 | AQ102: =AQ17-[3]JL!AS17 -> 0 | AR102: =AR17-[3]JL!AT17 -> 0 | AS102: =AS17-[3]JL!AU17 -> 0 | AT102: =AT17-[3]JL!AV17 -> 0 | AU102: =AU17-[3]JL!AW17 -> 0 | AV102: =AV17-[3]JL!AX17 -> 0 | AW102: =AW17-[3]JL!AY17 -> 0 | AX102: =AX17-[3]JL!AZ17 -> 0 | AY102: =AY17-[3]JL!BA17 -> 0 | AZ102: =AZ17-[3]JL!BB17 -> 0 | BA102: =BA17-[3]JL!BC17 -> 0 | BB102: =BB17-[3]JL!BD17 -> 0 | BC102: =BC17-[3]JL!BE17 -> 0 | BD102: =BD17-[3]JL!BF17 -> 0 | BE102: =BE17-[3]JL!BG17 -> 0 | BF102: =BF17-[3]JL!BH17 -> 0 | BG102: =BG17-[3]JL!BI17 -> 0 | BH102: =BH17-[3]JL!BJ17 -> 0 | BI102: =BI17-[3]JL!BK17 -> 0 | BJ102: =BJ17-[3]JL!BL17 -> 0 | BK102: =BK17-[3]JL!BM17 -> 0 | BL102: =BL17-[3]JL!BN17 -> 0 | BM102: =BM17-[3]JL!BO17 -> 0 | BN102: =BN17-[3]JL!BP17 -> 0 | BO102: =BO17-[3]JL!BQ17 -> 0 | BP102: =BP17-[3]JL!BR17 -> 0 | BQ102: =BQ17-[3]JL!BS17 -> 0 | BR102: =BR17-[3]JL!BT17 -> 0 | BS102: =BS17-[3]JL!BU17 -> 0 | BT102: =BT17-[3]JL!BV17 -> 0 | BU102: =BU17-[3]JL!BW17 -> 0 | BV102: =BV17-[3]JL!BX17 -> 0 | BW102: =BW17-[3]JL!BY17 -> 0 | BX102: =BX17-[3]JL!BZ17 -> 0 | BY102: =BY17-[3]JL!CA17 -> 0 | BZ102: =BZ17-[3]JL!CB17 -> 0 | CA102: =CA17-[3]JL!CC17 -> 0 | CB102: =CB17-[3]JL!CD17 -> 0 | CC102: =CC17-[3]JL!CE17 -> 0 | CD102: =CD17-[3]JL!CF17 -> 0 | CE102: =CE17-[3]JL!CG17 -> 0 | CF102: =CF17-[3]JL!CH17 -> 0
A103: =A19-[3]JL!A19 -> 0 | B103: =B19-[3]JL!B19 -> 0 | C103: =C19-[3]JL!C19 -> 0 | D103: =D19-[3]JL!D19 -> 0 | E103: =E19-[3]JL!E19 -> 0 | F103: =F19-[3]JL!F19 -> 0 | G103: =G19-[3]JL!G19 -> 0 | H103: =H19-[3]JL!H19 -> 0 | I103: =I19-[3]JL!I19 -> 0 | J103: =J19-[3]JL!J19 -> 0 | K103: =K19-[3]JL!K19 -> 0 | L103: =L19-[3]JL!L19 -> 0 | M103: =M19-[3]JL!M19 -> 0 | N103: =N19-[3]JL!N19 -> 0 | O103: =O19-[3]JL!O19 -> 0 | P103: =P19-[3]JL!P19 -> 0 | Q103: =Q19-[3]JL!Q19 -> 0 | R103: =R19-[3]JL!R19 -> 0 | S103: =S19-[3]JL!S19 -> 0 | T103: =T19-[3]JL!T19 -> 0 | U103: =U19-[3]JL!U19 -> 0 | V103: =V19-[3]JL!V19 -> 0 | W103: =W19-[3]JL!W19 -> 0 | X103: =X19-[3]JL!X19 -> 0 | Y103: =Y19-[3]JL!Y19 -> 0 | Z103: =Z19-[3]JL!Z19 -> 0 | AA103: =AA19-[3]JL!AA19 -> 0 | AB103: =AB19-[3]JL!AB19 -> 0 | AC103: =AC19-[3]JL!AC19 -> 0 | AD103: =AD19-[3]JL!AD19 -> 0 | AE103: =AE19-[3]JL!AE19 -> 0 | AF103: =AF19-[3]JL!AF19 -> 0 | AG103: =AG19-[3]JL!AG19 -> 0 | AH103: =AH19-[3]JL!AH19 -> 0 | AI103: =AI19-[3]JL!AI19 -> 0 | AJ103: =AJ19-[3]JL!AJ19 -> 0 | AK103: =AK19-[3]JL!AK19 -> 0 | AL103: =AL19-[3]JL!AL19 -> 0 | AM103: =AM19-[3]JL!AM19 -> 0 | AN103: =AN18-[3]JL!AP18 -> 0 | AO103: =AO18-[3]JL!AQ18 -> 0 | AP103: =AP18-[3]JL!AR18 -> 0 | AQ103: =AQ18-[3]JL!AS18 -> 0 | AR103: =AR18-[3]JL!AT18 -> 0 | AS103: =AS18-[3]JL!AU18 -> 0 | AT103: =AT18-[3]JL!AV18 -> 0 | AU103: =AU18-[3]JL!AW18 -> 0 | AV103: =AV18-[3]JL!AX18 -> 0 | AW103: =AW18-[3]JL!AY18 -> 0 | AX103: =AX18-[3]JL!AZ18 -> 0 | AY103: =AY18-[3]JL!BA18 -> 0 | AZ103: =AZ18-[3]JL!BB18 -> 0 | BA103: =BA18-[3]JL!BC18 -> 0 | BB103: =BB18-[3]JL!BD18 -> 0 | BC103: =BC18-[3]JL!BE18 -> 0 | BD103: =BD18-[3]JL!BF18 -> 0 | BE103: =BE18-[3]JL!BG18 -> 0 | BF103: =BF18-[3]JL!BH18 -> 0 | BG103: =BG18-[3]JL!BI18 -> 0 | BH103: =BH18-[3]JL!BJ18 -> 0 | BI103: =BI18-[3]JL!BK18 -> 0 | BJ103: =BJ18-[3]JL!BL18 -> 0 | BK103: =BK18-[3]JL!BM18 -> 0 | BL103: =BL18-[3]JL!BN18 -> 0 | BM103: =BM18-[3]JL!BO18 -> 0 | BN103: =BN18-[3]JL!BP18 -> 0 | BO103: =BO18-[3]JL!BQ18 -> 0 | BP103: =BP18-[3]JL!BR18 -> 0 | BQ103: =BQ18-[3]JL!BS18 -> 0 | BR103: =BR18-[3]JL!BT18 -> 0 | BS103: =BS18-[3]JL!BU18 -> 0 | BT103: =BT18-[3]JL!BV18 -> 0 | BU103: =BU18-[3]JL!BW18 -> 0 | BV103: =BV18-[3]JL!BX18 -> 0 | BW103: =BW18-[3]JL!BY18 -> 0 | BX103: =BX18-[3]JL!BZ18 -> 0 | BY103: =BY18-[3]JL!CA18 -> 0 | BZ103: =BZ18-[3]JL!CB18 -> 0 | CA103: =CA18-[3]JL!CC18 -> 0 | CB103: =CB18-[3]JL!CD18 -> 0 | CC103: =CC18-[3]JL!CE18 -> 0 | CD103: =CD18-[3]JL!CF18 -> 0 | CE103: =CE18-[3]JL!CG18 -> 0 | CF103: =CF18-[3]JL!CH18 -> 0
A104: =A20-[3]JL!A20 -> 0 | B104: =B20-[3]JL!B20 -> 0 | C104: =C20-[3]JL!C20 -> 0 | D104: =D20-[3]JL!D20 -> 0 | E104: =E20-[3]JL!E20 -> 0 | F104: =F20-[3]JL!F20 -> 0 | G104: =G20-[3]JL!G20 -> 0 | H104: =H20-[3]JL!H20 -> 0 | I104: =I20-[3]JL!I20 -> 0 | J104: =J20-[3]JL!J20 -> 0 | K104: =K20-[3]JL!K20 -> 0 | L104: =L20-[3]JL!L20 -> 0 | M104: =M20-[3]JL!M20 -> 0 | N104: =N20-[3]JL!N20 -> 0 | O104: =O20-[3]JL!O20 -> 0 | P104: =P20-[3]JL!P20 -> 0 | Q104: =Q20-[3]JL!Q20 -> 0 | R104: =R20-[3]JL!R20 -> 0 | S104: =S20-[3]JL!S20 -> 0 | T104: =T20-[3]JL!T20 -> 0 | U104: =U20-[3]JL!U20 -> 0 | V104: =V20-[3]JL!V20 -> 0 | W104: =W20-[3]JL!W20 -> 0 | X104: =X20-[3]JL!X20 -> 0 | Y104: =Y20-[3]JL!Y20 -> 0 | Z104: =Z20-[3]JL!Z20 -> 0 | AA104: =AA20-[3]JL!AA20 -> 0 | AB104: =AB20-[3]JL!AB20 -> 0 | AC104: =AC20-[3]JL!AC20 -> 0 | AD104: =AD20-[3]JL!AD20 -> 0 | AE104: =AE20-[3]JL!AE20 -> 0 | AF104: =AF20-[3]JL!AF20 -> 0 | AG104: =AG20-[3]JL!AG20 -> 0 | AH104: =AH20-[3]JL!AH20 -> 0 | AI104: =AI20-[3]JL!AI20 -> 0 | AJ104: =AJ20-[3]JL!AJ20 -> 0 | AK104: =AK20-[3]JL!AK20 -> 0 | AL104: =AL20-[3]JL!AL20 -> 0 | AM104: =AM20-[3]JL!AM20 -> 0 | AN104: =AN19-[3]JL!AP19 -> 0 | AO104: =AO19-[3]JL!AQ19 -> 0 | AP104: =AP19-[3]JL!AR19 -> 0 | AQ104: =AQ19-[3]JL!AS19 -> 0 | AR104: =AR19-[3]JL!AT19 -> 0 | AS104: =AS19-[3]JL!AU19 -> 0 | AT104: =AT19-[3]JL!AV19 -> 0 | AU104: =AU19-[3]JL!AW19 -> 0 | AV104: =AV19-[3]JL!AX19 -> 0 | AW104: =AW19-[3]JL!AY19 -> 0 | AX104: =AX19-[3]JL!AZ19 -> 0 | AY104: =AY19-[3]JL!BA19 -> 0 | AZ104: =AZ19-[3]JL!BB19 -> 0 | BA104: =BA19-[3]JL!BC19 -> 0 | BB104: =BB19-[3]JL!BD19 -> 0 | BC104: =BC19-[3]JL!BE19 -> 0 | BD104: =BD19-[3]JL!BF19 -> 0 | BE104: =BE19-[3]JL!BG19 -> 0 | BF104: =BF19-[3]JL!BH19 -> 0 | BG104: =BG19-[3]JL!BI19 -> 0 | BH104: =BH19-[3]JL!BJ19 -> 0 | BI104: =BI19-[3]JL!BK19 -> 0 | BJ104: =BJ19-[3]JL!BL19 -> 0 | BK104: =BK19-[3]JL!BM19 -> 0 | BL104: =BL19-[3]JL!BN19 -> 0 | BM104: =BM19-[3]JL!BO19 -> 0 | BN104: =BN19-[3]JL!BP19 -> 0 | BO104: =BO19-[3]JL!BQ19 -> 0 | BP104: =BP19-[3]JL!BR19 -> 0 | BQ104: =BQ19-[3]JL!BS19 -> 0 | BR104: =BR19-[3]JL!BT19 -> 0 | BS104: =BS19-[3]JL!BU19 -> 0 | BT104: =BT19-[3]JL!BV19 -> 0 | BU104: =BU19-[3]JL!BW19 -> 0 | BV104: =BV19-[3]JL!BX19 -> 0 | BW104: =BW19-[3]JL!BY19 -> 0 | BX104: =BX19-[3]JL!BZ19 -> 0 | BY104: =BY19-[3]JL!CA19 -> 0 | BZ104: =BZ19-[3]JL!CB19 -> 0 | CA104: =CA19-[3]JL!CC19 -> 0 | CB104: =CB19-[3]JL!CD19 -> 0 | CC104: =CC19-[3]JL!CE19 -> 0 | CD104: =CD19-[3]JL!CF19 -> 0 | CE104: =CE19-[3]JL!CG19 -> 0 | CF104: =CF19-[3]JL!CH19 -> 0
A105: =A21-[3]JL!A21 -> 0 | B105: =B21-[3]JL!B21 -> 0 | C105: =C21-[3]JL!C21 -> 0 | D105: =D21-[3]JL!D21 -> 0 | E105: =E21-[3]JL!E21 -> 0 | F105: =F21-[3]JL!F21 -> 0 | G105: =G21-[3]JL!G21 -> 0 | H105: =H21-[3]JL!H21 -> 0 | I105: =I21-[3]JL!I21 -> 0 | J105: =J21-[3]JL!J21 -> 0 | K105: =K21-[3]JL!K21 -> 0 | L105: =L21-[3]JL!L21 -> 0 | M105: =M21-[3]JL!M21 -> 0 | N105: =N21-[3]JL!N21 -> 0 | O105: =O21-[3]JL!O21 -> 0 | P105: =P21-[3]JL!P21 -> 0 | Q105: =Q21-[3]JL!Q21 -> 0 | R105: =R21-[3]JL!R21 -> 0 | S105: =S21-[3]JL!S21 -> 0 | T105: =T21-[3]JL!T21 -> 0 | U105: =U21-[3]JL!U21 -> 0 | V105: =V21-[3]JL!V21 -> 0 | W105: =W21-[3]JL!W21 -> 0 | X105: =X21-[3]JL!X21 -> 0 | Y105: =Y21-[3]JL!Y21 -> 0 | Z105: =Z21-[3]JL!Z21 -> 0 | AA105: =AA21-[3]JL!AA21 -> 0 | AB105: =AB21-[3]JL!AB21 -> 0 | AC105: =AC21-[3]JL!AC21 -> 0 | AD105: =AD21-[3]JL!AD21 -> 0 | AE105: =AE21-[3]JL!AE21 -> 0 | AF105: =AF21-[3]JL!AF21 -> 0 | AG105: =AG21-[3]JL!AG21 -> 0 | AH105: =AH21-[3]JL!AH21 -> 0 | AI105: =AI21-[3]JL!AI21 -> 0 | AJ105: =AJ21-[3]JL!AJ21 -> 0 | AK105: =AK21-[3]JL!AK21 -> 0 | AL105: =AL21-[3]JL!AL21 -> 0 | AM105: =AM21-[3]JL!AM21 -> 0 | AN105: =AN20-[3]JL!AP20 -> 0 | AO105: =AO20-[3]JL!AQ20 -> 0 | AP105: =AP20-[3]JL!AR20 -> 0 | AQ105: =AQ20-[3]JL!AS20 -> 0 | AR105: =AR20-[3]JL!AT20 -> 0 | AS105: =AS20-[3]JL!AU20 -> 0 | AT105: =AT20-[3]JL!AV20 -> 0 | AU105: =AU20-[3]JL!AW20 -> 0 | AV105: =AV20-[3]JL!AX20 -> 0 | AW105: =AW20-[3]JL!AY20 -> 0 | AX105: =AX20-[3]JL!AZ20 -> 0 | AY105: =AY20-[3]JL!BA20 -> 0 | AZ105: =AZ20-[3]JL!BB20 -> 0 | BA105: =BA20-[3]JL!BC20 -> 0 | BB105: =BB20-[3]JL!BD20 -> 0 | BC105: =BC20-[3]JL!BE20 -> 0 | BD105: =BD20-[3]JL!BF20 -> 0 | BE105: =BE20-[3]JL!BG20 -> 0 | BF105: =BF20-[3]JL!BH20 -> 0 | BG105: =BG20-[3]JL!BI20 -> 0 | BH105: =BH20-[3]JL!BJ20 -> 0 | BI105: =BI20-[3]JL!BK20 -> 0 | BJ105: =BJ20-[3]JL!BL20 -> 0 | BK105: =BK20-[3]JL!BM20 -> 0 | BL105: =BL20-[3]JL!BN20 -> 0 | BM105: =BM20-[3]JL!BO20 -> 0 | BN105: =BN20-[3]JL!BP20 -> 0 | BO105: =BO20-[3]JL!BQ20 -> 0 | BP105: =BP20-[3]JL!BR20 -> 0 | BQ105: =BQ20-[3]JL!BS20 -> 0 | BR105: =BR20-[3]JL!BT20 -> 0 | BS105: =BS20-[3]JL!BU20 -> 0 | BT105: =BT20-[3]JL!BV20 -> 0 | BU105: =BU20-[3]JL!BW20 -> 0 | BV105: =BV20-[3]JL!BX20 -> 0 | BW105: =BW20-[3]JL!BY20 -> 0 | BX105: =BX20-[3]JL!BZ20 -> 0 | BY105: =BY20-[3]JL!CA20 -> 0 | BZ105: =BZ20-[3]JL!CB20 -> 0 | CA105: =CA20-[3]JL!CC20 -> 0 | CB105: =CB20-[3]JL!CD20 -> 0 | CC105: =CC20-[3]JL!CE20 -> 0 | CD105: =CD20-[3]JL!CF20 -> 0 | CE105: =CE20-[3]JL!CG20 -> 0 | CF105: =CF20-[3]JL!CH20 -> 0
A106: =A22-[3]JL!A22 -> 0 | B106: =B22-[3]JL!B22 -> 0 | C106: =C22-[3]JL!C22 -> 0 | D106: =D22-[3]JL!D22 -> 0 | E106: =E22-[3]JL!E22 -> 0 | F106: =F22-[3]JL!F22 -> 0 | G106: =G22-[3]JL!G22 -> 0 | H106: =H22-[3]JL!H22 -> 0 | I106: =I22-[3]JL!I22 -> 0 | J106: =J22-[3]JL!J22 -> 0 | K106: =K22-[3]JL!K22 -> 0 | L106: =L22-[3]JL!L22 -> 0 | M106: =M22-[3]JL!M22 -> 0 | N106: =N22-[3]JL!N22 -> 0 | O106: =O22-[3]JL!O22 -> 0 | P106: =P22-[3]JL!P22 -> 0 | Q106: =Q22-[3]JL!Q22 -> 0 | R106: =R22-[3]JL!R22 -> 0 | S106: =S22-[3]JL!S22 -> 0 | T106: =T22-[3]JL!T22 -> 0 | U106: =U22-[3]JL!U22 -> 0 | V106: =V22-[3]JL!V22 -> 0 | W106: =W22-[3]JL!W22 -> 0 | X106: =X22-[3]JL!X22 -> 0 | Y106: =Y22-[3]JL!Y22 -> 0 | Z106: =Z22-[3]JL!Z22 -> 0 | AA106: =AA22-[3]JL!AA22 -> 0 | AB106: =AB22-[3]JL!AB22 -> 0 | AC106: =AC22-[3]JL!AC22 -> 0 | AD106: =AD22-[3]JL!AD22 -> 0 | AE106: =AE22-[3]JL!AE22 -> 0 | AF106: =AF22-[3]JL!AF22 -> 0 | AG106: =AG22-[3]JL!AG22 -> 0 | AH106: =AH22-[3]JL!AH22 -> 0 | AI106: =AI22-[3]JL!AI22 -> 0 | AJ106: =AJ22-[3]JL!AJ22 -> 0 | AK106: =AK22-[3]JL!AK22 -> 0 | AL106: =AL22-[3]JL!AL22 -> 0 | AM106: =AM22-[3]JL!AM22 -> 0 | AN106: =AN21-[3]JL!AP21 -> 0 | AO106: =AO21-[3]JL!AQ21 -> 0 | AP106: =AP21-[3]JL!AR21 -> 0 | AQ106: =AQ21-[3]JL!AS21 -> 0 | AR106: =AR21-[3]JL!AT21 -> 0 | AS106: =AS21-[3]JL!AU21 -> 0 | AT106: =AT21-[3]JL!AV21 -> 0 | AU106: =AU21-[3]JL!AW21 -> 0 | AV106: =AV21-[3]JL!AX21 -> 0 | AW106: =AW21-[3]JL!AY21 -> 0 | AX106: =AX21-[3]JL!AZ21 -> 0 | AY106: =AY21-[3]JL!BA21 -> 0 | AZ106: =AZ21-[3]JL!BB21 -> 0 | BA106: =BA21-[3]JL!BC21 -> 0 | BB106: =BB21-[3]JL!BD21 -> 0 | BC106: =BC21-[3]JL!BE21 -> 0 | BD106: =BD21-[3]JL!BF21 -> 0 | BE106: =BE21-[3]JL!BG21 -> 0 | BF106: =BF21-[3]JL!BH21 -> 0 | BG106: =BG21-[3]JL!BI21 -> 0 | BH106: =BH21-[3]JL!BJ21 -> 0 | BI106: =BI21-[3]JL!BK21 -> 0 | BJ106: =BJ21-[3]JL!BL21 -> 0 | BK106: =BK21-[3]JL!BM21 -> 0 | BL106: =BL21-[3]JL!BN21 -> 0 | BM106: =BM21-[3]JL!BO21 -> 0 | BN106: =BN21-[3]JL!BP21 -> 0 | BO106: =BO21-[3]JL!BQ21 -> 0 | BP106: =BP21-[3]JL!BR21 -> 0 | BQ106: =BQ21-[3]JL!BS21 -> 0 | BR106: =BR21-[3]JL!BT21 -> 0 | BS106: =BS21-[3]JL!BU21 -> 0 | BT106: =BT21-[3]JL!BV21 -> 0 | BU106: =BU21-[3]JL!BW21 -> 0 | BV106: =BV21-[3]JL!BX21 -> 0 | BW106: =BW21-[3]JL!BY21 -> 0 | BX106: =BX21-[3]JL!BZ21 -> 0 | BY106: =BY21-[3]JL!CA21 -> 0 | BZ106: =BZ21-[3]JL!CB21 -> 0 | CA106: =CA21-[3]JL!CC21 -> 0 | CB106: =CB21-[3]JL!CD21 -> 0 | CC106: =CC21-[3]JL!CE21 -> 0 | CD106: =CD21-[3]JL!CF21 -> 0 | CE106: =CE21-[3]JL!CG21 -> 0 | CF106: =CF21-[3]JL!CH21 -> 0
A107: =A23-[3]JL!A23 -> 0 | B107: =B23-[3]JL!B23 -> 0 | C107: =C23-[3]JL!C23 -> 0 | D107: =D23-[3]JL!D23 -> 0 | E107: =E23-[3]JL!E23 -> 0 | F107: =F23-[3]JL!F23 -> 0 | G107: =G23-[3]JL!G23 -> 0 | H107: =H23-[3]JL!H23 -> 0 | I107: =I23-[3]JL!I23 -> 0 | J107: =J23-[3]JL!J23 -> 0 | K107: =K23-[3]JL!K23 -> 0 | L107: =L23-[3]JL!L23 -> 0 | M107: =M23-[3]JL!M23 -> 0 | N107: =N23-[3]JL!N23 -> 0 | O107: =O23-[3]JL!O23 -> 0 | P107: =P23-[3]JL!P23 -> 0 | Q107: =Q23-[3]JL!Q23 -> 0 | R107: =R23-[3]JL!R23 -> 0 | S107: =S23-[3]JL!S23 -> 0 | T107: =T23-[3]JL!T23 -> 0 | U107: =U23-[3]JL!U23 -> 0 | V107: =V23-[3]JL!V23 -> 0 | W107: =W23-[3]JL!W23 -> 0 | X107: =X23-[3]JL!X23 -> 0 | Y107: =Y23-[3]JL!Y23 -> 0 | Z107: =Z23-[3]JL!Z23 -> 0 | AA107: =AA23-[3]JL!AA23 -> 0 | AB107: =AB23-[3]JL!AB23 -> 0 | AC107: =AC23-[3]JL!AC23 -> 0 | AD107: =AD23-[3]JL!AD23 -> 0 | AE107: =AE23-[3]JL!AE23 -> 0 | AF107: =AF23-[3]JL!AF23 -> 0 | AG107: =AG23-[3]JL!AG23 -> 0 | AH107: =AH23-[3]JL!AH23 -> 0 | AI107: =AI23-[3]JL!AI23 -> 0 | AJ107: =AJ23-[3]JL!AJ23 -> 0 | AK107: =AK23-[3]JL!AK23 -> 0 | AL107: =AL23-[3]JL!AL23 -> 0 | AM107: =AM23-[3]JL!AM23 -> 0 | AN107: =AN22-[3]JL!AP22 -> 0 | AO107: =AO22-[3]JL!AQ22 -> 0 | AP107: =AP22-[3]JL!AR22 -> 0 | AQ107: =AQ22-[3]JL!AS22 -> 0 | AR107: =AR22-[3]JL!AT22 -> 0 | AS107: =AS22-[3]JL!AU22 -> 0 | AT107: =AT22-[3]JL!AV22 -> 0 | AU107: =AU22-[3]JL!AW22 -> 0 | AV107: =AV22-[3]JL!AX22 -> 0 | AW107: =AW22-[3]JL!AY22 -> 0 | AX107: =AX22-[3]JL!AZ22 -> 0 | AY107: =AY22-[3]JL!BA22 -> 0 | AZ107: =AZ22-[3]JL!BB22 -> 0 | BA107: =BA22-[3]JL!BC22 -> 0 | BB107: =BB22-[3]JL!BD22 -> 0 | BC107: =BC22-[3]JL!BE22 -> 0 | BD107: =BD22-[3]JL!BF22 -> 0 | BE107: =BE22-[3]JL!BG22 -> 0 | BF107: =BF22-[3]JL!BH22 -> 0 | BG107: =BG22-[3]JL!BI22 -> 0 | BH107: =BH22-[3]JL!BJ22 -> 0 | BI107: =BI22-[3]JL!BK22 -> 0 | BJ107: =BJ22-[3]JL!BL22 -> 0 | BK107: =BK22-[3]JL!BM22 -> 0 | BL107: =BL22-[3]JL!BN22 -> 0 | BM107: =BM22-[3]JL!BO22 -> 0 | BN107: =BN22-[3]JL!BP22 -> 0 | BO107: =BO22-[3]JL!BQ22 -> 0 | BP107: =BP22-[3]JL!BR22 -> 0 | BQ107: =BQ22-[3]JL!BS22 -> 0 | BR107: =BR22-[3]JL!BT22 -> 0 | BS107: =BS22-[3]JL!BU22 -> 0 | BT107: =BT22-[3]JL!BV22 -> 0 | BU107: =BU22-[3]JL!BW22 -> 0 | BV107: =BV22-[3]JL!BX22 -> 0 | BW107: =BW22-[3]JL!BY22 -> 0 | BX107: =BX22-[3]JL!BZ22 -> 0 | BY107: =BY22-[3]JL!CA22 -> 0 | BZ107: =BZ22-[3]JL!CB22 -> 0 | CA107: =CA22-[3]JL!CC22 -> 0 | CB107: =CB22-[3]JL!CD22 -> 0 | CC107: =CC22-[3]JL!CE22 -> 0 | CD107: =CD22-[3]JL!CF22 -> 0 | CE107: =CE22-[3]JL!CG22 -> 0 | CF107: =CF22-[3]JL!CH22 -> 0
A108: =A24-[3]JL!A24 -> 0 | B108: =B24-[3]JL!B24 -> 0 | C108: =C24-[3]JL!C24 -> 0 | D108: =D24-[3]JL!D24 -> 0 | E108: =E24-[3]JL!E24 -> 0 | F108: =F24-[3]JL!F24 -> 0 | G108: =G24-[3]JL!G24 -> 0 | H108: =H24-[3]JL!H24 -> 0 | I108: =I24-[3]JL!I24 -> 0 | J108: =J24-[3]JL!J24 -> 0 | K108: =K24-[3]JL!K24 -> 0 | L108: =L24-[3]JL!L24 -> 0 | M108: =M24-[3]JL!M24 -> 0 | N108: =N24-[3]JL!N24 -> 0 | O108: =O24-[3]JL!O24 -> 0 | P108: =P24-[3]JL!P24 -> 0 | Q108: =Q24-[3]JL!Q24 -> 0 | R108: =R24-[3]JL!R24 -> 0 | S108: =S24-[3]JL!S24 -> 0 | T108: =T24-[3]JL!T24 -> 0 | U108: =U24-[3]JL!U24 -> 0 | V108: =V24-[3]JL!V24 -> 0 | W108: =W24-[3]JL!W24 -> 0 | X108: =X24-[3]JL!X24 -> 0 | Y108: =Y24-[3]JL!Y24 -> 0 | Z108: =Z24-[3]JL!Z24 -> 0 | AA108: =AA24-[3]JL!AA24 -> 0 | AB108: =AB24-[3]JL!AB24 -> 0 | AC108: =AC24-[3]JL!AC24 -> 0 | AD108: =AD24-[3]JL!AD24 -> 0 | AE108: =AE24-[3]JL!AE24 -> 0 | AF108: =AF24-[3]JL!AF24 -> 0 | AG108: =AG24-[3]JL!AG24 -> 0 | AH108: =AH24-[3]JL!AH24 -> 0 | AI108: =AI24-[3]JL!AI24 -> 0 | AJ108: =AJ24-[3]JL!AJ24 -> 0 | AK108: =AK24-[3]JL!AK24 -> 0 | AL108: =AL24-[3]JL!AL24 -> 0 | AM108: =AM24-[3]JL!AM24 -> 0 | AN108: =AN23-[3]JL!AP23 -> 0 | AO108: =AO23-[3]JL!AQ23 -> 0 | AP108: =AP23-[3]JL!AR23 -> 0 | AQ108: =AQ23-[3]JL!AS23 -> 0 | AR108: =AR23-[3]JL!AT23 -> 0 | AS108: =AS23-[3]JL!AU23 -> 0 | AT108: =AT23-[3]JL!AV23 -> 0 | AU108: =AU23-[3]JL!AW23 -> 0 | AV108: =AV23-[3]JL!AX23 -> 0 | AW108: =AW23-[3]JL!AY23 -> 0 | AX108: =AX23-[3]JL!AZ23 -> 0 | AY108: =AY23-[3]JL!BA23 -> 0 | AZ108: =AZ23-[3]JL!BB23 -> 0 | BA108: =BA23-[3]JL!BC23 -> 0 | BB108: =BB23-[3]JL!BD23 -> 0 | BC108: =BC23-[3]JL!BE23 -> 0 | BD108: =BD23-[3]JL!BF23 -> 0 | BE108: =BE23-[3]JL!BG23 -> 0 | BF108: =BF23-[3]JL!BH23 -> 0 | BG108: =BG23-[3]JL!BI23 -> 0 | BH108: =BH23-[3]JL!BJ23 -> 0 | BI108: =BI23-[3]JL!BK23 -> 0 | BJ108: =BJ23-[3]JL!BL23 -> 0 | BK108: =BK23-[3]JL!BM23 -> 0 | BL108: =BL23-[3]JL!BN23 -> 0 | BM108: =BM23-[3]JL!BO23 -> 0 | BN108: =BN23-[3]JL!BP23 -> 0 | BO108: =BO23-[3]JL!BQ23 -> 0 | BP108: =BP23-[3]JL!BR23 -> 0 | BQ108: =BQ23-[3]JL!BS23 -> 0 | BR108: =BR23-[3]JL!BT23 -> 0 | BS108: =BS23-[3]JL!BU23 -> 0 | BT108: =BT23-[3]JL!BV23 -> 0 | BU108: =BU23-[3]JL!BW23 -> 0 | BV108: =BV23-[3]JL!BX23 -> 0 | BW108: =BW23-[3]JL!BY23 -> 0 | BX108: =BX23-[3]JL!BZ23 -> 0 | BY108: =BY23-[3]JL!CA23 -> 0 | BZ108: =BZ23-[3]JL!CB23 -> 0 | CA108: =CA23-[3]JL!CC23 -> 0 | CB108: =CB23-[3]JL!CD23 -> 0 | CC108: =CC23-[3]JL!CE23 -> 0 | CD108: =CD23-[3]JL!CF23 -> 0 | CE108: =CE23-[3]JL!CG23 -> 0 | CF108: =CF23-[3]JL!CH23 -> 0
A109: =A25-[3]JL!A25 -> 0 | B109: =B25-[3]JL!B25 -> 0 | C109: =C25-[3]JL!C25 -> 0 | D109: =D25-[3]JL!D25 -> 0 | E109: =E25-[3]JL!E25 -> 0 | F109: =F25-[3]JL!F25 -> 0 | G109: =G25-[3]JL!G25 -> 0 | H109: =H25-[3]JL!H25 -> 0 | I109: =I25-[3]JL!I25 -> 0 | J109: =J25-[3]JL!J25 -> 0 | K109: =K25-[3]JL!K25 -> 0 | L109: =L25-[3]JL!L25 -> 0 | M109: =M25-[3]JL!M25 -> 0 | N109: =N25-[3]JL!N25 -> 0 | O109: =O25-[3]JL!O25 -> 0 | P109: =P25-[3]JL!P25 -> 0 | Q109: =Q25-[3]JL!Q25 -> 0 | R109: =R25-[3]JL!R25 -> 0 | S109: =S25-[3]JL!S25 -> 0 | T109: =T25-[3]JL!T25 -> 0 | U109: =U25-[3]JL!U25 -> 0 | V109: =V25-[3]JL!V25 -> 0 | W109: =W25-[3]JL!W25 -> 0 | X109: =X25-[3]JL!X25 -> 0 | Y109: =Y25-[3]JL!Y25 -> 0 | Z109: =Z25-[3]JL!Z25 -> 0 | AA109: =AA25-[3]JL!AA25 -> 0 | AB109: =AB25-[3]JL!AB25 -> 0 | AC109: =AC25-[3]JL!AC25 -> 0 | AD109: =AD25-[3]JL!AD25 -> 0 | AE109: =AE25-[3]JL!AE25 -> 0 | AF109: =AF25-[3]JL!AF25 -> 0 | AG109: =AG25-[3]JL!AG25 -> 0 | AH109: =AH25-[3]JL!AH25 -> 0 | AI109: =AI25-[3]JL!AI25 -> 0 | AJ109: =AJ25-[3]JL!AJ25 -> 0 | AK109: =AK25-[3]JL!AK25 -> 0 | AL109: =AL25-[3]JL!AL25 -> 0 | AM109: =AM25-[3]JL!AM25 -> 0 | AN109: =AN24-[3]JL!AP24 -> 0 | AO109: =AO24-[3]JL!AQ24 -> 0 | AP109: =AP24-[3]JL!AR24 -> 0 | AQ109: =AQ24-[3]JL!AS24 -> 0 | AR109: =AR24-[3]JL!AT24 -> 0 | AS109: =AS24-[3]JL!AU24 -> 0 | AT109: =AT24-[3]JL!AV24 -> 0 | AU109: =AU24-[3]JL!AW24 -> 0 | AV109: =AV24-[3]JL!AX24 -> 0 | AW109: =AW24-[3]JL!AY24 -> 0 | AX109: =AX24-[3]JL!AZ24 -> 0 | AY109: =AY24-[3]JL!BA24 -> 0 | AZ109: =AZ24-[3]JL!BB24 -> 0 | BA109: =BA24-[3]JL!BC24 -> 0 | BB109: =BB24-[3]JL!BD24 -> 0 | BC109: =BC24-[3]JL!BE24 -> 0 | BD109: =BD24-[3]JL!BF24 -> 0 | BE109: =BE24-[3]JL!BG24 -> 0 | BF109: =BF24-[3]JL!BH24 -> 0 | BG109: =BG24-[3]JL!BI24 -> 0 | BH109: =BH24-[3]JL!BJ24 -> 0 | BI109: =BI24-[3]JL!BK24 -> 0 | BJ109: =BJ24-[3]JL!BL24 -> 0 | BK109: =BK24-[3]JL!BM24 -> 0 | BL109: =BL24-[3]JL!BN24 -> 0 | BM109: =BM24-[3]JL!BO24 -> 0 | BN109: =BN24-[3]JL!BP24 -> 0 | BO109: =BO24-[3]JL!BQ24 -> 0 | BP109: =BP24-[3]JL!BR24 -> 0 | BQ109: =BQ24-[3]JL!BS24 -> 0 | BR109: =BR24-[3]JL!BT24 -> 0 | BS109: =BS24-[3]JL!BU24 -> 0 | BT109: =BT24-[3]JL!BV24 -> 0 | BU109: =BU24-[3]JL!BW24 -> 0 | BV109: =BV24-[3]JL!BX24 -> 0 | BW109: =BW24-[3]JL!BY24 -> 0 | BX109: =BX24-[3]JL!BZ24 -> 0 | BY109: =BY24-[3]JL!CA24 -> 0 | BZ109: =BZ24-[3]JL!CB24 -> 0 | CA109: =CA24-[3]JL!CC24 -> 0 | CB109: =CB24-[3]JL!CD24 -> 0 | CC109: =CC24-[3]JL!CE24 -> 0 | CD109: =CD24-[3]JL!CF24 -> 0 | CE109: =CE24-[3]JL!CG24 -> 0 | CF109: =CF24-[3]JL!CH24 -> 0
A110: =A26-[3]JL!A26 -> 0 | B110: =B26-[3]JL!B26 -> 0 | C110: =C26-[3]JL!C26 -> 0 | D110: =D26-[3]JL!D26 -> 0 | E110: =E26-[3]JL!E26 -> 0 | F110: =F26-[3]JL!F26 -> 0 | G110: =G26-[3]JL!G26 -> 0 | H110: =H26-[3]JL!H26 -> 0 | I110: =I26-[3]JL!I26 -> 0 | J110: =J26-[3]JL!J26 -> 0 | K110: =K26-[3]JL!K26 -> 0 | L110: =L26-[3]JL!L26 -> 0 | M110: =M26-[3]JL!M26 -> 0 | N110: =N26-[3]JL!N26 -> 0 | O110: =O26-[3]JL!O26 -> 0 | P110: =P26-[3]JL!P26 -> 0 | Q110: =Q26-[3]JL!Q26 -> 0 | R110: =R26-[3]JL!R26 -> 0 | S110: =S26-[3]JL!S26 -> 0 | T110: =T26-[3]JL!T26 -> 0 | U110: =U26-[3]JL!U26 -> 0 | V110: =V26-[3]JL!V26 -> 0 | W110: =W26-[3]JL!W26 -> 0 | X110: =X26-[3]JL!X26 -> 0 | Y110: =Y26-[3]JL!Y26 -> 0 | Z110: =Z26-[3]JL!Z26 -> 0 | AA110: =AA26-[3]JL!AA26 -> 0 | AB110: =AB26-[3]JL!AB26 -> 0 | AC110: =AC26-[3]JL!AC26 -> 0 | AD110: =AD26-[3]JL!AD26 -> 0 | AE110: =AE26-[3]JL!AE26 -> 0 | AF110: =AF26-[3]JL!AF26 -> 0 | AG110: =AG26-[3]JL!AG26 -> 0 | AH110: =AH26-[3]JL!AH26 -> 0 | AI110: =AI26-[3]JL!AI26 -> 0 | AJ110: =AJ26-[3]JL!AJ26 -> 0 | AK110: =AK26-[3]JL!AK26 -> 0 | AL110: =AL26-[3]JL!AL26 -> 0 | AM110: =AM26-[3]JL!AM26 -> 0 | AN110: =AN25-[3]JL!AP25 -> 0 | AO110: =AO25-[3]JL!AQ25 -> 0 | AP110: =AP25-[3]JL!AR25 -> 0 | AQ110: =AQ25-[3]JL!AS25 -> 0 | AR110: =AR25-[3]JL!AT25 -> 0 | AS110: =AS25-[3]JL!AU25 -> 0 | AT110: =AT25-[3]JL!AV25 -> 0 | AU110: =AU25-[3]JL!AW25 -> 0 | AV110: =AV25-[3]JL!AX25 -> 0 | AW110: =AW25-[3]JL!AY25 -> 0 | AX110: =AX25-[3]JL!AZ25 -> 0 | AY110: =AY25-[3]JL!BA25 -> 0 | AZ110: =AZ25-[3]JL!BB25 -> 0 | BA110: =BA25-[3]JL!BC25 -> 0 | BB110: =BB25-[3]JL!BD25 -> 0 | BC110: =BC25-[3]JL!BE25 -> 0 | BD110: =BD25-[3]JL!BF25 -> 0 | BE110: =BE25-[3]JL!BG25 -> 0 | BF110: =BF25-[3]JL!BH25 -> 0 | BG110: =BG25-[3]JL!BI25 -> 0 | BH110: =BH25-[3]JL!BJ25 -> 0 | BI110: =BI25-[3]JL!BK25 -> 0 | BJ110: =BJ25-[3]JL!BL25 -> 0 | BK110: =BK25-[3]JL!BM25 -> 0 | BL110: =BL25-[3]JL!BN25 -> 0 | BM110: =BM25-[3]JL!BO25 -> 0 | BN110: =BN25-[3]JL!BP25 -> 0 | BO110: =BO25-[3]JL!BQ25 -> 0 | BP110: =BP25-[3]JL!BR25 -> 0 | BQ110: =BQ25-[3]JL!BS25 -> 0 | BR110: =BR25-[3]JL!BT25 -> 0 | BS110: =BS25-[3]JL!BU25 -> 0 | BT110: =BT25-[3]JL!BV25 -> 0 | BU110: =BU25-[3]JL!BW25 -> 0 | BV110: =BV25-[3]JL!BX25 -> 0 | BW110: =BW25-[3]JL!BY25 -> 0 | BX110: =BX25-[3]JL!BZ25 -> 0 | BY110: =BY25-[3]JL!CA25 -> 0 | BZ110: =BZ25-[3]JL!CB25 -> 0 | CA110: =CA25-[3]JL!CC25 -> 0 | CB110: =CB25-[3]JL!CD25 -> 0 | CC110: =CC25-[3]JL!CE25 -> 0 | CD110: =CD25-[3]JL!CF25 -> 0 | CE110: =CE25-[3]JL!CG25 -> 0 | CF110: =CF25-[3]JL!CH25 -> 0
A111: =A27-[3]JL!A27 -> 0 | B111: =B27-[3]JL!B27 -> 0 | C111: =C27-[3]JL!C27 -> 0 | D111: =D27-[3]JL!D27 -> 0 | E111: =E27-[3]JL!E27 -> 0 | F111: =F27-[3]JL!F27 -> 0 | G111: =G27-[3]JL!G27 -> 0 | H111: =H27-[3]JL!H27 -> 0 | I111: =I27-[3]JL!I27 -> 0 | J111: =J27-[3]JL!J27 -> 0 | K111: =K27-[3]JL!K27 -> 0 | L111: =L27-[3]JL!L27 -> 0 | M111: =M27-[3]JL!M27 -> 0 | N111: =N27-[3]JL!N27 -> 0 | O111: =O27-[3]JL!O27 -> 0 | P111: =P27-[3]JL!P27 -> 0 | Q111: =Q27-[3]JL!Q27 -> 0 | R111: =R27-[3]JL!R27 -> 0 | S111: =S27-[3]JL!S27 -> 0 | T111: =T27-[3]JL!T27 -> 0 | U111: =U27-[3]JL!U27 -> 0 | V111: =V27-[3]JL!V27 -> 0 | W111: =W27-[3]JL!W27 -> 0 | X111: =X27-[3]JL!X27 -> 0 | Y111: =Y27-[3]JL!Y27 -> 0 | Z111: =Z27-[3]JL!Z27 -> 0 | AA111: =AA27-[3]JL!AA27 -> 0 | AB111: =AB27-[3]JL!AB27 -> 0 | AC111: =AC27-[3]JL!AC27 -> 0 | AD111: =AD27-[3]JL!AD27 -> 0 | AE111: =AE27-[3]JL!AE27 -> 0 | AF111: =AF27-[3]JL!AF27 -> 0 | AG111: =AG27-[3]JL!AG27 -> 0 | AH111: =AH27-[3]JL!AH27 -> 0 | AI111: =AI27-[3]JL!AI27 -> 0 | AJ111: =AJ27-[3]JL!AJ27 -> 0 | AK111: =AK27-[3]JL!AK27 -> 0 | AL111: =AL27-[3]JL!AL27 -> 0 | AM111: =AM27-[3]JL!AM27 -> 0 | AN111: =AN26-[3]JL!AP26 -> 0 | AO111: =AO26-[3]JL!AQ26 -> 0 | AP111: =AP26-[3]JL!AR26 -> 0 | AQ111: =AQ26-[3]JL!AS26 -> 0 | AR111: =AR26-[3]JL!AT26 -> 0 | AS111: =AS26-[3]JL!AU26 -> 0 | AT111: =AT26-[3]JL!AV26 -> 0 | AU111: =AU26-[3]JL!AW26 -> 0 | AV111: =AV26-[3]JL!AX26 -> 0 | AW111: =AW26-[3]JL!AY26 -> 0 | AX111: =AX26-[3]JL!AZ26 -> 0 | AY111: =AY26-[3]JL!BA26 -> 0 | AZ111: =AZ26-[3]JL!BB26 -> 0 | BA111: =BA26-[3]JL!BC26 -> 0 | BB111: =BB26-[3]JL!BD26 -> 0 | BC111: =BC26-[3]JL!BE26 -> 0 | BD111: =BD26-[3]JL!BF26 -> 0 | BE111: =BE26-[3]JL!BG26 -> 0 | BF111: =BF26-[3]JL!BH26 -> 0 | BG111: =BG26-[3]JL!BI26 -> 0 | BH111: =BH26-[3]JL!BJ26 -> 0 | BI111: =BI26-[3]JL!BK26 -> 0 | BJ111: =BJ26-[3]JL!BL26 -> 0 | BK111: =BK26-[3]JL!BM26 -> 0 | BL111: =BL26-[3]JL!BN26 -> 0 | BM111: =BM26-[3]JL!BO26 -> 0 | BN111: =BN26-[3]JL!BP26 -> 0 | BO111: =BO26-[3]JL!BQ26 -> 0 | BP111: =BP26-[3]JL!BR26 -> 0 | BQ111: =BQ26-[3]JL!BS26 -> 0 | BR111: =BR26-[3]JL!BT26 -> 0 | BS111: =BS26-[3]JL!BU26 -> 0 | BT111: =BT26-[3]JL!BV26 -> 0 | BU111: =BU26-[3]JL!BW26 -> 0 | BV111: =BV26-[3]JL!BX26 -> 0 | BW111: =BW26-[3]JL!BY26 -> 0 | BX111: =BX26-[3]JL!BZ26 -> 0 | BY111: =BY26-[3]JL!CA26 -> 0 | BZ111: =BZ26-[3]JL!CB26 -> 0 | CA111: =CA26-[3]JL!CC26 -> 0 | CB111: =CB26-[3]JL!CD26 -> 0 | CC111: =CC26-[3]JL!CE26 -> 0 | CD111: =CD26-[3]JL!CF26 -> 0 | CE111: =CE26-[3]JL!CG26 -> 0 | CF111: =CF26-[3]JL!CH26 -> 0
A112: =A28-[3]JL!A28 -> 0 | B112: =B28-[3]JL!B28 -> 0 | C112: =C28-[3]JL!C28 -> 0 | D112: =D28-[3]JL!D28 -> 0 | E112: =E28-[3]JL!E28 -> 0 | F112: =F28-[3]JL!F28 -> 0 | G112: =G28-[3]JL!G28 -> 0 | H112: =H28-[3]JL!H28 -> 0 | I112: =I28-[3]JL!I28 -> 0 | J112: =J28-[3]JL!J28 -> 0 | K112: =K28-[3]JL!K28 -> 0 | L112: =L28-[3]JL!L28 -> 0 | M112: =M28-[3]JL!M28 -> 0 | N112: =N28-[3]JL!N28 -> 0 | O112: =O28-[3]JL!O28 -> 0 | P112: =P28-[3]JL!P28 -> 0 | Q112: =Q28-[3]JL!Q28 -> 0 | R112: =R28-[3]JL!R28 -> 0 | S112: =S28-[3]JL!S28 -> 0 | T112: =T28-[3]JL!T28 -> 0 | U112: =U28-[3]JL!U28 -> 0 | V112: =V28-[3]JL!V28 -> 0 | W112: =W28-[3]JL!W28 -> 0 | X112: =X28-[3]JL!X28 -> 0 | Y112: =Y28-[3]JL!Y28 -> 0 | Z112: =Z28-[3]JL!Z28 -> 0 | AA112: =AA28-[3]JL!AA28 -> 0 | AB112: =AB28-[3]JL!AB28 -> 0 | AC112: =AC28-[3]JL!AC28 -> 0 | AD112: =AD28-[3]JL!AD28 -> 0 | AE112: =AE28-[3]JL!AE28 -> 0 | AF112: =AF28-[3]JL!AF28 -> 0 | AG112: =AG28-[3]JL!AG28 -> 0 | AH112: =AH28-[3]JL!AH28 -> 0 | AI112: =AI28-[3]JL!AI28 -> 0 | AJ112: =AJ28-[3]JL!AJ28 -> 0 | AK112: =AK28-[3]JL!AK28 -> 0 | AL112: =AL28-[3]JL!AL28 -> 0 | AM112: =AM28-[3]JL!AM28 -> 0 | AN112: =AN27-[3]JL!AP27 -> 0 | AO112: =AO27-[3]JL!AQ27 -> 0 | AP112: =AP27-[3]JL!AR27 -> 0 | AQ112: =AQ27-[3]JL!AS27 -> 0 | AR112: =AR27-[3]JL!AT27 -> 0 | AS112: =AS27-[3]JL!AU27 -> 0 | AT112: =AT27-[3]JL!AV27 -> 0 | AU112: =AU27-[3]JL!AW27 -> 0 | AV112: =AV27-[3]JL!AX27 -> 0 | AW112: =AW27-[3]JL!AY27 -> 0 | AX112: =AX27-[3]JL!AZ27 -> 0 | AY112: =AY27-[3]JL!BA27 -> 0 | AZ112: =AZ27-[3]JL!BB27 -> 0 | BA112: =BA27-[3]JL!BC27 -> 0 | BB112: =BB27-[3]JL!BD27 -> 0 | BC112: =BC27-[3]JL!BE27 -> 0 | BD112: =BD27-[3]JL!BF27 -> 0 | BE112: =BE27-[3]JL!BG27 -> 0 | BF112: =BF27-[3]JL!BH27 -> 0 | BG112: =BG27-[3]JL!BI27 -> 0 | BH112: =BH27-[3]JL!BJ27 -> 0 | BI112: =BI27-[3]JL!BK27 -> 0 | BJ112: =BJ27-[3]JL!BL27 -> 0 | BK112: =BK27-[3]JL!BM27 -> 0 | BL112: =BL27-[3]JL!BN27 -> 0 | BM112: =BM27-[3]JL!BO27 -> 0 | BN112: =BN27-[3]JL!BP27 -> 0 | BO112: =BO27-[3]JL!BQ27 -> 0 | BP112: =BP27-[3]JL!BR27 -> 0 | BQ112: =BQ27-[3]JL!BS27 -> 0 | BR112: =BR27-[3]JL!BT27 -> 0 | BS112: =BS27-[3]JL!BU27 -> 0 | BT112: =BT27-[3]JL!BV27 -> 0 | BU112: =BU27-[3]JL!BW27 -> 0 | BV112: =BV27-[3]JL!BX27 -> 0 | BW112: =BW27-[3]JL!BY27 -> 0 | BX112: =BX27-[3]JL!BZ27 -> 0 | BY112: =BY27-[3]JL!CA27 -> 0 | BZ112: =BZ27-[3]JL!CB27 -> 0 | CA112: =CA27-[3]JL!CC27 -> 0 | CB112: =CB27-[3]JL!CD27 -> 0 | CC112: =CC27-[3]JL!CE27 -> 0 | CD112: =CD27-[3]JL!CF27 -> 0 | CE112: =CE27-[3]JL!CG27 -> 0 | CF112: =CF27-[3]JL!CH27 -> 0
A113: =A29-[3]JL!A29 -> 0 | B113: =B29-[3]JL!B29 -> 0 | C113: =C29-[3]JL!C29 -> 0 | D113: =D29-[3]JL!D29 -> 0 | E113: =E29-[3]JL!E29 -> 0 | F113: =F29-[3]JL!F29 -> 0 | G113: =G29-[3]JL!G29 -> 0 | H113: =H29-[3]JL!H29 -> 0 | I113: =I29-[3]JL!I29 -> 0 | J113: =J29-[3]JL!J29 -> 0 | K113: =K29-[3]JL!K29 -> 0 | L113: =L29-[3]JL!L29 -> 0 | M113: =M29-[3]JL!M29 -> 0 | N113: =N29-[3]JL!N29 -> 0 | O113: =O29-[3]JL!O29 -> 0 | P113: =P29-[3]JL!P29 -> 0 | Q113: =Q29-[3]JL!Q29 -> 0 | R113: =R29-[3]JL!R29 -> 0 | S113: =S29-[3]JL!S29 -> 0 | T113: =T29-[3]JL!T29 -> 0 | U113: =U29-[3]JL!U29 -> 0 | V113: =V29-[3]JL!V29 -> 0 | W113: =W29-[3]JL!W29 -> 0 | X113: =X29-[3]JL!X29 -> 0 | Y113: =Y29-[3]JL!Y29 -> 0 | Z113: =Z29-[3]JL!Z29 -> 0 | AA113: =AA29-[3]JL!AA29 -> 0 | AB113: =AB29-[3]JL!AB29 -> 0 | AC113: =AC29-[3]JL!AC29 -> 0 | AD113: =AD29-[3]JL!AD29 -> 0 | AE113: =AE29-[3]JL!AE29 -> 0 | AF113: =AF29-[3]JL!AF29 -> 0 | AG113: =AG29-[3]JL!AG29 -> 0 | AH113: =AH29-[3]JL!AH29 -> 0 | AI113: =AI29-[3]JL!AI29 -> 0 | AJ113: =AJ29-[3]JL!AJ29 -> 0 | AK113: =AK29-[3]JL!AK29 -> 0 | AL113: =AL29-[3]JL!AL29 -> 0 | AM113: =AM29-[3]JL!AM29 -> 0 | AN113: =AN28-[3]JL!AP28 -> 0 | AO113: =AO28-[3]JL!AQ28 -> 0 | AP113: =AP28-[3]JL!AR28 -> 0 | AQ113: =AQ28-[3]JL!AS28 -> 0 | AR113: =AR28-[3]JL!AT28 -> 0 | AS113: =AS28-[3]JL!AU28 -> 0 | AT113: =AT28-[3]JL!AV28 -> 0 | AU113: =AU28-[3]JL!AW28 -> 0 | AV113: =AV28-[3]JL!AX28 -> 0 | AW113: =AW28-[3]JL!AY28 -> 0 | AX113: =AX28-[3]JL!AZ28 -> 0 | AY113: =AY28-[3]JL!BA28 -> 0 | AZ113: =AZ28-[3]JL!BB28 -> 0 | BA113: =BA28-[3]JL!BC28 -> 0 | BB113: =BB28-[3]JL!BD28 -> 0 | BC113: =BC28-[3]JL!BE28 -> 0 | BD113: =BD28-[3]JL!BF28 -> 0 | BE113: =BE28-[3]JL!BG28 -> 0 | BF113: =BF28-[3]JL!BH28 -> 0 | BG113: =BG28-[3]JL!BI28 -> 0 | BH113: =BH28-[3]JL!BJ28 -> 0 | BI113: =BI28-[3]JL!BK28 -> 0 | BJ113: =BJ28-[3]JL!BL28 -> 0 | BK113: =BK28-[3]JL!BM28 -> 0 | BL113: =BL28-[3]JL!BN28 -> 0 | BM113: =BM28-[3]JL!BO28 -> 0 | BN113: =BN28-[3]JL!BP28 -> 0 | BO113: =BO28-[3]JL!BQ28 -> 0 | BP113: =BP28-[3]JL!BR28 -> 0 | BQ113: =BQ28-[3]JL!BS28 -> 0 | BR113: =BR28-[3]JL!BT28 -> 0 | BS113: =BS28-[3]JL!BU28 -> 0 | BT113: =BT28-[3]JL!BV28 -> 0 | BU113: =BU28-[3]JL!BW28 -> 0 | BV113: =BV28-[3]JL!BX28 -> 0 | BW113: =BW28-[3]JL!BY28 -> 0 | BX113: =BX28-[3]JL!BZ28 -> 0 | BY113: =BY28-[3]JL!CA28 -> 0 | BZ113: =BZ28-[3]JL!CB28 -> 0 | CA113: =CA28-[3]JL!CC28 -> 0 | CB113: =CB28-[3]JL!CD28 -> 0 | CC113: =CC28-[3]JL!CE28 -> 0 | CD113: =CD28-[3]JL!CF28 -> 0 | CE113: =CE28-[3]JL!CG28 -> 0 | CF113: =CF28-[3]JL!CH28 -> 0
A114: =A30-[3]JL!A30 -> 0 | B114: =B30-[3]JL!B30 -> 0 | C114: =C30-[3]JL!C30 -> 0 | D114: =D30-[3]JL!D30 -> 0 | E114: =E30-[3]JL!E30 -> 0 | F114: =F30-[3]JL!F30 -> 0 | G114: =G30-[3]JL!G30 -> 0 | H114: =H30-[3]JL!H30 -> 0 | I114: =I30-[3]JL!I30 -> 0 | J114: =J30-[3]JL!J30 -> 0 | K114: =K30-[3]JL!K30 -> 0 | L114: =L30-[3]JL!L30 -> 0 | M114: =M30-[3]JL!M30 -> 0 | N114: =N30-[3]JL!N30 -> 0 | O114: =O30-[3]JL!O30 -> 0 | P114: =P30-[3]JL!P30 -> 0 | Q114: =Q30-[3]JL!Q30 -> 0 | R114: =R30-[3]JL!R30 -> 0 | S114: =S30-[3]JL!S30 -> 0 | T114: =T30-[3]JL!T30 -> 0 | U114: =U30-[3]JL!U30 -> 0 | V114: =V30-[3]JL!V30 -> 0 | W114: =W30-[3]JL!W30 -> 0 | X114: =X30-[3]JL!X30 -> 0 | Y114: =Y30-[3]JL!Y30 -> 0 | Z114: =Z30-[3]JL!Z30 -> 0 | AA114: =AA30-[3]JL!AA30 -> 0 | AB114: =AB30-[3]JL!AB30 -> 0 | AC114: =AC30-[3]JL!AC30 -> 0 | AD114: =AD30-[3]JL!AD30 -> 0 | AE114: =AE30-[3]JL!AE30 -> 0 | AF114: =AF30-[3]JL!AF30 -> 0 | AG114: =AG30-[3]JL!AG30 -> 0 | AH114: =AH30-[3]JL!AH30 -> 0 | AI114: =AI30-[3]JL!AI30 -> 0 | AJ114: =AJ30-[3]JL!AJ30 -> 0 | AK114: =AK30-[3]JL!AK30 -> 0 | AL114: =AL30-[3]JL!AL30 -> 0 | AM114: =AM30-[3]JL!AM30 -> 0 | AN114: =AN29-[3]JL!AP29 -> 0 | AO114: =AO29-[3]JL!AQ29 -> 0 | AP114: =AP29-[3]JL!AR29 -> 0 | AQ114: =AQ29-[3]JL!AS29 -> 0 | AR114: =AR29-[3]JL!AT29 -> 0 | AS114: =AS29-[3]JL!AU29 -> 0 | AT114: =AT29-[3]JL!AV29 -> 0 | AU114: =AU29-[3]JL!AW29 -> 0 | AV114: =AV29-[3]JL!AX29 -> 0 | AW114: =AW29-[3]JL!AY29 -> 0 | AX114: =AX29-[3]JL!AZ29 -> 0 | AY114: =AY29-[3]JL!BA29 -> 0 | AZ114: =AZ29-[3]JL!BB29 -> 0 | BA114: =BA29-[3]JL!BC29 -> 0 | BB114: =BB29-[3]JL!BD29 -> 0 | BC114: =BC29-[3]JL!BE29 -> 0 | BD114: =BD29-[3]JL!BF29 -> 0 | BE114: =BE29-[3]JL!BG29 -> 0 | BF114: =BF29-[3]JL!BH29 -> 0 | BG114: =BG29-[3]JL!BI29 -> 0 | BH114: =BH29-[3]JL!BJ29 -> 0 | BI114: =BI29-[3]JL!BK29 -> 0 | BJ114: =BJ29-[3]JL!BL29 -> 0 | BK114: =BK29-[3]JL!BM29 -> 0 | BL114: =BL29-[3]JL!BN29 -> 0 | BM114: =BM29-[3]JL!BO29 -> 0 | BN114: =BN29-[3]JL!BP29 -> 0 | BO114: =BO29-[3]JL!BQ29 -> 0 | BP114: =BP29-[3]JL!BR29 -> 0 | BQ114: =BQ29-[3]JL!BS29 -> 0 | BR114: =BR29-[3]JL!BT29 -> 0 | BS114: =BS29-[3]JL!BU29 -> 0 | BT114: =BT29-[3]JL!BV29 -> 0 | BU114: =BU29-[3]JL!BW29 -> 0 | BV114: =BV29-[3]JL!BX29 -> 0 | BW114: =BW29-[3]JL!BY29 -> 0 | BX114: =BX29-[3]JL!BZ29 -> 0 | BY114: =BY29-[3]JL!CA29 -> 0 | BZ114: =BZ29-[3]JL!CB29 -> 0 | CA114: =CA29-[3]JL!CC29 -> 0 | CB114: =CB29-[3]JL!CD29 -> 0 | CC114: =CC29-[3]JL!CE29 -> 0 | CD114: =CD29-[3]JL!CF29 -> 0 | CE114: =CE29-[3]JL!CG29 -> 0 | CF114: =CF29-[3]JL!CH29 -> 0
A115: =A31-[3]JL!A31 -> 0 | B115: =B31-[3]JL!B31 -> 0 | C115: =C31-[3]JL!C31 -> 0 | D115: =D31-[3]JL!D31 -> 0 | E115: =E31-[3]JL!E31 -> 0 | F115: =F31-[3]JL!F31 -> 0 | G115: =G31-[3]JL!G31 -> 0 | H115: =H31-[3]JL!H31 -> 0 | I115: =I31-[3]JL!I31 -> 0 | J115: =J31-[3]JL!J31 -> 0 | K115: =K31-[3]JL!K31 -> 0 | L115: =L31-[3]JL!L31 -> 0 | M115: =M31-[3]JL!M31 -> 0 | N115: =N31-[3]JL!N31 -> 0 | O115: =O31-[3]JL!O31 -> 0 | P115: =P31-[3]JL!P31 -> 0 | Q115: =Q31-[3]JL!Q31 -> 0 | R115: =R31-[3]JL!R31 -> 0 | S115: =S31-[3]JL!S31 -> 0 | T115: =T31-[3]JL!T31 -> 0 | U115: =U31-[3]JL!U31 -> 0 | V115: =V31-[3]JL!V31 -> 0 | W115: =W31-[3]JL!W31 -> 0 | X115: =X31-[3]JL!X31 -> 0 | Y115: =Y31-[3]JL!Y31 -> 0 | Z115: =Z31-[3]JL!Z31 -> 0 | AA115: =AA31-[3]JL!AA31 -> 0 | AB115: =AB31-[3]JL!AB31 -> 0 | AC115: =AC31-[3]JL!AC31 -> 0 | AD115: =AD31-[3]JL!AD31 -> 0 | AE115: =AE31-[3]JL!AE31 -> 0 | AF115: =AF31-[3]JL!AF31 -> 0 | AG115: =AG31-[3]JL!AG31 -> 0 | AH115: =AH31-[3]JL!AH31 -> 0 | AI115: =AI31-[3]JL!AI31 -> 0 | AJ115: =AJ31-[3]JL!AJ31 -> 0 | AK115: =AK31-[3]JL!AK31 -> 0 | AL115: =AL31-[3]JL!AL31 -> 0 | AM115: =AM31-[3]JL!AM31 -> 0 | AN115: =AN30-[3]JL!AP30 -> 0 | AO115: =AO30-[3]JL!AQ30 -> 0 | AP115: =AP30-[3]JL!AR30 -> 0 | AQ115: =AQ30-[3]JL!AS30 -> 0 | AR115: =AR30-[3]JL!AT30 -> 0 | AS115: =AS30-[3]JL!AU30 -> 0 | AT115: =AT30-[3]JL!AV30 -> 0 | AU115: =AU30-[3]JL!AW30 -> 0 | AV115: =AV30-[3]JL!AX30 -> 0 | AW115: =AW30-[3]JL!AY30 -> 0 | AX115: =AX30-[3]JL!AZ30 -> 0 | AY115: =AY30-[3]JL!BA30 -> 0 | AZ115: =AZ30-[3]JL!BB30 -> 0 | BA115: =BA30-[3]JL!BC30 -> 0 | BB115: =BB30-[3]JL!BD30 -> 0 | BC115: =BC30-[3]JL!BE30 -> 0 | BD115: =BD30-[3]JL!BF30 -> 0 | BE115: =BE30-[3]JL!BG30 -> 0 | BF115: =BF30-[3]JL!BH30 -> 0 | BG115: =BG30-[3]JL!BI30 -> 0 | BH115: =BH30-[3]JL!BJ30 -> 0 | BI115: =BI30-[3]JL!BK30 -> 0 | BJ115: =BJ30-[3]JL!BL30 -> 0 | BK115: =BK30-[3]JL!BM30 -> 0 | BL115: =BL30-[3]JL!BN30 -> 0 | BM115: =BM30-[3]JL!BO30 -> 0 | BN115: =BN30-[3]JL!BP30 -> 0 | BO115: =BO30-[3]JL!BQ30 -> 0 | BP115: =BP30-[3]JL!BR30 -> 0 | BQ115: =BQ30-[3]JL!BS30 -> 0 | BR115: =BR30-[3]JL!BT30 -> 0 | BS115: =BS30-[3]JL!BU30 -> 0 | BT115: =BT30-[3]JL!BV30 -> 0 | BU115: =BU30-[3]JL!BW30 -> 0 | BV115: =BV30-[3]JL!BX30 -> 0 | BW115: =BW30-[3]JL!BY30 -> 0 | BX115: =BX30-[3]JL!BZ30 -> 0 | BY115: =BY30-[3]JL!CA30 -> 0 | BZ115: =BZ30-[3]JL!CB30 -> 0 | CA115: =CA30-[3]JL!CC30 -> 0 | CB115: =CB30-[3]JL!CD30 -> 0 | CC115: =CC30-[3]JL!CE30 -> 0 | CD115: =CD30-[3]JL!CF30 -> 0 | CE115: =CE30-[3]JL!CG30 -> 0 | CF115: =CF30-[3]JL!CH30 -> 0
A116: =A32-[3]JL!A32 -> 0 | B116: =B32-[3]JL!B32 -> 0 | C116: =C32-[3]JL!C32 -> 0 | D116: =D32-[3]JL!D32 -> 0 | E116: =E32-[3]JL!E32 -> 0 | F116: =F32-[3]JL!F32 -> 0 | G116: =G32-[3]JL!G32 -> 0 | H116: =H32-[3]JL!H32 -> 0 | I116: =I32-[3]JL!I32 -> 0 | J116: =J32-[3]JL!J32 -> 0 | K116: =K32-[3]JL!K32 -> 0 | L116: =L32-[3]JL!L32 -> 0 | M116: =M32-[3]JL!M32 -> 0 | N116: =N32-[3]JL!N32 -> 0 | O116: =O32-[3]JL!O32 -> 0 | P116: =P32-[3]JL!P32 -> 0 | Q116: =Q32-[3]JL!Q32 -> 0 | R116: =R32-[3]JL!R32 -> 0 | S116: =S32-[3]JL!S32 -> 0 | T116: =T32-[3]JL!T32 -> 0 | U116: =U32-[3]JL!U32 -> 0 | V116: =V32-[3]JL!V32 -> 0 | W116: =W32-[3]JL!W32 -> 0 | X116: =X32-[3]JL!X32 -> 0 | Y116: =Y32-[3]JL!Y32 -> 0 | Z116: =Z32-[3]JL!Z32 -> 0 | AA116: =AA32-[3]JL!AA32 -> 0 | AB116: =AB32-[3]JL!AB32 -> 0 | AC116: =AC32-[3]JL!AC32 -> 0 | AD116: =AD32-[3]JL!AD32 -> 0 | AE116: =AE32-[3]JL!AE32 -> 0 | AF116: =AF32-[3]JL!AF32 -> 0 | AG116: =AG32-[3]JL!AG32 -> 0 | AH116: =AH32-[3]JL!AH32 -> 0 | AI116: =AI32-[3]JL!AI32 -> 0 | AJ116: =AJ32-[3]JL!AJ32 -> 0 | AK116: =AK32-[3]JL!AK32 -> 0 | AL116: =AL32-[3]JL!AL32 -> 0 | AM116: =AM32-[3]JL!AM32 -> 0 | AN116: =AN31-[3]JL!AP31 -> 0 | AO116: =AO31-[3]JL!AQ31 -> 0 | AP116: =AP31-[3]JL!AR31 -> 0 | AQ116: =AQ31-[3]JL!AS31 -> 0 | AR116: =AR31-[3]JL!AT31 -> 0 | AS116: =AS31-[3]JL!AU31 -> 0 | AT116: =AT31-[3]JL!AV31 -> 0 | AU116: =AU31-[3]JL!AW31 -> 0 | AV116: =AV31-[3]JL!AX31 -> 0 | AW116: =AW31-[3]JL!AY31 -> 0 | AX116: =AX31-[3]JL!AZ31 -> 0 | AY116: =AY31-[3]JL!BA31 -> 0 | AZ116: =AZ31-[3]JL!BB31 -> 0 | BA116: =BA31-[3]JL!BC31 -> 0 | BB116: =BB31-[3]JL!BD31 -> 0 | BC116: =BC31-[3]JL!BE31 -> 0 | BD116: =BD31-[3]JL!BF31 -> 0 | BE116: =BE31-[3]JL!BG31 -> 0 | BF116: =BF31-[3]JL!BH31 -> 0 | BG116: =BG31-[3]JL!BI31 -> 0 | BH116: =BH31-[3]JL!BJ31 -> 0 | BI116: =BI31-[3]JL!BK31 -> 0 | BJ116: =BJ31-[3]JL!BL31 -> 0 | BK116: =BK31-[3]JL!BM31 -> 0 | BL116: =BL31-[3]JL!BN31 -> 0 | BM116: =BM31-[3]JL!BO31 -> 0 | BN116: =BN31-[3]JL!BP31 -> 0 | BO116: =BO31-[3]JL!BQ31 -> 0 | BP116: =BP31-[3]JL!BR31 -> 0 | BQ116: =BQ31-[3]JL!BS31 -> 0 | BR116: =BR31-[3]JL!BT31 -> 0 | BS116: =BS31-[3]JL!BU31 -> 0 | BT116: =BT31-[3]JL!BV31 -> 0 | BU116: =BU31-[3]JL!BW31 -> 0 | BV116: =BV31-[3]JL!BX31 -> 0 | BW116: =BW31-[3]JL!BY31 -> 0 | BX116: =BX31-[3]JL!BZ31 -> 0 | BY116: =BY31-[3]JL!CA31 -> 0 | BZ116: =BZ31-[3]JL!CB31 -> 0 | CA116: =CA31-[3]JL!CC31 -> 0 | CB116: =CB31-[3]JL!CD31 -> 0 | CC116: =CC31-[3]JL!CE31 -> 0 | CD116: =CD31-[3]JL!CF31 -> 0 | CE116: =CE31-[3]JL!CG31 -> 0 | CF116: =CF31-[3]JL!CH31 -> 0
A117: =A33-[3]JL!A33 -> 0 | B117: =B33-[3]JL!B33 -> 0 | C117: =C33-[3]JL!C33 -> 0 | D117: =D33-[3]JL!D33 -> 0 | E117: =E33-[3]JL!E33 -> 0 | F117: =F33-[3]JL!F33 -> 0 | G117: =G33-[3]JL!G33 -> 0 | H117: =H33-[3]JL!H33 -> 0 | I117: =I33-[3]JL!I33 -> 0 | J117: =J33-[3]JL!J33 -> 0 | K117: =K33-[3]JL!K33 -> 0 | L117: =L33-[3]JL!L33 -> 0 | M117: =M33-[3]JL!M33 -> 0 | N117: =N33-[3]JL!N33 -> 0 | O117: =O33-[3]JL!O33 -> 0 | P117: =P33-[3]JL!P33 -> 0 | Q117: =Q33-[3]JL!Q33 -> 0 | R117: =R33-[3]JL!R33 -> 0 | S117: =S33-[3]JL!S33 -> 0 | T117: =T33-[3]JL!T33 -> 0 | U117: =U33-[3]JL!U33 -> 0 | V117: =V33-[3]JL!V33 -> 0 | W117: =W33-[3]JL!W33 -> 0 | X117: =X33-[3]JL!X33 -> 0 | Y117: =Y33-[3]JL!Y33 -> 0 | Z117: =Z33-[3]JL!Z33 -> 0 | AA117: =AA33-[3]JL!AA33 -> 0 | AB117: =AB33-[3]JL!AB33 -> 0 | AC117: =AC33-[3]JL!AC33 -> 0 | AD117: =AD33-[3]JL!AD33 -> 0 | AE117: =AE33-[3]JL!AE33 -> 0 | AF117: =AF33-[3]JL!AF33 -> 0 | AG117: =AG33-[3]JL!AG33 -> 0 | AH117: =AH33-[3]JL!AH33 -> 0 | AI117: =AI33-[3]JL!AI33 -> 0 | AJ117: =AJ33-[3]JL!AJ33 -> 0 | AK117: =AK33-[3]JL!AK33 -> 0 | AL117: =AL33-[3]JL!AL33 -> 0 | AM117: =AM33-[3]JL!AM33 -> 0 | AN117: =AN32-[3]JL!AP32 -> 0 | AO117: =AO32-[3]JL!AQ32 -> 0 | AP117: =AP32-[3]JL!AR32 -> 0 | AQ117: =AQ32-[3]JL!AS32 -> 0 | AR117: =AR32-[3]JL!AT32 -> 0 | AS117: =AS32-[3]JL!AU32 -> 0 | AT117: =AT32-[3]JL!AV32 -> 0 | AU117: =AU32-[3]JL!AW32 -> 0 | AV117: =AV32-[3]JL!AX32 -> 0 | AW117: =AW32-[3]JL!AY32 -> 0 | AX117: =AX32-[3]JL!AZ32 -> 0 | AY117: =AY32-[3]JL!BA32 -> 0 | AZ117: =AZ32-[3]JL!BB32 -> 0 | BA117: =BA32-[3]JL!BC32 -> 0 | BB117: =BB32-[3]JL!BD32 -> 0 | BC117: =BC32-[3]JL!BE32 -> 0 | BD117: =BD32-[3]JL!BF32 -> 0 | BE117: =BE32-[3]JL!BG32 -> 0 | BF117: =BF32-[3]JL!BH32 -> 0 | BG117: =BG32-[3]JL!BI32 -> 0 | BH117: =BH32-[3]JL!BJ32 -> 0 | BI117: =BI32-[3]JL!BK32 -> 0 | BJ117: =BJ32-[3]JL!BL32 -> 0 | BK117: =BK32-[3]JL!BM32 -> 0 | BL117: =BL32-[3]JL!BN32 -> 0 | BM117: =BM32-[3]JL!BO32 -> 0 | BN117: =BN32-[3]JL!BP32 -> 0 | BO117: =BO32-[3]JL!BQ32 -> 0 | BP117: =BP32-[3]JL!BR32 -> 0 | BQ117: =BQ32-[3]JL!BS32 -> 0 | BR117: =BR32-[3]JL!BT32 -> 0 | BS117: =BS32-[3]JL!BU32 -> 0 | BT117: =BT32-[3]JL!BV32 -> 0 | BU117: =BU32-[3]JL!BW32 -> 0 | BV117: =BV32-[3]JL!BX32 -> 0 | BW117: =BW32-[3]JL!BY32 -> 0 | BX117: =BX32-[3]JL!BZ32 -> 0 | BY117: =BY32-[3]JL!CA32 -> 0 | BZ117: =BZ32-[3]JL!CB32 -> 0 | CA117: =CA32-[3]JL!CC32 -> 0 | CB117: =CB32-[3]JL!CD32 -> 0 | CC117: =CC32-[3]JL!CE32 -> 0 | CD117: =CD32-[3]JL!CF32 -> 0 | CE117: =CE32-[3]JL!CG32 -> 0 | CF117: =CF32-[3]JL!CH32 -> 0
A118: =A34-[3]JL!A34 -> 0 | B118: =B34-[3]JL!B34 -> 0 | C118: =C34-[3]JL!C34 -> 0 | D118: =D34-[3]JL!D34 -> 0 | E118: =E34-[3]JL!E34 -> 0 | F118: =F34-[3]JL!F34 -> 0 | G118: =G34-[3]JL!G34 -> 0 | H118: =H34-[3]JL!H34 -> 0 | I118: =I34-[3]JL!I34 -> 0 | J118: =J34-[3]JL!J34 -> 0 | K118: =K34-[3]JL!K34 -> 0 | L118: =L34-[3]JL!L34 -> 0 | M118: =M34-[3]JL!M34 -> 0 | N118: =N34-[3]JL!N34 -> 0 | O118: =O34-[3]JL!O34 -> 0 | P118: =P34-[3]JL!P34 -> 0 | Q118: =Q34-[3]JL!Q34 -> 0 | R118: =R34-[3]JL!R34 -> 0 | S118: =S34-[3]JL!S34 -> 0 | T118: =T34-[3]JL!T34 -> 0 | U118: =U34-[3]JL!U34 -> 0 | V118: =V34-[3]JL!V34 -> 0 | W118: =W34-[3]JL!W34 -> 0 | X118: =X34-[3]JL!X34 -> 0 | Y118: =Y34-[3]JL!Y34 -> 0 | Z118: =Z34-[3]JL!Z34 -> 0 | AA118: =AA34-[3]JL!AA34 -> 0 | AB118: =AB34-[3]JL!AB34 -> 0 | AC118: =AC34-[3]JL!AC34 -> 0 | AD118: =AD34-[3]JL!AD34 -> 0 | AE118: =AE34-[3]JL!AE34 -> 0 | AF118: =AF34-[3]JL!AF34 -> 0 | AG118: =AG34-[3]JL!AG34 -> 0 | AH118: =AH34-[3]JL!AH34 -> 0 | AI118: =AI34-[3]JL!AI34 -> 0 | AJ118: =AJ34-[3]JL!AJ34 -> 0 | AK118: =AK34-[3]JL!AK34 -> 0 | AL118: =AL34-[3]JL!AL34 -> 0 | AM118: =AM34-[3]JL!AM34 -> 0 | AN118: =AN33-[3]JL!AP33 -> 0 | AO118: =AO33-[3]JL!AQ33 -> 0 | AP118: =AP33-[3]JL!AR33 -> 0 | AQ118: =AQ33-[3]JL!AS33 -> 0 | AR118: =AR33-[3]JL!AT33 -> 0 | AS118: =AS33-[3]JL!AU33 -> 0 | AT118: =AT33-[3]JL!AV33 -> 0 | AU118: =AU33-[3]JL!AW33 -> 0 | AV118: =AV33-[3]JL!AX33 -> 0 | AW118: =AW33-[3]JL!AY33 -> 0 | AX118: =AX33-[3]JL!AZ33 -> 0 | AY118: =AY33-[3]JL!BA33 -> 0 | AZ118: =AZ33-[3]JL!BB33 -> 0 | BA118: =BA33-[3]JL!BC33 -> 0 | BB118: =BB33-[3]JL!BD33 -> 0 | BC118: =BC33-[3]JL!BE33 -> 0 | BD118: =BD33-[3]JL!BF33 -> 0 | BE118: =BE33-[3]JL!BG33 -> 0 | BF118: =BF33-[3]JL!BH33 -> 0 | BG118: =BG33-[3]JL!BI33 -> 0 | BH118: =BH33-[3]JL!BJ33 -> 0 | BI118: =BI33-[3]JL!BK33 -> 0 | BJ118: =BJ33-[3]JL!BL33 -> 0 | BK118: =BK33-[3]JL!BM33 -> 0 | BL118: =BL33-[3]JL!BN33 -> 0 | BM118: =BM33-[3]JL!BO33 -> 0 | BN118: =BN33-[3]JL!BP33 -> 0 | BO118: =BO33-[3]JL!BQ33 -> 0 | BP118: =BP33-[3]JL!BR33 -> 0 | BQ118: =BQ33-[3]JL!BS33 -> 0 | BR118: =BR33-[3]JL!BT33 -> 0 | BS118: =BS33-[3]JL!BU33 -> 0 | BT118: =BT33-[3]JL!BV33 -> 0 | BU118: =BU33-[3]JL!BW33 -> 0 | BV118: =BV33-[3]JL!BX33 -> 0 | BW118: =BW33-[3]JL!BY33 -> 0 | BX118: =BX33-[3]JL!BZ33 -> 0 | BY118: =BY33-[3]JL!CA33 -> 0 | BZ118: =BZ33-[3]JL!CB33 -> 0 | CA118: =CA33-[3]JL!CC33 -> 0 | CB118: =CB33-[3]JL!CD33 -> 0 | CC118: =CC33-[3]JL!CE33 -> 0 | CD118: =CD33-[3]JL!CF33 -> 0 | CE118: =CE33-[3]JL!CG33 -> 0 | CF118: =CF33-[3]JL!CH33 -> 0
A119: =A35-[3]JL!A35 -> 0 | B119: =B35-[3]JL!B35 -> 0 | C119: =C35-[3]JL!C35 -> 0 | D119: =D35-[3]JL!D35 -> 0 | E119: =E35-[3]JL!E35 -> 0 | F119: =F35-[3]JL!F35 -> 0 | G119: =G35-[3]JL!G35 -> 0 | H119: =H35-[3]JL!H35 -> 0 | I119: =I35-[3]JL!I35 -> 0 | J119: =J35-[3]JL!J35 -> 0 | K119: =K35-[3]JL!K35 -> 0 | L119: =L35-[3]JL!L35 -> 0 | M119: =M35-[3]JL!M35 -> 0 | N119: =N35-[3]JL!N35 -> 0 | O119: =O35-[3]JL!O35 -> 0 | P119: =P35-[3]JL!P35 -> 0 | Q119: =Q35-[3]JL!Q35 -> 0 | R119: =R35-[3]JL!R35 -> 0 | S119: =S35-[3]JL!S35 -> 0 | T119: =T35-[3]JL!T35 -> 0 | U119: =U35-[3]JL!U35 -> 0 | V119: =V35-[3]JL!V35 -> 0 | W119: =W35-[3]JL!W35 -> 0 | X119: =X35-[3]JL!X35 -> 0 | Y119: =Y35-[3]JL!Y35 -> 0 | Z119: =Z35-[3]JL!Z35 -> 0 | AA119: =AA35-[3]JL!AA35 -> 0 | AB119: =AB35-[3]JL!AB35 -> 0 | AC119: =AC35-[3]JL!AC35 -> 0 | AD119: =AD35-[3]JL!AD35 -> 0 | AE119: =AE35-[3]JL!AE35 -> 0 | AF119: =AF35-[3]JL!AF35 -> 0 | AG119: =AG35-[3]JL!AG35 -> 0 | AH119: =AH35-[3]JL!AH35 -> 0 | AI119: =AI35-[3]JL!AI35 -> 0 | AJ119: =AJ35-[3]JL!AJ35 -> 0 | AK119: =AK35-[3]JL!AK35 -> 0 | AL119: =AL35-[3]JL!AL35 -> 0 | AM119: =AM35-[3]JL!AM35 -> 0 | AN119: =AN34-[3]JL!AP34 -> 0 | AO119: =AO34-[3]JL!AQ34 -> 0 | AP119: =AP34-[3]JL!AR34 -> 0 | AQ119: =AQ34-[3]JL!AS34 -> 0 | AR119: =AR34-[3]JL!AT34 -> 0 | AS119: =AS34-[3]JL!AU34 -> 0 | AT119: =AT34-[3]JL!AV34 -> 0 | AU119: =AU34-[3]JL!AW34 -> 0 | AV119: =AV34-[3]JL!AX34 -> 0 | AW119: =AW34-[3]JL!AY34 -> 0 | AX119: =AX34-[3]JL!AZ34 -> 0 | AY119: =AY34-[3]JL!BA34 -> 0 | AZ119: =AZ34-[3]JL!BB34 -> 0 | BA119: =BA34-[3]JL!BC34 -> 0 | BB119: =BB34-[3]JL!BD34 -> 0 | BC119: =BC34-[3]JL!BE34 -> 0 | BD119: =BD34-[3]JL!BF34 -> 0 | BE119: =BE34-[3]JL!BG34 -> 0 | BF119: =BF34-[3]JL!BH34 -> 0 | BG119: =BG34-[3]JL!BI34 -> 0 | BH119: =BH34-[3]JL!BJ34 -> 0 | BI119: =BI34-[3]JL!BK34 -> 0 | BJ119: =BJ34-[3]JL!BL34 -> 0 | BK119: =BK34-[3]JL!BM34 -> 0 | BL119: =BL34-[3]JL!BN34 -> 0 | BM119: =BM34-[3]JL!BO34 -> 0 | BN119: =BN34-[3]JL!BP34 -> 0 | BO119: =BO34-[3]JL!BQ34 -> 0 | BP119: =BP34-[3]JL!BR34 -> 0 | BQ119: =BQ34-[3]JL!BS34 -> 0 | BR119: =BR34-[3]JL!BT34 -> 0 | BS119: =BS34-[3]JL!BU34 -> 0 | BT119: =BT34-[3]JL!BV34 -> 0 | BU119: =BU34-[3]JL!BW34 -> 0 | BV119: =BV34-[3]JL!BX34 -> 0 | BW119: =BW34-[3]JL!BY34 -> 0 | BX119: =BX34-[3]JL!BZ34 -> 0 | BY119: =BY34-[3]JL!CA34 -> 0 | BZ119: =BZ34-[3]JL!CB34 -> 0 | CA119: =CA34-[3]JL!CC34 -> 0 | CB119: =CB34-[3]JL!CD34 -> 0 | CC119: =CC34-[3]JL!CE34 -> 0 | CD119: =CD34-[3]JL!CF34 -> 0 | CE119: =CE34-[3]JL!CG34 -> 0 | CF119: =CF34-[3]JL!CH34 -> 0
A120: =A36-[3]JL!A36 -> 0 | B120: =B36-[3]JL!B36 -> 0 | C120: =C36-[3]JL!C36 -> 0 | D120: =D36-[3]JL!D36 -> 0 | E120: =E36-[3]JL!E36 -> 0 | F120: =F36-[3]JL!F36 -> 0 | G120: =G36-[3]JL!G36 -> 0 | H120: =H36-[3]JL!H36 -> 0 | I120: =I36-[3]JL!I36 -> 0 | J120: =J36-[3]JL!J36 -> 0 | K120: =K36-[3]JL!K36 -> 0 | L120: =L36-[3]JL!L36 -> 0 | M120: =M36-[3]JL!M36 -> 0 | N120: =N36-[3]JL!N36 -> 0 | O120: =O36-[3]JL!O36 -> 0 | P120: =P36-[3]JL!P36 -> 0 | Q120: =Q36-[3]JL!Q36 -> 0 | R120: =R36-[3]JL!R36 -> 0 | S120: =S36-[3]JL!S36 -> 0 | T120: =T36-[3]JL!T36 -> 0 | U120: =U36-[3]JL!U36 -> 0 | V120: =V36-[3]JL!V36 -> 0 | W120: =W36-[3]JL!W36 -> 0 | X120: =X36-[3]JL!X36 -> 0 | Y120: =Y36-[3]JL!Y36 -> 0 | Z120: =Z36-[3]JL!Z36 -> 0 | AA120: =AA36-[3]JL!AA36 -> 0 | AB120: =AB36-[3]JL!AB36 -> 0 | AC120: =AC36-[3]JL!AC36 -> 0 | AD120: =AD36-[3]JL!AD36 -> 0 | AE120: =AE36-[3]JL!AE36 -> 0 | AF120: =AF36-[3]JL!AF36 -> 0 | AG120: =AG36-[3]JL!AG36 -> 0 | AH120: =AH36-[3]JL!AH36 -> 0 | AI120: =AI36-[3]JL!AI36 -> 0 | AJ120: =AJ36-[3]JL!AJ36 -> 0 | AK120: =AK36-[3]JL!AK36 -> 0 | AL120: =AL36-[3]JL!AL36 -> 0 | AM120: =AM36-[3]JL!AM36 -> 0 | AN120: =AN35-[3]JL!AP35 -> 0 | AO120: =AO35-[3]JL!AQ35 -> 0 | AP120: =AP35-[3]JL!AR35 -> 0 | AQ120: =AQ35-[3]JL!AS35 -> 0 | AR120: =AR35-[3]JL!AT35 -> 0 | AS120: =AS35-[3]JL!AU35 -> 0 | AT120: =AT35-[3]JL!AV35 -> 0 | AU120: =AU35-[3]JL!AW35 -> 0 | AV120: =AV35-[3]JL!AX35 -> 0 | AW120: =AW35-[3]JL!AY35 -> 0 | AX120: =AX35-[3]JL!AZ35 -> 0 | AY120: =AY35-[3]JL!BA35 -> 0 | AZ120: =AZ35-[3]JL!BB35 -> 0 | BA120: =BA35-[3]JL!BC35 -> 0 | BB120: =BB35-[3]JL!BD35 -> 0 | BC120: =BC35-[3]JL!BE35 -> 0 | BD120: =BD35-[3]JL!BF35 -> 0 | BE120: =BE35-[3]JL!BG35 -> 0 | BF120: =BF35-[3]JL!BH35 -> 0 | BG120: =BG35-[3]JL!BI35 -> 0 | BH120: =BH35-[3]JL!BJ35 -> 0 | BI120: =BI35-[3]JL!BK35 -> 0 | BJ120: =BJ35-[3]JL!BL35 -> 0 | BK120: =BK35-[3]JL!BM35 -> 0 | BL120: =BL35-[3]JL!BN35 -> 0 | BM120: =BM35-[3]JL!BO35 -> 0 | BN120: =BN35-[3]JL!BP35 -> 0 | BO120: =BO35-[3]JL!BQ35 -> 0 | BP120: =BP35-[3]JL!BR35 -> 0 | BQ120: =BQ35-[3]JL!BS35 -> 0 | BR120: =BR35-[3]JL!BT35 -> 0 | BS120: =BS35-[3]JL!BU35 -> 0 | BT120: =BT35-[3]JL!BV35 -> 0 | BU120: =BU35-[3]JL!BW35 -> 0 | BV120: =BV35-[3]JL!BX35 -> 0 | BW120: =BW35-[3]JL!BY35 -> 0 | BX120: =BX35-[3]JL!BZ35 -> 0 | BY120: =BY35-[3]JL!CA35 -> 0 | BZ120: =BZ35-[3]JL!CB35 -> 0 | CA120: =CA35-[3]JL!CC35 -> 0 | CB120: =CB35-[3]JL!CD35 -> 0 | CC120: =CC35-[3]JL!CE35 -> 0 | CD120: =CD35-[3]JL!CF35 -> 0 | CE120: =CE35-[3]JL!CG35 -> 0 | CF120: =CF35-[3]JL!CH35 -> 0
A121: =A37-[3]JL!A37 -> 0 | B121: =B37-[3]JL!B37 -> 0 | C121: =C37-[3]JL!C37 -> 0 | D121: =D37-[3]JL!D37 -> 0 | E121: =E37-[3]JL!E37 -> 0 | F121: =F37-[3]JL!F37 -> 0 | G121: =G37-[3]JL!G37 -> 0 | H121: =H37-[3]JL!H37 -> 0 | I121: =I37-[3]JL!I37 -> 0 | J121: =J37-[3]JL!J37 -> 0 | K121: =K37-[3]JL!K37 -> 0 | L121: =L37-[3]JL!L37 -> 0 | M121: =M37-[3]JL!M37 -> 0 | N121: =N37-[3]JL!N37 -> 0 | O121: =O37-[3]JL!O37 -> 0 | P121: =P37-[3]JL!P37 -> 0 | Q121: =Q37-[3]JL!Q37 -> 0 | R121: =R37-[3]JL!R37 -> 0 | S121: =S37-[3]JL!S37 -> 0 | T121: =T37-[3]JL!T37 -> 0 | U121: =U37-[3]JL!U37 -> 0 | V121: =V37-[3]JL!V37 -> 0 | W121: =W37-[3]JL!W37 -> 0 | X121: =X37-[3]JL!X37 -> 0 | Y121: =Y37-[3]JL!Y37 -> 0 | Z121: =Z37-[3]JL!Z37 -> 0 | AA121: =AA37-[3]JL!AA37 -> 0 | AB121: =AB37-[3]JL!AB37 -> 0 | AC121: =AC37-[3]JL!AC37 -> 0 | AD121: =AD37-[3]JL!AD37 -> 0 | AE121: =AE37-[3]JL!AE37 -> 0 | AF121: =AF37-[3]JL!AF37 -> 0 | AG121: =AG37-[3]JL!AG37 -> 0 | AH121: =AH37-[3]JL!AH37 -> 0 | AI121: =AI37-[3]JL!AI37 -> 0 | AJ121: =AJ37-[3]JL!AJ37 -> 0 | AK121: =AK37-[3]JL!AK37 -> 0 | AL121: =AL37-[3]JL!AL37 -> 0 | AM121: =AM37-[3]JL!AM37 -> 0 | AN121: =AN36-[3]JL!AP36 -> 0 | AO121: =AO36-[3]JL!AQ36 -> 0 | AP121: =AP36-[3]JL!AR36 -> 0 | AQ121: =AQ36-[3]JL!AS36 -> 0 | AR121: =AR36-[3]JL!AT36 -> 0 | AS121: =AS36-[3]JL!AU36 -> 0 | AT121: =AT36-[3]JL!AV36 -> 0 | AU121: =AU36-[3]JL!AW36 -> 0 | AV121: =AV36-[3]JL!AX36 -> 0 | AW121: =AW36-[3]JL!AY36 -> 0 | AX121: =AX36-[3]JL!AZ36 -> 0 | AY121: =AY36-[3]JL!BA36 -> 0 | AZ121: =AZ36-[3]JL!BB36 -> 0 | BA121: =BA36-[3]JL!BC36 -> 0 | BB121: =BB36-[3]JL!BD36 -> 0 | BC121: =BC36-[3]JL!BE36 -> 0 | BD121: =BD36-[3]JL!BF36 -> 0 | BE121: =BE36-[3]JL!BG36 -> 0 | BF121: =BF36-[3]JL!BH36 -> 0 | BG121: =BG36-[3]JL!BI36 -> 0 | BH121: =BH36-[3]JL!BJ36 -> 0 | BI121: =BI36-[3]JL!BK36 -> 0 | BJ121: =BJ36-[3]JL!BL36 -> 0 | BK121: =BK36-[3]JL!BM36 -> 0 | BL121: =BL36-[3]JL!BN36 -> 0 | BM121: =BM36-[3]JL!BO36 -> 0 | BN121: =BN36-[3]JL!BP36 -> 0 | BO121: =BO36-[3]JL!BQ36 -> 0 | BP121: =BP36-[3]JL!BR36 -> 0 | BQ121: =BQ36-[3]JL!BS36 -> 0 | BR121: =BR36-[3]JL!BT36 -> 0 | BS121: =BS36-[3]JL!BU36 -> 0 | BT121: =BT36-[3]JL!BV36 -> 0 | BU121: =BU36-[3]JL!BW36 -> 0 | BV121: =BV36-[3]JL!BX36 -> 0 | BW121: =BW36-[3]JL!BY36 -> 0 | BX121: =BX36-[3]JL!BZ36 -> 0 | BY121: =BY36-[3]JL!CA36 -> 0 | BZ121: =BZ36-[3]JL!CB36 -> 0 | CA121: =CA36-[3]JL!CC36 -> 0 | CB121: =CB36-[3]JL!CD36 -> 0 | CC121: =CC36-[3]JL!CE36 -> 0 | CD121: =CD36-[3]JL!CF36 -> 0 | CE121: =CE36-[3]JL!CG36 -> 0 | CF121: =CF36-[3]JL!CH36 -> 0
A122: =A38-[3]JL!A38 -> 0 | B122: =B38-[3]JL!B38 -> 0 | C122: =C38-[3]JL!C38 -> 0 | D122: =D38-[3]JL!D38 -> 0 | E122: =E38-[3]JL!E38 -> 0 | F122: =F38-[3]JL!F38 -> 0 | G122: =G38-[3]JL!G38 -> 0 | H122: =H38-[3]JL!H38 -> 0 | I122: =I38-[3]JL!I38 -> 0 | J122: =J38-[3]JL!J38 -> 0 | K122: =K38-[3]JL!K38 -> 0 | L122: =L38-[3]JL!L38 -> 0 | M122: =M38-[3]JL!M38 -> 0 | N122: =N38-[3]JL!N38 -> 0 | O122: =O38-[3]JL!O38 -> 0 | P122: =P38-[3]JL!P38 -> 0 | Q122: =Q38-[3]JL!Q38 -> 0 | R122: =R38-[3]JL!R38 -> 0 | S122: =S38-[3]JL!S38 -> 0 | T122: =T38-[3]JL!T38 -> 0 | U122: =U38-[3]JL!U38 -> 0 | V122: =V38-[3]JL!V38 -> 0 | W122: =W38-[3]JL!W38 -> 0 | X122: =X38-[3]JL!X38 -> 0 | Y122: =Y38-[3]JL!Y38 -> 0 | Z122: =Z38-[3]JL!Z38 -> 0 | AA122: =AA38-[3]JL!AA38 -> 0 | AB122: =AB38-[3]JL!AB38 -> 0 | AC122: =AC38-[3]JL!AC38 -> 0 | AD122: =AD38-[3]JL!AD38 -> 0 | AE122: =AE38-[3]JL!AE38 -> 0 | AF122: =AF38-[3]JL!AF38 -> 0 | AG122: =AG38-[3]JL!AG38 -> 0 | AH122: =AH38-[3]JL!AH38 -> 0 | AI122: =AI38-[3]JL!AI38 -> 0 | AJ122: =AJ38-[3]JL!AJ38 -> 0 | AK122: =AK38-[3]JL!AK38 -> 0 | AL122: =AL38-[3]JL!AL38 -> 0 | AM122: =AM38-[3]JL!AM38 -> 0 | AN122: =AN37-[3]JL!AP37 -> 0 | AO122: =AO37-[3]JL!AQ37 -> 0 | AP122: =AP37-[3]JL!AR37 -> 0 | AQ122: =AQ37-[3]JL!AS37 -> 0 | AR122: =AR37-[3]JL!AT37 -> 0 | AS122: =AS37-[3]JL!AU37 -> 0 | AT122: =AT37-[3]JL!AV37 -> 0 | AU122: =AU37-[3]JL!AW37 -> 0 | AV122: =AV37-[3]JL!AX37 -> 0 | AW122: =AW37-[3]JL!AY37 -> 0 | AX122: =AX37-[3]JL!AZ37 -> 0 | AY122: =AY37-[3]JL!BA37 -> 0 | AZ122: =AZ37-[3]JL!BB37 -> 0 | BA122: =BA37-[3]JL!BC37 -> 0 | BB122: =BB37-[3]JL!BD37 -> 0 | BC122: =BC37-[3]JL!BE37 -> 0 | BD122: =BD37-[3]JL!BF37 -> 0 | BE122: =BE37-[3]JL!BG37 -> 0 | BF122: =BF37-[3]JL!BH37 -> 0 | BG122: =BG37-[3]JL!BI37 -> 0 | BH122: =BH37-[3]JL!BJ37 -> 0 | BI122: =BI37-[3]JL!BK37 -> 0 | BJ122: =BJ37-[3]JL!BL37 -> 0 | BK122: =BK37-[3]JL!BM37 -> 0 | BL122: =BL37-[3]JL!BN37 -> 0 | BM122: =BM37-[3]JL!BO37 -> 0 | BN122: =BN37-[3]JL!BP37 -> 0 | BO122: =BO37-[3]JL!BQ37 -> 0 | BP122: =BP37-[3]JL!BR37 -> 0 | BQ122: =BQ37-[3]JL!BS37 -> 0 | BR122: =BR37-[3]JL!BT37 -> 0 | BS122: =BS37-[3]JL!BU37 -> 0 | BT122: =BT37-[3]JL!BV37 -> 0 | BU122: =BU37-[3]JL!BW37 -> 0 | BV122: =BV37-[3]JL!BX37 -> 0 | BW122: =BW37-[3]JL!BY37 -> 0 | BX122: =BX37-[3]JL!BZ37 -> 0 | BY122: =BY37-[3]JL!CA37 -> 0 | BZ122: =BZ37-[3]JL!CB37 -> 0 | CA122: =CA37-[3]JL!CC37 -> 0 | CB122: =CB37-[3]JL!CD37 -> 0 | CC122: =CC37-[3]JL!CE37 -> 0 | CD122: =CD37-[3]JL!CF37 -> 0 | CE122: =CE37-[3]JL!CG37 -> 0 | CF122: =CF37-[3]JL!CH37 -> 0
A123: =A39-[3]JL!A39 -> 0 | B123: =B39-[3]JL!B39 -> 0 | C123: =C39-[3]JL!C39 -> 0 | D123: =D39-[3]JL!D39 -> 0 | E123: =E39-[3]JL!E39 -> 0 | F123: =F39-[3]JL!F39 -> 0 | G123: =G39-[3]JL!G39 -> 0 | H123: =H39-[3]JL!H39 -> 0 | I123: =I39-[3]JL!I39 -> 0 | J123: =J39-[3]JL!J39 -> 0 | K123: =K39-[3]JL!K39 -> 0 | L123: =L39-[3]JL!L39 -> 0 | M123: =M39-[3]JL!M39 -> 0 | N123: =N39-[3]JL!N39 -> 0 | O123: =O39-[3]JL!O39 -> 0 | P123: =P39-[3]JL!P39 -> 0 | Q123: =Q39-[3]JL!Q39 -> 0 | R123: =R39-[3]JL!R39 -> 0 | S123: =S39-[3]JL!S39 -> 0 | T123: =T39-[3]JL!T39 -> 0 | U123: =U39-[3]JL!U39 -> 0 | V123: =V39-[3]JL!V39 -> 0 | W123: =W39-[3]JL!W39 -> 0 | X123: =X39-[3]JL!X39 -> 0 | Y123: =Y39-[3]JL!Y39 -> 0 | Z123: =Z39-[3]JL!Z39 -> 0 | AA123: =AA39-[3]JL!AA39 -> 0 | AB123: =AB39-[3]JL!AB39 -> 0 | AC123: =AC39-[3]JL!AC39 -> 0 | AD123: =AD39-[3]JL!AD39 -> 0 | AE123: =AE39-[3]JL!AE39 -> 0 | AF123: =AF39-[3]JL!AF39 -> 0 | AG123: =AG39-[3]JL!AG39 -> 0 | AH123: =AH39-[3]JL!AH39 -> 0 | AI123: =AI39-[3]JL!AI39 -> 0 | AJ123: =AJ39-[3]JL!AJ39 -> 0 | AK123: =AK39-[3]JL!AK39 -> 0 | AL123: =AL39-[3]JL!AL39 -> 0 | AM123: =AM39-[3]JL!AM39 -> 0 | AN123: =AN38-[3]JL!AP38 -> 0 | AO123: =AO38-[3]JL!AQ38 -> 0 | AP123: =AP38-[3]JL!AR38 -> 0 | AQ123: =AQ38-[3]JL!AS38 -> 0 | AR123: =AR38-[3]JL!AT38 -> 0 | AS123: =AS38-[3]JL!AU38 -> 0 | AT123: =AT38-[3]JL!AV38 -> 0 | AU123: =AU38-[3]JL!AW38 -> 0 | AV123: =AV38-[3]JL!AX38 -> 0 | AW123: =AW38-[3]JL!AY38 -> 0 | AX123: =AX38-[3]JL!AZ38 -> 0 | AY123: =AY38-[3]JL!BA38 -> 0 | AZ123: =AZ38-[3]JL!BB38 -> 0 | BA123: =BA38-[3]JL!BC38 -> 0 | BB123: =BB38-[3]JL!BD38 -> 0 | BC123: =BC38-[3]JL!BE38 -> 0 | BD123: =BD38-[3]JL!BF38 -> 0 | BE123: =BE38-[3]JL!BG38 -> 0 | BF123: =BF38-[3]JL!BH38 -> 0 | BG123: =BG38-[3]JL!BI38 -> 0 | BH123: =BH38-[3]JL!BJ38 -> 0 | BI123: =BI38-[3]JL!BK38 -> 0 | BJ123: =BJ38-[3]JL!BL38 -> 0 | BK123: =BK38-[3]JL!BM38 -> 0 | BL123: =BL38-[3]JL!BN38 -> 0 | BM123: =BM38-[3]JL!BO38 -> 0 | BN123: =BN38-[3]JL!BP38 -> 0 | BO123: =BO38-[3]JL!BQ38 -> 0 | BP123: =BP38-[3]JL!BR38 -> 0 | BQ123: =BQ38-[3]JL!BS38 -> 0 | BR123: =BR38-[3]JL!BT38 -> 0 | BS123: =BS38-[3]JL!BU38 -> 0 | BT123: =BT38-[3]JL!BV38 -> 0 | BU123: =BU38-[3]JL!BW38 -> 0 | BV123: =BV38-[3]JL!BX38 -> 0 | BW123: =BW38-[3]JL!BY38 -> 0 | BX123: =BX38-[3]JL!BZ38 -> 0 | BY123: =BY38-[3]JL!CA38 -> 0 | BZ123: =BZ38-[3]JL!CB38 -> 0 | CA123: =CA38-[3]JL!CC38 -> 0 | CB123: =CB38-[3]JL!CD38 -> 0 | CC123: =CC38-[3]JL!CE38 -> 0 | CD123: =CD38-[3]JL!CF38 -> 0 | CE123: =CE38-[3]JL!CG38 -> 0 | CF123: =CF38-[3]JL!CH38 -> 0
A124: =A40-[3]JL!A40 -> 0 | B124: =B40-[3]JL!B40 -> 0 | C124: =C40-[3]JL!C40 -> 0 | D124: =D40-[3]JL!D40 -> 0 | E124: =E40-[3]JL!E40 -> 0 | F124: =F40-[3]JL!F40 -> 0 | G124: =G40-[3]JL!G40 -> 0 | H124: =H40-[3]JL!H40 -> 0 | I124: =I40-[3]JL!I40 -> 0 | J124: =J40-[3]JL!J40 -> 0 | K124: =K40-[3]JL!K40 -> 0 | L124: =L40-[3]JL!L40 -> 0 | M124: =M40-[3]JL!M40 -> 0 | N124: =N40-[3]JL!N40 -> 0 | O124: =O40-[3]JL!O40 -> 0 | P124: =P40-[3]JL!P40 -> 0 | Q124: =Q40-[3]JL!Q40 -> 0 | R124: =R40-[3]JL!R40 -> 0 | S124: =S40-[3]JL!S40 -> 0 | T124: =T40-[3]JL!T40 -> 0 | U124: =U40-[3]JL!U40 -> 0 | V124: =V40-[3]JL!V40 -> 0 | W124: =W40-[3]JL!W40 -> 0 | X124: =X40-[3]JL!X40 -> 0 | Y124: =Y40-[3]JL!Y40 -> 0 | Z124: =Z40-[3]JL!Z40 -> 0 | AA124: =AA40-[3]JL!AA40 -> 0 | AB124: =AB40-[3]JL!AB40 -> 0 | AC124: =AC40-[3]JL!AC40 -> 0 | AD124: =AD40-[3]JL!AD40 -> 0 | AE124: =AE40-[3]JL!AE40 -> 0 | AF124: =AF40-[3]JL!AF40 -> 0 | AG124: =AG40-[3]JL!AG40 -> 0 | AH124: =AH40-[3]JL!AH40 -> 0 | AI124: =AI40-[3]JL!AI40 -> 0 | AJ124: =AJ40-[3]JL!AJ40 -> 0 | AK124: =AK40-[3]JL!AK40 -> 0 | AL124: =AL40-[3]JL!AL40 -> 0 | AM124: =AM40-[3]JL!AM40 -> 0 | AN124: =AN39-[3]JL!AP39 -> 0 | AO124: =AO39-[3]JL!AQ39 -> 0 | AP124: =AP39-[3]JL!AR39 -> 0 | AQ124: =AQ39-[3]JL!AS39 -> 0 | AR124: =AR39-[3]JL!AT39 -> 0 | AS124: =AS39-[3]JL!AU39 -> 0 | AT124: =AT39-[3]JL!AV39 -> 0 | AU124: =AU39-[3]JL!AW39 -> 0 | AV124: =AV39-[3]JL!AX39 -> 0 | AW124: =AW39-[3]JL!AY39 -> 0 | AX124: =AX39-[3]JL!AZ39 -> 0 | AY124: =AY39-[3]JL!BA39 -> 0 | AZ124: =AZ39-[3]JL!BB39 -> 0 | BA124: =BA39-[3]JL!BC39 -> 0 | BB124: =BB39-[3]JL!BD39 -> 0 | BC124: =BC39-[3]JL!BE39 -> 0 | BD124: =BD39-[3]JL!BF39 -> 0 | BE124: =BE39-[3]JL!BG39 -> 0 | BF124: =BF39-[3]JL!BH39 -> 0 | BG124: =BG39-[3]JL!BI39 -> 0 | BH124: =BH39-[3]JL!BJ39 -> 0 | BI124: =BI39-[3]JL!BK39 -> 0 | BJ124: =BJ39-[3]JL!BL39 -> 0 | BK124: =BK39-[3]JL!BM39 -> 0 | BL124: =BL39-[3]JL!BN39 -> 0 | BM124: =BM39-[3]JL!BO39 -> 0 | BN124: =BN39-[3]JL!BP39 -> 0 | BO124: =BO39-[3]JL!BQ39 -> 0 | BP124: =BP39-[3]JL!BR39 -> 0 | BQ124: =BQ39-[3]JL!BS39 -> 0 | BR124: =BR39-[3]JL!BT39 -> 0 | BS124: =BS39-[3]JL!BU39 -> 0 | BT124: =BT39-[3]JL!BV39 -> 0 | BU124: =BU39-[3]JL!BW39 -> 0 | BV124: =BV39-[3]JL!BX39 -> 0 | BW124: =BW39-[3]JL!BY39 -> 0 | BX124: =BX39-[3]JL!BZ39 -> 0 | BY124: =BY39-[3]JL!CA39 -> 0 | BZ124: =BZ39-[3]JL!CB39 -> 0 | CA124: =CA39-[3]JL!CC39 -> 0 | CB124: =CB39-[3]JL!CD39 -> 0 | CC124: =CC39-[3]JL!CE39 -> 0 | CD124: =CD39-[3]JL!CF39 -> 0 | CE124: =CE39-[3]JL!CG39 -> 0 | CF124: =CF39-[3]JL!CH39 -> 0
A125: =A41-[3]JL!A41 -> 0 | B125: =B41-[3]JL!B41 -> 0 | C125: =C41-[3]JL!C41 -> 0 | D125: =D41-[3]JL!D41 -> 0 | E125: =E41-[3]JL!E41 -> 0 | F125: =F41-[3]JL!F41 -> 0 | G125: =G41-[3]JL!G41 -> 0 | H125: =H41-[3]JL!H41 -> 0 | I125: =I41-[3]JL!I41 -> 0 | J125: =J41-[3]JL!J41 -> 0 | K125: =K41-[3]JL!K41 -> 0 | L125: =L41-[3]JL!L41 -> 0 | M125: =M41-[3]JL!M41 -> 0 | N125: =N41-[3]JL!N41 -> 0 | O125: =O41-[3]JL!O41 -> 0 | P125: =P41-[3]JL!P41 -> 0 | Q125: =Q41-[3]JL!Q41 -> 0 | R125: =R41-[3]JL!R41 -> 0 | S125: =S41-[3]JL!S41 -> 0 | T125: =T41-[3]JL!T41 -> 0 | U125: =U41-[3]JL!U41 -> 0 | V125: =V41-[3]JL!V41 -> 0 | W125: =W41-[3]JL!W41 -> 0 | X125: =X41-[3]JL!X41 -> 0 | Y125: =Y41-[3]JL!Y41 -> 0 | Z125: =Z41-[3]JL!Z41 -> 0 | AA125: =AA41-[3]JL!AA41 -> 0 | AB125: =AB41-[3]JL!AB41 -> 0 | AC125: =AC41-[3]JL!AC41 -> 0 | AD125: =AD41-[3]JL!AD41 -> 0 | AE125: =AE41-[3]JL!AE41 -> 0 | AF125: =AF41-[3]JL!AF41 -> 0 | AG125: =AG41-[3]JL!AG41 -> 0 | AH125: =AH41-[3]JL!AH41 -> 0 | AI125: =AI41-[3]JL!AI41 -> 0 | AJ125: =AJ41-[3]JL!AJ41 -> 0 | AK125: =AK41-[3]JL!AK41 -> 0 | AL125: =AL41-[3]JL!AL41 -> 0 | AM125: =AM41-[3]JL!AM41 -> 0 | AN125: =AN40-[3]JL!AP40 -> 0 | AO125: =AO40-[3]JL!AQ40 -> 0 | AP125: =AP40-[3]JL!AR40 -> 0 | AQ125: =AQ40-[3]JL!AS40 -> 0 | AR125: =AR40-[3]JL!AT40 -> 0 | AS125: =AS40-[3]JL!AU40 -> 0 | AT125: =AT40-[3]JL!AV40 -> 0 | AU125: =AU40-[3]JL!AW40 -> 0 | AV125: =AV40-[3]JL!AX40 -> 0 | AW125: =AW40-[3]JL!AY40 -> 0 | AX125: =AX40-[3]JL!AZ40 -> 0 | AY125: =AY40-[3]JL!BA40 -> 0 | AZ125: =AZ40-[3]JL!BB40 -> 0 | BA125: =BA40-[3]JL!BC40 -> 0 | BB125: =BB40-[3]JL!BD40 -> 0 | BC125: =BC40-[3]JL!BE40 -> 0 | BD125: =BD40-[3]JL!BF40 -> 0 | BE125: =BE40-[3]JL!BG40 -> 0 | BF125: =BF40-[3]JL!BH40 -> 0 | BG125: =BG40-[3]JL!BI40 -> 0 | BH125: =BH40-[3]JL!BJ40 -> 0 | BI125: =BI40-[3]JL!BK40 -> 0 | BJ125: =BJ40-[3]JL!BL40 -> 0 | BK125: =BK40-[3]JL!BM40 -> 0 | BL125: =BL40-[3]JL!BN40 -> 0 | BM125: =BM40-[3]JL!BO40 -> 0 | BN125: =BN40-[3]JL!BP40 -> 0 | BO125: =BO40-[3]JL!BQ40 -> 0 | BP125: =BP40-[3]JL!BR40 -> 0 | BQ125: =BQ40-[3]JL!BS40 -> 0 | BR125: =BR40-[3]JL!BT40 -> 0 | BS125: =BS40-[3]JL!BU40 -> 0 | BT125: =BT40-[3]JL!BV40 -> 0 | BU125: =BU40-[3]JL!BW40 -> 0 | BV125: =BV40-[3]JL!BX40 -> 0 | BW125: =BW40-[3]JL!BY40 -> 0 | BX125: =BX40-[3]JL!BZ40 -> 0 | BY125: =BY40-[3]JL!CA40 -> 0 | BZ125: =BZ40-[3]JL!CB40 -> 0 | CA125: =CA40-[3]JL!CC40 -> 0 | CB125: =CB40-[3]JL!CD40 -> 0 | CC125: =CC40-[3]JL!CE40 -> 0 | CD125: =CD40-[3]JL!CF40 -> 0 | CE125: =CE40-[3]JL!CG40 -> 0 | CF125: =CF40-[3]JL!CH40 -> 0
A126: =A42-[3]JL!A42 -> 0 | B126: =B42-[3]JL!B42 -> 0 | C126: =C42-[3]JL!C42 -> 0 | D126: =D42-[3]JL!D42 -> 0 | E126: =E42-[3]JL!E42 -> 0 | F126: =F42-[3]JL!F42 -> 0 | G126: =G42-[3]JL!G42 -> 0 | H126: =H42-[3]JL!H42 -> 0 | I126: =I42-[3]JL!I42 -> 0 | J126: =J42-[3]JL!J42 -> 0 | K126: =K42-[3]JL!K42 -> 0 | L126: =L42-[3]JL!L42 -> 0 | M126: =M42-[3]JL!M42 -> 0 | N126: =N42-[3]JL!N42 -> 0 | O126: =O42-[3]JL!O42 -> 0 | P126: =P42-[3]JL!P42 -> 0 | Q126: =Q42-[3]JL!Q42 -> 0 | R126: =R42-[3]JL!R42 -> 0 | S126: =S42-[3]JL!S42 -> 0 | T126: =T42-[3]JL!T42 -> 0 | U126: =U42-[3]JL!U42 -> 0 | V126: =V42-[3]JL!V42 -> 0 | W126: =W42-[3]JL!W42 -> 0 | X126: =X42-[3]JL!X42 -> 0 | Y126: =Y42-[3]JL!Y42 -> 0 | Z126: =Z42-[3]JL!Z42 -> 0 | AA126: =AA42-[3]JL!AA42 -> 0 | AB126: =AB42-[3]JL!AB42 -> 0 | AC126: =AC42-[3]JL!AC42 -> 0 | AD126: =AD42-[3]JL!AD42 -> 0 | AE126: =AE42-[3]JL!AE42 -> 0 | AF126: =AF42-[3]JL!AF42 -> 0 | AG126: =AG42-[3]JL!AG42 -> 0 | AH126: =AH42-[3]JL!AH42 -> 0 | AI126: =AI42-[3]JL!AI42 -> 0 | AJ126: =AJ42-[3]JL!AJ42 -> 0 | AK126: =AK42-[3]JL!AK42 -> 0 | AL126: =AL42-[3]JL!AL42 -> 0 | AM126: =AM42-[3]JL!AM42 -> 0 | AN126: =AN41-[3]JL!AP41 -> 0 | AO126: =AO41-[3]JL!AQ41 -> 0 | AP126: =AP41-[3]JL!AR41 -> 0 | AQ126: =AQ41-[3]JL!AS41 -> 0 | AR126: =AR41-[3]JL!AT41 -> 0 | AS126: =AS41-[3]JL!AU41 -> 0 | AT126: =AT41-[3]JL!AV41 -> 0 | AU126: =AU41-[3]JL!AW41 -> 0 | AV126: =AV41-[3]JL!AX41 -> 0 | AW126: =AW41-[3]JL!AY41 -> 0 | AX126: =AX41-[3]JL!AZ41 -> 0 | AY126: =AY41-[3]JL!BA41 -> 0 | AZ126: =AZ41-[3]JL!BB41 -> 0 | BA126: =BA41-[3]JL!BC41 -> 0 | BB126: =BB41-[3]JL!BD41 -> 0 | BC126: =BC41-[3]JL!BE41 -> 0 | BD126: =BD41-[3]JL!BF41 -> 0 | BE126: =BE41-[3]JL!BG41 -> 0 | BF126: =BF41-[3]JL!BH41 -> 0 | BG126: =BG41-[3]JL!BI41 -> 0 | BH126: =BH41-[3]JL!BJ41 -> 0 | BI126: =BI41-[3]JL!BK41 -> 0 | BJ126: =BJ41-[3]JL!BL41 -> 0 | BK126: =BK41-[3]JL!BM41 -> 0 | BL126: =BL41-[3]JL!BN41 -> 0 | BM126: =BM41-[3]JL!BO41 -> 0 | BN126: =BN41-[3]JL!BP41 -> 0 | BO126: =BO41-[3]JL!BQ41 -> 0 | BP126: =BP41-[3]JL!BR41 -> 0 | BQ126: =BQ41-[3]JL!BS41 -> 0 | BR126: =BR41-[3]JL!BT41 -> 0 | BS126: =BS41-[3]JL!BU41 -> 0 | BT126: =BT41-[3]JL!BV41 -> 0 | BU126: =BU41-[3]JL!BW41 -> 0 | BV126: =BV41-[3]JL!BX41 -> 0 | BW126: =BW41-[3]JL!BY41 -> 0 | BX126: =BX41-[3]JL!BZ41 -> 0 | BY126: =BY41-[3]JL!CA41 -> 0 | BZ126: =BZ41-[3]JL!CB41 -> 0 | CA126: =CA41-[3]JL!CC41 -> 0 | CB126: =CB41-[3]JL!CD41 -> 0 | CC126: =CC41-[3]JL!CE41 -> 0 | CD126: =CD41-[3]JL!CF41 -> 0 | CE126: =CE41-[3]JL!CG41 -> 0 | CF126: =CF41-[3]JL!CH41 -> 0
A127: =A43-[3]JL!A43 -> 0 | B127: =B43-[3]JL!B43 -> 0 | C127: =C43-[3]JL!C43 -> 0 | D127: =D43-[3]JL!D43 -> 0 | E127: =E43-[3]JL!E43 -> 0 | F127: =F43-[3]JL!F43 -> 0 | G127: =G43-[3]JL!G43 -> 0 | H127: =H43-[3]JL!H43 -> 0 | I127: =I43-[3]JL!I43 -> 0 | J127: =J43-[3]JL!J43 -> 0 | K127: =K43-[3]JL!K43 -> 0 | L127: =L43-[3]JL!L43 -> 0 | M127: =M43-[3]JL!M43 -> 0 | N127: =N43-[3]JL!N43 -> 0 | O127: =O43-[3]JL!O43 -> 0 | P127: =P43-[3]JL!P43 -> 0 | Q127: =Q43-[3]JL!Q43 -> 0 | R127: =R43-[3]JL!R43 -> 0 | S127: =S43-[3]JL!S43 -> 0 | T127: =T43-[3]JL!T43 -> 0 | U127: =U43-[3]JL!U43 -> 0 | V127: =V43-[3]JL!V43 -> 0 | W127: =W43-[3]JL!W43 -> 0 | X127: =X43-[3]JL!X43 -> 0 | Y127: =Y43-[3]JL!Y43 -> 0 | Z127: =Z43-[3]JL!Z43 -> 0 | AA127: =AA43-[3]JL!AA43 -> 0 | AB127: =AB43-[3]JL!AB43 -> 0 | AC127: =AC43-[3]JL!AC43 -> 0 | AD127: =AD43-[3]JL!AD43 -> 0 | AE127: =AE43-[3]JL!AE43 -> 0 | AF127: =AF43-[3]JL!AF43 -> 0 | AG127: =AG43-[3]JL!AG43 -> 0 | AH127: =AH43-[3]JL!AH43 -> 0 | AI127: =AI43-[3]JL!AI43 -> 0 | AJ127: =AJ43-[3]JL!AJ43 -> 0 | AK127: =AK43-[3]JL!AK43 -> 0 | AL127: =AL43-[3]JL!AL43 -> 0 | AM127: =AM43-[3]JL!AM43 -> 0 | AN127: =AN42-[3]JL!AP42 -> 0 | AO127: =AO42-[3]JL!AQ42 -> 0 | AP127: =AP42-[3]JL!AR42 -> 0 | AQ127: =AQ42-[3]JL!AS42 -> 0 | AR127: =AR42-[3]JL!AT42 -> 0 | AS127: =AS42-[3]JL!AU42 -> 0 | AT127: =AT42-[3]JL!AV42 -> 0 | AU127: =AU42-[3]JL!AW42 -> 0 | AV127: =AV42-[3]JL!AX42 -> 0 | AW127: =AW42-[3]JL!AY42 -> 0 | AX127: =AX42-[3]JL!AZ42 -> 0 | AY127: =AY42-[3]JL!BA42 -> 0 | AZ127: =AZ42-[3]JL!BB42 -> 0 | BA127: =BA42-[3]JL!BC42 -> 0 | BB127: =BB42-[3]JL!BD42 -> 0 | BC127: =BC42-[3]JL!BE42 -> 0 | BD127: =BD42-[3]JL!BF42 -> 0 | BE127: =BE42-[3]JL!BG42 -> 0 | BF127: =BF42-[3]JL!BH42 -> 0 | BG127: =BG42-[3]JL!BI42 -> 0 | BH127: =BH42-[3]JL!BJ42 -> 0 | BI127: =BI42-[3]JL!BK42 -> 0 | BJ127: =BJ42-[3]JL!BL42 -> 0 | BK127: =BK42-[3]JL!BM42 -> 0 | BL127: =BL42-[3]JL!BN42 -> 0 | BM127: =BM42-[3]JL!BO42 -> 0 | BN127: =BN42-[3]JL!BP42 -> 0 | BO127: =BO42-[3]JL!BQ42 -> 0 | BP127: =BP42-[3]JL!BR42 -> 0 | BQ127: =BQ42-[3]JL!BS42 -> 0 | BR127: =BR42-[3]JL!BT42 -> 0 | BS127: =BS42-[3]JL!BU42 -> 0 | BT127: =BT42-[3]JL!BV42 -> 0 | BU127: =BU42-[3]JL!BW42 -> 0 | BV127: =BV42-[3]JL!BX42 -> 0 | BW127: =BW42-[3]JL!BY42 -> 0 | BX127: =BX42-[3]JL!BZ42 -> 0 | BY127: =BY42-[3]JL!CA42 -> 0 | BZ127: =BZ42-[3]JL!CB42 -> 0 | CA127: =CA42-[3]JL!CC42 -> 0 | CB127: =CB42-[3]JL!CD42 -> 0 | CC127: =CC42-[3]JL!CE42 -> 0 | CD127: =CD42-[3]JL!CF42 -> 0 | CE127: =CE42-[3]JL!CG42 -> 0 | CF127: =CF42-[3]JL!CH42 -> 0
A128: =A44-[3]JL!A44 -> 0 | B128: =B44-[3]JL!B44 -> 0 | C128: =C44-[3]JL!C44 -> 0 | D128: =D44-[3]JL!D44 -> 0 | E128: =E44-[3]JL!E44 -> 0 | F128: =F44-[3]JL!F44 -> 0 | G128: =G44-[3]JL!G44 -> 0 | H128: =H44-[3]JL!H44 -> 0 | I128: =I44-[3]JL!I44 -> 0 | J128: =J44-[3]JL!J44 -> 0 | K128: =K44-[3]JL!K44 -> 0 | L128: =L44-[3]JL!L44 -> 0 | M128: =M44-[3]JL!M44 -> 0 | N128: =N44-[3]JL!N44 -> 0 | O128: =O44-[3]JL!O44 -> 0 | P128: =P44-[3]JL!P44 -> 0 | Q128: =Q44-[3]JL!Q44 -> 0 | R128: =R44-[3]JL!R44 -> 0 | S128: =S44-[3]JL!S44 -> 0 | T128: =T44-[3]JL!T44 -> 0 | U128: =U44-[3]JL!U44 -> 0 | V128: =V44-[3]JL!V44 -> 0 | W128: =W44-[3]JL!W44 -> 0 | X128: =X44-[3]JL!X44 -> 0 | Y128: =Y44-[3]JL!Y44 -> 0 | Z128: =Z44-[3]JL!Z44 -> 0 | AA128: =AA44-[3]JL!AA44 -> 0 | AB128: =AB44-[3]JL!AB44 -> 0 | AC128: =AC44-[3]JL!AC44 -> 0 | AD128: =AD44-[3]JL!AD44 -> 0 | AE128: =AE44-[3]JL!AE44 -> 0 | AF128: =AF44-[3]JL!AF44 -> 0 | AG128: =AG44-[3]JL!AG44 -> 0 | AH128: =AH44-[3]JL!AH44 -> 0 | AI128: =AI44-[3]JL!AI44 -> 0 | AJ128: =AJ44-[3]JL!AJ44 -> 0 | AK128: =AK44-[3]JL!AK44 -> 0 | AL128: =AL44-[3]JL!AL44 -> 0 | AM128: =AM44-[3]JL!AM44 -> 0 | AN128: =AN43-[3]JL!AP43 -> 0 | AO128: =AO43-[3]JL!AQ43 -> 0 | AP128: =AP43-[3]JL!AR43 -> 0 | AQ128: =AQ43-[3]JL!AS43 -> 0 | AR128: =AR43-[3]JL!AT43 -> 0 | AS128: =AS43-[3]JL!AU43 -> 0 | AT128: =AT43-[3]JL!AV43 -> 0 | AU128: =AU43-[3]JL!AW43 -> 0 | AV128: =AV43-[3]JL!AX43 -> 0 | AW128: =AW43-[3]JL!AY43 -> 0 | AX128: =AX43-[3]JL!AZ43 -> 0 | AY128: =AY43-[3]JL!BA43 -> 0 | AZ128: =AZ43-[3]JL!BB43 -> 0 | BA128: =BA43-[3]JL!BC43 -> 0 | BB128: =BB43-[3]JL!BD43 -> 0 | BC128: =BC43-[3]JL!BE43 -> 0 | BD128: =BD43-[3]JL!BF43 -> 0 | BE128: =BE43-[3]JL!BG43 -> 0 | BF128: =BF43-[3]JL!BH43 -> 0 | BG128: =BG43-[3]JL!BI43 -> 0 | BH128: =BH43-[3]JL!BJ43 -> 0 | BI128: =BI43-[3]JL!BK43 -> 0 | BJ128: =BJ43-[3]JL!BL43 -> 0 | BK128: =BK43-[3]JL!BM43 -> 0 | BL128: =BL43-[3]JL!BN43 -> 0 | BM128: =BM43-[3]JL!BO43 -> 0 | BN128: =BN43-[3]JL!BP43 -> 0 | BO128: =BO43-[3]JL!BQ43 -> 0 | BP128: =BP43-[3]JL!BR43 -> 0 | BQ128: =BQ43-[3]JL!BS43 -> 0 | BR128: =BR43-[3]JL!BT43 -> 0 | BS128: =BS43-[3]JL!BU43 -> 0 | BT128: =BT43-[3]JL!BV43 -> 0 | BU128: =BU43-[3]JL!BW43 -> 0 | BV128: =BV43-[3]JL!BX43 -> 0 | BW128: =BW43-[3]JL!BY43 -> 0 | BX128: =BX43-[3]JL!BZ43 -> 0 | BY128: =BY43-[3]JL!CA43 -> 0 | BZ128: =BZ43-[3]JL!CB43 -> 0 | CA128: =CA43-[3]JL!CC43 -> 0 | CB128: =CB43-[3]JL!CD43 -> 0 | CC128: =CC43-[3]JL!CE43 -> 0 | CD128: =CD43-[3]JL!CF43 -> 0 | CE128: =CE43-[3]JL!CG43 -> 0 | CF128: =CF43-[3]JL!CH43 -> 0
A129: =A45-[3]JL!A45 -> 0 | B129: =B45-[3]JL!B45 -> 0 | C129: =C45-[3]JL!C45 -> 0 | D129: =D45-[3]JL!D45 -> 0 | E129: =E45-[3]JL!E45 -> 0 | F129: =F45-[3]JL!F45 -> 0 | G129: =G45-[3]JL!G45 -> 0 | H129: =H45-[3]JL!H45 -> 0 | I129: =I45-[3]JL!I45 -> 0 | J129: =J45-[3]JL!J45 -> 0 | K129: =K45-[3]JL!K45 -> 0 | L129: =L45-[3]JL!L45 -> 0 | M129: =M45-[3]JL!M45 -> 0 | N129: =N45-[3]JL!N45 -> 0 | O129: =O45-[3]JL!O45 -> 0 | P129: =P45-[3]JL!P45 -> 0 | Q129: =Q45-[3]JL!Q45 -> 0 | R129: =R45-[3]JL!R45 -> 0 | S129: =S45-[3]JL!S45 -> 0 | T129: =T45-[3]JL!T45 -> 0 | U129: =U45-[3]JL!U45 -> 0 | V129: =V45-[3]JL!V45 -> 0 | W129: =W45-[3]JL!W45 -> 0 | X129: =X45-[3]JL!X45 -> 0 | Y129: =Y45-[3]JL!Y45 -> 0 | Z129: =Z45-[3]JL!Z45 -> 0 | AA129: =AA45-[3]JL!AA45 -> 0 | AB129: =AB45-[3]JL!AB45 -> 0 | AC129: =AC45-[3]JL!AC45 -> 0 | AD129: =AD45-[3]JL!AD45 -> 0 | AE129: =AE45-[3]JL!AE45 -> 0 | AF129: =AF45-[3]JL!AF45 -> 0 | AG129: =AG45-[3]JL!AG45 -> 0 | AH129: =AH45-[3]JL!AH45 -> 0 | AI129: =AI45-[3]JL!AI45 -> 0 | AJ129: =AJ45-[3]JL!AJ45 -> 0 | AK129: =AK45-[3]JL!AK45 -> 0 | AL129: =AL45-[3]JL!AL45 -> 0 | AM129: =AM45-[3]JL!AM45 -> 0 | AN129: =AN44-[3]JL!AP44 -> 0 | AO129: =AO44-[3]JL!AQ44 -> 0 | AP129: =AP44-[3]JL!AR44 -> 0 | AQ129: =AQ44-[3]JL!AS44 -> 0 | AR129: =AR44-[3]JL!AT44 -> 0 | AS129: =AS44-[3]JL!AU44 -> 0 | AT129: =AT44-[3]JL!AV44 -> 0 | AU129: =AU44-[3]JL!AW44 -> 0 | AV129: =AV44-[3]JL!AX44 -> 0 | AW129: =AW44-[3]JL!AY44 -> 0 | AX129: =AX44-[3]JL!AZ44 -> 0 | AY129: =AY44-[3]JL!BA44 -> 0 | AZ129: =AZ44-[3]JL!BB44 -> 0 | BA129: =BA44-[3]JL!BC44 -> 0 | BB129: =BB44-[3]JL!BD44 -> 0 | BC129: =BC44-[3]JL!BE44 -> 0 | BD129: =BD44-[3]JL!BF44 -> 0 | BE129: =BE44-[3]JL!BG44 -> 0 | BF129: =BF44-[3]JL!BH44 -> 0 | BG129: =BG44-[3]JL!BI44 -> 0 | BH129: =BH44-[3]JL!BJ44 -> 0 | BI129: =BI44-[3]JL!BK44 -> 0 | BJ129: =BJ44-[3]JL!BL44 -> 0 | BK129: =BK44-[3]JL!BM44 -> 0 | BL129: =BL44-[3]JL!BN44 -> 0 | BM129: =BM44-[3]JL!BO44 -> 0 | BN129: =BN44-[3]JL!BP44 -> 0 | BO129: =BO44-[3]JL!BQ44 -> 0 | BP129: =BP44-[3]JL!BR44 -> 0 | BQ129: =BQ44-[3]JL!BS44 -> 0 | BR129: =BR44-[3]JL!BT44 -> 0 | BS129: =BS44-[3]JL!BU44 -> 0 | BT129: =BT44-[3]JL!BV44 -> 0 | BU129: =BU44-[3]JL!BW44 -> 0 | BV129: =BV44-[3]JL!BX44 -> 0 | BW129: =BW44-[3]JL!BY44 -> 0 | BX129: =BX44-[3]JL!BZ44 -> 0 | BY129: =BY44-[3]JL!CA44 -> 0 | BZ129: =BZ44-[3]JL!CB44 -> 0 | CA129: =CA44-[3]JL!CC44 -> 0 | CB129: =CB44-[3]JL!CD44 -> 0 | CC129: =CC44-[3]JL!CE44 -> 0 | CD129: =CD44-[3]JL!CF44 -> 0 | CE129: =CE44-[3]JL!CG44 -> 0 | CF129: =CF44-[3]JL!CH44 -> 0
A130: =A46-[3]JL!A46 -> 0 | B130: =B46-[3]JL!B46 -> 0 | C130: =C46-[3]JL!C46 -> 0 | D130: =D46-[3]JL!D46 -> 0 | E130: =E46-[3]JL!E46 -> 0 | F130: =F46-[3]JL!F46 -> 0 | G130: =G46-[3]JL!G46 -> 0 | H130: =H46-[3]JL!H46 -> 0 | I130: =I46-[3]JL!I46 -> 0 | J130: =J46-[3]JL!J46 -> 0 | K130: =K46-[3]JL!K46 -> 0 | L130: =L46-[3]JL!L46 -> 0 | M130: =M46-[3]JL!M46 -> 0 | N130: =N46-[3]JL!N46 -> 0 | O130: =O46-[3]JL!O46 -> 0 | P130: =P46-[3]JL!P46 -> 0 | Q130: =Q46-[3]JL!Q46 -> 0 | R130: =R46-[3]JL!R46 -> 0 | S130: =S46-[3]JL!S46 -> 0 | T130: =T46-[3]JL!T46 -> 0 | U130: =U46-[3]JL!U46 -> 0 | V130: =V46-[3]JL!V46 -> 0 | W130: =W46-[3]JL!W46 -> 0 | X130: =X46-[3]JL!X46 -> 0 | Y130: =Y46-[3]JL!Y46 -> 0 | Z130: =Z46-[3]JL!Z46 -> 0 | AA130: =AA46-[3]JL!AA46 -> 0 | AB130: =AB46-[3]JL!AB46 -> 0 | AC130: =AC46-[3]JL!AC46 -> 0 | AD130: =AD46-[3]JL!AD46 -> 0 | AE130: =AE46-[3]JL!AE46 -> 0 | AF130: =AF46-[3]JL!AF46 -> 0 | AG130: =AG46-[3]JL!AG46 -> 0 | AH130: =AH46-[3]JL!AH46 -> 0 | AI130: =AI46-[3]JL!AI46 -> 0 | AJ130: =AJ46-[3]JL!AJ46 -> 0 | AK130: =AK46-[3]JL!AK46 -> 0 | AL130: =AL46-[3]JL!AL46 -> 0 | AM130: =AM46-[3]JL!AM46 -> 0 | AN130: =AN45-[3]JL!AP45 -> 0 | AO130: =AO45-[3]JL!AQ45 -> 0 | AP130: =AP45-[3]JL!AR45 -> 0 | AQ130: =AQ45-[3]JL!AS45 -> 0 | AR130: =AR45-[3]JL!AT45 -> 0 | AS130: =AS45-[3]JL!AU45 -> 0 | AT130: =AT45-[3]JL!AV45 -> 0 | AU130: =AU45-[3]JL!AW45 -> 0 | AV130: =AV45-[3]JL!AX45 -> 0 | AW130: =AW45-[3]JL!AY45 -> 0 | AX130: =AX45-[3]JL!AZ45 -> 0 | AY130: =AY45-[3]JL!BA45 -> 0 | AZ130: =AZ45-[3]JL!BB45 -> 0 | BA130: =BA45-[3]JL!BC45 -> 0 | BB130: =BB45-[3]JL!BD45 -> 0 | BC130: =BC45-[3]JL!BE45 -> 0 | BD130: =BD45-[3]JL!BF45 -> 0 | BE130: =BE45-[3]JL!BG45 -> 0 | BF130: =BF45-[3]JL!BH45 -> 0 | BG130: =BG45-[3]JL!BI45 -> 0 | BH130: =BH45-[3]JL!BJ45 -> 0 | BI130: =BI45-[3]JL!BK45 -> 0 | BJ130: =BJ45-[3]JL!BL45 -> 0 | BK130: =BK45-[3]JL!BM45 -> 0 | BL130: =BL45-[3]JL!BN45 -> 0 | BM130: =BM45-[3]JL!BO45 -> 0 | BN130: =BN45-[3]JL!BP45 -> 0 | BO130: =BO45-[3]JL!BQ45 -> 0 | BP130: =BP45-[3]JL!BR45 -> 0 | BQ130: =BQ45-[3]JL!BS45 -> 0 | BR130: =BR45-[3]JL!BT45 -> 0 | BS130: =BS45-[3]JL!BU45 -> 0 | BT130: =BT45-[3]JL!BV45 -> 0 | BU130: =BU45-[3]JL!BW45 -> 0 | BV130: =BV45-[3]JL!BX45 -> 0 | BW130: =BW45-[3]JL!BY45 -> 0 | BX130: =BX45-[3]JL!BZ45 -> 0 | BY130: =BY45-[3]JL!CA45 -> 0 | BZ130: =BZ45-[3]JL!CB45 -> 0 | CA130: =CA45-[3]JL!CC45 -> 0 | CB130: =CB45-[3]JL!CD45 -> 0 | CC130: =CC45-[3]JL!CE45 -> 0 | CD130: =CD45-[3]JL!CF45 -> 0 | CE130: =CE45-[3]JL!CG45 -> 0 | CF130: =CF45-[3]JL!CH45 -> 0
A131: =A47-[3]JL!A47 -> 0 | B131: =B47-[3]JL!B47 -> 0 | C131: =C47-[3]JL!C47 -> 0 | D131: =D47-[3]JL!D47 -> 0 | E131: =E47-[3]JL!E47 -> 0 | F131: =F47-[3]JL!F47 -> 0 | G131: =G47-[3]JL!G47 -> 0 | H131: =H47-[3]JL!H47 -> 0 | I131: =I47-[3]JL!I47 -> 0 | J131: =J47-[3]JL!J47 -> 0 | K131: =K47-[3]JL!K47 -> 0 | L131: =L47-[3]JL!L47 -> 0 | M131: =M47-[3]JL!M47 -> 0 | N131: =N47-[3]JL!N47 -> 0 | O131: =O47-[3]JL!O47 -> 0 | P131: =P47-[3]JL!P47 -> 0 | Q131: =Q47-[3]JL!Q47 -> 0 | R131: =R47-[3]JL!R47 -> 0 | S131: =S47-[3]JL!S47 -> 0 | T131: =T47-[3]JL!T47 -> 0 | U131: =U47-[3]JL!U47 -> 0 | V131: =V47-[3]JL!V47 -> 0 | W131: =W47-[3]JL!W47 -> 0 | X131: =X47-[3]JL!X47 -> 0 | Y131: =Y47-[3]JL!Y47 -> 0 | Z131: =Z47-[3]JL!Z47 -> 0 | AA131: =AA47-[3]JL!AA47 -> 0 | AB131: =AB47-[3]JL!AB47 -> 0 | AC131: =AC47-[3]JL!AC47 -> 0 | AD131: =AD47-[3]JL!AD47 -> 0 | AE131: =AE47-[3]JL!AE47 -> 0 | AF131: =AF47-[3]JL!AF47 -> 0 | AG131: =AG47-[3]JL!AG47 -> 0 | AH131: =AH47-[3]JL!AH47 -> 0 | AI131: =AI47-[3]JL!AI47 -> 0 | AJ131: =AJ47-[3]JL!AJ47 -> 0 | AK131: =AK47-[3]JL!AK47 -> 0 | AL131: =AL47-[3]JL!AL47 -> 0 | AM131: =AM47-[3]JL!AM47 -> 0 | AN131: =AN46-[3]JL!AP46 -> 0 | AO131: =AO46-[3]JL!AQ46 -> 0 | AP131: =AP46-[3]JL!AR46 -> 0 | AQ131: =AQ46-[3]JL!AS46 -> 0 | AR131: =AR46-[3]JL!AT46 -> 0 | AS131: =AS46-[3]JL!AU46 -> 0 | AT131: =AT46-[3]JL!AV46 -> 0 | AU131: =AU46-[3]JL!AW46 -> 0 | AV131: =AV46-[3]JL!AX46 -> 0 | AW131: =AW46-[3]JL!AY46 -> 0 | AX131: =AX46-[3]JL!AZ46 -> 0 | AY131: =AY46-[3]JL!BA46 -> 0 | AZ131: =AZ46-[3]JL!BB46 -> 0 | BA131: =BA46-[3]JL!BC46 -> 0 | BB131: =BB46-[3]JL!BD46 -> 0 | BC131: =BC46-[3]JL!BE46 -> 0 | BD131: =BD46-[3]JL!BF46 -> 0 | BE131: =BE46-[3]JL!BG46 -> 0 | BF131: =BF46-[3]JL!BH46 -> 0 | BG131: =BG46-[3]JL!BI46 -> 0 | BH131: =BH46-[3]JL!BJ46 -> 0 | BI131: =BI46-[3]JL!BK46 -> 0 | BJ131: =BJ46-[3]JL!BL46 -> 0 | BK131: =BK46-[3]JL!BM46 -> 0 | BL131: =BL46-[3]JL!BN46 -> 0 | BM131: =BM46-[3]JL!BO46 -> 0 | BN131: =BN46-[3]JL!BP46 -> 0 | BO131: =BO46-[3]JL!BQ46 -> 0 | BP131: =BP46-[3]JL!BR46 -> 0 | BQ131: =BQ46-[3]JL!BS46 -> 0 | BR131: =BR46-[3]JL!BT46 -> 0 | BS131: =BS46-[3]JL!BU46 -> 0 | BT131: =BT46-[3]JL!BV46 -> 0 | BU131: =BU46-[3]JL!BW46 -> 0 | BV131: =BV46-[3]JL!BX46 -> 0 | BW131: =BW46-[3]JL!BY46 -> 0 | BX131: =BX46-[3]JL!BZ46 -> 0 | BY131: =BY46-[3]JL!CA46 -> 0 | BZ131: =BZ46-[3]JL!CB46 -> 0 | CA131: =CA46-[3]JL!CC46 -> 0 | CB131: =CB46-[3]JL!CD46 -> 0 | CC131: =CC46-[3]JL!CE46 -> 0 | CD131: =CD46-[3]JL!CF46 -> 0 | CE131: =CE46-[3]JL!CG46 -> 0 | CF131: =CF46-[3]JL!CH46 -> 0
A132: =A48-[3]JL!A48 -> 0 | B132: =B48-[3]JL!B48 -> 0 | C132: =C48-[3]JL!C48 -> 0 | D132: =D48-[3]JL!D48 -> 0 | E132: =E48-[3]JL!E48 -> 0 | F132: =F48-[3]JL!F48 -> 0 | G132: =G48-[3]JL!G48 -> 0 | H132: =H48-[3]JL!H48 -> 0 | I132: =I48-[3]JL!I48 -> 0 | J132: =J48-[3]JL!J48 -> 0 | K132: =K48-[3]JL!K48 -> 0 | L132: =L48-[3]JL!L48 -> 0 | M132: =M48-[3]JL!M48 -> 0 | N132: =N48-[3]JL!N48 -> 0 | O132: =O48-[3]JL!O48 -> 0 | P132: =P48-[3]JL!P48 -> 0 | Q132: =Q48-[3]JL!Q48 -> 0 | R132: =R48-[3]JL!R48 -> 0 | S132: =S48-[3]JL!S48 -> 0 | T132: =T48-[3]JL!T48 -> 0 | U132: =U48-[3]JL!U48 -> 0 | V132: =V48-[3]JL!V48 -> 0 | W132: =W48-[3]JL!W48 -> 0 | X132: =X48-[3]JL!X48 -> 0 | Y132: =Y48-[3]JL!Y48 -> 0 | Z132: =Z48-[3]JL!Z48 -> 0 | AA132: =AA48-[3]JL!AA48 -> 0 | AB132: =AB48-[3]JL!AB48 -> 0 | AC132: =AC48-[3]JL!AC48 -> 0 | AD132: =AD48-[3]JL!AD48 -> 0 | AE132: =AE48-[3]JL!AE48 -> 0 | AF132: =AF48-[3]JL!AF48 -> 0 | AG132: =AG48-[3]JL!AG48 -> 0 | AH132: =AH48-[3]JL!AH48 -> 0 | AI132: =AI48-[3]JL!AI48 -> 0 | AJ132: =AJ48-[3]JL!AJ48 -> 0 | AK132: =AK48-[3]JL!AK48 -> 0 | AL132: =AL48-[3]JL!AL48 -> 0 | AM132: =AM48-[3]JL!AM48 -> 0 | AN132: =AN47-[3]JL!AP47 -> 0 | AO132: =AO47-[3]JL!AQ47 -> 0 | AP132: =AP47-[3]JL!AR47 -> 0 | AQ132: =AQ47-[3]JL!AS47 -> 0 | AR132: =AR47-[3]JL!AT47 -> 0 | AS132: =AS47-[3]JL!AU47 -> 0 | AT132: =AT47-[3]JL!AV47 -> 0 | AU132: =AU47-[3]JL!AW47 -> 0 | AV132: =AV47-[3]JL!AX47 -> 0 | AW132: =AW47-[3]JL!AY47 -> 0 | AX132: =AX47-[3]JL!AZ47 -> 0 | AY132: =AY47-[3]JL!BA47 -> 0 | AZ132: =AZ47-[3]JL!BB47 -> 0 | BA132: =BA47-[3]JL!BC47 -> 0 | BB132: =BB47-[3]JL!BD47 -> 0 | BC132: =BC47-[3]JL!BE47 -> 0 | BD132: =BD47-[3]JL!BF47 -> 0 | BE132: =BE47-[3]JL!BG47 -> 0 | BF132: =BF47-[3]JL!BH47 -> 0 | BG132: =BG47-[3]JL!BI47 -> 0 | BH132: =BH47-[3]JL!BJ47 -> 0 | BI132: =BI47-[3]JL!BK47 -> 0 | BJ132: =BJ47-[3]JL!BL47 -> 0 | BK132: =BK47-[3]JL!BM47 -> 0 | BL132: =BL47-[3]JL!BN47 -> 0 | BM132: =BM47-[3]JL!BO47 -> 0 | BN132: =BN47-[3]JL!BP47 -> 0 | BO132: =BO47-[3]JL!BQ47 -> 0 | BP132: =BP47-[3]JL!BR47 -> 0 | BQ132: =BQ47-[3]JL!BS47 -> 0 | BR132: =BR47-[3]JL!BT47 -> 0 | BS132: =BS47-[3]JL!BU47 -> 0 | BT132: =BT47-[3]JL!BV47 -> 0 | BU132: =BU47-[3]JL!BW47 -> 0 | BV132: =BV47-[3]JL!BX47 -> 0 | BW132: =BW47-[3]JL!BY47 -> 0 | BX132: =BX47-[3]JL!BZ47 -> 0 | BY132: =BY47-[3]JL!CA47 -> 0 | BZ132: =BZ47-[3]JL!CB47 -> 0 | CA132: =CA47-[3]JL!CC47 -> 0 | CB132: =CB47-[3]JL!CD47 -> 0 | CC132: =CC47-[3]JL!CE47 -> 0 | CD132: =CD47-[3]JL!CF47 -> 0 | CE132: =CE47-[3]JL!CG47 -> 0 | CF132: =CF47-[3]JL!CH47 -> 0
A133: =A49-[3]JL!A49 -> 0 | B133: =B49-[3]JL!B49 -> 0 | C133: =C49-[3]JL!C49 -> 0 | D133: =D49-[3]JL!D49 -> 0 | E133: =E49-[3]JL!E49 -> 0 | F133: =F49-[3]JL!F49 -> 0 | G133: =G49-[3]JL!G49 -> 0 | H133: =H49-[3]JL!H49 -> 0 | I133: =I49-[3]JL!I49 -> 0 | J133: =J49-[3]JL!J49 -> 0 | K133: =K49-[3]JL!K49 -> 0 | L133: =L49-[3]JL!L49 -> 0 | M133: =M49-[3]JL!M49 -> 0 | N133: =N49-[3]JL!N49 -> 0 | O133: =O49-[3]JL!O49 -> 0 | P133: =P49-[3]JL!P49 -> 0 | Q133: =Q49-[3]JL!Q49 -> 0 | R133: =R49-[3]JL!R49 -> 0 | S133: =S49-[3]JL!S49 -> 0 | T133: =T49-[3]JL!T49 -> 0 | U133: =U49-[3]JL!U49 -> 0 | V133: =V49-[3]JL!V49 -> 0 | W133: =W49-[3]JL!W49 -> 0 | X133: =X49-[3]JL!X49 -> 0 | Y133: =Y49-[3]JL!Y49 -> 0 | Z133: =Z49-[3]JL!Z49 -> 0 | AA133: =AA49-[3]JL!AA49 -> 0 | AB133: =AB49-[3]JL!AB49 -> 0 | AC133: =AC49-[3]JL!AC49 -> 0 | AD133: =AD49-[3]JL!AD49 -> 0 | AE133: =AE49-[3]JL!AE49 -> 0 | AF133: =AF49-[3]JL!AF49 -> 0 | AG133: =AG49-[3]JL!AG49 -> 0 | AH133: =AH49-[3]JL!AH49 -> 0 | AI133: =AI49-[3]JL!AI49 -> 0 | AJ133: =AJ49-[3]JL!AJ49 -> 0 | AK133: =AK49-[3]JL!AK49 -> 0 | AL133: =AL49-[3]JL!AL49 -> 0 | AM133: =AM49-[3]JL!AM49 -> 0 | AN133: =AN48-[3]JL!AP48 -> 0 | AO133: =AO48-[3]JL!AQ48 -> 0 | AP133: =AP48-[3]JL!AR48 -> 0 | AQ133: =AQ48-[3]JL!AS48 -> 0 | AR133: =AR48-[3]JL!AT48 -> 0 | AS133: =AS48-[3]JL!AU48 -> 0 | AT133: =AT48-[3]JL!AV48 -> 0 | AU133: =AU48-[3]JL!AW48 -> 0 | AV133: =AV48-[3]JL!AX48 -> 0 | AW133: =AW48-[3]JL!AY48 -> 0 | AX133: =AX48-[3]JL!AZ48 -> 0 | AY133: =AY48-[3]JL!BA48 -> 0 | AZ133: =AZ48-[3]JL!BB48 -> 0 | BA133: =BA48-[3]JL!BC48 -> 0 | BB133: =BB48-[3]JL!BD48 -> 0 | BC133: =BC48-[3]JL!BE48 -> 0 | BD133: =BD48-[3]JL!BF48 -> 0 | BE133: =BE48-[3]JL!BG48 -> 0 | BF133: =BF48-[3]JL!BH48 -> 0 | BG133: =BG48-[3]JL!BI48 -> 0 | BH133: =BH48-[3]JL!BJ48 -> 0 | BI133: =BI48-[3]JL!BK48 -> 0 | BJ133: =BJ48-[3]JL!BL48 -> 0 | BK133: =BK48-[3]JL!BM48 -> 0 | BL133: =BL48-[3]JL!BN48 -> 0 | BM133: =BM48-[3]JL!BO48 -> 0 | BN133: =BN48-[3]JL!BP48 -> 0 | BO133: =BO48-[3]JL!BQ48 -> 0 | BP133: =BP48-[3]JL!BR48 -> 0 | BQ133: =BQ48-[3]JL!BS48 -> 0 | BR133: =BR48-[3]JL!BT48 -> 0 | BS133: =BS48-[3]JL!BU48 -> 0 | BT133: =BT48-[3]JL!BV48 -> 0 | BU133: =BU48-[3]JL!BW48 -> 0 | BV133: =BV48-[3]JL!BX48 -> 0 | BW133: =BW48-[3]JL!BY48 -> 0 | BX133: =BX48-[3]JL!BZ48 -> 0 | BY133: =BY48-[3]JL!CA48 -> 0 | BZ133: =BZ48-[3]JL!CB48 -> 0 | CA133: =CA48-[3]JL!CC48 -> 0 | CB133: =CB48-[3]JL!CD48 -> 0 | CC133: =CC48-[3]JL!CE48 -> 0 | CD133: =CD48-[3]JL!CF48 -> 0 | CE133: =CE48-[3]JL!CG48 -> 0 | CF133: =CF48-[3]JL!CH48 -> 0
A134: =A50-[3]JL!A50 -> 0 | B134: =B50-[3]JL!B50 -> 0 | C134: =C50-[3]JL!C50 -> 0 | D134: =D50-[3]JL!D50 -> 0 | E134: =E50-[3]JL!E50 -> 0 | F134: =F50-[3]JL!F50 -> 0 | G134: =G50-[3]JL!G50 -> 0 | H134: =H50-[3]JL!H50 -> 0 | I134: =I50-[3]JL!I50 -> 0 | J134: =J50-[3]JL!J50 -> 0 | K134: =K50-[3]JL!K50 -> 0 | L134: =L50-[3]JL!L50 -> 0 | M134: =M50-[3]JL!M50 -> 0 | N134: =N50-[3]JL!N50 -> 0 | O134: =O50-[3]JL!O50 -> 0 | P134: =P50-[3]JL!P50 -> 0 | Q134: =Q50-[3]JL!Q50 -> 0 | R134: =R50-[3]JL!R50 -> 0 | S134: =S50-[3]JL!S50 -> 0 | T134: =T50-[3]JL!T50 -> 0 | U134: =U50-[3]JL!U50 -> 0 | V134: =V50-[3]JL!V50 -> 0 | W134: =W50-[3]JL!W50 -> 0 | X134: =X50-[3]JL!X50 -> 0 | Y134: =Y50-[3]JL!Y50 -> 0 | Z134: =Z50-[3]JL!Z50 -> 0 | AA134: =AA50-[3]JL!AA50 -> 0 | AB134: =AB50-[3]JL!AB50 -> 0 | AC134: =AC50-[3]JL!AC50 -> 0 | AD134: =AD50-[3]JL!AD50 -> 0 | AE134: =AE50-[3]JL!AE50 -> 0 | AF134: =AF50-[3]JL!AF50 -> 0 | AG134: =AG50-[3]JL!AG50 -> 0 | AH134: =AH50-[3]JL!AH50 -> 0 | AI134: =AI50-[3]JL!AI50 -> 0 | AJ134: =AJ50-[3]JL!AJ50 -> 0 | AK134: =AK50-[3]JL!AK50 -> 0 | AL134: =AL50-[3]JL!AL50 -> 0 | AM134: =AM50-[3]JL!AM50 -> 0 | AN134: =AN49-[3]JL!AP49 -> 0 | AO134: =AO49-[3]JL!AQ49 -> 0 | AP134: =AP49-[3]JL!AR49 -> 0 | AQ134: =AQ49-[3]JL!AS49 -> 0 | AR134: =AR49-[3]JL!AT49 -> 0 | AS134: =AS49-[3]JL!AU49 -> 0 | AT134: =AT49-[3]JL!AV49 -> 0 | AU134: =AU49-[3]JL!AW49 -> 0 | AV134: =AV49-[3]JL!AX49 -> 0 | AW134: =AW49-[3]JL!AY49 -> 0 | AX134: =AX49-[3]JL!AZ49 -> 0 | AY134: =AY49-[3]JL!BA49 -> 0 | AZ134: =AZ49-[3]JL!BB49 -> 0 | BA134: =BA49-[3]JL!BC49 -> 0 | BB134: =BB49-[3]JL!BD49 -> 0 | BC134: =BC49-[3]JL!BE49 -> 0 | BD134: =BD49-[3]JL!BF49 -> 0 | BE134: =BE49-[3]JL!BG49 -> 0 | BF134: =BF49-[3]JL!BH49 -> 0 | BG134: =BG49-[3]JL!BI49 -> 0 | BH134: =BH49-[3]JL!BJ49 -> 0 | BI134: =BI49-[3]JL!BK49 -> 0 | BJ134: =BJ49-[3]JL!BL49 -> 0 | BK134: =BK49-[3]JL!BM49 -> 0 | BL134: =BL49-[3]JL!BN49 -> 0 | BM134: =BM49-[3]JL!BO49 -> 0 | BN134: =BN49-[3]JL!BP49 -> 0 | BO134: =BO49-[3]JL!BQ49 -> 0 | BP134: =BP49-[3]JL!BR49 -> 0 | BQ134: =BQ49-[3]JL!BS49 -> 0 | BR134: =BR49-[3]JL!BT49 -> 0 | BS134: =BS49-[3]JL!BU49 -> 0 | BT134: =BT49-[3]JL!BV49 -> 0 | BU134: =BU49-[3]JL!BW49 -> 0 | BV134: =BV49-[3]JL!BX49 -> 0 | BW134: =BW49-[3]JL!BY49 -> 0 | BX134: =BX49-[3]JL!BZ49 -> 0 | BY134: =BY49-[3]JL!CA49 -> 0 | BZ134: =BZ49-[3]JL!CB49 -> 0 | CA134: =CA49-[3]JL!CC49 -> 0 | CB134: =CB49-[3]JL!CD49 -> 0 | CC134: =CC49-[3]JL!CE49 -> 0 | CD134: =CD49-[3]JL!CF49 -> 0 | CE134: =CE49-[3]JL!CG49 -> 0 | CF134: =CF49-[3]JL!CH49 -> 0
A135: =A51-[3]JL!A51 -> 0 | B135: =B51-[3]JL!B51 -> 0 | C135: =C51-[3]JL!C51 -> 0 | D135: =D51-[3]JL!D51 -> 0 | E135: =E51-[3]JL!E51 -> 0 | F135: =F51-[3]JL!F51 -> 0 | G135: =G51-[3]JL!G51 -> 0 | H135: =H51-[3]JL!H51 -> 0 | I135: =I51-[3]JL!I51 -> 0 | J135: =J51-[3]JL!J51 -> 0 | K135: =K51-[3]JL!K51 -> 0 | L135: =L51-[3]JL!L51 -> 0 | M135: =M51-[3]JL!M51 -> 0 | N135: =N51-[3]JL!N51 -> 0 | O135: =O51-[3]JL!O51 -> 0 | P135: =P51-[3]JL!P51 -> 0 | Q135: =Q51-[3]JL!Q51 -> 0 | R135: =R51-[3]JL!R51 -> 0 | S135: =S51-[3]JL!S51 -> 0 | T135: =T51-[3]JL!T51 -> 0 | U135: =U51-[3]JL!U51 -> 0 | V135: =V51-[3]JL!V51 -> 0 | W135: =W51-[3]JL!W51 -> 0 | X135: =X51-[3]JL!X51 -> 0 | Y135: =Y51-[3]JL!Y51 -> 0 | Z135: =Z51-[3]JL!Z51 -> 0 | AA135: =AA51-[3]JL!AA51 -> 0 | AB135: =AB51-[3]JL!AB51 -> 0 | AC135: =AC51-[3]JL!AC51 -> 0 | AD135: =AD51-[3]JL!AD51 -> 0 | AE135: =AE51-[3]JL!AE51 -> 0 | AF135: =AF51-[3]JL!AF51 -> 0 | AG135: =AG51-[3]JL!AG51 -> 0 | AH135: =AH51-[3]JL!AH51 -> 0 | AI135: =AI51-[3]JL!AI51 -> 0 | AJ135: =AJ51-[3]JL!AJ51 -> 0 | AK135: =AK51-[3]JL!AK51 -> 0 | AL135: =AL51-[3]JL!AL51 -> 0 | AM135: =AM51-[3]JL!AM51 -> 0 | AN135: =AN50-[3]JL!AP50 -> 0 | AO135: =AO50-[3]JL!AQ50 -> 0 | AP135: =AP50-[3]JL!AR50 -> 0 | AQ135: =AQ50-[3]JL!AS50 -> 0 | AR135: =AR50-[3]JL!AT50 -> 0 | AS135: =AS50-[3]JL!AU50 -> 0 | AT135: =AT50-[3]JL!AV50 -> 0 | AU135: =AU50-[3]JL!AW50 -> 0 | AV135: =AV50-[3]JL!AX50 -> 0 | AW135: =AW50-[3]JL!AY50 -> 0 | AX135: =AX50-[3]JL!AZ50 -> 0 | AY135: =AY50-[3]JL!BA50 -> 0 | AZ135: =AZ50-[3]JL!BB50 -> 0 | BA135: =BA50-[3]JL!BC50 -> 0 | BB135: =BB50-[3]JL!BD50 -> 0 | BC135: =BC50-[3]JL!BE50 -> 0 | BD135: =BD50-[3]JL!BF50 -> 0 | BE135: =BE50-[3]JL!BG50 -> 0 | BF135: =BF50-[3]JL!BH50 -> 0 | BG135: =BG50-[3]JL!BI50 -> 0 | BH135: =BH50-[3]JL!BJ50 -> 0 | BI135: =BI50-[3]JL!BK50 -> 0 | BJ135: =BJ50-[3]JL!BL50 -> 0 | BK135: =BK50-[3]JL!BM50 -> 0 | BL135: =BL50-[3]JL!BN50 -> 0 | BM135: =BM50-[3]JL!BO50 -> 0 | BN135: =BN50-[3]JL!BP50 -> 0 | BO135: =BO50-[3]JL!BQ50 -> 0 | BP135: =BP50-[3]JL!BR50 -> 0 | BQ135: =BQ50-[3]JL!BS50 -> 0 | BR135: =BR50-[3]JL!BT50 -> 0 | BS135: =BS50-[3]JL!BU50 -> 0 | BT135: =BT50-[3]JL!BV50 -> 0 | BU135: =BU50-[3]JL!BW50 -> 0 | BV135: =BV50-[3]JL!BX50 -> 0 | BW135: =BW50-[3]JL!BY50 -> 0 | BX135: =BX50-[3]JL!BZ50 -> 0 | BY135: =BY50-[3]JL!CA50 -> 0 | BZ135: =BZ50-[3]JL!CB50 -> 0 | CA135: =CA50-[3]JL!CC50 -> 0 | CB135: =CB50-[3]JL!CD50 -> 0 | CC135: =CC50-[3]JL!CE50 -> 0 | CD135: =CD50-[3]JL!CF50 -> 0 | CE135: =CE50-[3]JL!CG50 -> 0 | CF135: =CF50-[3]JL!CH50 -> 0
A136: =A52-[3]JL!A52 -> 0 | B136: =B52-[3]JL!B52 -> 0 | C136: =C52-[3]JL!C52 -> 0 | D136: =D52-[3]JL!D52 -> 0 | E136: =E52-[3]JL!E52 -> 0 | F136: =F52-[3]JL!F52 -> 0 | G136: =G52-[3]JL!G52 -> 0 | H136: =H52-[3]JL!H52 -> 0 | I136: =I52-[3]JL!I52 -> 0 | J136: =J52-[3]JL!J52 -> 0 | K136: =K52-[3]JL!K52 -> 0 | L136: =L52-[3]JL!L52 -> 0 | M136: =M52-[3]JL!M52 -> 0 | N136: =N52-[3]JL!N52 -> 0 | O136: =O52-[3]JL!O52 -> 0 | P136: =P52-[3]JL!P52 -> 0 | Q136: =Q52-[3]JL!Q52 -> 0 | R136: =R52-[3]JL!R52 -> 0 | S136: =S52-[3]JL!S52 -> 0 | T136: =T52-[3]JL!T52 -> 0 | U136: =U52-[3]JL!U52 -> 0 | V136: =V52-[3]JL!V52 -> 0 | W136: =W52-[3]JL!W52 -> 0 | X136: =X52-[3]JL!X52 -> 0 | Y136: =Y52-[3]JL!Y52 -> 0 | Z136: =Z52-[3]JL!Z52 -> 0 | AA136: =AA52-[3]JL!AA52 -> 0 | AB136: =AB52-[3]JL!AB52 -> 0 | AC136: =AC52-[3]JL!AC52 -> 0 | AD136: =AD52-[3]JL!AD52 -> 0 | AE136: =AE52-[3]JL!AE52 -> 0 | AF136: =AF52-[3]JL!AF52 -> 0 | AG136: =AG52-[3]JL!AG52 -> 0 | AH136: =AH52-[3]JL!AH52 -> 0 | AI136: =AI52-[3]JL!AI52 -> 0 | AJ136: =AJ52-[3]JL!AJ52 -> 0 | AK136: =AK52-[3]JL!AK52 -> 0 | AL136: =AL52-[3]JL!AL52 -> 0 | AM136: =AM52-[3]JL!AM52 -> 0 | AN136: =AN51-[3]JL!AP51 -> 0 | AO136: =AO51-[3]JL!AQ51 -> 0 | AP136: =AP51-[3]JL!AR51 -> 0 | AQ136: =AQ51-[3]JL!AS51 -> 0 | AR136: =AR51-[3]JL!AT51 -> 0 | AS136: =AS51-[3]JL!AU51 -> 0 | AT136: =AT51-[3]JL!AV51 -> 0 | AU136: =AU51-[3]JL!AW51 -> 0 | AV136: =AV51-[3]JL!AX51 -> 0 | AW136: =AW51-[3]JL!AY51 -> 0 | AX136: =AX51-[3]JL!AZ51 -> 0 | AY136: =AY51-[3]JL!BA51 -> 0 | AZ136: =AZ51-[3]JL!BB51 -> 0 | BA136: =BA51-[3]JL!BC51 -> 0 | BB136: =BB51-[3]JL!BD51 -> 0 | BC136: =BC51-[3]JL!BE51 -> 0 | BD136: =BD51-[3]JL!BF51 -> 0 | BE136: =BE51-[3]JL!BG51 -> 0 | BF136: =BF51-[3]JL!BH51 -> 0 | BG136: =BG51-[3]JL!BI51 -> 0 | BH136: =BH51-[3]JL!BJ51 -> 0 | BI136: =BI51-[3]JL!BK51 -> 0 | BJ136: =BJ51-[3]JL!BL51 -> 0 | BK136: =BK51-[3]JL!BM51 -> 0 | BL136: =BL51-[3]JL!BN51 -> 0 | BM136: =BM51-[3]JL!BO51 -> 0 | BN136: =BN51-[3]JL!BP51 -> 0 | BO136: =BO51-[3]JL!BQ51 -> 0 | BP136: =BP51-[3]JL!BR51 -> 0 | BQ136: =BQ51-[3]JL!BS51 -> 0 | BR136: =BR51-[3]JL!BT51 -> 0 | BS136: =BS51-[3]JL!BU51 -> 0 | BT136: =BT51-[3]JL!BV51 -> 0 | BU136: =BU51-[3]JL!BW51 -> 0 | BV136: =BV51-[3]JL!BX51 -> 0 | BW136: =BW51-[3]JL!BY51 -> 0 | BX136: =BX51-[3]JL!BZ51 -> 0 | BY136: =BY51-[3]JL!CA51 -> 0 | BZ136: =BZ51-[3]JL!CB51 -> 0 | CA136: =CA51-[3]JL!CC51 -> 0 | CB136: =CB51-[3]JL!CD51 -> 0 | CC136: =CC51-[3]JL!CE51 -> 0 | CD136: =CD51-[3]JL!CF51 -> 0 | CE136: =CE51-[3]JL!CG51 -> 0 | CF136: =CF51-[3]JL!CH51 -> 0
A137: =A53-[3]JL!A53 -> 0 | B137: =B53-[3]JL!B53 -> 0 | C137: =C53-[3]JL!C53 -> 0 | D137: =D53-[3]JL!D53 -> 0 | E137: =E53-[3]JL!E53 -> 0 | F137: =F53-[3]JL!F53 -> 0 | G137: =G53-[3]JL!G53 -> 0 | H137: =H53-[3]JL!H53 -> 0 | I137: =I53-[3]JL!I53 -> 0 | J137: =J53-[3]JL!J53 -> 0 | K137: =K53-[3]JL!K53 -> 0 | L137: =L53-[3]JL!L53 -> 0 | M137: =M53-[3]JL!M53 -> 0 | N137: =N53-[3]JL!N53 -> 0 | O137: =O53-[3]JL!O53 -> 0 | P137: =P53-[3]JL!P53 -> 0 | Q137: =Q53-[3]JL!Q53 -> 0 | R137: =R53-[3]JL!R53 -> 0 | S137: =S53-[3]JL!S53 -> 0 | T137: =T53-[3]JL!T53 -> 0 | U137: =U53-[3]JL!U53 -> 0 | V137: =V53-[3]JL!V53 -> 0 | W137: =W53-[3]JL!W53 -> 0 | X137: =X53-[3]JL!X53 -> 0 | Y137: =Y53-[3]JL!Y53 -> 0 | Z137: =Z53-[3]JL!Z53 -> 0 | AA137: =AA53-[3]JL!AA53 -> 0 | AB137: =AB53-[3]JL!AB53 -> 0 | AC137: =AC53-[3]JL!AC53 -> 0 | AD137: =AD53-[3]JL!AD53 -> 0 | AE137: =AE53-[3]JL!AE53 -> 0 | AF137: =AF53-[3]JL!AF53 -> 0 | AG137: =AG53-[3]JL!AG53 -> 0 | AH137: =AH53-[3]JL!AH53 -> 0 | AI137: =AI53-[3]JL!AI53 -> 0 | AJ137: =AJ53-[3]JL!AJ53 -> 0 | AK137: =AK53-[3]JL!AK53 -> 0 | AL137: =AL53-[3]JL!AL53 -> 0 | AM137: =AM53-[3]JL!AM53 -> 0 | AN137: =AN52-[3]JL!AP52 -> 0 | AO137: =AO52-[3]JL!AQ52 -> 0 | AP137: =AP52-[3]JL!AR52 -> 0 | AQ137: =AQ52-[3]JL!AS52 -> 0 | AR137: =AR52-[3]JL!AT52 -> 0 | AS137: =AS52-[3]JL!AU52 -> 0 | AT137: =AT52-[3]JL!AV52 -> 0 | AU137: =AU52-[3]JL!AW52 -> 0 | AV137: =AV52-[3]JL!AX52 -> 0 | AW137: =AW52-[3]JL!AY52 -> 0 | AX137: =AX52-[3]JL!AZ52 -> 0 | AY137: =AY52-[3]JL!BA52 -> 0 | AZ137: =AZ52-[3]JL!BB52 -> 0 | BA137: =BA52-[3]JL!BC52 -> 0 | BB137: =BB52-[3]JL!BD52 -> 0 | BC137: =BC52-[3]JL!BE52 -> 0 | BD137: =BD52-[3]JL!BF52 -> 0 | BE137: =BE52-[3]JL!BG52 -> 0 | BF137: =BF52-[3]JL!BH52 -> 0 | BG137: =BG52-[3]JL!BI52 -> 0 | BH137: =BH52-[3]JL!BJ52 -> 0 | BI137: =BI52-[3]JL!BK52 -> 0 | BJ137: =BJ52-[3]JL!BL52 -> 0 | BK137: =BK52-[3]JL!BM52 -> 0 | BL137: =BL52-[3]JL!BN52 -> 0 | BM137: =BM52-[3]JL!BO52 -> 0 | BN137: =BN52-[3]JL!BP52 -> 0 | BO137: =BO52-[3]JL!BQ52 -> 0 | BP137: =BP52-[3]JL!BR52 -> 0 | BQ137: =BQ52-[3]JL!BS52 -> 0 | BR137: =BR52-[3]JL!BT52 -> 0 | BS137: =BS52-[3]JL!BU52 -> 0 | BT137: =BT52-[3]JL!BV52 -> 0 | BU137: =BU52-[3]JL!BW52 -> 0 | BV137: =BV52-[3]JL!BX52 -> 0 | BW137: =BW52-[3]JL!BY52 -> 0 | BX137: =BX52-[3]JL!BZ52 -> 0 | BY137: =BY52-[3]JL!CA52 -> 0 | BZ137: =BZ52-[3]JL!CB52 -> 0 | CA137: =CA52-[3]JL!CC52 -> 0 | CB137: =CB52-[3]JL!CD52 -> 0 | CC137: =CC52-[3]JL!CE52 -> 0 | CD137: =CD52-[3]JL!CF52 -> 0 | CE137: =CE52-[3]JL!CG52 -> 0 | CF137: =CF52-[3]JL!CH52 -> 0
A138: =A54-[3]JL!A54 -> 0 | B138: =B54-[3]JL!B54 -> 0 | C138: =C54-[3]JL!C54 -> 0 | D138: =D54-[3]JL!D54 -> 0 | E138: =E54-[3]JL!E54 -> 0 | F138: =F54-[3]JL!F54 -> 0 | G138: =G54-[3]JL!G54 -> 0 | H138: =H54-[3]JL!H54 -> 0 | I138: =I54-[3]JL!I54 -> 0 | J138: =J54-[3]JL!J54 -> 0 | K138: =K54-[3]JL!K54 -> 0 | L138: =L54-[3]JL!L54 -> 0 | M138: =M54-[3]JL!M54 -> 0 | N138: =N54-[3]JL!N54 -> 0 | O138: =O54-[3]JL!O54 -> 0 | P138: =P54-[3]JL!P54 -> 0 | Q138: =Q54-[3]JL!Q54 -> 0 | R138: =R54-[3]JL!R54 -> 0 | S138: =S54-[3]JL!S54 -> 0 | T138: =T54-[3]JL!T54 -> 0 | U138: =U54-[3]JL!U54 -> 0 | V138: =V54-[3]JL!V54 -> 0 | W138: =W54-[3]JL!W54 -> 0 | X138: =X54-[3]JL!X54 -> 0 | Y138: =Y54-[3]JL!Y54 -> 0 | Z138: =Z54-[3]JL!Z54 -> 0 | AA138: =AA54-[3]JL!AA54 -> 0 | AB138: =AB54-[3]JL!AB54 -> 0 | AC138: =AC54-[3]JL!AC54 -> 0 | AD138: =AD54-[3]JL!AD54 -> 0 | AE138: =AE54-[3]JL!AE54 -> 0 | AF138: =AF54-[3]JL!AF54 -> 0 | AG138: =AG54-[3]JL!AG54 -> 0 | AH138: =AH54-[3]JL!AH54 -> 0 | AI138: =AI54-[3]JL!AI54 -> 0 | AJ138: =AJ54-[3]JL!AJ54 -> 0 | AK138: =AK54-[3]JL!AK54 -> 0 | AL138: =AL54-[3]JL!AL54 -> 0 | AM138: =AM54-[3]JL!AM54 -> 0 | AN138: =AN53-[3]JL!AP53 -> 0 | AO138: =AO53-[3]JL!AQ53 -> 0 | AP138: =AP53-[3]JL!AR53 -> 0 | AQ138: =AQ53-[3]JL!AS53 -> 0 | AR138: =AR53-[3]JL!AT53 -> 0 | AS138: =AS53-[3]JL!AU53 -> 0 | AT138: =AT53-[3]JL!AV53 -> 0 | AU138: =AU53-[3]JL!AW53 -> 0 | AV138: =AV53-[3]JL!AX53 -> 0 | AW138: =AW53-[3]JL!AY53 -> 0 | AX138: =AX53-[3]JL!AZ53 -> 0 | AY138: =AY53-[3]JL!BA53 -> 0 | AZ138: =AZ53-[3]JL!BB53 -> 0 | BA138: =BA53-[3]JL!BC53 -> 0 | BB138: =BB53-[3]JL!BD53 -> 0 | BC138: =BC53-[3]JL!BE53 -> 0 | BD138: =BD53-[3]JL!BF53 -> 0 | BE138: =BE53-[3]JL!BG53 -> 0 | BF138: =BF53-[3]JL!BH53 -> 0 | BG138: =BG53-[3]JL!BI53 -> 0 | BH138: =BH53-[3]JL!BJ53 -> 0 | BI138: =BI53-[3]JL!BK53 -> 0 | BJ138: =BJ53-[3]JL!BL53 -> 0 | BK138: =BK53-[3]JL!BM53 -> 0 | BL138: =BL53-[3]JL!BN53 -> 0 | BM138: =BM53-[3]JL!BO53 -> 0 | BN138: =BN53-[3]JL!BP53 -> 0 | BO138: =BO53-[3]JL!BQ53 -> 0 | BP138: =BP53-[3]JL!BR53 -> 0 | BQ138: =BQ53-[3]JL!BS53 -> 0 | BR138: =BR53-[3]JL!BT53 -> 0 | BS138: =BS53-[3]JL!BU53 -> 0 | BT138: =BT53-[3]JL!BV53 -> 0 | BU138: =BU53-[3]JL!BW53 -> 0 | BV138: =BV53-[3]JL!BX53 -> 0 | BW138: =BW53-[3]JL!BY53 -> 0 | BX138: =BX53-[3]JL!BZ53 -> 0 | BY138: =BY53-[3]JL!CA53 -> 0 | BZ138: =BZ53-[3]JL!CB53 -> 0 | CA138: =CA53-[3]JL!CC53 -> 0 | CB138: =CB53-[3]JL!CD53 -> 0 | CC138: =CC53-[3]JL!CE53 -> 0 | CD138: =CD53-[3]JL!CF53 -> 0 | CE138: =CE53-[3]JL!CG53 -> 0 | CF138: =CF53-[3]JL!CH53 -> 0
A139: =A55-[3]JL!A55 -> 0 | B139: =B55-[3]JL!B55 -> 0 | C139: =C55-[3]JL!C55 -> 0 | D139: =D55-[3]JL!D55 -> 0 | E139: =E55-[3]JL!E55 -> 0 | F139: =F55-[3]JL!F55 -> 0 | G139: =G55-[3]JL!G55 -> 0 | H139: =H55-[3]JL!H55 -> 0 | I139: =I55-[3]JL!I55 -> 0 | J139: =J55-[3]JL!J55 -> 0 | K139: =K55-[3]JL!K55 -> 0 | L139: =L55-[3]JL!L55 -> 0 | M139: =M55-[3]JL!M55 -> 0 | N139: =N55-[3]JL!N55 -> 0 | O139: =O55-[3]JL!O55 -> 0 | P139: =P55-[3]JL!P55 -> 0 | Q139: =Q55-[3]JL!Q55 -> 0 | R139: =R55-[3]JL!R55 -> 0 | S139: =S55-[3]JL!S55 -> 0 | T139: =T55-[3]JL!T55 -> 0 | U139: =U55-[3]JL!U55 -> 0 | V139: =V55-[3]JL!V55 -> 0 | W139: =W55-[3]JL!W55 -> 0 | X139: =X55-[3]JL!X55 -> 0 | Y139: =Y55-[3]JL!Y55 -> 0 | Z139: =Z55-[3]JL!Z55 -> 0 | AA139: =AA55-[3]JL!AA55 -> 0 | AB139: =AB55-[3]JL!AB55 -> 0 | AC139: =AC55-[3]JL!AC55 -> 0 | AD139: =AD55-[3]JL!AD55 -> 0 | AE139: =AE55-[3]JL!AE55 -> 0 | AF139: =AF55-[3]JL!AF55 -> 0 | AG139: =AG55-[3]JL!AG55 -> 0 | AH139: =AH55-[3]JL!AH55 -> 0 | AI139: =AI55-[3]JL!AI55 -> 0 | AJ139: =AJ55-[3]JL!AJ55 -> 0 | AK139: =AK55-[3]JL!AK55 -> 0 | AL139: =AL55-[3]JL!AL55 -> 0 | AM139: =AM55-[3]JL!AM55 -> 0 | AN139: =AN54-[3]JL!AP54 -> 0 | AO139: =AO54-[3]JL!AQ54 -> 0 | AP139: =AP54-[3]JL!AR54 -> 0 | AQ139: =AQ54-[3]JL!AS54 -> 0 | AR139: =AR54-[3]JL!AT54 -> 0 | AS139: =AS54-[3]JL!AU54 -> 0 | AT139: =AT54-[3]JL!AV54 -> 0 | AU139: =AU54-[3]JL!AW54 -> 0 | AV139: =AV54-[3]JL!AX54 -> 0 | AW139: =AW54-[3]JL!AY54 -> 0 | AX139: =AX54-[3]JL!AZ54 -> 0 | AY139: =AY54-[3]JL!BA54 -> 0 | AZ139: =AZ54-[3]JL!BB54 -> 0 | BA139: =BA54-[3]JL!BC54 -> 0 | BB139: =BB54-[3]JL!BD54 -> 0 | BC139: =BC54-[3]JL!BE54 -> 0 | BD139: =BD54-[3]JL!BF54 -> 0 | BE139: =BE54-[3]JL!BG54 -> 0 | BF139: =BF54-[3]JL!BH54 -> 0 | BG139: =BG54-[3]JL!BI54 -> 0 | BH139: =BH54-[3]JL!BJ54 -> 0 | BI139: =BI54-[3]JL!BK54 -> 0 | BJ139: =BJ54-[3]JL!BL54 -> 0 | BK139: =BK54-[3]JL!BM54 -> 0 | BL139: =BL54-[3]JL!BN54 -> 0 | BM139: =BM54-[3]JL!BO54 -> 0 | BN139: =BN54-[3]JL!BP54 -> 0 | BO139: =BO54-[3]JL!BQ54 -> 0 | BP139: =BP54-[3]JL!BR54 -> 0 | BQ139: =BQ54-[3]JL!BS54 -> 0 | BR139: =BR54-[3]JL!BT54 -> 0 | BS139: =BS54-[3]JL!BU54 -> 0 | BT139: =BT54-[3]JL!BV54 -> 0 | BU139: =BU54-[3]JL!BW54 -> 0 | BV139: =BV54-[3]JL!BX54 -> 0 | BW139: =BW54-[3]JL!BY54 -> 0 | BX139: =BX54-[3]JL!BZ54 -> 0 | BY139: =BY54-[3]JL!CA54 -> 0 | BZ139: =BZ54-[3]JL!CB54 -> 0 | CA139: =CA54-[3]JL!CC54 -> 0 | CB139: =CB54-[3]JL!CD54 -> 0 | CC139: =CC54-[3]JL!CE54 -> 0 | CD139: =CD54-[3]JL!CF54 -> 0 | CE139: =CE54-[3]JL!CG54 -> 0 | CF139: =CF54-[3]JL!CH54 -> 0
A140: =A56-[3]JL!A56 -> 0 | B140: =B56-[3]JL!B56 -> 0 | C140: =C56-[3]JL!C56 -> 0 | D140: =D56-[3]JL!D56 -> 0 | E140: =E56-[3]JL!E56 -> 0 | F140: =F56-[3]JL!F56 -> 0 | G140: =G56-[3]JL!G56 -> 0 | H140: =H56-[3]JL!H56 -> 0 | I140: =I56-[3]JL!I56 -> 0 | J140: =J56-[3]JL!J56 -> 0 | K140: =K56-[3]JL!K56 -> 0 | L140: =L56-[3]JL!L56 -> 0 | M140: =M56-[3]JL!M56 -> 0 | N140: =N56-[3]JL!N56 -> 0 | O140: =O56-[3]JL!O56 -> 0 | P140: =P56-[3]JL!P56 -> 0 | Q140: =Q56-[3]JL!Q56 -> 0 | R140: =R56-[3]JL!R56 -> 0 | S140: =S56-[3]JL!S56 -> 0 | T140: =T56-[3]JL!T56 -> 0 | U140: =U56-[3]JL!U56 -> 0 | V140: =V56-[3]JL!V56 -> 0 | W140: =W56-[3]JL!W56 -> 0 | X140: =X56-[3]JL!X56 -> 0 | Y140: =Y56-[3]JL!Y56 -> 0 | Z140: =Z56-[3]JL!Z56 -> 0 | AA140: =AA56-[3]JL!AA56 -> 0 | AB140: =AB56-[3]JL!AB56 -> 0 | AC140: =AC56-[3]JL!AC56 -> 0 | AD140: =AD56-[3]JL!AD56 -> 0 | AE140: =AE56-[3]JL!AE56 -> 0 | AF140: =AF56-[3]JL!AF56 -> 0 | AG140: =AG56-[3]JL!AG56 -> 0 | AH140: =AH56-[3]JL!AH56 -> 0 | AI140: =AI56-[3]JL!AI56 -> 0 | AJ140: =AJ56-[3]JL!AJ56 -> 0 | AK140: =AK56-[3]JL!AK56 -> 0 | AL140: =AL56-[3]JL!AL56 -> 0 | AM140: =AM56-[3]JL!AM56 -> 0 | AN140: =AN55-[3]JL!AP55 -> 0 | AO140: =AO55-[3]JL!AQ55 -> 0 | AP140: =AP55-[3]JL!AR55 -> 0 | AQ140: =AQ55-[3]JL!AS55 -> 0 | AR140: =AR55-[3]JL!AT55 -> 0 | AS140: =AS55-[3]JL!AU55 -> 0 | AT140: =AT55-[3]JL!AV55 -> 0 | AU140: =AU55-[3]JL!AW55 -> 0 | AV140: =AV55-[3]JL!AX55 -> 0 | AW140: =AW55-[3]JL!AY55 -> 0 | AX140: =AX55-[3]JL!AZ55 -> 0 | AY140: =AY55-[3]JL!BA55 -> 0 | AZ140: =AZ55-[3]JL!BB55 -> 0 | BA140: =BA55-[3]JL!BC55 -> 0 | BB140: =BB55-[3]JL!BD55 -> 0 | BC140: =BC55-[3]JL!BE55 -> 0 | BD140: =BD55-[3]JL!BF55 -> 0 | BE140: =BE55-[3]JL!BG55 -> 0 | BF140: =BF55-[3]JL!BH55 -> 0 | BG140: =BG55-[3]JL!BI55 -> 0 | BH140: =BH55-[3]JL!BJ55 -> 0 | BI140: =BI55-[3]JL!BK55 -> 0 | BJ140: =BJ55-[3]JL!BL55 -> 0 | BK140: =BK55-[3]JL!BM55 -> 0 | BL140: =BL55-[3]JL!BN55 -> 0 | BM140: =BM55-[3]JL!BO55 -> 0 | BN140: =BN55-[3]JL!BP55 -> 0 | BO140: =BO55-[3]JL!BQ55 -> 0 | BP140: =BP55-[3]JL!BR55 -> 0 | BQ140: =BQ55-[3]JL!BS55 -> 0 | BR140: =BR55-[3]JL!BT55 -> 0 | BS140: =BS55-[3]JL!BU55 -> 0 | BT140: =BT55-[3]JL!BV55 -> 0 | BU140: =BU55-[3]JL!BW55 -> 0 | BV140: =BV55-[3]JL!BX55 -> 0 | BW140: =BW55-[3]JL!BY55 -> 0 | BX140: =BX55-[3]JL!BZ55 -> 0 | BY140: =BY55-[3]JL!CA55 -> 0 | BZ140: =BZ55-[3]JL!CB55 -> 0 | CA140: =CA55-[3]JL!CC55 -> 0 | CB140: =CB55-[3]JL!CD55 -> 0 | CC140: =CC55-[3]JL!CE55 -> 0 | CD140: =CD55-[3]JL!CF55 -> 0 | CE140: =CE55-[3]JL!CG55 -> 0 | CF140: =CF55-[3]JL!CH55 -> 0
A141: =A57-[3]JL!A57 -> 0 | B141: =B57-[3]JL!B57 -> 0 | C141: =C57-[3]JL!C57 -> 0 | D141: =D57-[3]JL!D57 -> 0 | E141: =E57-[3]JL!E57 -> 0 | F141: =F57-[3]JL!F57 -> 0 | G141: =G57-[3]JL!G57 -> 0 | H141: =H57-[3]JL!H57 -> 0 | I141: =I57-[3]JL!I57 -> 0 | J141: =J57-[3]JL!J57 -> 0 | K141: =K57-[3]JL!K57 -> 0 | L141: =L57-[3]JL!L57 -> 0 | M141: =M57-[3]JL!M57 -> 0 | N141: =N57-[3]JL!N57 -> 0 | O141: =O57-[3]JL!O57 -> 0 | P141: =P57-[3]JL!P57 -> 0 | Q141: =Q57-[3]JL!Q57 -> 0 | R141: =R57-[3]JL!R57 -> 0 | S141: =S57-[3]JL!S57 -> 0 | T141: =T57-[3]JL!T57 -> 0 | U141: =U57-[3]JL!U57 -> 0 | V141: =V57-[3]JL!V57 -> 0 | W141: =W57-[3]JL!W57 -> 0 | X141: =X57-[3]JL!X57 -> 0 | Y141: =Y57-[3]JL!Y57 -> 0 | Z141: =Z57-[3]JL!Z57 -> 0 | AA141: =AA57-[3]JL!AA57 -> 0 | AB141: =AB57-[3]JL!AB57 -> 0 | AC141: =AC57-[3]JL!AC57 -> 0 | AD141: =AD57-[3]JL!AD57 -> 0 | AE141: =AE57-[3]JL!AE57 -> 0 | AF141: =AF57-[3]JL!AF57 -> 0 | AG141: =AG57-[3]JL!AG57 -> 0 | AH141: =AH57-[3]JL!AH57 -> 0 | AI141: =AI57-[3]JL!AI57 -> 0 | AJ141: =AJ57-[3]JL!AJ57 -> 0 | AK141: =AK57-[3]JL!AK57 -> 0 | AL141: =AL57-[3]JL!AL57 -> 0 | AM141: =AM57-[3]JL!AM57 -> 0 | AN141: =AN56-[3]JL!AP56 -> 0 | AO141: =AO56-[3]JL!AQ56 -> 0 | AP141: =AP56-[3]JL!AR56 -> 0 | AQ141: =AQ56-[3]JL!AS56 -> 0 | AR141: =AR56-[3]JL!AT56 -> 0 | AS141: =AS56-[3]JL!AU56 -> 0 | AT141: =AT56-[3]JL!AV56 -> 0 | AU141: =AU56-[3]JL!AW56 -> 0 | AV141: =AV56-[3]JL!AX56 -> 0 | AW141: =AW56-[3]JL!AY56 -> 0 | AX141: =AX56-[3]JL!AZ56 -> 0 | AY141: =AY56-[3]JL!BA56 -> 0 | AZ141: =AZ56-[3]JL!BB56 -> 0 | BA141: =BA56-[3]JL!BC56 -> 0 | BB141: =BB56-[3]JL!BD56 -> 0 | BC141: =BC56-[3]JL!BE56 -> 0 | BD141: =BD56-[3]JL!BF56 -> 0 | BE141: =BE56-[3]JL!BG56 -> 0 | BF141: =BF56-[3]JL!BH56 -> 0 | BG141: =BG56-[3]JL!BI56 -> 0 | BH141: =BH56-[3]JL!BJ56 -> 0 | BI141: =BI56-[3]JL!BK56 -> 0 | BJ141: =BJ56-[3]JL!BL56 -> 0 | BK141: =BK56-[3]JL!BM56 -> 0 | BL141: =BL56-[3]JL!BN56 -> 0 | BM141: =BM56-[3]JL!BO56 -> 0 | BN141: =BN56-[3]JL!BP56 -> 0 | BO141: =BO56-[3]JL!BQ56 -> 0 | BP141: =BP56-[3]JL!BR56 -> 0 | BQ141: =BQ56-[3]JL!BS56 -> 0 | BR141: =BR56-[3]JL!BT56 -> 0 | BS141: =BS56-[3]JL!BU56 -> 0 | BT141: =BT56-[3]JL!BV56 -> 0 | BU141: =BU56-[3]JL!BW56 -> 0 | BV141: =BV56-[3]JL!BX56 -> 0 | BW141: =BW56-[3]JL!BY56 -> 0 | BX141: =BX56-[3]JL!BZ56 -> 0 | BY141: =BY56-[3]JL!CA56 -> 0 | BZ141: =BZ56-[3]JL!CB56 -> 0 | CA141: =CA56-[3]JL!CC56 -> 0 | CB141: =CB56-[3]JL!CD56 -> 0 | CC141: =CC56-[3]JL!CE56 -> 0 | CD141: =CD56-[3]JL!CF56 -> 0 | CE141: =CE56-[3]JL!CG56 -> 0 | CF141: =CF56-[3]JL!CH56 -> 0
A142: =A58-[3]JL!A58 -> 0 | B142: =B58-[3]JL!B58 -> 0 | C142: =C58-[3]JL!C58 -> 0 | D142: =D58-[3]JL!D58 -> 0 | E142: =E58-[3]JL!E58 -> 0 | F142: =F58-[3]JL!F58 -> 0 | G142: =G58-[3]JL!G58 -> 0 | H142: =H58-[3]JL!H58 -> 0 | I142: =I58-[3]JL!I58 -> 0 | J142: =J58-[3]JL!J58 -> 0 | K142: =K58-[3]JL!K58 -> 0 | L142: =L58-[3]JL!L58 -> 0 | M142: =M58-[3]JL!M58 -> 0 | N142: =N58-[3]JL!N58 -> 0 | O142: =O58-[3]JL!O58 -> 0 | P142: =P58-[3]JL!P58 -> 0 | Q142: =Q58-[3]JL!Q58 -> 0 | R142: =R58-[3]JL!R58 -> 0 | S142: =S58-[3]JL!S58 -> 0 | T142: =T58-[3]JL!T58 -> 0 | U142: =U58-[3]JL!U58 -> 0 | V142: =V58-[3]JL!V58 -> 0 | W142: =W58-[3]JL!W58 -> 0 | X142: =X58-[3]JL!X58 -> 0 | Y142: =Y58-[3]JL!Y58 -> 0 | Z142: =Z58-[3]JL!Z58 -> 0 | AA142: =AA58-[3]JL!AA58 -> 0 | AB142: =AB58-[3]JL!AB58 -> 0 | AC142: =AC58-[3]JL!AC58 -> 0 | AD142: =AD58-[3]JL!AD58 -> 0 | AE142: =AE58-[3]JL!AE58 -> 0 | AF142: =AF58-[3]JL!AF58 -> 0 | AG142: =AG58-[3]JL!AG58 -> 0 | AH142: =AH58-[3]JL!AH58 -> 0 | AI142: =AI58-[3]JL!AI58 -> 0 | AJ142: =AJ58-[3]JL!AJ58 -> 0 | AK142: =AK58-[3]JL!AK58 -> 0 | AL142: =AL58-[3]JL!AL58 -> 0 | AM142: =AM58-[3]JL!AM58 -> 0 | AN142: =AN57-[3]JL!AP57 -> 0 | AO142: =AO57-[3]JL!AQ57 -> 0 | AP142: =AP57-[3]JL!AR57 -> 0 | AQ142: =AQ57-[3]JL!AS57 -> 0 | AR142: =AR57-[3]JL!AT57 -> 0 | AS142: =AS57-[3]JL!AU57 -> 0 | AT142: =AT57-[3]JL!AV57 -> 0 | AU142: =AU57-[3]JL!AW57 -> 0 | AV142: =AV57-[3]JL!AX57 -> 0 | AW142: =AW57-[3]JL!AY57 -> 0 | AX142: =AX57-[3]JL!AZ57 -> 0 | AY142: =AY57-[3]JL!BA57 -> 0 | AZ142: =AZ57-[3]JL!BB57 -> 0 | BA142: =BA57-[3]JL!BC57 -> 0 | BB142: =BB57-[3]JL!BD57 -> 0 | BC142: =BC57-[3]JL!BE57 -> 0 | BD142: =BD57-[3]JL!BF57 -> 0 | BE142: =BE57-[3]JL!BG57 -> 0 | BF142: =BF57-[3]JL!BH57 -> 0 | BG142: =BG57-[3]JL!BI57 -> 0 | BH142: =BH57-[3]JL!BJ57 -> 0 | BI142: =BI57-[3]JL!BK57 -> 0 | BJ142: =BJ57-[3]JL!BL57 -> 0 | BK142: =BK57-[3]JL!BM57 -> 0 | BL142: =BL57-[3]JL!BN57 -> 0 | BM142: =BM57-[3]JL!BO57 -> 0 | BN142: =BN57-[3]JL!BP57 -> 0 | BO142: =BO57-[3]JL!BQ57 -> 0 | BP142: =BP57-[3]JL!BR57 -> 0 | BQ142: =BQ57-[3]JL!BS57 -> 0 | BR142: =BR57-[3]JL!BT57 -> 0 | BS142: =BS57-[3]JL!BU57 -> 0 | BT142: =BT57-[3]JL!BV57 -> 0 | BU142: =BU57-[3]JL!BW57 -> 0 | BV142: =BV57-[3]JL!BX57 -> 0 | BW142: =BW57-[3]JL!BY57 -> 0 | BX142: =BX57-[3]JL!BZ57 -> 0 | BY142: =BY57-[3]JL!CA57 -> 0 | BZ142: =BZ57-[3]JL!CB57 -> 0 | CA142: =CA57-[3]JL!CC57 -> 0 | CB142: =CB57-[3]JL!CD57 -> 0 | CC142: =CC57-[3]JL!CE57 -> 0 | CD142: =CD57-[3]JL!CF57 -> 0 | CE142: =CE57-[3]JL!CG57 -> 0 | CF142: =CF57-[3]JL!CH57 -> 0
A143: =A59-[3]JL!A59 -> 0 | B143: =B59-[3]JL!B59 -> 0 | C143: =C59-[3]JL!C59 -> 0 | D143: =D59-[3]JL!D59 -> 0 | E143: =E59-[3]JL!E59 -> 0 | F143: =F59-[3]JL!F59 -> 0 | G143: =G59-[3]JL!G59 -> 0 | H143: =H59-[3]JL!H59 -> 0 | I143: =I59-[3]JL!I59 -> 0 | J143: =J59-[3]JL!J59 -> 0 | K143: =K59-[3]JL!K59 -> 0 | L143: =L59-[3]JL!L59 -> 0 | M143: =M59-[3]JL!M59 -> 0 | N143: =N59-[3]JL!N59 -> 0 | O143: =O59-[3]JL!O59 -> 0 | P143: =P59-[3]JL!P59 -> 0 | Q143: =Q59-[3]JL!Q59 -> 0 | R143: =R59-[3]JL!R59 -> 0 | S143: =S59-[3]JL!S59 -> 0 | T143: =T59-[3]JL!T59 -> 0 | U143: =U59-[3]JL!U59 -> 0 | V143: =V59-[3]JL!V59 -> 0 | W143: =W59-[3]JL!W59 -> 0 | X143: =X59-[3]JL!X59 -> 0 | Y143: =Y59-[3]JL!Y59 -> 0 | Z143: =Z59-[3]JL!Z59 -> 0 | AA143: =AA59-[3]JL!AA59 -> 0 | AB143: =AB59-[3]JL!AB59 -> 0 | AC143: =AC59-[3]JL!AC59 -> 0 | AD143: =AD59-[3]JL!AD59 -> 0 | AE143: =AE59-[3]JL!AE59 -> 0 | AF143: =AF59-[3]JL!AF59 -> 0 | AG143: =AG59-[3]JL!AG59 -> 0 | AH143: =AH59-[3]JL!AH59 -> 0 | AI143: =AI59-[3]JL!AI59 -> 0 | AJ143: =AJ59-[3]JL!AJ59 -> 0 | AK143: =AK59-[3]JL!AK59 -> 0 | AL143: =AL59-[3]JL!AL59 -> 0 | AM143: =AM59-[3]JL!AM59 -> 0 | AN143: =AN58-[3]JL!AP58 -> 0 | AO143: =AO58-[3]JL!AQ58 -> 0 | AP143: =AP58-[3]JL!AR58 -> 0 | AQ143: =AQ58-[3]JL!AS58 -> 0 | AR143: =AR58-[3]JL!AT58 -> 0 | AS143: =AS58-[3]JL!AU58 -> 0 | AT143: =AT58-[3]JL!AV58 -> 0 | AU143: =AU58-[3]JL!AW58 -> 0 | AV143: =AV58-[3]JL!AX58 -> 0 | AW143: =AW58-[3]JL!AY58 -> 0 | AX143: =AX58-[3]JL!AZ58 -> 0 | AY143: =AY58-[3]JL!BA58 -> 0 | AZ143: =AZ58-[3]JL!BB58 -> 0 | BA143: =BA58-[3]JL!BC58 -> 0 | BB143: =BB58-[3]JL!BD58 -> 0 | BC143: =BC58-[3]JL!BE58 -> 0 | BD143: =BD58-[3]JL!BF58 -> 0 | BE143: =BE58-[3]JL!BG58 -> 0 | BF143: =BF58-[3]JL!BH58 -> 0 | BG143: =BG58-[3]JL!BI58 -> 0 | BH143: =BH58-[3]JL!BJ58 -> 0 | BI143: =BI58-[3]JL!BK58 -> 0 | BJ143: =BJ58-[3]JL!BL58 -> 0 | BK143: =BK58-[3]JL!BM58 -> 0 | BL143: =BL58-[3]JL!BN58 -> 0 | BM143: =BM58-[3]JL!BO58 -> 0 | BN143: =BN58-[3]JL!BP58 -> 0 | BO143: =BO58-[3]JL!BQ58 -> 0 | BP143: =BP58-[3]JL!BR58 -> 0 | BQ143: =BQ58-[3]JL!BS58 -> 0 | BR143: =BR58-[3]JL!BT58 -> 0 | BS143: =BS58-[3]JL!BU58 -> 0 | BT143: =BT58-[3]JL!BV58 -> 0 | BU143: =BU58-[3]JL!BW58 -> 0 | BV143: =BV58-[3]JL!BX58 -> 0 | BW143: =BW58-[3]JL!BY58 -> 0 | BX143: =BX58-[3]JL!BZ58 -> 0 | BY143: =BY58-[3]JL!CA58 -> 0 | BZ143: =BZ58-[3]JL!CB58 -> 0 | CA143: =CA58-[3]JL!CC58 -> 0 | CB143: =CB58-[3]JL!CD58 -> 0 | CC143: =CC58-[3]JL!CE58 -> 0 | CD143: =CD58-[3]JL!CF58 -> 0 | CE143: =CE58-[3]JL!CG58 -> 0 | CF143: =CF58-[3]JL!CH58 -> 0
A144: =A60-[3]JL!A60 -> 0 | B144: =B60-[3]JL!B60 -> 0 | C144: =C60-[3]JL!C60 -> 0 | D144: =D60-[3]JL!D60 -> 0 | E144: =E60-[3]JL!E60 -> 0 | F144: =F60-[3]JL!F60 -> 0 | G144: =G60-[3]JL!G60 -> 0 | H144: =H60-[3]JL!H60 -> 0 | I144: =I60-[3]JL!I60 -> 0 | J144: =J60-[3]JL!J60 -> 0 | K144: =K60-[3]JL!K60 -> 0 | L144: =L60-[3]JL!L60 -> 0 | M144: =M60-[3]JL!M60 -> 0 | N144: =N60-[3]JL!N60 -> 0 | O144: =O60-[3]JL!O60 -> 0 | P144: =P60-[3]JL!P60 -> 0 | Q144: =Q60-[3]JL!Q60 -> 0 | R144: =R60-[3]JL!R60 -> 0 | S144: =S60-[3]JL!S60 -> 0 | T144: =T60-[3]JL!T60 -> 0 | U144: =U60-[3]JL!U60 -> 0 | V144: =V60-[3]JL!V60 -> 0 | W144: =W60-[3]JL!W60 -> 0 | X144: =X60-[3]JL!X60 -> 0 | Y144: =Y60-[3]JL!Y60 -> 0 | Z144: =Z60-[3]JL!Z60 -> 0 | AA144: =AA60-[3]JL!AA60 -> 0 | AB144: =AB60-[3]JL!AB60 -> 0 | AC144: =AC60-[3]JL!AC60 -> 0 | AD144: =AD60-[3]JL!AD60 -> 0 | AE144: =AE60-[3]JL!AE60 -> 0 | AF144: =AF60-[3]JL!AF60 -> 0 | AG144: =AG60-[3]JL!AG60 -> 0 | AH144: =AH60-[3]JL!AH60 -> 0 | AI144: =AI60-[3]JL!AI60 -> 0 | AJ144: =AJ60-[3]JL!AJ60 -> 0 | AK144: =AK60-[3]JL!AK60 -> 0 | AL144: =AL60-[3]JL!AL60 -> 0 | AM144: =AM60-[3]JL!AM60 -> 0 | AN144: =AN59-[3]JL!AP59 -> 0 | AO144: =AO59-[3]JL!AQ59 -> 0 | AP144: =AP59-[3]JL!AR59 -> 0 | AQ144: =AQ59-[3]JL!AS59 -> 0 | AR144: =AR59-[3]JL!AT59 -> 0 | AS144: =AS59-[3]JL!AU59 -> 0 | AT144: =AT59-[3]JL!AV59 -> 0 | AU144: =AU59-[3]JL!AW59 -> 0 | AV144: =AV59-[3]JL!AX59 -> 0 | AW144: =AW59-[3]JL!AY59 -> 0 | AX144: =AX59-[3]JL!AZ59 -> 0 | AY144: =AY59-[3]JL!BA59 -> 0 | AZ144: =AZ59-[3]JL!BB59 -> 0 | BA144: =BA59-[3]JL!BC59 -> 0 | BB144: =BB59-[3]JL!BD59 -> 0 | BC144: =BC59-[3]JL!BE59 -> 0 | BD144: =BD59-[3]JL!BF59 -> 0 | BE144: =BE59-[3]JL!BG59 -> 0 | BF144: =BF59-[3]JL!BH59 -> 0 | BG144: =BG59-[3]JL!BI59 -> 0 | BH144: =BH59-[3]JL!BJ59 -> 0 | BI144: =BI59-[3]JL!BK59 -> 0 | BJ144: =BJ59-[3]JL!BL59 -> 0 | BK144: =BK59-[3]JL!BM59 -> 0 | BL144: =BL59-[3]JL!BN59 -> 0 | BM144: =BM59-[3]JL!BO59 -> 0 | BN144: =BN59-[3]JL!BP59 -> 0 | BO144: =BO59-[3]JL!BQ59 -> 0 | BP144: =BP59-[3]JL!BR59 -> 0 | BQ144: =BQ59-[3]JL!BS59 -> 0 | BR144: =BR59-[3]JL!BT59 -> 0 | BS144: =BS59-[3]JL!BU59 -> 0 | BT144: =BT59-[3]JL!BV59 -> 0 | BU144: =BU59-[3]JL!BW59 -> 0 | BV144: =BV59-[3]JL!BX59 -> 0 | BW144: =BW59-[3]JL!BY59 -> 0 | BX144: =BX59-[3]JL!BZ59 -> 0 | BY144: =BY59-[3]JL!CA59 -> 0 | BZ144: =BZ59-[3]JL!CB59 -> 0 | CA144: =CA59-[3]JL!CC59 -> 0 | CB144: =CB59-[3]JL!CD59 -> 0 | CC144: =CC59-[3]JL!CE59 -> 0 | CD144: =CD59-[3]JL!CF59 -> 0 | CE144: =CE59-[3]JL!CG59 -> 0 | CF144: =CF59-[3]JL!CH59 -> 0
A145: =A61-[3]JL!A61 -> 0 | B145: =B61-[3]JL!B61 -> 0 | C145: =C61-[3]JL!C61 -> 0 | D145: =D61-[3]JL!D61 -> 0 | E145: =E61-[3]JL!E61 -> 0 | F145: =F61-[3]JL!F61 -> 0 | G145: =G61-[3]JL!G61 -> 0 | H145: =H61-[3]JL!H61 -> 0 | I145: =I61-[3]JL!I61 -> 0 | J145: =J61-[3]JL!J61 -> 0 | K145: =K61-[3]JL!K61 -> 0 | L145: =L61-[3]JL!L61 -> 0 | M145: =M61-[3]JL!M61 -> 0 | N145: =N61-[3]JL!N61 -> 0 | O145: =O61-[3]JL!O61 -> 0 | P145: =P61-[3]JL!P61 -> 0 | Q145: =Q61-[3]JL!Q61 -> 0 | R145: =R61-[3]JL!R61 -> 0 | S145: =S61-[3]JL!S61 -> 0 | T145: =T61-[3]JL!T61 -> 0 | U145: =U61-[3]JL!U61 -> 0 | V145: =V61-[3]JL!V61 -> 0 | W145: =W61-[3]JL!W61 -> 0 | X145: =X61-[3]JL!X61 -> 0 | Y145: =Y61-[3]JL!Y61 -> 0 | Z145: =Z61-[3]JL!Z61 -> 0 | AA145: =AA61-[3]JL!AA61 -> 0 | AB145: =AB61-[3]JL!AB61 -> 0 | AC145: =AC61-[3]JL!AC61 -> 0 | AD145: =AD61-[3]JL!AD61 -> 0 | AE145: =AE61-[3]JL!AE61 -> 0 | AF145: =AF61-[3]JL!AF61 -> 0 | AG145: =AG61-[3]JL!AG61 -> 0 | AH145: =AH61-[3]JL!AH61 -> 0 | AI145: =AI61-[3]JL!AI61 -> 0 | AJ145: =AJ61-[3]JL!AJ61 -> 0 | AK145: =AK61-[3]JL!AK61 -> 0 | AL145: =AL61-[3]JL!AL61 -> 0 | AM145: =AM61-[3]JL!AM61 -> 0 | AN145: =AN60-[3]JL!AP60 -> 0 | AO145: =AO60-[3]JL!AQ60 -> 0 | AP145: =AP60-[3]JL!AR60 -> 0 | AQ145: =AQ60-[3]JL!AS60 -> 0 | AR145: =AR60-[3]JL!AT60 -> 0 | AS145: =AS60-[3]JL!AU60 -> 0 | AT145: =AT60-[3]JL!AV60 -> 0 | AU145: =AU60-[3]JL!AW60 -> 0 | AV145: =AV60-[3]JL!AX60 -> 0 | AW145: =AW60-[3]JL!AY60 -> 0 | AX145: =AX60-[3]JL!AZ60 -> 0 | AY145: =AY60-[3]JL!BA60 -> 0 | AZ145: =AZ60-[3]JL!BB60 -> 0 | BA145: =BA60-[3]JL!BC60 -> 0 | BB145: =BB60-[3]JL!BD60 -> 0 | BC145: =BC60-[3]JL!BE60 -> 0 | BD145: =BD60-[3]JL!BF60 -> 0 | BE145: =BE60-[3]JL!BG60 -> 0 | BF145: =BF60-[3]JL!BH60 -> 0 | BG145: =BG60-[3]JL!BI60 -> 0 | BH145: =BH60-[3]JL!BJ60 -> 0 | BI145: =BI60-[3]JL!BK60 -> 0 | BJ145: =BJ60-[3]JL!BL60 -> 0 | BK145: =BK60-[3]JL!BM60 -> 0 | BL145: =BL60-[3]JL!BN60 -> 0 | BM145: =BM60-[3]JL!BO60 -> 0 | BN145: =BN60-[3]JL!BP60 -> 0 | BO145: =BO60-[3]JL!BQ60 -> 0 | BP145: =BP60-[3]JL!BR60 -> 0 | BQ145: =BQ60-[3]JL!BS60 -> 0 | BR145: =BR60-[3]JL!BT60 -> 0 | BS145: =BS60-[3]JL!BU60 -> 0 | BT145: =BT60-[3]JL!BV60 -> 0 | BU145: =BU60-[3]JL!BW60 -> 0 | BV145: =BV60-[3]JL!BX60 -> 0 | BW145: =BW60-[3]JL!BY60 -> 0 | BX145: =BX60-[3]JL!BZ60 -> 0 | BY145: =BY60-[3]JL!CA60 -> 0 | BZ145: =BZ60-[3]JL!CB60 -> 0 | CA145: =CA60-[3]JL!CC60 -> 0 | CB145: =CB60-[3]JL!CD60 -> 0 | CC145: =CC60-[3]JL!CE60 -> 0 | CD145: =CD60-[3]JL!CF60 -> 0 | CE145: =CE60-[3]JL!CG60 -> 0 | CF145: =CF60-[3]JL!CH60 -> 0
A146: =A62-[3]JL!A62 -> 0 | B146: =B62-[3]JL!B62 -> 0 | C146: =C62-[3]JL!C62 -> 0 | D146: =D62-[3]JL!D62 -> 0 | E146: =E62-[3]JL!E62 -> 0 | F146: =F62-[3]JL!F62 -> 0 | G146: =G62-[3]JL!G62 -> 0 | H146: =H62-[3]JL!H62 -> 0 | I146: =I62-[3]JL!I62 -> 0 | J146: =J62-[3]JL!J62 -> 0 | K146: =K62-[3]JL!K62 -> 0 | L146: =L62-[3]JL!L62 -> 0 | M146: =M62-[3]JL!M62 -> 0 | N146: =N62-[3]JL!N62 -> 0 | O146: =O62-[3]JL!O62 -> 0 | P146: =P62-[3]JL!P62 -> 0 | Q146: =Q62-[3]JL!Q62 -> 0 | R146: =R62-[3]JL!R62 -> 0 | S146: =S62-[3]JL!S62 -> 0 | T146: =T62-[3]JL!T62 -> 0 | U146: =U62-[3]JL!U62 -> 0 | V146: =V62-[3]JL!V62 -> 0 | W146: =W62-[3]JL!W62 -> 0 | X146: =X62-[3]JL!X62 -> 0 | Y146: =Y62-[3]JL!Y62 -> 0 | Z146: =Z62-[3]JL!Z62 -> 0 | AA146: =AA62-[3]JL!AA62 -> 0 | AB146: =AB62-[3]JL!AB62 -> 0 | AC146: =AC62-[3]JL!AC62 -> 0 | AD146: =AD62-[3]JL!AD62 -> 0 | AE146: =AE62-[3]JL!AE62 -> 0 | AF146: =AF62-[3]JL!AF62 -> 0 | AG146: =AG62-[3]JL!AG62 -> 0 | AH146: =AH62-[3]JL!AH62 -> 0 | AI146: =AI62-[3]JL!AI62 -> 0 | AJ146: =AJ62-[3]JL!AJ62 -> 0 | AK146: =AK62-[3]JL!AK62 -> 0 | AL146: =AL62-[3]JL!AL62 -> 0 | AM146: =AM62-[3]JL!AM62 -> 0 | AN146: =AN61-[3]JL!AP61 -> 0 | AO146: =AO61-[3]JL!AQ61 -> 0 | AP146: =AP61-[3]JL!AR61 -> 0 | AQ146: =AQ61-[3]JL!AS61 -> 0 | AR146: =AR61-[3]JL!AT61 -> 0 | AS146: =AS61-[3]JL!AU61 -> 0 | AT146: =AT61-[3]JL!AV61 -> 0 | AU146: =AU61-[3]JL!AW61 -> 0 | AV146: =AV61-[3]JL!AX61 -> 0 | AW146: =AW61-[3]JL!AY61 -> 0 | AX146: =AX61-[3]JL!AZ61 -> 0 | AY146: =AY61-[3]JL!BA61 -> 0 | AZ146: =AZ61-[3]JL!BB61 -> 0 | BA146: =BA61-[3]JL!BC61 -> 0 | BB146: =BB61-[3]JL!BD61 -> 0 | BC146: =BC61-[3]JL!BE61 -> 0 | BD146: =BD61-[3]JL!BF61 -> 0 | BE146: =BE61-[3]JL!BG61 -> 0 | BF146: =BF61-[3]JL!BH61 -> 0 | BG146: =BG61-[3]JL!BI61 -> 0 | BH146: =BH61-[3]JL!BJ61 -> 0 | BI146: =BI61-[3]JL!BK61 -> 0 | BJ146: =BJ61-[3]JL!BL61 -> 0 | BK146: =BK61-[3]JL!BM61 -> 0 | BL146: =BL61-[3]JL!BN61 -> 0 | BM146: =BM61-[3]JL!BO61 -> 0 | BN146: =BN61-[3]JL!BP61 -> 0 | BO146: =BO61-[3]JL!BQ61 -> 0 | BP146: =BP61-[3]JL!BR61 -> 0 | BQ146: =BQ61-[3]JL!BS61 -> 0 | BR146: =BR61-[3]JL!BT61 -> 0 | BS146: =BS61-[3]JL!BU61 -> 0 | BT146: =BT61-[3]JL!BV61 -> 0 | BU146: =BU61-[3]JL!BW61 -> 0 | BV146: =BV61-[3]JL!BX61 -> 0 | BW146: =BW61-[3]JL!BY61 -> 0 | BX146: =BX61-[3]JL!BZ61 -> 0 | BY146: =BY61-[3]JL!CA61 -> 0 | BZ146: =BZ61-[3]JL!CB61 -> 0 | CA146: =CA61-[3]JL!CC61 -> 0 | CB146: =CB61-[3]JL!CD61 -> 0 | CC146: =CC61-[3]JL!CE61 -> 0 | CD146: =CD61-[3]JL!CF61 -> 0 | CE146: =CE61-[3]JL!CG61 -> 0 | CF146: =CF61-[3]JL!CH61 -> 0
A147: =A63-[3]JL!A63 -> 0 | B147: =B63-[3]JL!B63 -> 0 | C147: =C63-[3]JL!C63 -> 0 | D147: =D63-[3]JL!D63 -> 0 | E147: =E63-[3]JL!E63 -> 0 | F147: =F63-[3]JL!F63 -> 0 | G147: =G63-[3]JL!G63 -> 0 | H147: =H63-[3]JL!H63 -> 0 | I147: =I63-[3]JL!I63 -> 0 | J147: =J63-[3]JL!J63 -> 0 | K147: =K63-[3]JL!K63 -> 0 | L147: =L63-[3]JL!L63 -> 0 | M147: =M63-[3]JL!M63 -> 0 | N147: =N63-[3]JL!N63 -> 0 | O147: =O63-[3]JL!O63 -> 0 | P147: =P63-[3]JL!P63 -> 0 | Q147: =Q63-[3]JL!Q63 -> 0 | R147: =R63-[3]JL!R63 -> 0 | S147: =S63-[3]JL!S63 -> 0 | T147: =T63-[3]JL!T63 -> 0 | U147: =U63-[3]JL!U63 -> 0 | V147: =V63-[3]JL!V63 -> 0 | W147: =W63-[3]JL!W63 -> 0 | X147: =X63-[3]JL!X63 -> 0 | Y147: =Y63-[3]JL!Y63 -> 0 | Z147: =Z63-[3]JL!Z63 -> 0 | AA147: =AA63-[3]JL!AA63 -> 0 | AB147: =AB63-[3]JL!AB63 -> 0 | AC147: =AC63-[3]JL!AC63 -> 0 | AD147: =AD63-[3]JL!AD63 -> 0 | AE147: =AE63-[3]JL!AE63 -> 0 | AF147: =AF63-[3]JL!AF63 -> 0 | AG147: =AG63-[3]JL!AG63 -> 0 | AH147: =AH63-[3]JL!AH63 -> 0 | AI147: =AI63-[3]JL!AI63 -> 0 | AJ147: =AJ63-[3]JL!AJ63 -> 0 | AK147: =AK63-[3]JL!AK63 -> 0 | AL147: =AL63-[3]JL!AL63 -> 0 | AM147: =AM63-[3]JL!AM63 -> 0 | AN147: =AN62-[3]JL!AP62 -> 0 | AO147: =AO62-[3]JL!AQ62 -> 0 | AP147: =AP62-[3]JL!AR62 -> 0 | AQ147: =AQ62-[3]JL!AS62 -> 0 | AR147: =AR62-[3]JL!AT62 -> 0 | AS147: =AS62-[3]JL!AU62 -> 0 | AT147: =AT62-[3]JL!AV62 -> 0 | AU147: =AU62-[3]JL!AW62 -> 0 | AV147: =AV62-[3]JL!AX62 -> 0 | AW147: =AW62-[3]JL!AY62 -> 0 | AX147: =AX62-[3]JL!AZ62 -> 0 | AY147: =AY62-[3]JL!BA62 -> 0 | AZ147: =AZ62-[3]JL!BB62 -> 0 | BA147: =BA62-[3]JL!BC62 -> 0 | BB147: =BB62-[3]JL!BD62 -> 0 | BC147: =BC62-[3]JL!BE62 -> 0 | BD147: =BD62-[3]JL!BF62 -> 0 | BE147: =BE62-[3]JL!BG62 -> 0 | BF147: =BF62-[3]JL!BH62 -> 0 | BG147: =BG62-[3]JL!BI62 -> 0 | BH147: =BH62-[3]JL!BJ62 -> 0 | BI147: =BI62-[3]JL!BK62 -> 0 | BJ147: =BJ62-[3]JL!BL62 -> 0 | BK147: =BK62-[3]JL!BM62 -> 0 | BL147: =BL62-[3]JL!BN62 -> 0 | BM147: =BM62-[3]JL!BO62 -> 0 | BN147: =BN62-[3]JL!BP62 -> 0 | BO147: =BO62-[3]JL!BQ62 -> 0 | BP147: =BP62-[3]JL!BR62 -> 0 | BQ147: =BQ62-[3]JL!BS62 -> 0 | BR147: =BR62-[3]JL!BT62 -> 0 | BS147: =BS62-[3]JL!BU62 -> 0 | BT147: =BT62-[3]JL!BV62 -> 0 | BU147: =BU62-[3]JL!BW62 -> 0 | BV147: =BV62-[3]JL!BX62 -> 0 | BW147: =BW62-[3]JL!BY62 -> 0 | BX147: =BX62-[3]JL!BZ62 -> 0 | BY147: =BY62-[3]JL!CA62 -> 0 | BZ147: =BZ62-[3]JL!CB62 -> 0 | CA147: =CA62-[3]JL!CC62 -> 0 | CB147: =CB62-[3]JL!CD62 -> 0 | CC147: =CC62-[3]JL!CE62 -> 0 | CD147: =CD62-[3]JL!CF62 -> 0 | CE147: =CE62-[3]JL!CG62 -> 0 | CF147: =CF62-[3]JL!CH62 -> 0
A148: =A64-[3]JL!A64 -> 0 | B148: =B64-[3]JL!B64 -> 0 | C148: =C64-[3]JL!C64 -> 0 | D148: =D64-[3]JL!D64 -> 0 | E148: =E64-[3]JL!E64 -> 0 | F148: =F64-[3]JL!F64 -> 0 | G148: =G64-[3]JL!G64 -> 0 | H148: =H64-[3]JL!H64 -> 0 | I148: =I64-[3]JL!I64 -> 0 | J148: =J64-[3]JL!J64 -> 0 | K148: =K64-[3]JL!K64 -> 0 | L148: =L64-[3]JL!L64 -> 0 | M148: =M64-[3]JL!M64 -> 0 | N148: =N64-[3]JL!N64 -> 0 | O148: =O64-[3]JL!O64 -> 0 | P148: =P64-[3]JL!P64 -> 0 | Q148: =Q64-[3]JL!Q64 -> 0 | R148: =R64-[3]JL!R64 -> 0 | S148: =S64-[3]JL!S64 -> 0 | T148: =T64-[3]JL!T64 -> 0 | U148: =U64-[3]JL!U64 -> 0 | V148: =V64-[3]JL!V64 -> 0 | W148: =W64-[3]JL!W64 -> 0 | X148: =X64-[3]JL!X64 -> 0 | Y148: =Y64-[3]JL!Y64 -> 0 | Z148: =Z64-[3]JL!Z64 -> 0 | AA148: =AA64-[3]JL!AA64 -> 0 | AB148: =AB64-[3]JL!AB64 -> 0 | AC148: =AC64-[3]JL!AC64 -> 0 | AD148: =AD64-[3]JL!AD64 -> 0 | AE148: =AE64-[3]JL!AE64 -> 0 | AF148: =AF64-[3]JL!AF64 -> 0 | AG148: =AG64-[3]JL!AG64 -> 0 | AH148: =AH64-[3]JL!AH64 -> 0 | AI148: =AI64-[3]JL!AI64 -> 0 | AJ148: =AJ64-[3]JL!AJ64 -> 0 | AK148: =AK64-[3]JL!AK64 -> 0 | AL148: =AL64-[3]JL!AL64 -> 0 | AM148: =AM64-[3]JL!AM64 -> 0 | AN148: =AN63-[3]JL!AP63 -> 0 | AO148: =AO63-[3]JL!AQ63 -> 0 | AP148: =AP63-[3]JL!AR63 -> 0 | AQ148: =AQ63-[3]JL!AS63 -> 0 | AR148: =AR63-[3]JL!AT63 -> 0 | AS148: =AS63-[3]JL!AU63 -> 0 | AT148: =AT63-[3]JL!AV63 -> 0 | AU148: =AU63-[3]JL!AW63 -> 0 | AV148: =AV63-[3]JL!AX63 -> 0 | AW148: =AW63-[3]JL!AY63 -> 0 | AX148: =AX63-[3]JL!AZ63 -> 0 | AY148: =AY63-[3]JL!BA63 -> 0 | AZ148: =AZ63-[3]JL!BB63 -> 0 | BA148: =BA63-[3]JL!BC63 -> 0 | BB148: =BB63-[3]JL!BD63 -> 0 | BC148: =BC63-[3]JL!BE63 -> 0 | BD148: =BD63-[3]JL!BF63 -> 0 | BE148: =BE63-[3]JL!BG63 -> 0 | BF148: =BF63-[3]JL!BH63 -> 0 | BG148: =BG63-[3]JL!BI63 -> 0 | BH148: =BH63-[3]JL!BJ63 -> 0 | BI148: =BI63-[3]JL!BK63 -> 0 | BJ148: =BJ63-[3]JL!BL63 -> 0 | BK148: =BK63-[3]JL!BM63 -> 0 | BL148: =BL63-[3]JL!BN63 -> 0 | BM148: =BM63-[3]JL!BO63 -> 0 | BN148: =BN63-[3]JL!BP63 -> 0 | BO148: =BO63-[3]JL!BQ63 -> 0 | BP148: =BP63-[3]JL!BR63 -> 0 | BQ148: =BQ63-[3]JL!BS63 -> 0 | BR148: =BR63-[3]JL!BT63 -> 0 | BS148: =BS63-[3]JL!BU63 -> 0 | BT148: =BT63-[3]JL!BV63 -> 0 | BU148: =BU63-[3]JL!BW63 -> 0 | BV148: =BV63-[3]JL!BX63 -> 0 | BW148: =BW63-[3]JL!BY63 -> 0 | BX148: =BX63-[3]JL!BZ63 -> 0 | BY148: =BY63-[3]JL!CA63 -> 0 | BZ148: =BZ63-[3]JL!CB63 -> 0 | CA148: =CA63-[3]JL!CC63 -> 0 | CB148: =CB63-[3]JL!CD63 -> 0 | CC148: =CC63-[3]JL!CE63 -> 0 | CD148: =CD63-[3]JL!CF63 -> 0 | CE148: =CE63-[3]JL!CG63 -> 0 | CF148: =CF63-[3]JL!CH63 -> 0
A149: =A65-[3]JL!A65 -> 0 | B149: =B65-[3]JL!B65 -> 0 | C149: =C65-[3]JL!C65 -> 0 | D149: =D65-[3]JL!D65 -> 0 | E149: =E65-[3]JL!E65 -> 0 | F149: =F65-[3]JL!F65 -> 0 | G149: =G65-[3]JL!G65 -> 0 | H149: =H65-[3]JL!H65 -> 0 | I149: =I65-[3]JL!I65 -> 0 | J149: =J65-[3]JL!J65 -> 0 | K149: =K65-[3]JL!K65 -> 0 | L149: =L65-[3]JL!L65 -> 0 | M149: =M65-[3]JL!M65 -> 0 | N149: =N65-[3]JL!N65 -> 0 | O149: =O65-[3]JL!O65 -> 0 | P149: =P65-[3]JL!P65 -> 0 | Q149: =Q65-[3]JL!Q65 -> 0 | R149: =R65-[3]JL!R65 -> 0 | S149: =S65-[3]JL!S65 -> 0 | T149: =T65-[3]JL!T65 -> 0 | U149: =U65-[3]JL!U65 -> 0 | V149: =V65-[3]JL!V65 -> 0 | W149: =W65-[3]JL!W65 -> 0 | X149: =X65-[3]JL!X65 -> 0 | Y149: =Y65-[3]JL!Y65 -> 0 | Z149: =Z65-[3]JL!Z65 -> 0 | AA149: =AA65-[3]JL!AA65 -> 0 | AB149: =AB65-[3]JL!AB65 -> 0 | AC149: =AC65-[3]JL!AC65 -> 0 | AD149: =AD65-[3]JL!AD65 -> 0 | AE149: =AE65-[3]JL!AE65 -> 0 | AF149: =AF65-[3]JL!AF65 -> 0 | AG149: =AG65-[3]JL!AG65 -> 0 | AH149: =AH65-[3]JL!AH65 -> 0 | AI149: =AI65-[3]JL!AI65 -> 0 | AJ149: =AJ65-[3]JL!AJ65 -> 0 | AK149: =AK65-[3]JL!AK65 -> 0 | AL149: =AL65-[3]JL!AL65 -> 0 | AM149: =AM65-[3]JL!AM65 -> 0 | AN149: =AN64-[3]JL!AP64 -> 0 | AO149: =AO64-[3]JL!AQ64 -> 0 | AP149: =AP64-[3]JL!AR64 -> 0 | AQ149: =AQ64-[3]JL!AS64 -> 0 | AR149: =AR64-[3]JL!AT64 -> 0 | AS149: =AS64-[3]JL!AU64 -> 0 | AT149: =AT64-[3]JL!AV64 -> 0 | AU149: =AU64-[3]JL!AW64 -> 0 | AV149: =AV64-[3]JL!AX64 -> 0 | AW149: =AW64-[3]JL!AY64 -> 0 | AX149: =AX64-[3]JL!AZ64 -> 0 | AY149: =AY64-[3]JL!BA64 -> 0 | AZ149: =AZ64-[3]JL!BB64 -> 0 | BA149: =BA64-[3]JL!BC64 -> 0 | BB149: =BB64-[3]JL!BD64 -> 0 | BC149: =BC64-[3]JL!BE64 -> 0 | BD149: =BD64-[3]JL!BF64 -> 0 | BE149: =BE64-[3]JL!BG64 -> 0 | BF149: =BF64-[3]JL!BH64 -> 0 | BG149: =BG64-[3]JL!BI64 -> 0 | BH149: =BH64-[3]JL!BJ64 -> 0 | BI149: =BI64-[3]JL!BK64 -> 0 | BJ149: =BJ64-[3]JL!BL64 -> 0 | BK149: =BK64-[3]JL!BM64 -> 0 | BL149: =BL64-[3]JL!BN64 -> 0 | BM149: =BM64-[3]JL!BO64 -> 0 | BN149: =BN64-[3]JL!BP64 -> 0 | BO149: =BO64-[3]JL!BQ64 -> 0 | BP149: =BP64-[3]JL!BR64 -> 0 | BQ149: =BQ64-[3]JL!BS64 -> 0 | BR149: =BR64-[3]JL!BT64 -> 0 | BS149: =BS64-[3]JL!BU64 -> 0 | BT149: =BT64-[3]JL!BV64 -> 0 | BU149: =BU64-[3]JL!BW64 -> 0 | BV149: =BV64-[3]JL!BX64 -> 0 | BW149: =BW64-[3]JL!BY64 -> 0 | BX149: =BX64-[3]JL!BZ64 -> 0 | BY149: =BY64-[3]JL!CA64 -> 0 | BZ149: =BZ64-[3]JL!CB64 -> 0 | CA149: =CA64-[3]JL!CC64 -> 0 | CB149: =CB64-[3]JL!CD64 -> 0 | CC149: =CC64-[3]JL!CE64 -> 0 | CD149: =CD64-[3]JL!CF64 -> 0 | CE149: =CE64-[3]JL!CG64 -> 0 | CF149: =CF64-[3]JL!CH64 -> 0
A150: =A66-[3]JL!A66 -> 0 | B150: =B66-[3]JL!B66 -> 0 | C150: =C66-[3]JL!C66 -> 0 | D150: =D66-[3]JL!D66 -> 0 | E150: =E66-[3]JL!E66 -> 0 | F150: =F66-[3]JL!F66 -> 0 | G150: =G66-[3]JL!G66 -> 0 | H150: =H66-[3]JL!H66 -> 0 | I150: =I66-[3]JL!I66 -> 0 | J150: =J66-[3]JL!J66 -> 0 | K150: =K66-[3]JL!K66 -> 0 | L150: =L66-[3]JL!L66 -> 0 | M150: =M66-[3]JL!M66 -> 0 | N150: =N66-[3]JL!N66 -> 0 | O150: =O66-[3]JL!O66 -> 0 | P150: =P66-[3]JL!P66 -> 0 | Q150: =Q66-[3]JL!Q66 -> 0 | R150: =R66-[3]JL!R66 -> 0 | S150: =S66-[3]JL!S66 -> 0 | T150: =T66-[3]JL!T66 -> 0 | U150: =U66-[3]JL!U66 -> 0 | V150: =V66-[3]JL!V66 -> 0 | W150: =W66-[3]JL!W66 -> 0 | X150: =X66-[3]JL!X66 -> 0 | Y150: =Y66-[3]JL!Y66 -> 0 | Z150: =Z66-[3]JL!Z66 -> 0 | AA150: =AA66-[3]JL!AA66 -> 0 | AB150: =AB66-[3]JL!AB66 -> 0 | AC150: =AC66-[3]JL!AC66 -> 0 | AD150: =AD66-[3]JL!AD66 -> 0 | AE150: =AE66-[3]JL!AE66 -> 0 | AF150: =AF66-[3]JL!AF66 -> 0 | AG150: =AG66-[3]JL!AG66 -> 0 | AH150: =AH66-[3]JL!AH66 -> 0 | AI150: =AI66-[3]JL!AI66 -> 0 | AJ150: =AJ66-[3]JL!AJ66 -> 0 | AK150: =AK66-[3]JL!AK66 -> 0 | AL150: =AL66-[3]JL!AL66 -> 0 | AM150: =AM66-[3]JL!AM66 -> 0 | AN150: =AN65-[3]JL!AP65 -> 0 | AO150: =AO65-[3]JL!AQ65 -> 0 | AP150: =AP65-[3]JL!AR65 -> 0 | AQ150: =AQ65-[3]JL!AS65 -> 0 | AR150: =AR65-[3]JL!AT65 -> 0 | AS150: =AS65-[3]JL!AU65 -> 0 | AT150: =AT65-[3]JL!AV65 -> 0 | AU150: =AU65-[3]JL!AW65 -> 0 | AV150: =AV65-[3]JL!AX65 -> 0 | AW150: =AW65-[3]JL!AY65 -> 0 | AX150: =AX65-[3]JL!AZ65 -> 0 | AY150: =AY65-[3]JL!BA65 -> 0 | AZ150: =AZ65-[3]JL!BB65 -> 0 | BA150: =BA65-[3]JL!BC65 -> 0 | BB150: =BB65-[3]JL!BD65 -> 0 | BC150: =BC65-[3]JL!BE65 -> 0 | BD150: =BD65-[3]JL!BF65 -> 0 | BE150: =BE65-[3]JL!BG65 -> 0 | BF150: =BF65-[3]JL!BH65 -> 0 | BG150: =BG65-[3]JL!BI65 -> 0 | BH150: =BH65-[3]JL!BJ65 -> 0 | BI150: =BI65-[3]JL!BK65 -> 0 | BJ150: =BJ65-[3]JL!BL65 -> 0 | BK150: =BK65-[3]JL!BM65 -> 0 | BL150: =BL65-[3]JL!BN65 -> 0 | BM150: =BM65-[3]JL!BO65 -> 0 | BN150: =BN65-[3]JL!BP65 -> 0 | BO150: =BO65-[3]JL!BQ65 -> 0 | BP150: =BP65-[3]JL!BR65 -> 0 | BQ150: =BQ65-[3]JL!BS65 -> 0 | BR150: =BR65-[3]JL!BT65 -> 0 | BS150: =BS65-[3]JL!BU65 -> 0 | BT150: =BT65-[3]JL!BV65 -> 0 | BU150: =BU65-[3]JL!BW65 -> 0 | BV150: =BV65-[3]JL!BX65 -> 0 | BW150: =BW65-[3]JL!BY65 -> 0 | BX150: =BX65-[3]JL!BZ65 -> 0 | BY150: =BY65-[3]JL!CA65 -> 0 | BZ150: =BZ65-[3]JL!CB65 -> 0 | CA150: =CA65-[3]JL!CC65 -> 0 | CB150: =CB65-[3]JL!CD65 -> 0 | CC150: =CC65-[3]JL!CE65 -> 0 | CD150: =CD65-[3]JL!CF65 -> 0 | CE150: =CE65-[3]JL!CG65 -> 0 | CF150: =CF65-[3]JL!CH65 -> 0
A151: =A67-[3]JL!A67 -> 0 | B151: =B67-[3]JL!B67 -> 0 | C151: =C67-[3]JL!C67 -> 0 | D151: =D67-[3]JL!D67 -> 0 | E151: =E67-[3]JL!E67 -> 0 | F151: =F67-[3]JL!F67 -> 0 | G151: =G67-[3]JL!G67 -> 0 | H151: =H67-[3]JL!H67 -> 0 | I151: =I67-[3]JL!I67 -> 0 | J151: =J67-[3]JL!J67 -> 0 | K151: =K67-[3]JL!K67 -> 0 | L151: =L67-[3]JL!L67 -> 0 | M151: =M67-[3]JL!M67 -> 0 | N151: =N67-[3]JL!N67 -> 0 | O151: =O67-[3]JL!O67 -> 0 | P151: =P67-[3]JL!P67 -> 0 | Q151: =Q67-[3]JL!Q67 -> 0 | R151: =R67-[3]JL!R67 -> 0 | S151: =S67-[3]JL!S67 -> 0 | T151: =T67-[3]JL!T67 -> 0 | U151: =U67-[3]JL!U67 -> 0 | V151: =V67-[3]JL!V67 -> 0 | W151: =W67-[3]JL!W67 -> 0 | X151: =X67-[3]JL!X67 -> 0 | Y151: =Y67-[3]JL!Y67 -> 0 | Z151: =Z67-[3]JL!Z67 -> 0 | AA151: =AA67-[3]JL!AA67 -> 0 | AB151: =AB67-[3]JL!AB67 -> 0 | AC151: =AC67-[3]JL!AC67 -> 0 | AD151: =AD67-[3]JL!AD67 -> 0 | AE151: =AE67-[3]JL!AE67 -> 0 | AF151: =AF67-[3]JL!AF67 -> 0 | AG151: =AG67-[3]JL!AG67 -> 0 | AH151: =AH67-[3]JL!AH67 -> 0 | AI151: =AI67-[3]JL!AI67 -> 0 | AJ151: =AJ67-[3]JL!AJ67 -> 0 | AK151: =AK67-[3]JL!AK67 -> 0 | AL151: =AL67-[3]JL!AL67 -> 0 | AM151: =AM67-[3]JL!AM67 -> 0 | AN151: =AN66-[3]JL!AP66 -> 0 | AO151: =AO66-[3]JL!AQ66 -> 0 | AP151: =AP66-[3]JL!AR66 -> 0 | AQ151: =AQ66-[3]JL!AS66 -> 0 | AR151: =AR66-[3]JL!AT66 -> 0 | AS151: =AS66-[3]JL!AU66 -> 0 | AT151: =AT66-[3]JL!AV66 -> 0 | AU151: =AU66-[3]JL!AW66 -> 0 | AV151: =AV66-[3]JL!AX66 -> 0 | AW151: =AW66-[3]JL!AY66 -> 0 | AX151: =AX66-[3]JL!AZ66 -> 0 | AY151: =AY66-[3]JL!BA66 -> 0 | AZ151: =AZ66-[3]JL!BB66 -> 0 | BA151: =BA66-[3]JL!BC66 -> 0 | BB151: =BB66-[3]JL!BD66 -> 0 | BC151: =BC66-[3]JL!BE66 -> 0 | BD151: =BD66-[3]JL!BF66 -> 0 | BE151: =BE66-[3]JL!BG66 -> 0 | BF151: =BF66-[3]JL!BH66 -> 0 | BG151: =BG66-[3]JL!BI66 -> 0 | BH151: =BH66-[3]JL!BJ66 -> 0 | BI151: =BI66-[3]JL!BK66 -> 0 | BJ151: =BJ66-[3]JL!BL66 -> 0 | BK151: =BK66-[3]JL!BM66 -> 0 | BL151: =BL66-[3]JL!BN66 -> 0 | BM151: =BM66-[3]JL!BO66 -> 0 | BN151: =BN66-[3]JL!BP66 -> 0 | BO151: =BO66-[3]JL!BQ66 -> 0 | BP151: =BP66-[3]JL!BR66 -> 0 | BQ151: =BQ66-[3]JL!BS66 -> 0 | BR151: =BR66-[3]JL!BT66 -> 0 | BS151: =BS66-[3]JL!BU66 -> 0 | BT151: =BT66-[3]JL!BV66 -> 0 | BU151: =BU66-[3]JL!BW66 -> 0 | BV151: =BV66-[3]JL!BX66 -> 0 | BW151: =BW66-[3]JL!BY66 -> 0 | BX151: =BX66-[3]JL!BZ66 -> 0 | BY151: =BY66-[3]JL!CA66 -> 0 | BZ151: =BZ66-[3]JL!CB66 -> 0 | CA151: =CA66-[3]JL!CC66 -> 0 | CB151: =CB66-[3]JL!CD66 -> 0 | CC151: =CC66-[3]JL!CE66 -> 0 | CD151: =CD66-[3]JL!CF66 -> 0 | CE151: =CE66-[3]JL!CG66 -> 0 | CF151: =CF66-[3]JL!CH66 -> 0
A152: =A68-[3]JL!A68 -> 0 | B152: =B68-[3]JL!B68 -> 0 | C152: =C68-[3]JL!C68 -> 0 | D152: =D68-[3]JL!D68 -> 0 | E152: =E68-[3]JL!E68 -> 0 | F152: =F68-[3]JL!F68 -> 0 | G152: =G68-[3]JL!G68 -> 0 | H152: =H68-[3]JL!H68 -> 0 | I152: =I68-[3]JL!I68 -> 0 | J152: =J68-[3]JL!J68 -> 0 | K152: =K68-[3]JL!K68 -> 0 | L152: =L68-[3]JL!L68 -> 0 | M152: =M68-[3]JL!M68 -> 0 | N152: =N68-[3]JL!N68 -> 0 | O152: =O68-[3]JL!O68 -> 0 | P152: =P68-[3]JL!P68 -> 0 | Q152: =Q68-[3]JL!Q68 -> 0 | R152: =R68-[3]JL!R68 -> 0 | S152: =S68-[3]JL!S68 -> 0 | T152: =T68-[3]JL!T68 -> 0 | U152: =U68-[3]JL!U68 -> 0 | V152: =V68-[3]JL!V68 -> 0 | W152: =W68-[3]JL!W68 -> 0 | X152: =X68-[3]JL!X68 -> 0 | Y152: =Y68-[3]JL!Y68 -> 0 | Z152: =Z68-[3]JL!Z68 -> 0 | AA152: =AA68-[3]JL!AA68 -> 0 | AB152: =AB68-[3]JL!AB68 -> 0 | AC152: =AC68-[3]JL!AC68 -> 0 | AD152: =AD68-[3]JL!AD68 -> 0 | AE152: =AE68-[3]JL!AE68 -> 0 | AF152: =AF68-[3]JL!AF68 -> 0 | AG152: =AG68-[3]JL!AG68 -> 0 | AH152: =AH68-[3]JL!AH68 -> 0 | AI152: =AI68-[3]JL!AI68 -> 0 | AJ152: =AJ68-[3]JL!AJ68 -> 0 | AK152: =AK68-[3]JL!AK68 -> 0 | AL152: =AL68-[3]JL!AL68 -> 0 | AM152: =AM68-[3]JL!AM68 -> 0 | AN152: =AN67-[3]JL!AP67 -> 0 | AO152: =AO67-[3]JL!AQ67 -> 0 | AP152: =AP67-[3]JL!AR67 -> 0 | AQ152: =AQ67-[3]JL!AS67 -> 0 | AR152: =AR67-[3]JL!AT67 -> 0 | AS152: =AS67-[3]JL!AU67 -> 0 | AT152: =AT67-[3]JL!AV67 -> 0 | AU152: =AU67-[3]JL!AW67 -> 0 | AV152: =AV67-[3]JL!AX67 -> 0 | AW152: =AW67-[3]JL!AY67 -> 0 | AX152: =AX67-[3]JL!AZ67 -> 0 | AY152: =AY67-[3]JL!BA67 -> 0 | AZ152: =AZ67-[3]JL!BB67 -> 0 | BA152: =BA67-[3]JL!BC67 -> 0 | BB152: =BB67-[3]JL!BD67 -> 0 | BC152: =BC67-[3]JL!BE67 -> 0 | BD152: =BD67-[3]JL!BF67 -> 0 | BE152: =BE67-[3]JL!BG67 -> 0 | BF152: =BF67-[3]JL!BH67 -> 0 | BG152: =BG67-[3]JL!BI67 -> 0 | BH152: =BH67-[3]JL!BJ67 -> 0 | BI152: =BI67-[3]JL!BK67 -> 0 | BJ152: =BJ67-[3]JL!BL67 -> 0 | BK152: =BK67-[3]JL!BM67 -> 0 | BL152: =BL67-[3]JL!BN67 -> 0 | BM152: =BM67-[3]JL!BO67 -> 0 | BN152: =BN67-[3]JL!BP67 -> 0 | BO152: =BO67-[3]JL!BQ67 -> 0 | BP152: =BP67-[3]JL!BR67 -> 0 | BQ152: =BQ67-[3]JL!BS67 -> 0 | BR152: =BR67-[3]JL!BT67 -> 0 | BS152: =BS67-[3]JL!BU67 -> 0 | BT152: =BT67-[3]JL!BV67 -> 0 | BU152: =BU67-[3]JL!BW67 -> 0 | BV152: =BV67-[3]JL!BX67 -> 0 | BW152: =BW67-[3]JL!BY67 -> 0 | BX152: =BX67-[3]JL!BZ67 -> 0 | BY152: =BY67-[3]JL!CA67 -> 0 | BZ152: =BZ67-[3]JL!CB67 -> 0 | CA152: =CA67-[3]JL!CC67 -> 0 | CB152: =CB67-[3]JL!CD67 -> 0 | CC152: =CC67-[3]JL!CE67 -> 0 | CD152: =CD67-[3]JL!CF67 -> 0 | CE152: =CE67-[3]JL!CG67 -> 0 | CF152: =CF67-[3]JL!CH67 -> 0
A153: =A69-[3]JL!A69 -> 0 | B153: =B69-[3]JL!B69 -> 0 | C153: =C69-[3]JL!C69 -> 0 | D153: =D69-[3]JL!D69 -> 0 | E153: =E69-[3]JL!E69 -> 0 | F153: =F69-[3]JL!F69 -> 0 | G153: =G69-[3]JL!G69 -> 0 | H153: =H69-[3]JL!H69 -> 0 | I153: =I69-[3]JL!I69 -> 0 | J153: =J69-[3]JL!J69 -> 0 | K153: =K69-[3]JL!K69 -> 0 | L153: =L69-[3]JL!L69 -> 0 | M153: =M69-[3]JL!M69 -> 0 | N153: =N69-[3]JL!N69 -> 0 | O153: =O69-[3]JL!O69 -> 0 | P153: =P69-[3]JL!P69 -> 0 | Q153: =Q69-[3]JL!Q69 -> 0 | R153: =R69-[3]JL!R69 -> 0 | S153: =S69-[3]JL!S69 -> 0 | T153: =T69-[3]JL!T69 -> 0 | U153: =U69-[3]JL!U69 -> 0 | V153: =V69-[3]JL!V69 -> 0 | W153: =W69-[3]JL!W69 -> 0 | X153: =X69-[3]JL!X69 -> 0 | Y153: =Y69-[3]JL!Y69 -> 0 | Z153: =Z69-[3]JL!Z69 -> 0 | AA153: =AA69-[3]JL!AA69 -> 0 | AB153: =AB69-[3]JL!AB69 -> 0 | AC153: =AC69-[3]JL!AC69 -> 0 | AD153: =AD69-[3]JL!AD69 -> 0 | AE153: =AE69-[3]JL!AE69 -> 0 | AF153: =AF69-[3]JL!AF69 -> 0 | AG153: =AG69-[3]JL!AG69 -> 0 | AH153: =AH69-[3]JL!AH69 -> 0 | AI153: =AI69-[3]JL!AI69 -> 0 | AJ153: =AJ69-[3]JL!AJ69 -> 0 | AK153: =AK69-[3]JL!AK69 -> 0 | AL153: =AL69-[3]JL!AL69 -> 0 | AM153: =AM69-[3]JL!AM69 -> 0 | AN153: =AN68-[3]JL!AP68 -> 0 | AO153: =AO68-[3]JL!AQ68 -> 0 | AP153: =AP68-[3]JL!AR68 -> 0 | AQ153: =AQ68-[3]JL!AS68 -> 0 | AR153: =AR68-[3]JL!AT68 -> 0 | AS153: =AS68-[3]JL!AU68 -> 0 | AT153: =AT68-[3]JL!AV68 -> 0 | AU153: =AU68-[3]JL!AW68 -> 0 | AV153: =AV68-[3]JL!AX68 -> 0 | AW153: =AW68-[3]JL!AY68 -> 0 | AX153: =AX68-[3]JL!AZ68 -> 0 | AY153: =AY68-[3]JL!BA68 -> 0 | AZ153: =AZ68-[3]JL!BB68 -> 0 | BA153: =BA68-[3]JL!BC68 -> 0 | BB153: =BB68-[3]JL!BD68 -> 0 | BC153: =BC68-[3]JL!BE68 -> 0 | BD153: =BD68-[3]JL!BF68 -> 0 | BE153: =BE68-[3]JL!BG68 -> 0 | BF153: =BF68-[3]JL!BH68 -> 0 | BG153: =BG68-[3]JL!BI68 -> 0 | BH153: =BH68-[3]JL!BJ68 -> 0 | BI153: =BI68-[3]JL!BK68 -> 0 | BJ153: =BJ68-[3]JL!BL68 -> 0 | BK153: =BK68-[3]JL!BM68 -> 0 | BL153: =BL68-[3]JL!BN68 -> 0 | BM153: =BM68-[3]JL!BO68 -> 0 | BN153: =BN68-[3]JL!BP68 -> 0 | BO153: =BO68-[3]JL!BQ68 -> 0 | BP153: =BP68-[3]JL!BR68 -> 0 | BQ153: =BQ68-[3]JL!BS68 -> 0 | BR153: =BR68-[3]JL!BT68 -> 0 | BS153: =BS68-[3]JL!BU68 -> 0 | BT153: =BT68-[3]JL!BV68 -> 0 | BU153: =BU68-[3]JL!BW68 -> 0 | BV153: =BV68-[3]JL!BX68 -> 0 | BW153: =BW68-[3]JL!BY68 -> 0 | BX153: =BX68-[3]JL!BZ68 -> 0 | BY153: =BY68-[3]JL!CA68 -> 0 | BZ153: =BZ68-[3]JL!CB68 -> 0 | CA153: =CA68-[3]JL!CC68 -> 0 | CB153: =CB68-[3]JL!CD68 -> 0 | CC153: =CC68-[3]JL!CE68 -> 0 | CD153: =CD68-[3]JL!CF68 -> 0 | CE153: =CE68-[3]JL!CG68 -> 0 | CF153: =CF68-[3]JL!CH68 -> 0
A154: =A70-[3]JL!A70 -> 0 | B154: =B70-[3]JL!B70 -> 0 | C154: =C70-[3]JL!C70 -> 0 | D154: =D70-[3]JL!D70 -> 0 | E154: =E70-[3]JL!E70 -> 0 | F154: =F70-[3]JL!F70 -> 0 | G154: =G70-[3]JL!G70 -> 0 | H154: =H70-[3]JL!H70 -> 0 | I154: =I70-[3]JL!I70 -> 0 | J154: =J70-[3]JL!J70 -> 0 | K154: =K70-[3]JL!K70 -> 0 | L154: =L70-[3]JL!L70 -> 0 | M154: =M70-[3]JL!M70 -> 0 | N154: =N70-[3]JL!N70 -> 0 | O154: =O70-[3]JL!O70 -> 0 | P154: =P70-[3]JL!P70 -> 0 | Q154: =Q70-[3]JL!Q70 -> 0 | R154: =R70-[3]JL!R70 -> 0 | S154: =S70-[3]JL!S70 -> 0 | T154: =T70-[3]JL!T70 -> 0 | U154: =U70-[3]JL!U70 -> 0 | V154: =V70-[3]JL!V70 -> 0 | W154: =W70-[3]JL!W70 -> 0 | X154: =X70-[3]JL!X70 -> 0 | Y154: =Y70-[3]JL!Y70 -> 0 | Z154: =Z70-[3]JL!Z70 -> 0 | AA154: =AA70-[3]JL!AA70 -> 0 | AB154: =AB70-[3]JL!AB70 -> 0 | AC154: =AC70-[3]JL!AC70 -> 0 | AD154: =AD70-[3]JL!AD70 -> 0 | AE154: =AE70-[3]JL!AE70 -> 0 | AF154: =AF70-[3]JL!AF70 -> 0 | AG154: =AG70-[3]JL!AG70 -> 0 | AH154: =AH70-[3]JL!AH70 -> 0 | AI154: =AI70-[3]JL!AI70 -> 0 | AJ154: =AJ70-[3]JL!AJ70 -> 0 | AK154: =AK70-[3]JL!AK70 -> 0 | AL154: =AL70-[3]JL!AL70 -> 0 | AM154: =AM70-[3]JL!AM70 -> 0 | AN154: =AN69-[3]JL!AP69 -> 0 | AO154: =AO69-[3]JL!AQ69 -> 0 | AP154: =AP69-[3]JL!AR69 -> 0 | AQ154: =AQ69-[3]JL!AS69 -> 0 | AR154: =AR69-[3]JL!AT69 -> 0 | AS154: =AS69-[3]JL!AU69 -> 0 | AT154: =AT69-[3]JL!AV69 -> 0 | AU154: =AU69-[3]JL!AW69 -> 0 | AV154: =AV69-[3]JL!AX69 -> 0 | AW154: =AW69-[3]JL!AY69 -> 0 | AX154: =AX69-[3]JL!AZ69 -> 0 | AY154: =AY69-[3]JL!BA69 -> 0 | AZ154: =AZ69-[3]JL!BB69 -> 0 | BA154: =BA69-[3]JL!BC69 -> 0 | BB154: =BB69-[3]JL!BD69 -> 0 | BC154: =BC69-[3]JL!BE69 -> 0 | BD154: =BD69-[3]JL!BF69 -> 0 | BE154: =BE69-[3]JL!BG69 -> 0 | BF154: =BF69-[3]JL!BH69 -> 0 | BG154: =BG69-[3]JL!BI69 -> 0 | BH154: =BH69-[3]JL!BJ69 -> 0 | BI154: =BI69-[3]JL!BK69 -> 0 | BJ154: =BJ69-[3]JL!BL69 -> 0 | BK154: =BK69-[3]JL!BM69 -> 0 | BL154: =BL69-[3]JL!BN69 -> 0 | BM154: =BM69-[3]JL!BO69 -> 0 | BN154: =BN69-[3]JL!BP69 -> 0 | BO154: =BO69-[3]JL!BQ69 -> 0 | BP154: =BP69-[3]JL!BR69 -> 0 | BQ154: =BQ69-[3]JL!BS69 -> 0 | BR154: =BR69-[3]JL!BT69 -> 0 | BS154: =BS69-[3]JL!BU69 -> 0 | BT154: =BT69-[3]JL!BV69 -> 0 | BU154: =BU69-[3]JL!BW69 -> 0 | BV154: =BV69-[3]JL!BX69 -> 0 | BW154: =BW69-[3]JL!BY69 -> 0 | BX154: =BX69-[3]JL!BZ69 -> 0 | BY154: =BY69-[3]JL!CA69 -> 0 | BZ154: =BZ69-[3]JL!CB69 -> 0 | CA154: =CA69-[3]JL!CC69 -> 0 | CB154: =CB69-[3]JL!CD69 -> 0 | CC154: =CC69-[3]JL!CE69 -> 0 | CD154: =CD69-[3]JL!CF69 -> 0 | CE154: =CE69-[3]JL!CG69 -> 0 | CF154: =CF69-[3]JL!CH69 -> 0
A155: =A71-[3]JL!A71 -> 0 | B155: =B71-[3]JL!B71 -> 0 | C155: =C71-[3]JL!C71 -> 0 | D155: =D71-[3]JL!D71 -> 0 | E155: =E71-[3]JL!E71 -> 0 | F155: =F71-[3]JL!F71 -> 0 | G155: =G71-[3]JL!G71 -> 0 | H155: =H71-[3]JL!H71 -> 0 | I155: =I71-[3]JL!I71 -> 0 | J155: =J71-[3]JL!J71 -> 0 | K155: =K71-[3]JL!K71 -> 0 | L155: =L71-[3]JL!L71 -> 0 | M155: =M71-[3]JL!M71 -> 0 | N155: =N71-[3]JL!N71 -> 0 | O155: =O71-[3]JL!O71 -> 0 | P155: =P71-[3]JL!P71 -> 0 | Q155: =Q71-[3]JL!Q71 -> 0 | R155: =R71-[3]JL!R71 -> 0 | S155: =S71-[3]JL!S71 -> 0 | T155: =T71-[3]JL!T71 -> 0 | U155: =U71-[3]JL!U71 -> 0 | V155: =V71-[3]JL!V71 -> 0 | W155: =W71-[3]JL!W71 -> 0 | X155: =X71-[3]JL!X71 -> 0 | Y155: =Y71-[3]JL!Y71 -> 0 | Z155: =Z71-[3]JL!Z71 -> 0 | AA155: =AA71-[3]JL!AA71 -> 0 | AB155: =AB71-[3]JL!AB71 -> 0 | AC155: =AC71-[3]JL!AC71 -> 0 | AD155: =AD71-[3]JL!AD71 -> 0 | AE155: =AE71-[3]JL!AE71 -> 0 | AF155: =AF71-[3]JL!AF71 -> 0 | AG155: =AG71-[3]JL!AG71 -> 0 | AH155: =AH71-[3]JL!AH71 -> 0 | AI155: =AI71-[3]JL!AI71 -> 0 | AJ155: =AJ71-[3]JL!AJ71 -> 0 | AK155: =AK71-[3]JL!AK71 -> 0 | AL155: =AL71-[3]JL!AL71 -> 0 | AM155: =AM71-[3]JL!AM71 -> 0 | AN155: =AN70-[3]JL!AP70 -> 0 | AO155: =AO70-[3]JL!AQ70 -> 0 | AP155: =AP70-[3]JL!AR70 -> 0 | AQ155: =AQ70-[3]JL!AS70 -> 0 | AR155: =AR70-[3]JL!AT70 -> 0 | AS155: =AS70-[3]JL!AU70 -> 0 | AT155: =AT70-[3]JL!AV70 -> 0 | AU155: =AU70-[3]JL!AW70 -> 0 | AV155: =AV70-[3]JL!AX70 -> 0 | AW155: =AW70-[3]JL!AY70 -> 0 | AX155: =AX70-[3]JL!AZ70 -> 0 | AY155: =AY70-[3]JL!BA70 -> 0 | AZ155: =AZ70-[3]JL!BB70 -> 0 | BA155: =BA70-[3]JL!BC70 -> 0 | BB155: =BB70-[3]JL!BD70 -> 0 | BC155: =BC70-[3]JL!BE70 -> 0 | BD155: =BD70-[3]JL!BF70 -> 0 | BE155: =BE70-[3]JL!BG70 -> 0 | BF155: =BF70-[3]JL!BH70 -> 0 | BG155: =BG70-[3]JL!BI70 -> 0 | BH155: =BH70-[3]JL!BJ70 -> 0 | BI155: =BI70-[3]JL!BK70 -> 0 | BJ155: =BJ70-[3]JL!BL70 -> 0 | BK155: =BK70-[3]JL!BM70 -> 0 | BL155: =BL70-[3]JL!BN70 -> 0 | BM155: =BM70-[3]JL!BO70 -> 0 | BN155: =BN70-[3]JL!BP70 -> 0 | BO155: =BO70-[3]JL!BQ70 -> 0 | BP155: =BP70-[3]JL!BR70 -> 0 | BQ155: =BQ70-[3]JL!BS70 -> 0 | BR155: =BR70-[3]JL!BT70 -> 0 | BS155: =BS70-[3]JL!BU70 -> 0 | BT155: =BT70-[3]JL!BV70 -> 0 | BU155: =BU70-[3]JL!BW70 -> 0 | BV155: =BV70-[3]JL!BX70 -> 0 | BW155: =BW70-[3]JL!BY70 -> 0 | BX155: =BX70-[3]JL!BZ70 -> 0 | BY155: =BY70-[3]JL!CA70 -> 0 | BZ155: =BZ70-[3]JL!CB70 -> 0 | CA155: =CA70-[3]JL!CC70 -> 0 | CB155: =CB70-[3]JL!CD70 -> 0 | CC155: =CC70-[3]JL!CE70 -> 0 | CD155: =CD70-[3]JL!CF70 -> 0 | CE155: =CE70-[3]JL!CG70 -> 0 | CF155: =CF70-[3]JL!CH70 -> 0
A156: =A72-[3]JL!A72 -> 0 | B156: =B72-[3]JL!B72 -> 0 | C156: =C72-[3]JL!C72 -> 0 | D156: =D72-[3]JL!D72 -> 0 | E156: =E72-[3]JL!E72 -> 0 | F156: =F72-[3]JL!F72 -> 0 | G156: =G72-[3]JL!G72 -> 0 | H156: =H72-[3]JL!H72 -> 0 | I156: =I72-[3]JL!I72 -> 0 | J156: =J72-[3]JL!J72 -> 0 | K156: =K72-[3]JL!K72 -> 0 | L156: =L72-[3]JL!L72 -> 0 | M156: =M72-[3]JL!M72 -> 0 | N156: =N72-[3]JL!N72 -> 0 | O156: =O72-[3]JL!O72 -> 0 | P156: =P72-[3]JL!P72 -> 0 | Q156: =Q72-[3]JL!Q72 -> 0 | R156: =R72-[3]JL!R72 -> 0 | S156: =S72-[3]JL!S72 -> 0 | T156: =T72-[3]JL!T72 -> 0 | U156: =U72-[3]JL!U72 -> 0 | V156: =V72-[3]JL!V72 -> 0 | W156: =W72-[3]JL!W72 -> 0 | X156: =X72-[3]JL!X72 -> 0 | Y156: =Y72-[3]JL!Y72 -> 0 | Z156: =Z72-[3]JL!Z72 -> 0 | AA156: =AA72-[3]JL!AA72 -> 0 | AB156: =AB72-[3]JL!AB72 -> 0 | AC156: =AC72-[3]JL!AC72 -> 0 | AD156: =AD72-[3]JL!AD72 -> 0 | AE156: =AE72-[3]JL!AE72 -> 0 | AF156: =AF72-[3]JL!AF72 -> 0 | AG156: =AG72-[3]JL!AG72 -> 0 | AH156: =AH72-[3]JL!AH72 -> 0 | AI156: =AI72-[3]JL!AI72 -> 0 | AJ156: =AJ72-[3]JL!AJ72 -> 0 | AK156: =AK72-[3]JL!AK72 -> 0 | AL156: =AL72-[3]JL!AL72 -> 0 | AM156: =AM72-[3]JL!AM72 -> 0 | AN156: =AN71-[3]JL!AP71 -> 0 | AO156: =AO71-[3]JL!AQ71 -> 0 | AP156: =AP71-[3]JL!AR71 -> 0 | AQ156: =AQ71-[3]JL!AS71 -> 0 | AR156: =AR71-[3]JL!AT71 -> 0 | AS156: =AS71-[3]JL!AU71 -> 0 | AT156: =AT71-[3]JL!AV71 -> 0 | AU156: =AU71-[3]JL!AW71 -> 0 | AV156: =AV71-[3]JL!AX71 -> 0 | AW156: =AW71-[3]JL!AY71 -> 0 | AX156: =AX71-[3]JL!AZ71 -> 0 | AY156: =AY71-[3]JL!BA71 -> 0 | AZ156: =AZ71-[3]JL!BB71 -> 0 | BA156: =BA71-[3]JL!BC71 -> 0 | BB156: =BB71-[3]JL!BD71 -> 0 | BC156: =BC71-[3]JL!BE71 -> 0 | BD156: =BD71-[3]JL!BF71 -> 0 | BE156: =BE71-[3]JL!BG71 -> 0 | BF156: =BF71-[3]JL!BH71 -> 0 | BG156: =BG71-[3]JL!BI71 -> 0 | BH156: =BH71-[3]JL!BJ71 -> 0 | BI156: =BI71-[3]JL!BK71 -> 0 | BJ156: =BJ71-[3]JL!BL71 -> 0 | BK156: =BK71-[3]JL!BM71 -> 0 | BL156: =BL71-[3]JL!BN71 -> 0 | BM156: =BM71-[3]JL!BO71 -> 0 | BN156: =BN71-[3]JL!BP71 -> 0 | BO156: =BO71-[3]JL!BQ71 -> 0 | BP156: =BP71-[3]JL!BR71 -> 0 | BQ156: =BQ71-[3]JL!BS71 -> 0 | BR156: =BR71-[3]JL!BT71 -> 0 | BS156: =BS71-[3]JL!BU71 -> 0 | BT156: =BT71-[3]JL!BV71 -> 0 | BU156: =BU71-[3]JL!BW71 -> 0 | BV156: =BV71-[3]JL!BX71 -> 0 | BW156: =BW71-[3]JL!BY71 -> 0 | BX156: =BX71-[3]JL!BZ71 -> 0 | BY156: =BY71-[3]JL!CA71 -> 0 | BZ156: =BZ71-[3]JL!CB71 -> 0 | CA156: =CA71-[3]JL!CC71 -> 0 | CB156: =CB71-[3]JL!CD71 -> 0 | CC156: =CC71-[3]JL!CE71 -> 0 | CD156: =CD71-[3]JL!CF71 -> 0 | CE156: =CE71-[3]JL!CG71 -> 0 | CF156: =CF71-[3]JL!CH71 -> 0
A157: =A73-[3]JL!A73 -> 0 | B157: =B73-[3]JL!B73 -> 0 | C157: =C73-[3]JL!C73 -> 0 | D157: =D73-[3]JL!D73 -> 0 | E157: =E73-[3]JL!E73 -> 0 | F157: =F73-[3]JL!F73 -> 0 | G157: =G73-[3]JL!G73 -> 0 | H157: =H73-[3]JL!H73 -> 0 | I157: =I73-[3]JL!I73 -> 0 | J157: =J73-[3]JL!J73 -> 0 | K157: =K73-[3]JL!K73 -> 0 | L157: =L73-[3]JL!L73 -> 0 | M157: =M73-[3]JL!M73 -> 0 | N157: =N73-[3]JL!N73 -> 0 | O157: =O73-[3]JL!O73 -> 0 | P157: =P73-[3]JL!P73 -> 0 | Q157: =Q73-[3]JL!Q73 -> 0 | R157: =R73-[3]JL!R73 -> 0 | S157: =S73-[3]JL!S73 -> 0 | T157: =T73-[3]JL!T73 -> 0 | U157: =U73-[3]JL!U73 -> 0 | V157: =V73-[3]JL!V73 -> 0 | W157: =W73-[3]JL!W73 -> 0 | X157: =X73-[3]JL!X73 -> 0 | Y157: =Y73-[3]JL!Y73 -> 0 | Z157: =Z73-[3]JL!Z73 -> 0 | AA157: =AA73-[3]JL!AA73 -> 0 | AB157: =AB73-[3]JL!AB73 -> 0 | AC157: =AC73-[3]JL!AC73 -> 0 | AD157: =AD73-[3]JL!AD73 -> 0 | AE157: =AE73-[3]JL!AE73 -> 0 | AF157: =AF73-[3]JL!AF73 -> 0 | AG157: =AG73-[3]JL!AG73 -> 0 | AH157: =AH73-[3]JL!AH73 -> 0 | AI157: =AI73-[3]JL!AI73 -> 0 | AJ157: =AJ73-[3]JL!AJ73 -> 0 | AK157: =AK73-[3]JL!AK73 -> 0 | AL157: =AL73-[3]JL!AL73 -> 0 | AM157: =AM73-[3]JL!AM73 -> 0 | AN157: =AN72-[3]JL!AP72 -> 0 | AO157: =AO72-[3]JL!AQ72 -> 0 | AP157: =AP72-[3]JL!AR72 -> 0 | AQ157: =AQ72-[3]JL!AS72 -> 0 | AR157: =AR72-[3]JL!AT72 -> 0 | AS157: =AS72-[3]JL!AU72 -> 0 | AT157: =AT72-[3]JL!AV72 -> 0 | AU157: =AU72-[3]JL!AW72 -> 0 | AV157: =AV72-[3]JL!AX72 -> 0 | AW157: =AW72-[3]JL!AY72 -> 0 | AX157: =AX72-[3]JL!AZ72 -> 0 | AY157: =AY72-[3]JL!BA72 -> 0 | AZ157: =AZ72-[3]JL!BB72 -> 0 | BA157: =BA72-[3]JL!BC72 -> 0 | BB157: =BB72-[3]JL!BD72 -> 0 | BC157: =BC72-[3]JL!BE72 -> 0 | BD157: =BD72-[3]JL!BF72 -> 0 | BE157: =BE72-[3]JL!BG72 -> 0 | BF157: =BF72-[3]JL!BH72 -> 0 | BG157: =BG72-[3]JL!BI72 -> 0 | BH157: =BH72-[3]JL!BJ72 -> 0 | BI157: =BI72-[3]JL!BK72 -> 0 | BJ157: =BJ72-[3]JL!BL72 -> 0 | BK157: =BK72-[3]JL!BM72 -> 0 | BL157: =BL72-[3]JL!BN72 -> 0 | BM157: =BM72-[3]JL!BO72 -> 0 | BN157: =BN72-[3]JL!BP72 -> 0 | BO157: =BO72-[3]JL!BQ72 -> 0 | BP157: =BP72-[3]JL!BR72 -> 0 | BQ157: =BQ72-[3]JL!BS72 -> 0 | BR157: =BR72-[3]JL!BT72 -> 0 | BS157: =BS72-[3]JL!BU72 -> 0 | BT157: =BT72-[3]JL!BV72 -> 0 | BU157: =BU72-[3]JL!BW72 -> 0 | BV157: =BV72-[3]JL!BX72 -> 0 | BW157: =BW72-[3]JL!BY72 -> 0 | BX157: =BX72-[3]JL!BZ72 -> 0 | BY157: =BY72-[3]JL!CA72 -> 0 | BZ157: =BZ72-[3]JL!CB72 -> 0 | CA157: =CA72-[3]JL!CC72 -> 0 | CB157: =CB72-[3]JL!CD72 -> 0 | CC157: =CC72-[3]JL!CE72 -> 0 | CD157: =CD72-[3]JL!CF72 -> 0 | CE157: =CE72-[3]JL!CG72 -> 0 | CF157: =CF72-[3]JL!CH72 -> 0
A158: =A74-[3]JL!A74 -> 0 | B158: =B74-[3]JL!B74 -> 0 | C158: =C74-[3]JL!C74 -> 0 | D158: =D74-[3]JL!D74 -> 0 | E158: =E74-[3]JL!E74 -> 0 | F158: =F74-[3]JL!F74 -> 0 | G158: =G74-[3]JL!G74 -> 0 | H158: =H74-[3]JL!H74 -> 0 | I158: =I74-[3]JL!I74 -> 0 | J158: =J74-[3]JL!J74 -> 0 | K158: =K74-[3]JL!K74 -> 0 | L158: =L74-[3]JL!L74 -> 0 | M158: =M74-[3]JL!M74 -> 0 | N158: =N74-[3]JL!N74 -> 0 | O158: =O74-[3]JL!O74 -> 0 | P158: =P74-[3]JL!P74 -> 0 | Q158: =Q74-[3]JL!Q74 -> 0 | R158: =R74-[3]JL!R74 -> 0 | S158: =S74-[3]JL!S74 -> 0 | T158: =T74-[3]JL!T74 -> 0 | U158: =U74-[3]JL!U74 -> 0 | V158: =V74-[3]JL!V74 -> 0 | W158: =W74-[3]JL!W74 -> 0 | X158: =X74-[3]JL!X74 -> 0 | Y158: =Y74-[3]JL!Y74 -> 0 | Z158: =Z74-[3]JL!Z74 -> 0 | AA158: =AA74-[3]JL!AA74 -> 0 | AB158: =AB74-[3]JL!AB74 -> 0 | AC158: =AC74-[3]JL!AC74 -> 0 | AD158: =AD74-[3]JL!AD74 -> 0 | AE158: =AE74-[3]JL!AE74 -> 0 | AF158: =AF74-[3]JL!AF74 -> 0 | AG158: =AG74-[3]JL!AG74 -> 0 | AH158: =AH74-[3]JL!AH74 -> 0 | AI158: =AI74-[3]JL!AI74 -> 0 | AJ158: =AJ74-[3]JL!AJ74 -> 0 | AK158: =AK74-[3]JL!AK74 -> 0 | AL158: =AL74-[3]JL!AL74 -> 0 | AM158: =AM74-[3]JL!AM74 -> 0 | AN158: =AN73-[3]JL!AP73 -> 0 | AO158: =AO73-[3]JL!AQ73 -> 0 | AP158: =AP73-[3]JL!AR73 -> 0 | AQ158: =AQ73-[3]JL!AS73 -> 0 | AR158: =AR73-[3]JL!AT73 -> 0 | AS158: =AS73-[3]JL!AU73 -> 0 | AT158: =AT73-[3]JL!AV73 -> 0 | AU158: =AU73-[3]JL!AW73 -> 0 | AV158: =AV73-[3]JL!AX73 -> 0 | AW158: =AW73-[3]JL!AY73 -> 0 | AX158: =AX73-[3]JL!AZ73 -> 0 | AY158: =AY73-[3]JL!BA73 -> 0 | AZ158: =AZ73-[3]JL!BB73 -> 0 | BA158: =BA73-[3]JL!BC73 -> 0 | BB158: =BB73-[3]JL!BD73 -> 0 | BC158: =BC73-[3]JL!BE73 -> 0 | BD158: =BD73-[3]JL!BF73 -> 0 | BE158: =BE73-[3]JL!BG73 -> 0 | BF158: =BF73-[3]JL!BH73 -> 0 | BG158: =BG73-[3]JL!BI73 -> 0 | BH158: =BH73-[3]JL!BJ73 -> 0 | BI158: =BI73-[3]JL!BK73 -> 0 | BJ158: =BJ73-[3]JL!BL73 -> 0 | BK158: =BK73-[3]JL!BM73 -> 0 | BL158: =BL73-[3]JL!BN73 -> 0 | BM158: =BM73-[3]JL!BO73 -> 0 | BN158: =BN73-[3]JL!BP73 -> 0 | BO158: =BO73-[3]JL!BQ73 -> 0 | BP158: =BP73-[3]JL!BR73 -> 0 | BQ158: =BQ73-[3]JL!BS73 -> 0 | BR158: =BR73-[3]JL!BT73 -> 0 | BS158: =BS73-[3]JL!BU73 -> 0 | BT158: =BT73-[3]JL!BV73 -> 0 | BU158: =BU73-[3]JL!BW73 -> 0 | BV158: =BV73-[3]JL!BX73 -> 0 | BW158: =BW73-[3]JL!BY73 -> 0 | BX158: =BX73-[3]JL!BZ73 -> 0 | BY158: =BY73-[3]JL!CA73 -> 0 | BZ158: =BZ73-[3]JL!CB73 -> 0 | CA158: =CA73-[3]JL!CC73 -> 0 | CB158: =CB73-[3]JL!CD73 -> 0 | CC158: =CC73-[3]JL!CE73 -> 0 | CD158: =CD73-[3]JL!CF73 -> 0 | CE158: =CE73-[3]JL!CG73 -> 0 | CF158: =CF73-[3]JL!CH73 -> 0
A159: =A75-[3]JL!A75 -> 0 | B159: =B75-[3]JL!B75 -> 0 | C159: =C75-[3]JL!C75 -> 0 | D159: =D75-[3]JL!D75 -> 0 | E159: =E75-[3]JL!E75 -> 0 | F159: =F75-[3]JL!F75 -> 0 | G159: =G75-[3]JL!G75 -> 0 | H159: =H75-[3]JL!H75 -> 0 | I159: =I75-[3]JL!I75 -> 0 | J159: =J75-[3]JL!J75 -> 0 | K159: =K75-[3]JL!K75 -> 0 | L159: =L75-[3]JL!L75 -> 0 | M159: =M75-[3]JL!M75 -> 0 | N159: =N75-[3]JL!N75 -> 0 | O159: =O75-[3]JL!O75 -> 0 | P159: =P75-[3]JL!P75 -> 0 | Q159: =Q75-[3]JL!Q75 -> 0 | R159: =R75-[3]JL!R75 -> 0 | S159: =S75-[3]JL!S75 -> 0 | T159: =T75-[3]JL!T75 -> 0 | U159: =U75-[3]JL!U75 -> 0 | V159: =V75-[3]JL!V75 -> 0 | W159: =W75-[3]JL!W75 -> 0 | X159: =X75-[3]JL!X75 -> 0 | Y159: =Y75-[3]JL!Y75 -> 0 | Z159: =Z75-[3]JL!Z75 -> 0 | AA159: =AA75-[3]JL!AA75 -> 0 | AB159: =AB75-[3]JL!AB75 -> 0 | AC159: =AC75-[3]JL!AC75 -> 0 | AD159: =AD75-[3]JL!AD75 -> 0 | AE159: =AE75-[3]JL!AE75 -> 0 | AF159: =AF75-[3]JL!AF75 -> 0 | AG159: =AG75-[3]JL!AG75 -> 0 | AH159: =AH75-[3]JL!AH75 -> 0 | AI159: =AI75-[3]JL!AI75 -> 0 | AJ159: =AJ75-[3]JL!AJ75 -> 0 | AK159: =AK75-[3]JL!AK75 -> 0 | AL159: =AL75-[3]JL!AL75 -> 0 | AM159: =AM75-[3]JL!AM75 -> 0 | AN159: =AN74-[3]JL!AP74 -> 0 | AO159: =AO74-[3]JL!AQ74 -> 0 | AP159: =AP74-[3]JL!AR74 -> 0 | AQ159: =AQ74-[3]JL!AS74 -> 0 | AR159: =AR74-[3]JL!AT74 -> 0 | AS159: =AS74-[3]JL!AU74 -> 0 | AT159: =AT74-[3]JL!AV74 -> 0 | AU159: =AU74-[3]JL!AW74 -> 0 | AV159: =AV74-[3]JL!AX74 -> 0 | AW159: =AW74-[3]JL!AY74 -> 0 | AX159: =AX74-[3]JL!AZ74 -> 0 | AY159: =AY74-[3]JL!BA74 -> 0 | AZ159: =AZ74-[3]JL!BB74 -> 0 | BA159: =BA74-[3]JL!BC74 -> 0 | BB159: =BB74-[3]JL!BD74 -> 0 | BC159: =BC74-[3]JL!BE74 -> 0 | BD159: =BD74-[3]JL!BF74 -> 0 | BE159: =BE74-[3]JL!BG74 -> 0 | BF159: =BF74-[3]JL!BH74 -> 0 | BG159: =BG74-[3]JL!BI74 -> 0 | BH159: =BH74-[3]JL!BJ74 -> 0 | BI159: =BI74-[3]JL!BK74 -> 0 | BJ159: =BJ74-[3]JL!BL74 -> 0 | BK159: =BK74-[3]JL!BM74 -> 0 | BL159: =BL74-[3]JL!BN74 -> 0 | BM159: =BM74-[3]JL!BO74 -> 0 | BN159: =BN74-[3]JL!BP74 -> 0 | BO159: =BO74-[3]JL!BQ74 -> 0 | BP159: =BP74-[3]JL!BR74 -> 0 | BQ159: =BQ74-[3]JL!BS74 -> 0 | BR159: =BR74-[3]JL!BT74 -> 0 | BS159: =BS74-[3]JL!BU74 -> 0 | BT159: =BT74-[3]JL!BV74 -> 0 | BU159: =BU74-[3]JL!BW74 -> 0 | BV159: =BV74-[3]JL!BX74 -> 0 | BW159: =BW74-[3]JL!BY74 -> 0 | BX159: =BX74-[3]JL!BZ74 -> 0 | BY159: =BY74-[3]JL!CA74 -> 0 | BZ159: =BZ74-[3]JL!CB74 -> 0 | CA159: =CA74-[3]JL!CC74 -> 0 | CB159: =CB74-[3]JL!CD74 -> 0 | CC159: =CC74-[3]JL!CE74 -> 0 | CD159: =CD74-[3]JL!CF74 -> 0 | CE159: =CE74-[3]JL!CG74 -> 0 | CF159: =CF74-[3]JL!CH74 -> 0
A160: =A76-[3]JL!A76 -> 0 | B160: =B76-[3]JL!B76 -> 0 | C160: =C76-[3]JL!C76 -> 0 | D160: =D76-[3]JL!D76 -> 0 | E160: =E76-[3]JL!E76 -> 0 | F160: =F76-[3]JL!F76 -> 0 | G160: =G76-[3]JL!G76 -> 0 | H160: =H76-[3]JL!H76 -> 0 | I160: =I76-[3]JL!I76 -> 0 | J160: =J76-[3]JL!J76 -> 0 | K160: =K76-[3]JL!K76 -> 0 | L160: =L76-[3]JL!L76 -> 0 | M160: =M76-[3]JL!M76 -> 0 | N160: =N76-[3]JL!N76 -> 0 | O160: =O76-[3]JL!O76 -> 0 | P160: =P76-[3]JL!P76 -> 0 | Q160: =Q76-[3]JL!Q76 -> 0 | R160: =R76-[3]JL!R76 -> 0 | S160: =S76-[3]JL!S76 -> 0 | T160: =T76-[3]JL!T76 -> 0 | U160: =U76-[3]JL!U76 -> 0 | V160: =V76-[3]JL!V76 -> 0 | W160: =W76-[3]JL!W76 -> 0 | X160: =X76-[3]JL!X76 -> 0 | Y160: =Y76-[3]JL!Y76 -> 0 | Z160: =Z76-[3]JL!Z76 -> 0 | AA160: =AA76-[3]JL!AA76 -> 0 | AB160: =AB76-[3]JL!AB76 -> 0 | AC160: =AC76-[3]JL!AC76 -> 0 | AD160: =AD76-[3]JL!AD76 -> 0 | AE160: =AE76-[3]JL!AE76 -> 0 | AF160: =AF76-[3]JL!AF76 -> 0 | AG160: =AG76-[3]JL!AG76 -> 0 | AH160: =AH76-[3]JL!AH76 -> 0 | AI160: =AI76-[3]JL!AI76 -> 0 | AJ160: =AJ76-[3]JL!AJ76 -> 0 | AK160: =AK76-[3]JL!AK76 -> 0 | AL160: =AL76-[3]JL!AL76 -> 0 | AM160: =AM76-[3]JL!AM76 -> 0 | AN160: =AN75-[3]JL!AP75 -> 0 | AO160: =AO75-[3]JL!AQ75 -> 0 | AP160: =AP75-[3]JL!AR75 -> 0 | AQ160: =AQ75-[3]JL!AS75 -> 0 | AR160: =AR75-[3]JL!AT75 -> 0 | AS160: =AS75-[3]JL!AU75 -> 0 | AT160: =AT75-[3]JL!AV75 -> 0 | AU160: =AU75-[3]JL!AW75 -> 0 | AV160: =AV75-[3]JL!AX75 -> 0 | AW160: =AW75-[3]JL!AY75 -> 0 | AX160: =AX75-[3]JL!AZ75 -> 0 | AY160: =AY75-[3]JL!BA75 -> 0 | AZ160: =AZ75-[3]JL!BB75 -> 0 | BA160: =BA75-[3]JL!BC75 -> 0 | BB160: =BB75-[3]JL!BD75 -> 0 | BC160: =BC75-[3]JL!BE75 -> 0 | BD160: =BD75-[3]JL!BF75 -> 0 | BE160: =BE75-[3]JL!BG75 -> 0 | BF160: =BF75-[3]JL!BH75 -> 0 | BG160: =BG75-[3]JL!BI75 -> 0 | BH160: =BH75-[3]JL!BJ75 -> 0 | BI160: =BI75-[3]JL!BK75 -> 0 | BJ160: =BJ75-[3]JL!BL75 -> 0 | BK160: =BK75-[3]JL!BM75 -> 0 | BL160: =BL75-[3]JL!BN75 -> 0 | BM160: =BM75-[3]JL!BO75 -> 0 | BN160: =BN75-[3]JL!BP75 -> 0 | BO160: =BO75-[3]JL!BQ75 -> 0 | BP160: =BP75-[3]JL!BR75 -> 0 | BQ160: =BQ75-[3]JL!BS75 -> 0 | BR160: =BR75-[3]JL!BT75 -> 0 | BS160: =BS75-[3]JL!BU75 -> 0 | BT160: =BT75-[3]JL!BV75 -> 0 | BU160: =BU75-[3]JL!BW75 -> 0 | BV160: =BV75-[3]JL!BX75 -> 0 | BW160: =BW75-[3]JL!BY75 -> 0 | BX160: =BX75-[3]JL!BZ75 -> 0 | BY160: =BY75-[3]JL!CA75 -> 0 | BZ160: =BZ75-[3]JL!CB75 -> 0 | CA160: =CA75-[3]JL!CC75 -> 0 | CB160: =CB75-[3]JL!CD75 -> 0 | CC160: =CC75-[3]JL!CE75 -> 0 | CD160: =CD75-[3]JL!CF75 -> 0 | CE160: =CE75-[3]JL!CG75 -> 0 | CF160: =CF75-[3]JL!CH75 -> 0
